Workbook

Sheet Intro
G1: Electricity Network Service Providers
G2: Pre Tax Revenue Model
K3: Version: 01
K4: Date: 3 April 2013
B10: Introduction
C15: This model illustrates the basic elements of the Utilities Commission's building block calculation and associated price and revenue constraints for distribution businesses.
C16: It is based on the AER's Post Tax Revenue Model (PTRM) amended only to the extent required to convert calculations to a pre-tax basis.
C18: The model is intended to produce X factors that are applicable to revenue caps, price caps and revenue yield forms of control.
C20: Building block revenues and cash flows are modelled in nominal terms unless specified otherwise.
C22: Before using the PTRM, Excel’s iteration mode of calculation needs to be selected.
C23: To do so, select Options from the Tools menu in Excel, then select the Calculation tab.
C24: Make sure that Manual (rather than Automatic) is selected and tick the iteration box.
C26: To run the 'Fix_Te' macro manually, select Macro from the Tools menu, and then select Macros. Highlight 'Fix_Te' and click on Run.
C30: INSTRUCTIONS FOR USE
C32: 1. Fill out cells in "input" sheet. These cells are highlighted blue.
C33: Input data required include:
D34: by asset class-
E35: opening asset life
E36: remaining life
E37: useful life
E38: remaining tax life - PTRM only, leave blank for NT Revenue Model
E39: standard tax life - PTRM only, leave blank for NT Revenue Model
E40: forecast capex
E41: forecast disposals
E42: forecast customer contributions
D43: forecast total opex
D44: WACC parameters
D45: actual prices per each tariff component
D46: forecast quantities per each tariff component
C48: Input expenditure data should be valued in real terms of the year indicated, as at the end of that year.
C50: 2. Select X factors and P-0 on the "X factor" sheet
C51: Clause 6.2.6 of the NER requires that the form of control applicable to "standard direct control" services be of a CPI-X form.
C52: This sheet provides for the calculation of X factors under three basic forms of control, namely a weighted average price cap, revenue cap and revenue yield.
C53: These may be amended to suit the particular form of control applicable to the DNSP
C55: The value of X may differ for each year of the period but must be set such that the NPV of revenues is equal to the NPV of the total building block revenue requirement for the period.
C56: The X factor sheet provides input values for each X but contains macro buttons which can be used to goal seek a value of P0 for each form of control to equate the NPVs of forecast and required revenues
C61: AMENDMENT RECORD
C63: version no. | D63: date of issue | F63: details of amendments
C64: PTRM | D64: 2008-06-19
C65: version 01 | D65: 2013-04-02 | F65: refer: NT Revenue Model Notes.docx

Sheet Input
E2: Input Variables | G2: Input cells are in blue
E5: ="Opening Regulated Asset Base for "&Q7&" ($m Nominal)" -> Opening Regulated Asset Base for 2014-15 ($m Nominal)
G6: Asset Class Name | J6: Opening Asset Value | K6: Assets Under Construction | L6: Remaining Life | M6: Standard Life | N6: Opening Tax Value | O6: Tax Remaining Life | P6: Tax Standard Life | Q6: Base Financial Year
E7: Asset Class 1 | G7: System Capex | Q7: 2014-15
E8: Asset Class 2 | G8: Transmission terminal station | J8: 37.57881186 | L8: 16.97360838 | M8: 42.44635382
E9: Asset Class 3 | G9: Zone substations | J9: 262.7652729 | L9: 13.13352018 | M9: 41.74234458
E10: Asset Class 4 | G10: Transmission lines | J10: 165.4650501 | L10: 30.2306786 | M10: 56.56489969
E11: Asset Class 5 | G11: Distribution mains | J11: 313.7658177 | L11: 30.56190823 | M11: 55.77198391
E12: Asset Class 6 | G12: Distribution substations | J12: 83.92173333 | L12: 23.17736771 | M12: 45
E13: Asset Class 7 | G13: Metering | J13: 7.502627971 | L13: 6.194636691 | M13: 22.14242435
E14: Asset Class 8 | G14: Land and easements | J14: 33.90420265 | L14: n/a | M14: n/a
E15: Asset Class 9 | G15: Secondary systems - Control, communications & Protection | J15: 12.00886681 | L15: 2 | M15: 13.35574299
E16: Asset Class 10 | G16: Other | J16: 0.4352916618 | L16: 3 | M16: 5
E17: Asset Class 11 | G17: Non-System Capex
E18: Asset Class 12 | G18: Non-network—IT and Communications Capex | J18: 3.057213351 | L18: 6.362519466 | M18: 11.84092713
E19: Asset Class 13 | G19: Non-network—Motor Vehicles Capex | J19: 0
E20: Asset Class 14 | G20: Non-network—Property Capex | J20: 0
E21: Asset Class 15 | G21: Non-network—Plant & Equipment Capex | J21: 8.921432885 | L21: 9.573682332 | M21: 14.32936477
E22: Asset Class 16 | G22: Non-network—Other capex | J22: 0.7298267045 | L22: 3 | M22: 5
E23: Asset Class 17
E24: Asset Class 18
E25: Asset Class 19
E26: Asset Class 20
E27: Asset Class 21
E28: Asset Class 22
E29: Asset Class 23
E30: Asset Class 24
E31: Asset Class 25
E32: Asset Class 26
E33: Asset Class 27
E34: Asset Class 28
E35: Asset Class 29
E36: Asset Class 30
E37: Total | J37: =SUM(J7:J36)+K37 -> 930.0561478 | K37: =SUM(K7:K36) -> 0 | N37: =SUM(N7:N36) -> 0
E39: ="Forecast Capital Expenditure – As Incurred ($m Real "&CONCATENATE(LEFT(Q7, 4)-1 &"-" &IF(Q7>"2009-10",,"0") &RIGHT(Q7,2)-1)&")" -> Forecast Capital Expenditure – As Incurred ($m Real 2013-14) | I39: including Gifted Assets
E40: Year | G40: =Q7 -> 2014-15 | H40: =CONCATENATE(LEFT(G40, 4)+1 &"-" &IF(G40>"2007-08",,"0") &RIGHT(G40,2)+1) -> 2015-16 | I40: =CONCATENATE(LEFT(H40, 4)+1 &"-" &IF(H40>"2007-08",,"0") &RIGHT(H40,2)+1) -> 2016-17 | J40: 2017-18 | K40: 2018-19 | L40: 2019-20 | M40: 2020-21 | N40: 2021-22 | O40: 2022-23 | P40: 2023-24
E41: =Asset1 -> System Capex
E42: =Asset2 -> Transmission terminal station | G42: 0 | H42: 0 | I42: 0 | J42: 0 | K42: 0
E43: =Asset3 -> Zone substations | G43: 34.72671772 | H43: 16.3000052 | I43: 12.54241251 | J43: 14.26513252 | K43: 22.59078664
E44: =Asset4 -> Transmission lines | G44: 6.202567541 | H44: 18.57676592 | I44: 5.195809973 | J44: 0.275621857 | K44: 0.2777669278
E45: =Asset5 -> Distribution mains | G45: 25.95980434 | H45: 26.3504458 | I45: 22.58067877 | J45: 22.5503353 | K45: 28.01830186
E46: =Asset6 -> Distribution substations | G46: 6.774745059 | H46: 6.475726776 | I46: 7.172576762 | J46: 8.377728527 | K46: 9.090000594
E47: =Asset7 -> Metering | G47: 2.115534056 | H47: 2.516974651 | I47: 3.908486706 | J47: 3.642578262 | K47: 1.67791159
E48: =Asset8 -> Land and easements | G48: 0 | H48: 0 | I48: 0 | J48: 0 | K48: 0
E49: =Asset9 -> Secondary systems - Control, communications & Protection | G49: 5.398889374 | H49: 2.827693185 | I49: 2.603945125 | J49: 2.22847332 | K49: 4.95911026
E50: =Asset10 -> Other | G50: 0.3147611056 | H50: 0.3147611056 | I50: 0.2098407371 | J50: 0.3147611056 | K50: 0.3147611056
E51: =Asset11 -> Non-System Capex
E52: =Asset12 -> Non-network—IT and Communications Capex | G52: 5.645533411 | H52: 1.715878788 | I52: 0 | J52: 0 | K52: 0
E53: =Asset13 -> Non-network—Motor Vehicles Capex | G53: 0 | H53: 0 | I53: 0 | J53: 0 | K53: 0
E54: =Asset14 -> Non-network—Property Capex | G54: 0 | H54: 0 | I54: 0 | J54: 0 | K54: 0
E55: =Asset15 -> Non-network—Plant & Equipment Capex | G55: 1.236475276 | H55: 1.236475276 | I55: 1.236475276 | J55: 1.236475276 | K55: 1.236475276
E56: =Asset16 -> Non-network—Other capex | G56: 0 | H56: 0 | I56: 0 | J56: 0 | K56: 0
E57: =Asset17 -> 0
E58: =Asset18 -> 0
E59: =Asset19 -> 0
E60: =Asset20 -> 0
E61: =Asset21 -> 0
E62: =Asset22 -> 0
E63: =Asset23 -> 0
E64: =Asset24 -> 0
E65: =Asset25 -> 0
E66: =Asset26 -> 0
E67: =Asset27 -> 0
E68: =Asset28 -> 0
E69: =Asset29 -> 0
E70: =Asset30 -> 0
E71: Total | G71: =SUM(G41:G70) -> 88.37502788 | H71: 76.3147267 | I71: 55.45022586 | J71: 52.89110616 | K71: 68.16511425 | L71: 0 | M71: =SUM(M41:M70) -> 0 | N71: 0 | O71: 0 | P71: 0
Q72: =SUM(G71:P71) -> 341.1962009
E73: ="Forecast Asset Disposal – as incurred ($m Real "&CONCATENATE(LEFT(Q7, 4)-1 &"-" &IF(Q7>"2009-10",,"0") &RIGHT(Q7,2)-1)&")" -> Forecast Asset Disposal – as incurred ($m Real 2013-14)
E74: Year | G74: =G40 -> 2014-15 | H74: =H40 -> 2015-16 | I74: 2016-17 | J74: 2017-18 | K74: 2018-19 | L74: 2019-20 | M74: 2020-21 | N74: 2021-22 | O74: 2022-23 | P74: 2023-24
E75: =Asset1 -> System Capex
E76: =Asset2 -> Transmission terminal station | G76: 0 | H76: 0 | I76: 0 | J76: 0 | K76: 0
E77: =Asset3 -> Zone substations | G77: 0.1260603981 | H77: 0.1215225354 | I77: 0.1219714034 | J77: 0.1226367522 | K77: 0.1219708144
E78: =Asset4 -> Transmission lines | G78: 0 | H78: 0 | I78: 0 | J78: 0 | K78: 0
E79: =Asset5 -> Distribution mains | G79: 0.2765241661 | H79: 0.2680405523 | I79: 0.2720234333 | J79: 0.2764323416 | K79: 0.2807934454
E80: =Asset6 -> Distribution substations | G80: 0.4342145508 | H80: 0.4189808243 | I80: 0.4234724558 | J80: 0.4280884324 | K80: 0.4327988832
E81: =Asset7 -> Metering | G81: 0.0005133439243 | H81: 0.0005093884608 | I81: 0.0005121608142 | J81: 0.0005138090586 | K81: 0.0005150227195
E82: =Asset8 -> Land and easements | G82: 0 | H82: 0 | I82: 0 | J82: 0 | K82: 0
E83: =Asset9 -> Secondary systems - Control, communications & Protection | G83: 0 | H83: 0 | I83: 0 | J83: 0 | K83: 0
E84: =Asset10 -> Other | G84: 0 | H84: 0 | I84: 0 | J84: 0 | K84: 0
E85: =Asset11 -> Non-System Capex
E86: =Asset12 -> Non-network—IT and Communications Capex | G86: 0 | H86: 0 | I86: 0 | J86: 0 | K86: 0
E87: =Asset13 -> Non-network—Motor Vehicles Capex | G87: 0 | H87: 0 | I87: 0 | J87: 0 | K87: 0
E88: =Asset14 -> Non-network—Property Capex | G88: 0 | H88: 0 | I88: 0 | J88: 0 | K88: 0
E89: =Asset15 -> Non-network—Plant & Equipment Capex | G89: 0 | H89: 0 | I89: 0 | J89: 0 | K89: 0
E90: =Asset16 -> Non-network—Other capex | G90: 0 | H90: 0 | I90: 0 | J90: 0 | K90: 0
E91: =Asset17 -> 0
E92: =Asset18 -> 0
E93: =Asset19 -> 0
E94: =Asset20 -> 0
E95: =Asset21 -> 0
E96: =Asset22 -> 0
E97: =Asset23 -> 0
E98: =Asset24 -> 0
E99: =Asset25 -> 0
E100: =Asset26 -> 0
E101: =Asset27 -> 0
E102: =Asset28 -> 0
E103: =Asset29 -> 0
E104: =Asset30 -> 0
E105: Total | G105: =SUM(G75:G104) -> 0.8373124589 | H105: 0.8090533004 | I105: 0.8179794532 | J105: =SUM(J75:J104) -> 0.8276713353 | K105: 0.8360781657 | L105: 0 | M105: 0 | N105: 0 | O105: 0 | P105: 0
Q106: =SUM(G105:P105) -> 4.128094714
E107: ="Forecast Customer Contributions – As Incurred ($m Real "&CONCATENATE(LEFT(Q7, 4)-1 &"-" &IF(Q7>"2009-10",,"0") &RIGHT(Q7,2)-1)&")" -> Forecast Customer Contributions – As Incurred ($m Real 2013-14) | I107: : Gifted Assets + Cash Contributions from Customers
E108: Year | G108: =G74 -> 2014-15 | H108: =H74 -> 2015-16 | I108: 2016-17 | J108: 2017-18 | K108: 2018-19 | L108: 2019-20 | M108: 2020-21 | N108: 2021-22 | O108: 2022-23 | P108: 2023-24
E109: =Asset1 -> System Capex
E110: =Asset2 -> Transmission terminal station | G110: 0 | H110: 0 | I110: 0 | J110: 0 | K110: 0
E111: =Asset3 -> Zone substations | G111: 0 | H111: 0 | I111: 0 | J111: 0 | K111: 0
E112: =Asset4 -> Transmission lines | G112: 0 | H112: 0 | I112: 0 | J112: 0 | K112: 0
E113: =Asset5 -> Distribution mains | G113: 9.798521577 | H113: 10.02563266 | I113: 10.25887574 | J113: 10.49841639 | K113: 10.74442463
E114: =Asset6 -> Distribution substations | G114: 2.050387504 | H114: 2.105747966 | I114: 2.162603161 | J114: 2.220993447 | K114: 2.28096027
E115: =Asset7 -> Metering | G115: 0 | H115: 0 | I115: 0 | J115: 0 | K115: 0
E116: =Asset8 -> Land and easements | G116: 0 | H116: 0 | I116: 0 | J116: 0 | K116: 0
E117: =Asset9 -> Secondary systems - Control, communications & Protection | G117: 0 | H117: 0 | I117: 0 | J117: 0 | K117: 0
E118: =Asset10 -> Other | G118: 0 | H118: 0 | I118: 0 | J118: 0 | K118: 0
E119: =Asset11 -> Non-System Capex
E120: =Asset12 -> Non-network—IT and Communications Capex | G120: 0 | H120: 0 | I120: 0 | J120: 0 | K120: 0
E121: =Asset13 -> Non-network—Motor Vehicles Capex | G121: 0 | H121: 0 | I121: 0 | J121: 0 | K121: 0
E122: =Asset14 -> Non-network—Property Capex | G122: 0 | H122: 0 | I122: 0 | J122: 0 | K122: 0
E123: =Asset15 -> Non-network—Plant & Equipment Capex | G123: 0 | H123: 0 | I123: 0 | J123: 0 | K123: 0
E124: =Asset16 -> Non-network—Other capex | G124: 0 | H124: 0 | I124: 0 | J124: 0 | K124: 0
E125: =Asset17 -> 0
E126: =Asset18 -> 0
E127: =Asset19 -> 0
E128: =Asset20 -> 0
E129: =Asset21 -> 0
E130: =Asset22 -> 0
E131: =Asset23 -> 0
E132: =Asset24 -> 0
E133: =Asset25 -> 0
E134: =Asset26 -> 0
E135: =Asset27 -> 0
E136: =Asset28 -> 0
E137: =Asset29 -> 0
E138: =Asset30 -> 0
E139: Total | G139: =SUM(G109:G138) -> 11.84890908 | H139: 12.13138063 | I139: 12.4214789 | J139: 12.71940983 | K139: 13.0253849 | L139: 0 | M139: 0 | N139: 0 | O139: 0 | P139: 0
Q140: =SUM(G139:P139) -> 62.14656334
E141: ="Forecast Net Capital Expenditure – As Incurred ($m Real "&CONCATENATE(LEFT(Q7, 4)-1 &"-" &IF(Q7>"2009-10",,"0") &RIGHT(Q7,2)-1)&")" -> Forecast Net Capital Expenditure – As Incurred ($m Real 2013-14)
E142: Year | G142: =G40 -> 2014-15 | H142: =H40 -> 2015-16 | I142: 2016-17 | J142: 2017-18 | K142: 2018-19 | L142: 2019-20 | M142: 2020-21 | N142: 2021-22 | O142: 2022-23 | P142: 2023-24
E143: =Asset1 -> System Capex | G143: =G41-G75-G109 -> 0 | H143: =H41-H75-H109 -> 0 | I143: 0 | J143: 0 | K143: 0 | L143: 0 | M143: 0 | N143: 0 | O143: 0 | P143: 0
E144: =Asset2 -> Transmission terminal station | G144: =G42-G76-G110 -> 0 | H144: 0 | I144: 0 | J144: 0 | K144: 0 | L144: 0 | M144: 0 | N144: 0 | O144: 0 | P144: 0
E145: =Asset3 -> Zone substations | G145: =G43-G77-G111 -> 34.60065732 | H145: =H43-H77-H111 -> 16.17848266 | I145: 12.42044111 | J145: 14.14249577 | K145: 22.46881582 | L145: 0 | M145: 0 | N145: 0 | O145: 0 | P145: 0
E146: =Asset4 -> Transmission lines | G146: =G44-G78-G112 -> 6.202567541 | H146: 18.57676592 | I146: 5.195809973 | J146: 0.275621857 | K146: 0.2777669278 | L146: 0 | M146: 0 | N146: 0 | O146: 0 | P146: 0
E147: =Asset5 -> Distribution mains | G147: =G45-G79-G113 -> 15.88475859 | H147: 16.05677259 | I147: 12.04977959 | J147: 11.77548657 | K147: 16.99308378 | L147: 0 | M147: 0 | N147: 0 | O147: 0 | P147: 0
E148: =Asset6 -> Distribution substations | G148: =G46-G80-G114 -> 4.290143004 | H148: 3.950997985 | I148: 4.586501145 | J148: =J46-J80-J114 -> 5.728646648 | K148: 6.376241441 | L148: 0 | M148: 0 | N148: 0 | O148: 0 | P148: 0
E149: =Asset7 -> Metering | G149: =G47-G81-G115 -> 2.115020712 | H149: 2.516465263 | I149: 3.907974545 | J149: 3.642064453 | K149: 1.677396567 | L149: 0 | M149: 0 | N149: 0 | O149: 0 | P149: 0
E150: =Asset8 -> Land and easements | G150: =G48-G82-G116 -> 0 | H150: 0 | I150: 0 | J150: 0 | K150: 0 | L150: 0 | M150: 0 | N150: 0 | O150: 0 | P150: 0
E151: =Asset9 -> Secondary systems - Control, communications & Protection | G151: =G49-G83-G117 -> 5.398889374 | H151: 2.827693185 | I151: 2.603945125 | J151: 2.22847332 | K151: 4.95911026 | L151: 0 | M151: 0 | N151: 0 | O151: 0 | P151: 0
E152: =Asset10 -> Other | G152: =G50-G84-G118 -> 0.3147611056 | H152: 0.3147611056 | I152: 0.2098407371 | J152: 0.3147611056 | K152: 0.3147611056 | L152: 0 | M152: 0 | N152: 0 | O152: 0 | P152: 0
E153: =Asset11 -> Non-System Capex | G153: =G51-G85-G119 -> 0 | H153: 0 | I153: 0 | J153: 0 | K153: 0 | L153: 0 | M153: 0 | N153: 0 | O153: 0 | P153: 0
E154: =Asset12 -> Non-network—IT and Communications Capex | G154: =G52-G86-G120 -> 5.645533411 | H154: 1.715878788 | I154: 0 | J154: 0 | K154: 0 | L154: 0 | M154: 0 | N154: 0 | O154: 0 | P154: 0
E155: =Asset13 -> Non-network—Motor Vehicles Capex | G155: =G53-G87-G121 -> 0 | H155: 0 | I155: 0 | J155: 0 | K155: 0 | L155: 0 | M155: 0 | N155: 0 | O155: 0 | P155: 0
E156: =Asset14 -> Non-network—Property Capex | G156: =G54-G88-G122 -> 0 | H156: 0 | I156: 0 | J156: 0 | K156: 0 | L156: 0 | M156: 0 | N156: 0 | O156: 0 | P156: 0
E157: =Asset15 -> Non-network—Plant & Equipment Capex | G157: =G55-G89-G123 -> 1.236475276 | H157: 1.236475276 | I157: 1.236475276 | J157: 1.236475276 | K157: 1.236475276 | L157: 0 | M157: 0 | N157: 0 | O157: 0 | P157: 0
E158: =Asset16 -> Non-network—Other capex | G158: =G56-G90-G124 -> 0 | H158: 0 | I158: 0 | J158: 0 | K158: 0 | L158: 0 | M158: 0 | N158: 0 | O158: 0 | P158: 0
E159: =Asset17 -> 0 | G159: =G57-G91-G125 -> 0 | H159: 0 | I159: 0 | J159: 0 | K159: 0 | L159: 0 | M159: 0 | N159: 0 | O159: 0 | P159: 0
E160: =Asset18 -> 0 | G160: =G58-G92-G126 -> 0 | H160: 0 | I160: 0 | J160: 0 | K160: 0 | L160: 0 | M160: 0 | N160: 0 | O160: 0 | P160: 0
E161: =Asset19 -> 0 | G161: =G59-G93-G127 -> 0 | H161: 0 | I161: 0 | J161: 0 | K161: 0 | L161: 0 | M161: 0 | N161: 0 | O161: 0 | P161: 0
E162: =Asset20 -> 0 | G162: =G60-G94-G128 -> 0 | H162: 0 | I162: 0 | J162: 0 | K162: 0 | L162: 0 | M162: 0 | N162: 0 | O162: 0 | P162: 0
E163: =Asset21 -> 0 | G163: =G61-G95-G129 -> 0 | H163: 0 | I163: 0 | J163: 0 | K163: 0 | L163: 0 | M163: 0 | N163: 0 | O163: 0 | P163: 0
E164: =Asset22 -> 0 | G164: =G62-G96-G130 -> 0 | H164: 0 | I164: 0 | J164: 0 | K164: 0 | L164: 0 | M164: 0 | N164: 0 | O164: 0 | P164: 0
E165: =Asset23 -> 0 | G165: =G63-G97-G131 -> 0 | H165: 0 | I165: 0 | J165: 0 | K165: 0 | L165: 0 | M165: 0 | N165: 0 | O165: 0 | P165: 0
E166: =Asset24 -> 0 | G166: =G64-G98-G132 -> 0 | H166: 0 | I166: 0 | J166: 0 | K166: 0 | L166: 0 | M166: 0 | N166: 0 | O166: 0 | P166: 0
E167: =Asset25 -> 0 | G167: =G65-G99-G133 -> 0 | H167: 0 | I167: 0 | J167: 0 | K167: 0 | L167: 0 | M167: 0 | N167: 0 | O167: 0 | P167: 0
E168: =Asset26 -> 0 | G168: =G66-G100-G134 -> 0 | H168: 0 | I168: 0 | J168: 0 | K168: 0 | L168: 0 | M168: 0 | N168: 0 | O168: 0 | P168: 0
E169: =Asset27 -> 0 | G169: =G67-G101-G135 -> 0 | H169: 0 | I169: 0 | J169: 0 | K169: 0 | L169: 0 | M169: 0 | N169: 0 | O169: 0 | P169: 0
E170: =Asset28 -> 0 | G170: =G68-G102-G136 -> 0 | H170: 0 | I170: 0 | J170: 0 | K170: 0 | L170: 0 | M170: 0 | N170: 0 | O170: 0 | P170: 0
E171: =Asset29 -> 0 | G171: =G69-G103-G137 -> 0 | H171: 0 | I171: 0 | J171: 0 | K171: 0 | L171: 0 | M171: 0 | N171: 0 | O171: 0 | P171: 0
E172: =Asset30 -> 0 | G172: =G70-G104-G138 -> 0 | H172: 0 | I172: 0 | J172: 0 | K172: 0 | L172: 0 | M172: 0 | N172: 0 | O172: 0 | P172: 0
E173: Total | G173: =SUM(G143:G172) -> 75.68880634 | H173: 63.37429277 | I173: =SUM(I143:I172) -> 42.2107675 | J173: 39.344025 | K173: 54.30365118 | L173: 0 | M173: 0 | N173: 0 | O173: 0 | P173: 0
F174: check | Q174: =SUM(G173:P173) -> 274.9215428
E175: ="Forecast Operating and Maintenance Expenditure ($m Real "&CONCATENATE(LEFT(Q7, 4)-1 &"-" &IF(Q7>"2009-10",,"0") &RIGHT(Q7,2)-1)&")" -> Forecast Operating and Maintenance Expenditure ($m Real 2013-14)
E176: Year | G176: =G40 -> 2014-15 | H176: =H40 -> 2015-16 | I176: 2016-17 | J176: 2017-18 | K176: 2018-19 | L176: 2019-20 | M176: 2020-21 | N176: 2021-22 | O176: 2022-23 | P176: 2023-24
E177: Controllable opex
E178: Corporate
E179: TOTAL OPEX | G179: 106.4252626 | H179: 105.2854165 | I179: 107.1099202 | J179: 104.7218995 | K179: 104.5962503
E180: carry-over amounts | G180: 7.00255519 | H180: 7.385319334 | I180: 7.789005611 | J180: 8.214757638 | K180: 8.663781542
E181: Debt raising costs | G181: =(Dr*Dv*Assets!F474)/Assets!G7 -> 0.5225765476 | H181: =(Dr*Dv*Assets!G474)/Assets!H7 -> 0.5380085809 | I181: =(Dr*Dv*Assets!H474)/Assets!I7 -> 0.5448876943 | J181: =(Dr*Dv*Assets!I474)/Assets!J7 -> 0.5418845288 | K181: =(Dr*Dv*Assets!J474)/Assets!K7 -> 0.536738768 | L181: =IF(L177=0,0,(Dr*Dv*Assets!K474)/Assets!L7) -> 0 | M181: =IF(M177=0,0,(Dr*Dv*Assets!L474)/Assets!M7) -> 0 | N181: =IF(N177=0,0,(Dr*Dv*Assets!M474)/Assets!N7) -> 0 | O181: =IF(O177=0,0,(Dr*Dv*Assets!N474)/Assets!O7) -> 0 | P181: =IF(P177=0,0,(Dr*Dv*Assets!O474)/Assets!P7) -> 0
E182: Total | G182: =SUM(G179:G181) -> 113.9503944 | H182: =SUM(H179:H181) -> 113.2087444 | I182: =SUM(I179:I181) -> 115.4438135 | J182: =SUM(J179:J181) -> 113.4785416 | K182: =SUM(K179:K181) -> 113.7967706 | L182: =SUM(L177:L181) -> 0 | M182: =SUM(M177:M181) -> 0 | N182: =SUM(N177:N181) -> 0 | O182: =SUM(O177:O181) -> 0 | P182: =SUM(P177:P181) -> 0
Q183: =SUM(G182:P182) -> 569.8782645
E184: Cost of Capital
G185: Value | H185: Aur. Final | I185: Aur Draft
E186: Nominal Risk Free Rate Rf | G186: 0.04134 | H186: 0.0389 | I186: 0.0428
E187: Inflation Rate f | G187: 0.02513659226 | H187: 0.026 | I187: 0.0262
E188: Debt Risk Premium DRP | G188: 0.03 | H188: 0.0411 | I188: 0.0314
E189: Market Risk Premium MRP | G189: 0.06 | H189: 0.06 | I189: 0.06
E190: Utilisation of Imputation (Franking) Credits g | G190: 0.25 | H190: 0.25 | I190: 0.25
E191: Proportion of Debt Funding D/V | G191: 0.6 | H191: 0.6 | I191: 0.6
E192: Equity Beta βe | G192: 0.7 | H192: 0.8 | I192: 0.8
E193: Debt Raising Cost Benchmark Dr | F193: Dr | G193: 0.00096 | H193: 0.00096 | I193: 0.001
E195: ="Price/ revenue constraint for "&CONCATENATE(LEFT(Q7, 4)-1 &"-" &IF(Q7>"2009-10",,"0") &RIGHT(Q7,2)-1)& " (Nominal)" -> Price/ revenue constraint for 2013-14 (Nominal)
G196: Value
E197: Maximum Allowed Revenue | G197: 132647337.9
E198: Revenue yield (c/kWh) | G198: 0
E201: Energy Delivered Forecast (MWh)
E202: Year | F202: =CONCATENATE(LEFT(G202, 4)-1 &"-" &IF(G202>"2009-10",,"0") &RIGHT(G202,2)-1) -> 2013-14 | G202: =G40 -> 2014-15 | H202: =H40 -> 2015-16 | I202: 2016-17 | J202: 2017-18 | K202: 2018-19 | L202: 2019-20 | M202: 2020-21 | N202: 2021-22 | O202: 2022-23 | P202: 2023-24
E203: Energy (incl. Unmetered) | F203: 1737400.5 | G203: 1773567.103 | H203: 1794461.024 | I203: 1799035.986 | J203: 1810131.607 | K203: 1821296.398
E206: ="Base year prices per tariff component for "&CONCATENATE(LEFT(Q7, 4)-1 &"-" &IF(Q7>"2009-10",,"0") &RIGHT(Q7,2)-1)& "" -> Base year prices per tariff component for 2013-14
E207: PWC NOTE: As per the AER's PTRM Handbook (p.9), this only needs to be completed for a WAPC form of price control ("Current pricing data: Prices by tariff component for the final regulatory year of the current regulatory control period are recorded in rows 211 to 238. These data are used in the PTRM’s example calculation of a weighted average price cap (WAPC) and may not be required depending on the form of control mechanism determined by the AER.")
F209: Standing Charge ($ per customer per month) | G209: Non TOU Energy (c/kWh) First 1000kWh | H209: Non TOU Energy (c/kWh) Above 1000kWh | I209: Non TOU Energy (c/kWh) Unmetered | J209: Non TOU Energy (c/kWh) DKTL | K209: Peak Energy (c/KWh) BLK 1 | L209: Peak Energy (c/KWh) BLK 2 | M209: Peak Energy (c/KWh) BLK 3 | N209: Peak Energy (c/KWh) BLK 4 | O209: Peak Energy (c/KWh) BLK 5 | P209: Peak Energy (c/KWh) BLK 6 | Q209: Peak Energy (c/KWh) BLK 7 | R209: Off Peak Energy (c/kWh) BLK 1 | S209: Off Peak Energy (c/kWh) BLK 2 | T209: Off Peak Energy (c/kWh) BLK 3 | U209: Off Peak Energy (c/kWh) BLK 4 | V209: Off Peak Energy (c/kWh) BLK 5 | W209: Off Peak Energy (c/kWh) BLK 6 | X209: Off Peak Energy (c/kWh) BLK 7 | Y209: Peak Demand ($/kVa) BLK 1 | Z209: Peak Demand ($/kVa) BLK 2 | AA209: Peak Demand ($/kVa) BLK 3 | AB209: Peak Demand ($/kVa) BLK 4 | AC209: Peak Demand ($/kVa) BLK 5 | AD209: Peak Demand ($/kVa) BLK 6 | AE209: Peak Demand ($/kVa) BLK 7 | AF209: Off Peak Demand ($/kVa) BLK 1 | AG209: Off Peak Demand ($/kVa) BLK 2 | AH209: Off Peak Demand ($/kVa) BLK 3 | AI209: Off Peak Demand ($/kVa) BLK 4 | AJ209: Off Peak Demand ($/kVa) BLK 5 | AK209: Off Peak Demand ($/kVa) BLK 6 | AL209: Off Peak Demand ($/kVa) BLK 7
F210: =CONCATENATE(LEFT(G202, 4)-1 &"-" &IF(G202>"2009-10",,"0") &RIGHT(G202,2)-1) -> 2013-14 | G210: =F210 -> 2013-14 | H210: =G210 -> 2013-14 | I210: =H210 -> 2013-14 | J210: =I210 -> 2013-14 | K210: =G210 -> 2013-14 | L210: =K210 -> 2013-14 | M210: 2013-14 | N210: 2013-14 | O210: 2013-14 | P210: 2013-14 | Q210: 2013-14 | R210: =L210 -> 2013-14 | S210: =R210 -> 2013-14 | T210: 2013-14 | U210: 2013-14 | V210: 2013-14 | W210: 2013-14 | X210: 2013-14 | Y210: =S210 -> 2013-14 | Z210: =Y210 -> 2013-14 | AA210: 2013-14 | AB210: 2013-14 | AC210: 2013-14 | AD210: 2013-14 | AE210: 2013-14 | AF210: =Z210 -> 2013-14 | AG210: =AF210 -> 2013-14 | AH210: 2013-14 | AI210: 2013-14 | AJ210: 2013-14 | AK210: 2013-14 | AL210: 2013-14
... 57 more rows

Sheet WACC
B2: Cost of Capital Parameters
F6: Input Data & Calculated Inputs | G6: Basic Building Block Model
B7: Nominal Risk Free Rate | D7: Rf | F7: =Rf -> 0.04134
B8: Real Risk Free Rate | D8: Rrf | F8: =(1+F7)/(1+F9)-1 -> 0.01580609634
B9: Inflation Rate | D9: f | F9: =f -> 0.02513659226
B10: Cost of Debt Margin | D10: DRP | F10: =Drp -> 0.03
B11: Nominal Pre-tax Cost of Debt | D11: Rd | F11: =F7+F10 -> 0.07134
B12: Real Pre-tax Cost of Debt | D12: Rrd | F12: =(1+F11)/(1+F9)-1 -> 0.04507048923
B13: Market Risk Premium | D13: MRP | F13: =Mrp -> 0.06
B14: Corporate Tax Rate | D14: T | F14: 0.3
B15: Effective Tax Rate for Equity (From Relevant Cash flows) | D15: Te | F15: 0.4008886339 | G15: =Analysis!$D$60 -> 0.4008886339
B16: Effective Tax Rate for Debt (Effective Debt Shield) | D16: Td | F16: 0.3 | G16: 0.3
B17: Utilisation of Imputation (Franking) Credits | D17: g | F17: =g -> 0.25
B18: Proportion of Equity Funding | D18: E/V | F18: =1-F19 -> 0.4
B19: Proportion of Debt Funding | D19: D/V | F19: =Dv -> 0.6
B20: Equity Beta | D20: βe | F20: =Be -> 0.7
B22: WACC Analysis
F24: Formula Approximation
B25: Post-tax Nominal Return on Equity(pre-imp) | F25: =F7+F20*(F13) -> 0.08334 | G25: =Analysis!$E$62 -> 0.07139646463
B26: Post-tax Real Return on Equity(pre-imp) | F26: =(1+F25)/(1+F9)-1 -> 0.05677624639 | G26: =Analysis!$E$66 -> 0.04512556933
B27: Nominal Vanilla WACC | F27: =F18*F25+F19*F11 -> 0.07614 | G27: =Analysis!$E$76 -> 0.07631101313
B28: Real Vanilla WACC | F28: =F18*F26+F19*F12 -> 0.04975279209 | G28: =Analysis!$E$77 -> 0.04991961194
B29: Post-tax Nominal WACC | F29: =F25*((1-F15)/(1-F15*(1-F17)))*F18+F11*F19*(1-F16) -> 0.05852138585 | G29: =Analysis!$E$73 -> 0.07136091447
B30: Post-tax Real WACC | F30: =(1+F29)/(1+F9)-1 -> 0.03256619054 | G30: =Analysis!$E$75 -> 0.04509089087
B31: Pre-tax Nominal WACC | F31: =F25*(1/(1-F15*(1-F17)))*F18+F11*F19 -> 0.09047224245 | G31: =Analysis!$E$72 -> 0.09047224245
B32: Pre-tax Real WACC | F32: =(1+F31)/(1+F9)-1 -> 0.06373360456 | G32: =Analysis!$E$74 -> 0.06373360456
B33: Nominal Tax Allowance | F33: =F31-F27 -> 0.01433224245 | G33: =G31-$F$27 -> 0.01433224245
B34: Real Tax Allowance | F34: =F32-F28 -> 0.01398081247 | G34: =G32-$F$28 -> 0.01398081247
F37: Numbers in White cells are calculated on this sheet from input parameters.
F38: Numbers in Orange cells are transferred from relevant sheets

Sheet Assets
B2: Asset Roll Forward
F3: 0 | G3: =F3+1 -> 1 | H3: 2 | I3: 3 | J3: 4 | K3: 5 | L3: 6 | M3: 7 | N3: 8 | O3: 9 | P3: 10 | Q3: 11 | R3: 12 | S3: 13 | T3: 14 | U3: 15 | V3: 16 | W3: 17 | X3: 18 | Y3: 19 | Z3: 20 | AA3: 21 | AB3: 22 | AC3: 23 | AD3: 24 | AE3: 25 | AF3: 26 | AG3: 27 | AH3: 28 | AI3: 29 | AJ3: 30 | AK3: 31 | AL3: 32 | AM3: =AL3+1 -> 33 | AN3: 34 | AO3: 35 | AP3: 36 | AQ3: 37 | AR3: 38 | AS3: 39 | AT3: 40 | AU3: 41 | AV3: 42 | AW3: 43 | AX3: 44 | AY3: 45 | AZ3: 46 | BA3: 47 | BB3: 48 | BC3: 49 | BD3: 50 | BE3: 51 | BF3: 52 | BG3: 53 | BH3: 54 | BI3: 55
B4: Year | F4: =Input!F202 -> 2013-14 | G4: =Input!G202 -> 2014-15 | H4: =Input!H202 -> 2015-16 | I4: =Input!I202 -> 2016-17 | J4: =Input!J202 -> 2017-18 | K4: =Input!K202 -> 2018-19 | L4: =Input!L202 -> 2019-20 | M4: =Input!M202 -> 2020-21 | N4: =Input!N202 -> 2021-22 | O4: =Input!O202 -> 2022-23 | P4: =Input!P202 -> 2023-24 | Q4: =CONCATENATE(LEFT(P4, 4)+1 &"-" &IF(P4>"2007-08",,"0") &RIGHT(P4,2)+1) -> 2024-25 | R4: =CONCATENATE(LEFT(Q4, 4)+1 &"-" &IF(Q4>"2007-08",,"0") &RIGHT(Q4,2)+1) -> 2025-26 | S4: 2026-27 | T4: 2027-28 | U4: 2028-29 | V4: 2029-30 | W4: 2030-31 | X4: 2031-32 | Y4: 2032-33 | Z4: 2033-34 | AA4: 2034-35 | AB4: 2035-36 | AC4: 2036-37 | AD4: 2037-38 | AE4: 2038-39 | AF4: 2039-40 | AG4: 2040-41 | AH4: 2041-42 | AI4: 2042-43 | AJ4: 2043-44 | AK4: 2044-45 | AL4: 2045-46 | AM4: 2046-47 | AN4: 2047-48 | AO4: 2048-49 | AP4: 2049-50 | AQ4: 2050-51 | AR4: 2051-52 | AS4: 2052-53 | AT4: 2053-54 | AU4: 2054-55 | AV4: 2055-56 | AW4: 2056-57 | AX4: 2057-58 | AY4: 2058-59 | AZ4: 2059-60 | BA4: 2060-61 | BB4: 2061-62 | BC4: 2062-63 | BD4: 2063-64 | BE4: 2064-65 | BF4: 2065-66 | BG4: 2066-67 | BH4: 2067-68 | BI4: 2068-69
B6: Inflation Assumption (CPI % increase) | D6: =f -> 0.02513659226 | G6: =$D$6 -> 0.02513659226 | H6: =$D$6 -> 0.02513659226 | I6: 0.02513659226 | J6: 0.02513659226 | K6: 0.02513659226 | L6: 0.02513659226 | M6: 0.02513659226 | N6: 0.02513659226 | O6: 0.02513659226 | P6: 0.02513659226 | Q6: 0.02513659226 | R6: 0.02513659226 | S6: 0.02513659226 | T6: 0.02513659226 | U6: 0.02513659226 | V6: 0.02513659226 | W6: 0.02513659226 | X6: 0.02513659226 | Y6: 0.02513659226 | Z6: 0.02513659226 | AA6: 0.02513659226 | AB6: 0.02513659226 | AC6: 0.02513659226 | AD6: 0.02513659226 | AE6: 0.02513659226 | AF6: 0.02513659226 | AG6: 0.02513659226 | AH6: 0.02513659226 | AI6: 0.02513659226 | AJ6: 0.02513659226 | AK6: 0.02513659226 | AL6: 0.02513659226 | AM6: 0.02513659226 | AN6: 0.02513659226 | AO6: 0.02513659226 | AP6: 0.02513659226 | AQ6: 0.02513659226 | AR6: 0.02513659226 | AS6: 0.02513659226 | AT6: 0.02513659226 | AU6: 0.02513659226 | AV6: 0.02513659226 | AW6: 0.02513659226 | AX6: 0.02513659226 | AY6: 0.02513659226 | AZ6: 0.02513659226 | BA6: 0.02513659226 | BB6: 0.02513659226 | BC6: 0.02513659226 | BD6: 0.02513659226 | BE6: 0.02513659226 | BF6: 0.02513659226 | BG6: 0.02513659226 | BH6: 0.02513659226 | BI6: 0.02513659226
B7: Cumulative Inflation Index (CPI end period) | F7: 1 | G7: =F7*(1+G6) -> 1.025136592 | H7: =G7*(1+H6) -> 1.050905033 | I7: =H7*(1+I6) -> 1.077321204 | J7: =I7*(1+J6) -> 1.104401388 | K7: 1.132162275 | L7: 1.160620977 | M7: 1.189795033 | N7: 1.219702426 | O7: 1.250361588 | P7: =O7*(1+P6) -> 1.281791418 | Q7: 1.314011286 | R7: 1.347041052 | S7: 1.380901073 | T7: 1.415612221 | U7: 1.451195888 | V7: 1.487674007 | W7: 1.525069062 | X7: 1.563404101 | Y7: 1.602702753 | Z7: 1.642989238 | AA7: 1.684288389 | AB7: 1.726625659 | AC7: 1.770027145 | AD7: 1.814519595 | AE7: 1.860130434 | AF7: 1.906887775 | AG7: 1.954820435 | AH7: 2.003957959 | AI7: 2.054330634 | AJ7: 2.105969505 | AK7: 2.158906402 | AL7: 2.213173952 | AM7: 2.268805603 | AN7: 2.325835644 | AO7: 2.384299227 | AP7: 2.444232384 | AQ7: 2.505672057 | AR7: 2.568656114 | AS7: 2.633223375 | AT7: 2.699413637 | AU7: 2.767267697 | AV7: 2.836827377 | AW7: 2.90813555 | AX7: 2.981236168 | AY7: 3.056174286 | AZ7: 3.132996093 | BA7: 3.211748938 | BB7: 3.292481361 | BC7: 3.375243123 | BD7: 3.460085233 | BE7: 3.547059985 | BF7: 3.636220985 | BG7: 3.72762319 | BH7: 3.821322934 | BI7: 3.91737797
B9: Opening Regulated Asset Base | F9: =RAB -> 930.0561478
B10: Real Capex | G10: =SUM(G11:G40) -> 78.0635138 | H10: =SUM(H11:H40) -> 65.36263706 | I10: =SUM(I11:I40) -> 43.53511425 | J10: 40.57842879 | K10: 56.00740755 | L10: 0 | M10: 0 | N10: 0 | O10: 0 | P10: 0
C11: =Asset1 -> System Capex | G11: =Input!G143*(1+pretaxreal)^0.5 -> 0 | H11: =Input!H143*(1+pretaxreal)^0.5 -> 0 | I11: =Input!I143*(1+pretaxreal)^0.5 -> 0 | J11: =Input!J143*(1+pretaxreal)^0.5 -> 0 | K11: =Input!K143*(1+pretaxreal)^0.5 -> 0 | L11: =Input!L143*(1+pretaxreal)^0.5 -> 0 | M11: =Input!M143*(1+pretaxreal)^0.5 -> 0 | N11: =Input!N143*(1+pretaxreal)^0.5 -> 0 | O11: =Input!O143*(1+pretaxreal)^0.5 -> 0 | P11: =Input!P143*(1+pretaxreal)^0.5 -> 0
C12: =Asset2 -> Transmission terminal station | G12: =Input!G144*(1+pretaxreal)^0.5 -> 0 | H12: =Input!H144*(1+pretaxreal)^0.5 -> 0 | I12: =Input!I144*(1+pretaxreal)^0.5 -> 0 | J12: =Input!J144*(1+pretaxreal)^0.5 -> 0 | K12: =Input!K144*(1+pretaxreal)^0.5 -> 0 | L12: =Input!L144*(1+pretaxreal)^0.5 -> 0 | M12: =Input!M144*(1+pretaxreal)^0.5 -> 0 | N12: =Input!N144*(1+pretaxreal)^0.5 -> 0 | O12: =Input!O144*(1+pretaxreal)^0.5 -> 0 | P12: =Input!P144*(1+pretaxreal)^0.5 -> 0
C13: =Asset3 -> Zone substations | G13: =Input!G145*(1+pretaxreal)^0.5 -> 35.68623976 | H13: =Input!H145*(1+pretaxreal)^0.5 -> 16.68607639 | I13: =Input!I145*(1+pretaxreal)^0.5 -> 12.81012772 | J13: =Input!J145*(1+pretaxreal)^0.5 -> 14.58621118 | K13: =Input!K145*(1+pretaxreal)^0.5 -> 23.17376636 | L13: =Input!L145*(1+pretaxreal)^0.5 -> 0 | M13: =Input!M145*(1+pretaxreal)^0.5 -> 0 | N13: =Input!N145*(1+pretaxreal)^0.5 -> 0 | O13: =Input!O145*(1+pretaxreal)^0.5 -> 0 | P13: =Input!P145*(1+pretaxreal)^0.5 -> 0
C14: =Asset4 -> Transmission lines | G14: =Input!G146*(1+pretaxreal)^0.5 -> 6.397170734 | H14: =Input!H146*(1+pretaxreal)^0.5 -> 19.15960487 | I14: =Input!I146*(1+pretaxreal)^0.5 -> 5.358826531 | J14: =Input!J146*(1+pretaxreal)^0.5 -> 0.2842693877 | K14: =Input!K146*(1+pretaxreal)^0.5 -> 0.2864817593 | L14: =Input!L146*(1+pretaxreal)^0.5 -> 0 | M14: =Input!M146*(1+pretaxreal)^0.5 -> 0 | N14: =Input!N146*(1+pretaxreal)^0.5 -> 0 | O14: =Input!O146*(1+pretaxreal)^0.5 -> 0 | P14: =Input!P146*(1+pretaxreal)^0.5 -> 0
C15: =Asset5 -> Distribution mains | G15: =Input!G147*(1+pretaxreal)^0.5 -> 16.38313684 | H15: =Input!H147*(1+pretaxreal)^0.5 -> 16.56054771 | I15: =Input!I147*(1+pretaxreal)^0.5 -> 12.42783683 | J15: =Input!J147*(1+pretaxreal)^0.5 -> 12.14493797 | K15: =Input!K147*(1+pretaxreal)^0.5 -> 17.52623531 | L15: =Input!L147*(1+pretaxreal)^0.5 -> 0 | M15: =Input!M147*(1+pretaxreal)^0.5 -> 0 | N15: =Input!N147*(1+pretaxreal)^0.5 -> 0 | O15: =Input!O147*(1+pretaxreal)^0.5 -> 0 | P15: =Input!P147*(1+pretaxreal)^0.5 -> 0
C16: =Asset6 -> Distribution substations | G16: =Input!G148*(1+pretaxreal)^0.5 -> 4.424744606 | H16: =Input!H148*(1+pretaxreal)^0.5 -> 4.074959041 | I16: =Input!I148*(1+pretaxreal)^0.5 -> 4.730400871 | J16: =Input!J148*(1+pretaxreal)^0.5 -> 5.908380754 | K16: =Input!K148*(1+pretaxreal)^0.5 -> 6.576293587 | L16: =Input!L148*(1+pretaxreal)^0.5 -> 0 | M16: =Input!M148*(1+pretaxreal)^0.5 -> 0 | N16: =Input!N148*(1+pretaxreal)^0.5 -> 0 | O16: =Input!O148*(1+pretaxreal)^0.5 -> 0 | P16: =Input!P148*(1+pretaxreal)^0.5 -> 0
C17: =Asset7 -> Metering | G17: =Input!G149*(1+pretaxreal)^0.5 -> 2.181378681 | H17: =Input!H149*(1+pretaxreal)^0.5 -> 2.595418401 | I17: =Input!I149*(1+pretaxreal)^0.5 -> 4.030585757 | J17: =Input!J149*(1+pretaxreal)^0.5 -> 3.756332837 | K17: =Input!K149*(1+pretaxreal)^0.5 -> 1.730024246 | L17: =Input!L149*(1+pretaxreal)^0.5 -> 0 | M17: =Input!M149*(1+pretaxreal)^0.5 -> 0 | N17: =Input!N149*(1+pretaxreal)^0.5 -> 0 | O17: =Input!O149*(1+pretaxreal)^0.5 -> 0 | P17: =Input!P149*(1+pretaxreal)^0.5 -> 0
C18: =Asset8 -> Land and easements | G18: =Input!G150*(1+pretaxreal)^0.5 -> 0 | H18: =Input!H150*(1+pretaxreal)^0.5 -> 0 | I18: =Input!I150*(1+pretaxreal)^0.5 -> 0 | J18: =Input!J150*(1+pretaxreal)^0.5 -> 0 | K18: =Input!K150*(1+pretaxreal)^0.5 -> 0 | L18: =Input!L150*(1+pretaxreal)^0.5 -> 0 | M18: =Input!M150*(1+pretaxreal)^0.5 -> 0 | N18: =Input!N150*(1+pretaxreal)^0.5 -> 0 | O18: =Input!O150*(1+pretaxreal)^0.5 -> 0 | P18: =Input!P150*(1+pretaxreal)^0.5 -> 0
C19: =Asset9 -> Secondary systems - Control, communications & Protection | G19: =Input!G151*(1+pretaxreal)^0.5 -> 5.568277471 | H19: =Input!H151*(1+pretaxreal)^0.5 -> 2.916410981 | I19: =Input!I151*(1+pretaxreal)^0.5 -> 2.685642911 | J19: =Input!J151*(1+pretaxreal)^0.5 -> 2.298390821 | K19: =Input!K151*(1+pretaxreal)^0.5 -> 5.114700455 | L19: =Input!L151*(1+pretaxreal)^0.5 -> 0 | M19: =Input!M151*(1+pretaxreal)^0.5 -> 0 | N19: =Input!N151*(1+pretaxreal)^0.5 -> 0 | O19: =Input!O151*(1+pretaxreal)^0.5 -> 0 | P19: =Input!P151*(1+pretaxreal)^0.5 -> 0
C20: =Asset10 -> Other | G20: =Input!G152*(1+pretaxreal)^0.5 -> 0.3246366154 | H20: =Input!H152*(1+pretaxreal)^0.5 -> 0.3246366154 | I20: =Input!I152*(1+pretaxreal)^0.5 -> 0.2164244102 | J20: =Input!J152*(1+pretaxreal)^0.5 -> 0.3246366154 | K20: =Input!K152*(1+pretaxreal)^0.5 -> 0.3246366154 | L20: =Input!L152*(1+pretaxreal)^0.5 -> 0 | M20: =Input!M152*(1+pretaxreal)^0.5 -> 0 | N20: =Input!N152*(1+pretaxreal)^0.5 -> 0 | O20: =Input!O152*(1+pretaxreal)^0.5 -> 0 | P20: =Input!P152*(1+pretaxreal)^0.5 -> 0
C21: =Asset11 -> Non-System Capex | G21: =Input!G153*(1+pretaxreal)^0.5 -> 0 | H21: =Input!H153*(1+pretaxreal)^0.5 -> 0 | I21: =Input!I153*(1+pretaxreal)^0.5 -> 0 | J21: =Input!J153*(1+pretaxreal)^0.5 -> 0 | K21: =Input!K153*(1+pretaxreal)^0.5 -> 0 | L21: =Input!L153*(1+pretaxreal)^0.5 -> 0 | M21: =Input!M153*(1+pretaxreal)^0.5 -> 0 | N21: =Input!N153*(1+pretaxreal)^0.5 -> 0 | O21: =Input!O153*(1+pretaxreal)^0.5 -> 0 | P21: =Input!P153*(1+pretaxreal)^0.5 -> 0
C22: =Asset12 -> Non-network—IT and Communications Capex | G22: =Input!G154*(1+pretaxreal)^0.5 -> 5.822659871 | H22: =Input!H154*(1+pretaxreal)^0.5 -> 1.769713831 | I22: =Input!I154*(1+pretaxreal)^0.5 -> 0 | J22: =Input!J154*(1+pretaxreal)^0.5 -> 0 | K22: =Input!K154*(1+pretaxreal)^0.5 -> 0 | L22: =Input!L154*(1+pretaxreal)^0.5 -> 0 | M22: =Input!M154*(1+pretaxreal)^0.5 -> 0 | N22: =Input!N154*(1+pretaxreal)^0.5 -> 0 | O22: =Input!O154*(1+pretaxreal)^0.5 -> 0 | P22: =Input!P154*(1+pretaxreal)^0.5 -> 0
C23: =Asset13 -> Non-network—Motor Vehicles Capex | G23: =Input!G155*(1+pretaxreal)^0.5 -> 0 | H23: =Input!H155*(1+pretaxreal)^0.5 -> 0 | I23: =Input!I155*(1+pretaxreal)^0.5 -> 0 | J23: =Input!J155*(1+pretaxreal)^0.5 -> 0 | K23: =Input!K155*(1+pretaxreal)^0.5 -> 0 | L23: =Input!L155*(1+pretaxreal)^0.5 -> 0 | M23: =Input!M155*(1+pretaxreal)^0.5 -> 0 | N23: =Input!N155*(1+pretaxreal)^0.5 -> 0 | O23: =Input!O155*(1+pretaxreal)^0.5 -> 0 | P23: =Input!P155*(1+pretaxreal)^0.5 -> 0
C24: =Asset14 -> Non-network—Property Capex | G24: =Input!G156*(1+pretaxreal)^0.5 -> 0 | H24: =Input!H156*(1+pretaxreal)^0.5 -> 0 | I24: =Input!I156*(1+pretaxreal)^0.5 -> 0 | J24: =Input!J156*(1+pretaxreal)^0.5 -> 0 | K24: =Input!K156*(1+pretaxreal)^0.5 -> 0 | L24: =Input!L156*(1+pretaxreal)^0.5 -> 0 | M24: =Input!M156*(1+pretaxreal)^0.5 -> 0 | N24: =Input!N156*(1+pretaxreal)^0.5 -> 0 | O24: =Input!O156*(1+pretaxreal)^0.5 -> 0 | P24: =Input!P156*(1+pretaxreal)^0.5 -> 0
C25: =Asset15 -> Non-network—Plant & Equipment Capex | G25: =Input!G157*(1+pretaxreal)^0.5 -> 1.275269217 | H25: =Input!H157*(1+pretaxreal)^0.5 -> 1.275269217 | I25: =Input!I157*(1+pretaxreal)^0.5 -> 1.275269217 | J25: =Input!J157*(1+pretaxreal)^0.5 -> 1.275269217 | K25: =Input!K157*(1+pretaxreal)^0.5 -> 1.275269217 | L25: =Input!L157*(1+pretaxreal)^0.5 -> 0 | M25: =Input!M157*(1+pretaxreal)^0.5 -> 0 | N25: =Input!N157*(1+pretaxreal)^0.5 -> 0 | O25: =Input!O157*(1+pretaxreal)^0.5 -> 0 | P25: =Input!P157*(1+pretaxreal)^0.5 -> 0
C26: =Asset16 -> Non-network—Other capex | G26: =Input!G158*(1+pretaxreal)^0.5 -> 0 | H26: =Input!H158*(1+pretaxreal)^0.5 -> 0 | I26: =Input!I158*(1+pretaxreal)^0.5 -> 0 | J26: =Input!J158*(1+pretaxreal)^0.5 -> 0 | K26: =Input!K158*(1+pretaxreal)^0.5 -> 0 | L26: =Input!L158*(1+pretaxreal)^0.5 -> 0 | M26: =Input!M158*(1+pretaxreal)^0.5 -> 0 | N26: =Input!N158*(1+pretaxreal)^0.5 -> 0 | O26: =Input!O158*(1+pretaxreal)^0.5 -> 0 | P26: =Input!P158*(1+pretaxreal)^0.5 -> 0
C27: =Asset17 -> 0 | G27: =Input!G159*(1+pretaxreal)^0.5 -> 0 | H27: =Input!H159*(1+pretaxreal)^0.5 -> 0 | I27: =Input!I159*(1+pretaxreal)^0.5 -> 0 | J27: =Input!J159*(1+pretaxreal)^0.5 -> 0 | K27: =Input!K159*(1+pretaxreal)^0.5 -> 0 | L27: =Input!L159*(1+pretaxreal)^0.5 -> 0 | M27: =Input!M159*(1+pretaxreal)^0.5 -> 0 | N27: =Input!N159*(1+pretaxreal)^0.5 -> 0 | O27: =Input!O159*(1+pretaxreal)^0.5 -> 0 | P27: =Input!P159*(1+pretaxreal)^0.5 -> 0
C28: =Asset18 -> 0 | G28: =Input!G160*(1+pretaxreal)^0.5 -> 0 | H28: =Input!H160*(1+pretaxreal)^0.5 -> 0 | I28: =Input!I160*(1+pretaxreal)^0.5 -> 0 | J28: =Input!J160*(1+pretaxreal)^0.5 -> 0 | K28: =Input!K160*(1+pretaxreal)^0.5 -> 0 | L28: =Input!L160*(1+pretaxreal)^0.5 -> 0 | M28: =Input!M160*(1+pretaxreal)^0.5 -> 0 | N28: =Input!N160*(1+pretaxreal)^0.5 -> 0 | O28: =Input!O160*(1+pretaxreal)^0.5 -> 0 | P28: =Input!P160*(1+pretaxreal)^0.5 -> 0
C29: =Asset19 -> 0 | G29: =Input!G161*(1+pretaxreal)^0.5 -> 0 | H29: =Input!H161*(1+pretaxreal)^0.5 -> 0 | I29: =Input!I161*(1+pretaxreal)^0.5 -> 0 | J29: =Input!J161*(1+pretaxreal)^0.5 -> 0 | K29: =Input!K161*(1+pretaxreal)^0.5 -> 0 | L29: =Input!L161*(1+pretaxreal)^0.5 -> 0 | M29: =Input!M161*(1+pretaxreal)^0.5 -> 0 | N29: =Input!N161*(1+pretaxreal)^0.5 -> 0 | O29: =Input!O161*(1+pretaxreal)^0.5 -> 0 | P29: =Input!P161*(1+pretaxreal)^0.5 -> 0
C30: =Asset20 -> 0 | G30: =Input!G162*(1+pretaxreal)^0.5 -> 0 | H30: =Input!H162*(1+pretaxreal)^0.5 -> 0 | I30: =Input!I162*(1+pretaxreal)^0.5 -> 0 | J30: =Input!J162*(1+pretaxreal)^0.5 -> 0 | K30: =Input!K162*(1+pretaxreal)^0.5 -> 0 | L30: =Input!L162*(1+pretaxreal)^0.5 -> 0 | M30: =Input!M162*(1+pretaxreal)^0.5 -> 0 | N30: =Input!N162*(1+pretaxreal)^0.5 -> 0 | O30: =Input!O162*(1+pretaxreal)^0.5 -> 0 | P30: =Input!P162*(1+pretaxreal)^0.5 -> 0
C31: =Asset21 -> 0 | G31: =Input!G163*(1+pretaxreal)^0.5 -> 0 | H31: =Input!H163*(1+pretaxreal)^0.5 -> 0 | I31: =Input!I163*(1+pretaxreal)^0.5 -> 0 | J31: =Input!J163*(1+pretaxreal)^0.5 -> 0 | K31: =Input!K163*(1+pretaxreal)^0.5 -> 0 | L31: =Input!L163*(1+pretaxreal)^0.5 -> 0 | M31: =Input!M163*(1+pretaxreal)^0.5 -> 0 | N31: =Input!N163*(1+pretaxreal)^0.5 -> 0 | O31: =Input!O163*(1+pretaxreal)^0.5 -> 0 | P31: =Input!P163*(1+pretaxreal)^0.5 -> 0
C32: =Asset22 -> 0 | G32: =Input!G164*(1+pretaxreal)^0.5 -> 0 | H32: =Input!H164*(1+pretaxreal)^0.5 -> 0 | I32: =Input!I164*(1+pretaxreal)^0.5 -> 0 | J32: =Input!J164*(1+pretaxreal)^0.5 -> 0 | K32: =Input!K164*(1+pretaxreal)^0.5 -> 0 | L32: =Input!L164*(1+pretaxreal)^0.5 -> 0 | M32: =Input!M164*(1+pretaxreal)^0.5 -> 0 | N32: =Input!N164*(1+pretaxreal)^0.5 -> 0 | O32: =Input!O164*(1+pretaxreal)^0.5 -> 0 | P32: =Input!P164*(1+pretaxreal)^0.5 -> 0
C33: =Asset23 -> 0 | G33: =Input!G165*(1+pretaxreal)^0.5 -> 0 | H33: =Input!H165*(1+pretaxreal)^0.5 -> 0 | I33: =Input!I165*(1+pretaxreal)^0.5 -> 0 | J33: =Input!J165*(1+pretaxreal)^0.5 -> 0 | K33: =Input!K165*(1+pretaxreal)^0.5 -> 0 | L33: =Input!L165*(1+pretaxreal)^0.5 -> 0 | M33: =Input!M165*(1+pretaxreal)^0.5 -> 0 | N33: =Input!N165*(1+pretaxreal)^0.5 -> 0 | O33: =Input!O165*(1+pretaxreal)^0.5 -> 0 | P33: =Input!P165*(1+pretaxreal)^0.5 -> 0
C34: =Asset24 -> 0 | G34: =Input!G166*(1+pretaxreal)^0.5 -> 0 | H34: =Input!H166*(1+pretaxreal)^0.5 -> 0 | I34: =Input!I166*(1+pretaxreal)^0.5 -> 0 | J34: =Input!J166*(1+pretaxreal)^0.5 -> 0 | K34: =Input!K166*(1+pretaxreal)^0.5 -> 0 | L34: =Input!L166*(1+pretaxreal)^0.5 -> 0 | M34: =Input!M166*(1+pretaxreal)^0.5 -> 0 | N34: =Input!N166*(1+pretaxreal)^0.5 -> 0 | O34: =Input!O166*(1+pretaxreal)^0.5 -> 0 | P34: =Input!P166*(1+pretaxreal)^0.5 -> 0
C35: =Asset25 -> 0 | G35: =Input!G167*(1+pretaxreal)^0.5 -> 0 | H35: =Input!H167*(1+pretaxreal)^0.5 -> 0 | I35: =Input!I167*(1+pretaxreal)^0.5 -> 0 | J35: =Input!J167*(1+pretaxreal)^0.5 -> 0 | K35: =Input!K167*(1+pretaxreal)^0.5 -> 0 | L35: =Input!L167*(1+pretaxreal)^0.5 -> 0 | M35: =Input!M167*(1+pretaxreal)^0.5 -> 0 | N35: =Input!N167*(1+pretaxreal)^0.5 -> 0 | O35: =Input!O167*(1+pretaxreal)^0.5 -> 0 | P35: =Input!P167*(1+pretaxreal)^0.5 -> 0
C36: =Asset26 -> 0 | G36: =Input!G168*(1+pretaxreal)^0.5 -> 0 | H36: =Input!H168*(1+pretaxreal)^0.5 -> 0 | I36: =Input!I168*(1+pretaxreal)^0.5 -> 0 | J36: =Input!J168*(1+pretaxreal)^0.5 -> 0 | K36: =Input!K168*(1+pretaxreal)^0.5 -> 0 | L36: =Input!L168*(1+pretaxreal)^0.5 -> 0 | M36: =Input!M168*(1+pretaxreal)^0.5 -> 0 | N36: =Input!N168*(1+pretaxreal)^0.5 -> 0 | O36: =Input!O168*(1+pretaxreal)^0.5 -> 0 | P36: =Input!P168*(1+pretaxreal)^0.5 -> 0
C37: =Asset27 -> 0 | G37: =Input!G169*(1+pretaxreal)^0.5 -> 0 | H37: =Input!H169*(1+pretaxreal)^0.5 -> 0 | I37: =Input!I169*(1+pretaxreal)^0.5 -> 0 | J37: =Input!J169*(1+pretaxreal)^0.5 -> 0 | K37: =Input!K169*(1+pretaxreal)^0.5 -> 0 | L37: =Input!L169*(1+pretaxreal)^0.5 -> 0 | M37: =Input!M169*(1+pretaxreal)^0.5 -> 0 | N37: =Input!N169*(1+pretaxreal)^0.5 -> 0 | O37: =Input!O169*(1+pretaxreal)^0.5 -> 0 | P37: =Input!P169*(1+pretaxreal)^0.5 -> 0
C38: =Asset28 -> 0 | G38: =Input!G170*(1+pretaxreal)^0.5 -> 0 | H38: =Input!H170*(1+pretaxreal)^0.5 -> 0 | I38: =Input!I170*(1+pretaxreal)^0.5 -> 0 | J38: =Input!J170*(1+pretaxreal)^0.5 -> 0 | K38: =Input!K170*(1+pretaxreal)^0.5 -> 0 | L38: =Input!L170*(1+pretaxreal)^0.5 -> 0 | M38: =Input!M170*(1+pretaxreal)^0.5 -> 0 | N38: =Input!N170*(1+pretaxreal)^0.5 -> 0 | O38: =Input!O170*(1+pretaxreal)^0.5 -> 0 | P38: =Input!P170*(1+pretaxreal)^0.5 -> 0
C39: =Asset29 -> 0 | G39: =Input!G171*(1+pretaxreal)^0.5 -> 0 | H39: =Input!H171*(1+pretaxreal)^0.5 -> 0 | I39: =Input!I171*(1+pretaxreal)^0.5 -> 0 | J39: =Input!J171*(1+pretaxreal)^0.5 -> 0 | K39: =Input!K171*(1+pretaxreal)^0.5 -> 0 | L39: =Input!L171*(1+pretaxreal)^0.5 -> 0 | M39: =Input!M171*(1+pretaxreal)^0.5 -> 0 | N39: =Input!N171*(1+pretaxreal)^0.5 -> 0 | O39: =Input!O171*(1+pretaxreal)^0.5 -> 0 | P39: =Input!P171*(1+pretaxreal)^0.5 -> 0
C40: =Asset30 -> 0 | G40: =Input!G172*(1+pretaxreal)^0.5 -> 0 | H40: =Input!H172*(1+pretaxreal)^0.5 -> 0 | I40: =Input!I172*(1+pretaxreal)^0.5 -> 0 | J40: =Input!J172*(1+pretaxreal)^0.5 -> 0 | K40: =Input!K172*(1+pretaxreal)^0.5 -> 0 | L40: =Input!L172*(1+pretaxreal)^0.5 -> 0 | M40: =Input!M172*(1+pretaxreal)^0.5 -> 0 | N40: =Input!N172*(1+pretaxreal)^0.5 -> 0 | O40: =Input!O172*(1+pretaxreal)^0.5 -> 0 | P40: =Input!P172*(1+pretaxreal)^0.5 -> 0
B41: Nominal Capex | G41: =SUM(G42:G71) -> 80.02576451 | H41: =SUM(H42:H71) -> 68.68992424 | I41: 46.9013017 | J41: 44.81487307 | K41: 63.40947396 | L41: 0 | M41: 0 | N41: 0 | O41: 0 | P41: 0
C42: =Asset1 -> System Capex | G42: =G11*G$7 -> 0 | H42: =H11*H$7 -> 0 | I42: 0 | J42: 0 | K42: 0 | L42: 0 | M42: 0 | N42: 0 | O42: 0 | P42: 0
C43: =Asset2 -> Transmission terminal station | G43: 0 | H43: =H12*H$7 -> 0 | I43: 0 | J43: 0 | K43: 0 | L43: 0 | M43: 0 | N43: 0 | O43: 0 | P43: 0
C44: =Asset3 -> Zone substations | G44: 36.58327022 | H44: =H13*H$7 -> 17.53548166 | I44: 13.80062221 | J44: =J13*J$7 -> 16.10903187 | K44: 26.23646405 | L44: 0 | M44: 0 | N44: 0 | O44: 0 | P44: 0
C45: =Asset4 -> Transmission lines | G45: 6.557973806 | H45: =H14*H$7 -> 20.13492519 | I45: =I14*I$7 -> 5.773177451 | J45: 0.3139475064 | K45: 0.3243438405 | L45: 0 | M45: 0 | N45: 0 | O45: 0 | P45: 0
C46: =Asset5 -> Distribution mains | G46: 16.79495307 | H46: =H15*H$7 -> 17.40356293 | I46: 13.38877214 | J46: 13.41288635 | K46: 19.84254245 | L46: 0 | M46: 0 | N46: 0 | O46: 0 | P46: 0
C47: =Asset6 -> Distribution substations | G47: 4.535967607 | H47: =H16*H$7 -> 4.282394965 | I47: 5.096161162 | J47: 6.525223905 | K47: 7.44543151 | L47: 0 | M47: 0 | N47: 0 | O47: 0 | P47: 0
C48: =Asset7 -> Metering | G48: 2.236211107 | H48: =H17*H$7 -> 2.72753826 | I48: 4.342235501 | J48: 4.148499199 | K48: 1.958668186 | L48: 0 | M48: 0 | N48: 0 | O48: 0 | P48: 0
C49: =Asset8 -> Land and easements | G49: 0 | H49: =H18*H$7 -> 0 | I49: 0 | J49: 0 | K49: 0 | L49: 0 | M49: 0 | N49: 0 | O49: 0 | P49: 0
C50: =Asset9 -> Secondary systems - Control, communications & Protection | G50: 5.708244991 | H50: =H19*H$7 -> 3.064870978 | I50: 2.893300055 | J50: 2.538346013 | K50: 5.790670904 | L50: 0 | M50: 0 | N50: 0 | O50: 0 | P50: 0
C51: =Asset10 -> Other | G51: 0.3327968736 | H51: =H20*H$7 -> 0.3411622529 | I51: 0.2331586062 | J51: 0.3585291286 | K51: 0.3675413291 | L51: 0 | M51: 0 | N51: 0 | O51: 0 | P51: 0
C52: =Asset11 -> Non-System Capex | G52: 0 | H52: =H21*H$7 -> 0 | I52: 0 | J52: 0 | K52: 0 | L52: 0 | M52: 0 | N52: 0 | O52: 0 | P52: 0
C53: =Asset12 -> Non-network—IT and Communications Capex | G53: 5.969021698 | H53: =H22*H$7 -> 1.859801171 | I53: 0 | J53: 0 | K53: 0 | L53: 0 | M53: 0 | N53: 0 | O53: 0 | P53: 0
C54: =Asset13 -> Non-network—Motor Vehicles Capex | G54: 0 | H54: =H23*H$7 -> 0 | I54: 0 | J54: 0 | K54: 0 | L54: 0 | M54: 0 | N54: 0 | O54: 0 | P54: 0
C55: =Asset14 -> Non-network—Property Capex | G55: 0 | H55: =H24*H$7 -> 0 | I55: 0 | J55: 0 | K55: 0 | L55: 0 | M55: 0 | N55: 0 | O55: 0 | P55: 0
C56: =Asset15 -> Non-network—Plant & Equipment Capex | G56: 1.307325139 | H56: =H25*H$7 -> 1.340186838 | I56: 1.373874568 | J56: 1.408409093 | K56: 1.443811698 | L56: 0 | M56: 0 | N56: 0 | O56: 0 | P56: 0
C57: =Asset16 -> Non-network—Other capex | G57: 0 | H57: =H26*H$7 -> 0 | I57: 0 | J57: 0 | K57: =K26*K$7 -> 0 | L57: 0 | M57: 0 | N57: 0 | O57: 0 | P57: 0
C58: =Asset17 -> 0 | G58: 0 | H58: =H27*H$7 -> 0 | I58: 0 | J58: 0 | K58: 0 | L58: 0 | M58: 0 | N58: 0 | O58: 0 | P58: 0
C59: =Asset18 -> 0 | G59: 0 | H59: =H28*H$7 -> 0 | I59: 0 | J59: 0 | K59: 0 | L59: 0 | M59: 0 | N59: 0 | O59: 0 | P59: 0
C60: =Asset19 -> 0 | G60: 0 | H60: =H29*H$7 -> 0 | I60: 0 | J60: 0 | K60: 0 | L60: 0 | M60: 0 | N60: 0 | O60: 0 | P60: 0
C61: =Asset20 -> 0 | G61: 0 | H61: =H30*H$7 -> 0 | I61: 0 | J61: 0 | K61: 0 | L61: 0 | M61: 0 | N61: 0 | O61: 0 | P61: 0
C62: =Asset21 -> 0 | G62: 0 | H62: =H31*H$7 -> 0 | I62: 0 | J62: 0 | K62: 0 | L62: 0 | M62: 0 | N62: 0 | O62: 0 | P62: 0
C63: =Asset22 -> 0 | G63: 0 | H63: =H32*H$7 -> 0 | I63: 0 | J63: 0 | K63: 0 | L63: 0 | M63: 0 | N63: 0 | O63: 0 | P63: 0
C64: =Asset23 -> 0 | G64: 0 | H64: =H33*H$7 -> 0 | I64: 0 | J64: 0 | K64: 0 | L64: 0 | M64: 0 | N64: 0 | O64: 0 | P64: 0
C65: =Asset24 -> 0 | G65: 0 | H65: =H34*H$7 -> 0 | I65: 0 | J65: 0 | K65: 0 | L65: 0 | M65: 0 | N65: 0 | O65: 0 | P65: 0
C66: =Asset25 -> 0 | G66: 0 | H66: =H35*H$7 -> 0 | I66: 0 | J66: 0 | K66: 0 | L66: 0 | M66: 0 | N66: 0 | O66: 0 | P66: 0
C67: =Asset26 -> 0 | G67: 0 | H67: =H36*H$7 -> 0 | I67: 0 | J67: 0 | K67: 0 | L67: 0 | M67: 0 | N67: 0 | O67: 0 | P67: 0
C68: =Asset27 -> 0 | G68: 0 | H68: =H37*H$7 -> 0 | I68: 0 | J68: 0 | K68: 0 | L68: 0 | M68: 0 | N68: 0 | O68: 0 | P68: 0
C69: =Asset28 -> 0 | G69: 0 | H69: =H38*H$7 -> 0 | I69: 0 | J69: 0 | K69: 0 | L69: 0 | M69: 0 | N69: 0 | O69: 0 | P69: 0
C70: =Asset29 -> 0 | G70: =G39*G$7 -> 0 | H70: 0 | I70: 0 | J70: 0 | K70: 0 | L70: 0 | M70: 0 | N70: 0 | O70: 0 | P70: 0
C71: =Asset30 -> 0 | G71: =G40*G$7 -> 0 | H71: 0 | I71: 0 | J71: 0 | K71: 0 | L71: 0 | M71: 0 | N71: 0 | O71: 0 | P71: 0
B73: Real Asset Values
B75: Real Straight-line Depreciation | G75: =G88+G101+G114+G127+G140+G153+G166+G179+G192+G205+G218+G231+G244+G257+G270+G283+G296+G309+G322+G335+G348+G361+G374+G387+G400+G413+G426+G439+G452+G465 -> 50.59833654 | H75: =H88+H101+H114+H127+H140+H153+H166+H179+H192+H205+H218+H231+H244+H257+H270+H283+H296+H309+H322+H335+H348+H361+H374+H387+H400+H413+H426+H439+H452+H465 -> 53.11952795 | I75: =I88+I101+I114+I127+I140+I153+I166+I179+I192+I205+I218+I231+I244+I257+I270+I283+I296+I309+I322+I335+I348+I361+I374+I387+I400+I413+I426+I439+I452+I465 -> 48.88000121 | J75: 49.73660181 | K75: 50.93577812 | L75: 52.57140749 | M75: 51.22475354 | N75: 50.74990028 | O75: 50.7066154 | P75: 50.24441519 | Q75: 49.64489018 | R75: 49.64489018 | S75: 49.56666765 | T75: 31.79352002 | U75: 28.72786548 | V75: 28.3791822 | W75: 28.02452344 | X75: 25.59759609 | Y75: 25.2006554 | Z75: 24.97542355 | AA75: 24.9461111 | AB75: 24.9461111 | AC75: 24.9461111 | AD75: 21.88299959 | AE75: 21.12622646 | AF75: 20.95342772 | AG75: 20.78201952 | AH75: 20.69085426 | AI75: 20.67972641 | AJ75: 20.67972641 | AK75: 11.97121348 | AL75: 4.939746385 | AM75: 4.939746385 | AN75: 4.939746385 | AO75: 4.939746385 | AP75: 4.939746385 | AQ75: 4.939746385 | AR75: 4.939746385 | AS75: 4.939746385 | AT75: 4.939746385 | AU75: 4.939746385 | AV75: 4.939746385 | AW75: 4.71947239 | AX75: 3.981834266 | AY75: 3.606018836 | AZ75: 3.288170249 | BA75: 2.787401342 | BB75: 2.284725142 | BC75: 2.179605123 | BD75: 2.048307773 | BE75: 1.902167915 | BF75: 1.902167915 | BG75: 1.902167915 | BH75: 1.902167915 | BI75: 1.902167915
B76: =C88 -> System Capex | D76: Initial Asset Base | G76: =IF(G$3>A1remlife,A1value-SUM($F76:F76),IF(A1remlife="N/A","n/a",A1value/A1remlife)) -> 0 | H76: =IF(H$3>A1remlife,A1value-SUM($F76:G76),IF(A1remlife="N/A","n/a",A1value/A1remlife)) -> 0 | I76: =IF(I$3>A1remlife,A1value-SUM($F76:H76),IF(A1remlife="N/A","n/a",A1value/A1remlife)) -> 0 | J76: =IF(J$3>A1remlife,A1value-SUM($F76:I76),IF(A1remlife="N/A","n/a",A1value/A1remlife)) -> 0 | K76: =IF(K$3>A1remlife,A1value-SUM($F76:J76),IF(A1remlife="N/A","n/a",A1value/A1remlife)) -> 0 | L76: =IF(L$3>A1remlife,A1value-SUM($F76:K76),IF(A1remlife="N/A","n/a",A1value/A1remlife)) -> 0 | M76: =IF(M$3>A1remlife,A1value-SUM($F76:L76),IF(A1remlife="N/A","n/a",A1value/A1remlife)) -> 0 | N76: =IF(N$3>A1remlife,A1value-SUM($F76:M76),IF(A1remlife="N/A","n/a",A1value/A1remlife)) -> 0 | O76: =IF(O$3>A1remlife,A1value-SUM($F76:N76),IF(A1remlife="N/A","n/a",A1value/A1remlife)) -> 0 | P76: =IF(P$3>A1remlife,A1value-SUM($F76:O76),IF(A1remlife="N/A","n/a",A1value/A1remlife)) -> 0 | Q76: =IF(Q$3>A1remlife,A1value-SUM($F76:P76),IF(A1remlife="N/A","n/a",A1value/A1remlife)) -> 0 | R76: =IF(R$3>A1remlife,A1value-SUM($F76:Q76),IF(A1remlife="N/A","n/a",A1value/A1remlife)) -> 0 | S76: =IF(S$3>A1remlife,A1value-SUM($F76:R76),IF(A1remlife="N/A","n/a",A1value/A1remlife)) -> 0 | T76: =IF(T$3>A1remlife,A1value-SUM($F76:S76),IF(A1remlife="N/A","n/a",A1value/A1remlife)) -> 0 | U76: =IF(U$3>A1remlife,A1value-SUM($F76:T76),IF(A1remlife="N/A","n/a",A1value/A1remlife)) -> 0 | V76: =IF(V$3>A1remlife,A1value-SUM($F76:U76),IF(A1remlife="N/A","n/a",A1value/A1remlife)) -> 0 | W76: =IF(W$3>A1remlife,A1value-SUM($F76:V76),IF(A1remlife="N/A","n/a",A1value/A1remlife)) -> 0 | X76: =IF(X$3>A1remlife,A1value-SUM($F76:W76),IF(A1remlife="N/A","n/a",A1value/A1remlife)) -> 0 | Y76: =IF(Y$3>A1remlife,A1value-SUM($F76:X76),IF(A1remlife="N/A","n/a",A1value/A1remlife)) -> 0 | Z76: =IF(Z$3>A1remlife,A1value-SUM($F76:Y76),IF(A1remlife="N/A","n/a",A1value/A1remlife)) -> 0 | AA76: =IF(AA$3>A1remlife,A1value-SUM($F76:Z76),IF(A1remlife="N/A","n/a",A1value/A1remlife)) -> 0 | AB76: =IF(AB$3>A1remlife,A1value-SUM($F76:AA76),IF(A1remlife="N/A","n/a",A1value/A1remlife)) -> 0 | AC76: =IF(AC$3>A1remlife,A1value-SUM($F76:AB76),IF(A1remlife="N/A","n/a",A1value/A1remlife)) -> 0 | AD76: =IF(AD$3>A1remlife,A1value-SUM($F76:AC76),IF(A1remlife="N/A","n/a",A1value/A1remlife)) -> 0 | AE76: =IF(AE$3>A1remlife,A1value-SUM($F76:AD76),IF(A1remlife="N/A","n/a",A1value/A1remlife)) -> 0 | AF76: =IF(AF$3>A1remlife,A1value-SUM($F76:AE76),IF(A1remlife="N/A","n/a",A1value/A1remlife)) -> 0 | AG76: =IF(AG$3>A1remlife,A1value-SUM($F76:AF76),IF(A1remlife="N/A","n/a",A1value/A1remlife)) -> 0 | AH76: =IF(AH$3>A1remlife,A1value-SUM($F76:AG76),IF(A1remlife="N/A","n/a",A1value/A1remlife)) -> 0 | AI76: =IF(AI$3>A1remlife,A1value-SUM($F76:AH76),IF(A1remlife="N/A","n/a",A1value/A1remlife)) -> 0 | AJ76: =IF(AJ$3>A1remlife,A1value-SUM($F76:AI76),IF(A1remlife="N/A","n/a",A1value/A1remlife)) -> 0 | AK76: =IF(AK$3>A1remlife,A1value-SUM($F76:AJ76),IF(A1remlife="N/A","n/a",A1value/A1remlife)) -> 0 | AL76: =IF(AL$3>A1remlife,A1value-SUM($F76:AK76),IF(A1remlife="N/A","n/a",A1value/A1remlife)) -> 0 | AM76: =IF(AM$3>A1remlife,A1value-SUM($F76:AL76),IF(A1remlife="N/A","n/a",A1value/A1remlife)) -> 0 | AN76: =IF(AN$3>A1remlife,A1value-SUM($F76:AM76),IF(A1remlife="N/A","n/a",A1value/A1remlife)) -> 0 | AO76: =IF(AO$3>A1remlife,A1value-SUM($F76:AN76),IF(A1remlife="N/A","n/a",A1value/A1remlife)) -> 0 | AP76: =IF(AP$3>A1remlife,A1value-SUM($F76:AO76),IF(A1remlife="N/A","n/a",A1value/A1remlife)) -> 0 | AQ76: =IF(AQ$3>A1remlife,A1value-SUM($F76:AP76),IF(A1remlife="N/A","n/a",A1value/A1remlife)) -> 0 | AR76: =IF(AR$3>A1remlife,A1value-SUM($F76:AQ76),IF(A1remlife="N/A","n/a",A1value/A1remlife)) -> 0 | AS76: =IF(AS$3>A1remlife,A1value-SUM($F76:AR76),IF(A1remlife="N/A","n/a",A1value/A1remlife)) -> 0 | AT76: =IF(AT$3>A1remlife,A1value-SUM($F76:AS76),IF(A1remlife="N/A","n/a",A1value/A1remlife)) -> 0 | AU76: =IF(AU$3>A1remlife,A1value-SUM($F76:AT76),IF(A1remlife="N/A","n/a",A1value/A1remlife)) -> 0 | AV76: =IF(AV$3>A1remlife,A1value-SUM($F76:AU76),IF(A1remlife="N/A","n/a",A1value/A1remlife)) -> 0 | AW76: =IF(AW$3>A1remlife,A1value-SUM($F76:AV76),IF(A1remlife="N/A","n/a",A1value/A1remlife)) -> 0 | AX76: =IF(AX$3>A1remlife,A1value-SUM($F76:AW76),IF(A1remlife="N/A","n/a",A1value/A1remlife)) -> 0 | AY76: =IF(AY$3>A1remlife,A1value-SUM($F76:AX76),IF(A1remlife="N/A","n/a",A1value/A1remlife)) -> 0 | AZ76: =IF(AZ$3>A1remlife,A1value-SUM($F76:AY76),IF(A1remlife="N/A","n/a",A1value/A1remlife)) -> 0 | BA76: =IF(BA$3>A1remlife,A1value-SUM($F76:AZ76),IF(A1remlife="N/A","n/a",A1value/A1remlife)) -> 0 | BB76: =IF(BB$3>A1remlife,A1value-SUM($F76:BA76),IF(A1remlife="N/A","n/a",A1value/A1remlife)) -> 0 | BC76: =IF(BC$3>A1remlife,A1value-SUM($F76:BB76),IF(A1remlife="N/A","n/a",A1value/A1remlife)) -> 0 | BD76: =IF(BD$3>A1remlife,A1value-SUM($F76:BC76),IF(A1remlife="N/A","n/a",A1value/A1remlife)) -> 0 | BE76: =IF(BE$3>A1remlife,A1value-SUM($F76:BD76),IF(A1remlife="N/A","n/a",A1value/A1remlife)) -> 0 | BF76: =IF(BF$3>A1remlife,A1value-SUM($F76:BE76),IF(A1remlife="N/A","n/a",A1value/A1remlife)) -> 0 | BG76: =IF(BG$3>A1remlife,A1value-SUM($F76:BF76),IF(A1remlife="N/A","n/a",A1value/A1remlife)) -> 0 | BH76: =IF(BH$3>A1remlife,A1value-SUM($F76:BG76),IF(A1remlife="N/A","n/a",A1value/A1remlife)) -> 0 | BI76: =IF(BI$3>A1remlife,A1value-SUM($F76:BH76),IF(A1remlife="N/A","n/a",A1value/A1remlife)) -> 0
D77: Capex | E77: 0
E78: 1 | H78: =IF(A1stdlife="n/a","n/a",IF(H$3>(A1stdlife+$E78),(Input!$G$143*(1+pretaxreal)^0.5)-SUM($G78:G78),(Input!$G$143*(1+pretaxreal)^0.5)/A1stdlife)) -> 0 | I78: =IF(A1stdlife="n/a","n/a",IF(I$3>(A1stdlife+$E78),(Input!$G$143*(1+pretaxreal)^0.5)-SUM($G78:H78),(Input!$G$143*(1+pretaxreal)^0.5)/A1stdlife)) -> 0 | J78: =IF(A1stdlife="n/a","n/a",IF(J$3>(A1stdlife+$E78),(Input!$G$143*(1+pretaxreal)^0.5)-SUM($G78:I78),(Input!$G$143*(1+pretaxreal)^0.5)/A1stdlife)) -> 0 | K78: =IF(A1stdlife="n/a","n/a",IF(K$3>(A1stdlife+$E78),(Input!$G$143*(1+pretaxreal)^0.5)-SUM($G78:J78),(Input!$G$143*(1+pretaxreal)^0.5)/A1stdlife)) -> 0 | L78: =IF(A1stdlife="n/a","n/a",IF(L$3>(A1stdlife+$E78),(Input!$G$143*(1+pretaxreal)^0.5)-SUM($G78:K78),(Input!$G$143*(1+pretaxreal)^0.5)/A1stdlife)) -> 0 | M78: =IF(A1stdlife="n/a","n/a",IF(M$3>(A1stdlife+$E78),(Input!$G$143*(1+pretaxreal)^0.5)-SUM($G78:L78),(Input!$G$143*(1+pretaxreal)^0.5)/A1stdlife)) -> 0 | N78: =IF(A1stdlife="n/a","n/a",IF(N$3>(A1stdlife+$E78),(Input!$G$143*(1+pretaxreal)^0.5)-SUM($G78:M78),(Input!$G$143*(1+pretaxreal)^0.5)/A1stdlife)) -> 0 | O78: =IF(A1stdlife="n/a","n/a",IF(O$3>(A1stdlife+$E78),(Input!$G$143*(1+pretaxreal)^0.5)-SUM($G78:N78),(Input!$G$143*(1+pretaxreal)^0.5)/A1stdlife)) -> 0 | P78: =IF(A1stdlife="n/a","n/a",IF(P$3>(A1stdlife+$E78),(Input!$G$143*(1+pretaxreal)^0.5)-SUM($G78:O78),(Input!$G$143*(1+pretaxreal)^0.5)/A1stdlife)) -> 0 | Q78: =IF(A1stdlife="n/a","n/a",IF(Q$3>(A1stdlife+$E78),(Input!$G$143*(1+pretaxreal)^0.5)-SUM($G78:P78),(Input!$G$143*(1+pretaxreal)^0.5)/A1stdlife)) -> 0 | R78: =IF(A1stdlife="n/a","n/a",IF(R$3>(A1stdlife+$E78),(Input!$G$143*(1+pretaxreal)^0.5)-SUM($G78:Q78),(Input!$G$143*(1+pretaxreal)^0.5)/A1stdlife)) -> 0 | S78: =IF(A1stdlife="n/a","n/a",IF(S$3>(A1stdlife+$E78),(Input!$G$143*(1+pretaxreal)^0.5)-SUM($G78:R78),(Input!$G$143*(1+pretaxreal)^0.5)/A1stdlife)) -> 0 | T78: =IF(A1stdlife="n/a","n/a",IF(T$3>(A1stdlife+$E78),(Input!$G$143*(1+pretaxreal)^0.5)-SUM($G78:S78),(Input!$G$143*(1+pretaxreal)^0.5)/A1stdlife)) -> 0 | U78: =IF(A1stdlife="n/a","n/a",IF(U$3>(A1stdlife+$E78),(Input!$G$143*(1+pretaxreal)^0.5)-SUM($G78:T78),(Input!$G$143*(1+pretaxreal)^0.5)/A1stdlife)) -> 0 | V78: =IF(A1stdlife="n/a","n/a",IF(V$3>(A1stdlife+$E78),(Input!$G$143*(1+pretaxreal)^0.5)-SUM($G78:U78),(Input!$G$143*(1+pretaxreal)^0.5)/A1stdlife)) -> 0 | W78: =IF(A1stdlife="n/a","n/a",IF(W$3>(A1stdlife+$E78),(Input!$G$143*(1+pretaxreal)^0.5)-SUM($G78:V78),(Input!$G$143*(1+pretaxreal)^0.5)/A1stdlife)) -> 0 | X78: =IF(A1stdlife="n/a","n/a",IF(X$3>(A1stdlife+$E78),(Input!$G$143*(1+pretaxreal)^0.5)-SUM($G78:W78),(Input!$G$143*(1+pretaxreal)^0.5)/A1stdlife)) -> 0 | Y78: =IF(A1stdlife="n/a","n/a",IF(Y$3>(A1stdlife+$E78),(Input!$G$143*(1+pretaxreal)^0.5)-SUM($G78:X78),(Input!$G$143*(1+pretaxreal)^0.5)/A1stdlife)) -> 0 | Z78: =IF(A1stdlife="n/a","n/a",IF(Z$3>(A1stdlife+$E78),(Input!$G$143*(1+pretaxreal)^0.5)-SUM($G78:Y78),(Input!$G$143*(1+pretaxreal)^0.5)/A1stdlife)) -> 0 | AA78: =IF(A1stdlife="n/a","n/a",IF(AA$3>(A1stdlife+$E78),(Input!$G$143*(1+pretaxreal)^0.5)-SUM($G78:Z78),(Input!$G$143*(1+pretaxreal)^0.5)/A1stdlife)) -> 0 | AB78: =IF(A1stdlife="n/a","n/a",IF(AB$3>(A1stdlife+$E78),(Input!$G$143*(1+pretaxreal)^0.5)-SUM($G78:AA78),(Input!$G$143*(1+pretaxreal)^0.5)/A1stdlife)) -> 0 | AC78: =IF(A1stdlife="n/a","n/a",IF(AC$3>(A1stdlife+$E78),(Input!$G$143*(1+pretaxreal)^0.5)-SUM($G78:AB78),(Input!$G$143*(1+pretaxreal)^0.5)/A1stdlife)) -> 0 | AD78: =IF(A1stdlife="n/a","n/a",IF(AD$3>(A1stdlife+$E78),(Input!$G$143*(1+pretaxreal)^0.5)-SUM($G78:AC78),(Input!$G$143*(1+pretaxreal)^0.5)/A1stdlife)) -> 0 | AE78: =IF(A1stdlife="n/a","n/a",IF(AE$3>(A1stdlife+$E78),(Input!$G$143*(1+pretaxreal)^0.5)-SUM($G78:AD78),(Input!$G$143*(1+pretaxreal)^0.5)/A1stdlife)) -> 0 | AF78: =IF(A1stdlife="n/a","n/a",IF(AF$3>(A1stdlife+$E78),(Input!$G$143*(1+pretaxreal)^0.5)-SUM($G78:AE78),(Input!$G$143*(1+pretaxreal)^0.5)/A1stdlife)) -> 0 | AG78: =IF(A1stdlife="n/a","n/a",IF(AG$3>(A1stdlife+$E78),(Input!$G$143*(1+pretaxreal)^0.5)-SUM($G78:AF78),(Input!$G$143*(1+pretaxreal)^0.5)/A1stdlife)) -> 0 | AH78: =IF(A1stdlife="n/a","n/a",IF(AH$3>(A1stdlife+$E78),(Input!$G$143*(1+pretaxreal)^0.5)-SUM($G78:AG78),(Input!$G$143*(1+pretaxreal)^0.5)/A1stdlife)) -> 0 | AI78: =IF(A1stdlife="n/a","n/a",IF(AI$3>(A1stdlife+$E78),(Input!$G$143*(1+pretaxreal)^0.5)-SUM($G78:AH78),(Input!$G$143*(1+pretaxreal)^0.5)/A1stdlife)) -> 0 | AJ78: =IF(A1stdlife="n/a","n/a",IF(AJ$3>(A1stdlife+$E78),(Input!$G$143*(1+pretaxreal)^0.5)-SUM($G78:AI78),(Input!$G$143*(1+pretaxreal)^0.5)/A1stdlife)) -> 0 | AK78: =IF(A1stdlife="n/a","n/a",IF(AK$3>(A1stdlife+$E78),(Input!$G$143*(1+pretaxreal)^0.5)-SUM($G78:AJ78),(Input!$G$143*(1+pretaxreal)^0.5)/A1stdlife)) -> 0 | AL78: =IF(A1stdlife="n/a","n/a",IF(AL$3>(A1stdlife+$E78),(Input!$G$143*(1+pretaxreal)^0.5)-SUM($G78:AK78),(Input!$G$143*(1+pretaxreal)^0.5)/A1stdlife)) -> 0 | AM78: =IF(A1stdlife="n/a","n/a",IF(AM$3>(A1stdlife+$E78),(Input!$G$143*(1+pretaxreal)^0.5)-SUM($G78:AL78),(Input!$G$143*(1+pretaxreal)^0.5)/A1stdlife)) -> 0 | AN78: =IF(A1stdlife="n/a","n/a",IF(AN$3>(A1stdlife+$E78),(Input!$G$143*(1+pretaxreal)^0.5)-SUM($G78:AM78),(Input!$G$143*(1+pretaxreal)^0.5)/A1stdlife)) -> 0 | AO78: =IF(A1stdlife="n/a","n/a",IF(AO$3>(A1stdlife+$E78),(Input!$G$143*(1+pretaxreal)^0.5)-SUM($G78:AN78),(Input!$G$143*(1+pretaxreal)^0.5)/A1stdlife)) -> 0 | AP78: =IF(A1stdlife="n/a","n/a",IF(AP$3>(A1stdlife+$E78),(Input!$G$143*(1+pretaxreal)^0.5)-SUM($G78:AO78),(Input!$G$143*(1+pretaxreal)^0.5)/A1stdlife)) -> 0 | AQ78: =IF(A1stdlife="n/a","n/a",IF(AQ$3>(A1stdlife+$E78),(Input!$G$143*(1+pretaxreal)^0.5)-SUM($G78:AP78),(Input!$G$143*(1+pretaxreal)^0.5)/A1stdlife)) -> 0 | AR78: =IF(A1stdlife="n/a","n/a",IF(AR$3>(A1stdlife+$E78),(Input!$G$143*(1+pretaxreal)^0.5)-SUM($G78:AQ78),(Input!$G$143*(1+pretaxreal)^0.5)/A1stdlife)) -> 0 | AS78: =IF(A1stdlife="n/a","n/a",IF(AS$3>(A1stdlife+$E78),(Input!$G$143*(1+pretaxreal)^0.5)-SUM($G78:AR78),(Input!$G$143*(1+pretaxreal)^0.5)/A1stdlife)) -> 0 | AT78: =IF(A1stdlife="n/a","n/a",IF(AT$3>(A1stdlife+$E78),(Input!$G$143*(1+pretaxreal)^0.5)-SUM($G78:AS78),(Input!$G$143*(1+pretaxreal)^0.5)/A1stdlife)) -> 0 | AU78: =IF(A1stdlife="n/a","n/a",IF(AU$3>(A1stdlife+$E78),(Input!$G$143*(1+pretaxreal)^0.5)-SUM($G78:AT78),(Input!$G$143*(1+pretaxreal)^0.5)/A1stdlife)) -> 0 | AV78: =IF(A1stdlife="n/a","n/a",IF(AV$3>(A1stdlife+$E78),(Input!$G$143*(1+pretaxreal)^0.5)-SUM($G78:AU78),(Input!$G$143*(1+pretaxreal)^0.5)/A1stdlife)) -> 0 | AW78: =IF(A1stdlife="n/a","n/a",IF(AW$3>(A1stdlife+$E78),(Input!$G$143*(1+pretaxreal)^0.5)-SUM($G78:AV78),(Input!$G$143*(1+pretaxreal)^0.5)/A1stdlife)) -> 0 | AX78: =IF(A1stdlife="n/a","n/a",IF(AX$3>(A1stdlife+$E78),(Input!$G$143*(1+pretaxreal)^0.5)-SUM($G78:AW78),(Input!$G$143*(1+pretaxreal)^0.5)/A1stdlife)) -> 0 | AY78: =IF(A1stdlife="n/a","n/a",IF(AY$3>(A1stdlife+$E78),(Input!$G$143*(1+pretaxreal)^0.5)-SUM($G78:AX78),(Input!$G$143*(1+pretaxreal)^0.5)/A1stdlife)) -> 0 | AZ78: =IF(A1stdlife="n/a","n/a",IF(AZ$3>(A1stdlife+$E78),(Input!$G$143*(1+pretaxreal)^0.5)-SUM($G78:AY78),(Input!$G$143*(1+pretaxreal)^0.5)/A1stdlife)) -> 0 | BA78: =IF(A1stdlife="n/a","n/a",IF(BA$3>(A1stdlife+$E78),(Input!$G$143*(1+pretaxreal)^0.5)-SUM($G78:AZ78),(Input!$G$143*(1+pretaxreal)^0.5)/A1stdlife)) -> 0 | BB78: =IF(A1stdlife="n/a","n/a",IF(BB$3>(A1stdlife+$E78),(Input!$G$143*(1+pretaxreal)^0.5)-SUM($G78:BA78),(Input!$G$143*(1+pretaxreal)^0.5)/A1stdlife)) -> 0 | BC78: =IF(A1stdlife="n/a","n/a",IF(BC$3>(A1stdlife+$E78),(Input!$G$143*(1+pretaxreal)^0.5)-SUM($G78:BB78),(Input!$G$143*(1+pretaxreal)^0.5)/A1stdlife)) -> 0 | BD78: =IF(A1stdlife="n/a","n/a",IF(BD$3>(A1stdlife+$E78),(Input!$G$143*(1+pretaxreal)^0.5)-SUM($G78:BC78),(Input!$G$143*(1+pretaxreal)^0.5)/A1stdlife)) -> 0 | BE78: =IF(A1stdlife="n/a","n/a",IF(BE$3>(A1stdlife+$E78),(Input!$G$143*(1+pretaxreal)^0.5)-SUM($G78:BD78),(Input!$G$143*(1+pretaxreal)^0.5)/A1stdlife)) -> 0 | BF78: =IF(A1stdlife="n/a","n/a",IF(BF$3>(A1stdlife+$E78),(Input!$G$143*(1+pretaxreal)^0.5)-SUM($G78:BE78),(Input!$G$143*(1+pretaxreal)^0.5)/A1stdlife)) -> 0 | BG78: =IF(A1stdlife="n/a","n/a",IF(BG$3>(A1stdlife+$E78),(Input!$G$143*(1+pretaxreal)^0.5)-SUM($G78:BF78),(Input!$G$143*(1+pretaxreal)^0.5)/A1stdlife)) -> 0 | BH78: =IF(A1stdlife="n/a","n/a",IF(BH$3>(A1stdlife+$E78),(Input!$G$143*(1+pretaxreal)^0.5)-SUM($G78:BG78),(Input!$G$143*(1+pretaxreal)^0.5)/A1stdlife)) -> 0 | BI78: =IF(A1stdlife="n/a","n/a",IF(BI$3>(A1stdlife+$E78),(Input!$G$143*(1+pretaxreal)^0.5)-SUM($G78:BH78),(Input!$G$143*(1+pretaxreal)^0.5)/A1stdlife)) -> 0
E79: 2 | I79: =IF(A1stdlife="n/a","n/a",IF(I$3>(A1stdlife+$E79),(Input!$H$143*(1+pretaxreal)^0.5)-SUM($H79:H79),(Input!$H$143*(1+pretaxreal)^0.5)/A1stdlife)) -> 0 | J79: =IF(A1stdlife="n/a","n/a",IF(J$3>(A1stdlife+$E79),(Input!$H$143*(1+pretaxreal)^0.5)-SUM($H79:I79),(Input!$H$143*(1+pretaxreal)^0.5)/A1stdlife)) -> 0 | K79: =IF(A1stdlife="n/a","n/a",IF(K$3>(A1stdlife+$E79),(Input!$H$143*(1+pretaxreal)^0.5)-SUM($H79:J79),(Input!$H$143*(1+pretaxreal)^0.5)/A1stdlife)) -> 0 | L79: =IF(A1stdlife="n/a","n/a",IF(L$3>(A1stdlife+$E79),(Input!$H$143*(1+pretaxreal)^0.5)-SUM($H79:K79),(Input!$H$143*(1+pretaxreal)^0.5)/A1stdlife)) -> 0 | M79: =IF(A1stdlife="n/a","n/a",IF(M$3>(A1stdlife+$E79),(Input!$H$143*(1+pretaxreal)^0.5)-SUM($H79:L79),(Input!$H$143*(1+pretaxreal)^0.5)/A1stdlife)) -> 0 | N79: =IF(A1stdlife="n/a","n/a",IF(N$3>(A1stdlife+$E79),(Input!$H$143*(1+pretaxreal)^0.5)-SUM($H79:M79),(Input!$H$143*(1+pretaxreal)^0.5)/A1stdlife)) -> 0 | O79: =IF(A1stdlife="n/a","n/a",IF(O$3>(A1stdlife+$E79),(Input!$H$143*(1+pretaxreal)^0.5)-SUM($H79:N79),(Input!$H$143*(1+pretaxreal)^0.5)/A1stdlife)) -> 0 | P79: =IF(A1stdlife="n/a","n/a",IF(P$3>(A1stdlife+$E79),(Input!$H$143*(1+pretaxreal)^0.5)-SUM($H79:O79),(Input!$H$143*(1+pretaxreal)^0.5)/A1stdlife)) -> 0 | Q79: =IF(A1stdlife="n/a","n/a",IF(Q$3>(A1stdlife+$E79),(Input!$H$143*(1+pretaxreal)^0.5)-SUM($H79:P79),(Input!$H$143*(1+pretaxreal)^0.5)/A1stdlife)) -> 0 | R79: =IF(A1stdlife="n/a","n/a",IF(R$3>(A1stdlife+$E79),(Input!$H$143*(1+pretaxreal)^0.5)-SUM($H79:Q79),(Input!$H$143*(1+pretaxreal)^0.5)/A1stdlife)) -> 0 | S79: =IF(A1stdlife="n/a","n/a",IF(S$3>(A1stdlife+$E79),(Input!$H$143*(1+pretaxreal)^0.5)-SUM($H79:R79),(Input!$H$143*(1+pretaxreal)^0.5)/A1stdlife)) -> 0 | T79: =IF(A1stdlife="n/a","n/a",IF(T$3>(A1stdlife+$E79),(Input!$H$143*(1+pretaxreal)^0.5)-SUM($H79:S79),(Input!$H$143*(1+pretaxreal)^0.5)/A1stdlife)) -> 0 | U79: =IF(A1stdlife="n/a","n/a",IF(U$3>(A1stdlife+$E79),(Input!$H$143*(1+pretaxreal)^0.5)-SUM($H79:T79),(Input!$H$143*(1+pretaxreal)^0.5)/A1stdlife)) -> 0 | V79: =IF(A1stdlife="n/a","n/a",IF(V$3>(A1stdlife+$E79),(Input!$H$143*(1+pretaxreal)^0.5)-SUM($H79:U79),(Input!$H$143*(1+pretaxreal)^0.5)/A1stdlife)) -> 0 | W79: =IF(A1stdlife="n/a","n/a",IF(W$3>(A1stdlife+$E79),(Input!$H$143*(1+pretaxreal)^0.5)-SUM($H79:V79),(Input!$H$143*(1+pretaxreal)^0.5)/A1stdlife)) -> 0 | X79: =IF(A1stdlife="n/a","n/a",IF(X$3>(A1stdlife+$E79),(Input!$H$143*(1+pretaxreal)^0.5)-SUM($H79:W79),(Input!$H$143*(1+pretaxreal)^0.5)/A1stdlife)) -> 0 | Y79: =IF(A1stdlife="n/a","n/a",IF(Y$3>(A1stdlife+$E79),(Input!$H$143*(1+pretaxreal)^0.5)-SUM($H79:X79),(Input!$H$143*(1+pretaxreal)^0.5)/A1stdlife)) -> 0 | Z79: =IF(A1stdlife="n/a","n/a",IF(Z$3>(A1stdlife+$E79),(Input!$H$143*(1+pretaxreal)^0.5)-SUM($H79:Y79),(Input!$H$143*(1+pretaxreal)^0.5)/A1stdlife)) -> 0 | AA79: =IF(A1stdlife="n/a","n/a",IF(AA$3>(A1stdlife+$E79),(Input!$H$143*(1+pretaxreal)^0.5)-SUM($H79:Z79),(Input!$H$143*(1+pretaxreal)^0.5)/A1stdlife)) -> 0 | AB79: =IF(A1stdlife="n/a","n/a",IF(AB$3>(A1stdlife+$E79),(Input!$H$143*(1+pretaxreal)^0.5)-SUM($H79:AA79),(Input!$H$143*(1+pretaxreal)^0.5)/A1stdlife)) -> 0 | AC79: =IF(A1stdlife="n/a","n/a",IF(AC$3>(A1stdlife+$E79),(Input!$H$143*(1+pretaxreal)^0.5)-SUM($H79:AB79),(Input!$H$143*(1+pretaxreal)^0.5)/A1stdlife)) -> 0 | AD79: =IF(A1stdlife="n/a","n/a",IF(AD$3>(A1stdlife+$E79),(Input!$H$143*(1+pretaxreal)^0.5)-SUM($H79:AC79),(Input!$H$143*(1+pretaxreal)^0.5)/A1stdlife)) -> 0 | AE79: =IF(A1stdlife="n/a","n/a",IF(AE$3>(A1stdlife+$E79),(Input!$H$143*(1+pretaxreal)^0.5)-SUM($H79:AD79),(Input!$H$143*(1+pretaxreal)^0.5)/A1stdlife)) -> 0 | AF79: =IF(A1stdlife="n/a","n/a",IF(AF$3>(A1stdlife+$E79),(Input!$H$143*(1+pretaxreal)^0.5)-SUM($H79:AE79),(Input!$H$143*(1+pretaxreal)^0.5)/A1stdlife)) -> 0 | AG79: =IF(A1stdlife="n/a","n/a",IF(AG$3>(A1stdlife+$E79),(Input!$H$143*(1+pretaxreal)^0.5)-SUM($H79:AF79),(Input!$H$143*(1+pretaxreal)^0.5)/A1stdlife)) -> 0 | AH79: =IF(A1stdlife="n/a","n/a",IF(AH$3>(A1stdlife+$E79),(Input!$H$143*(1+pretaxreal)^0.5)-SUM($H79:AG79),(Input!$H$143*(1+pretaxreal)^0.5)/A1stdlife)) -> 0 | AI79: =IF(A1stdlife="n/a","n/a",IF(AI$3>(A1stdlife+$E79),(Input!$H$143*(1+pretaxreal)^0.5)-SUM($H79:AH79),(Input!$H$143*(1+pretaxreal)^0.5)/A1stdlife)) -> 0 | AJ79: =IF(A1stdlife="n/a","n/a",IF(AJ$3>(A1stdlife+$E79),(Input!$H$143*(1+pretaxreal)^0.5)-SUM($H79:AI79),(Input!$H$143*(1+pretaxreal)^0.5)/A1stdlife)) -> 0 | AK79: =IF(A1stdlife="n/a","n/a",IF(AK$3>(A1stdlife+$E79),(Input!$H$143*(1+pretaxreal)^0.5)-SUM($H79:AJ79),(Input!$H$143*(1+pretaxreal)^0.5)/A1stdlife)) -> 0 | AL79: =IF(A1stdlife="n/a","n/a",IF(AL$3>(A1stdlife+$E79),(Input!$H$143*(1+pretaxreal)^0.5)-SUM($H79:AK79),(Input!$H$143*(1+pretaxreal)^0.5)/A1stdlife)) -> 0 | AM79: =IF(A1stdlife="n/a","n/a",IF(AM$3>(A1stdlife+$E79),(Input!$H$143*(1+pretaxreal)^0.5)-SUM($H79:AL79),(Input!$H$143*(1+pretaxreal)^0.5)/A1stdlife)) -> 0 | AN79: =IF(A1stdlife="n/a","n/a",IF(AN$3>(A1stdlife+$E79),(Input!$H$143*(1+pretaxreal)^0.5)-SUM($H79:AM79),(Input!$H$143*(1+pretaxreal)^0.5)/A1stdlife)) -> 0 | AO79: =IF(A1stdlife="n/a","n/a",IF(AO$3>(A1stdlife+$E79),(Input!$H$143*(1+pretaxreal)^0.5)-SUM($H79:AN79),(Input!$H$143*(1+pretaxreal)^0.5)/A1stdlife)) -> 0 | AP79: =IF(A1stdlife="n/a","n/a",IF(AP$3>(A1stdlife+$E79),(Input!$H$143*(1+pretaxreal)^0.5)-SUM($H79:AO79),(Input!$H$143*(1+pretaxreal)^0.5)/A1stdlife)) -> 0 | AQ79: =IF(A1stdlife="n/a","n/a",IF(AQ$3>(A1stdlife+$E79),(Input!$H$143*(1+pretaxreal)^0.5)-SUM($H79:AP79),(Input!$H$143*(1+pretaxreal)^0.5)/A1stdlife)) -> 0 | AR79: =IF(A1stdlife="n/a","n/a",IF(AR$3>(A1stdlife+$E79),(Input!$H$143*(1+pretaxreal)^0.5)-SUM($H79:AQ79),(Input!$H$143*(1+pretaxreal)^0.5)/A1stdlife)) -> 0 | AS79: =IF(A1stdlife="n/a","n/a",IF(AS$3>(A1stdlife+$E79),(Input!$H$143*(1+pretaxreal)^0.5)-SUM($H79:AR79),(Input!$H$143*(1+pretaxreal)^0.5)/A1stdlife)) -> 0 | AT79: =IF(A1stdlife="n/a","n/a",IF(AT$3>(A1stdlife+$E79),(Input!$H$143*(1+pretaxreal)^0.5)-SUM($H79:AS79),(Input!$H$143*(1+pretaxreal)^0.5)/A1stdlife)) -> 0 | AU79: =IF(A1stdlife="n/a","n/a",IF(AU$3>(A1stdlife+$E79),(Input!$H$143*(1+pretaxreal)^0.5)-SUM($H79:AT79),(Input!$H$143*(1+pretaxreal)^0.5)/A1stdlife)) -> 0 | AV79: =IF(A1stdlife="n/a","n/a",IF(AV$3>(A1stdlife+$E79),(Input!$H$143*(1+pretaxreal)^0.5)-SUM($H79:AU79),(Input!$H$143*(1+pretaxreal)^0.5)/A1stdlife)) -> 0 | AW79: =IF(A1stdlife="n/a","n/a",IF(AW$3>(A1stdlife+$E79),(Input!$H$143*(1+pretaxreal)^0.5)-SUM($H79:AV79),(Input!$H$143*(1+pretaxreal)^0.5)/A1stdlife)) -> 0 | AX79: =IF(A1stdlife="n/a","n/a",IF(AX$3>(A1stdlife+$E79),(Input!$H$143*(1+pretaxreal)^0.5)-SUM($H79:AW79),(Input!$H$143*(1+pretaxreal)^0.5)/A1stdlife)) -> 0 | AY79: =IF(A1stdlife="n/a","n/a",IF(AY$3>(A1stdlife+$E79),(Input!$H$143*(1+pretaxreal)^0.5)-SUM($H79:AX79),(Input!$H$143*(1+pretaxreal)^0.5)/A1stdlife)) -> 0 | AZ79: =IF(A1stdlife="n/a","n/a",IF(AZ$3>(A1stdlife+$E79),(Input!$H$143*(1+pretaxreal)^0.5)-SUM($H79:AY79),(Input!$H$143*(1+pretaxreal)^0.5)/A1stdlife)) -> 0 | BA79: =IF(A1stdlife="n/a","n/a",IF(BA$3>(A1stdlife+$E79),(Input!$H$143*(1+pretaxreal)^0.5)-SUM($H79:AZ79),(Input!$H$143*(1+pretaxreal)^0.5)/A1stdlife)) -> 0 | BB79: =IF(A1stdlife="n/a","n/a",IF(BB$3>(A1stdlife+$E79),(Input!$H$143*(1+pretaxreal)^0.5)-SUM($H79:BA79),(Input!$H$143*(1+pretaxreal)^0.5)/A1stdlife)) -> 0 | BC79: =IF(A1stdlife="n/a","n/a",IF(BC$3>(A1stdlife+$E79),(Input!$H$143*(1+pretaxreal)^0.5)-SUM($H79:BB79),(Input!$H$143*(1+pretaxreal)^0.5)/A1stdlife)) -> 0 | BD79: =IF(A1stdlife="n/a","n/a",IF(BD$3>(A1stdlife+$E79),(Input!$H$143*(1+pretaxreal)^0.5)-SUM($H79:BC79),(Input!$H$143*(1+pretaxreal)^0.5)/A1stdlife)) -> 0 | BE79: =IF(A1stdlife="n/a","n/a",IF(BE$3>(A1stdlife+$E79),(Input!$H$143*(1+pretaxreal)^0.5)-SUM($H79:BD79),(Input!$H$143*(1+pretaxreal)^0.5)/A1stdlife)) -> 0 | BF79: =IF(A1stdlife="n/a","n/a",IF(BF$3>(A1stdlife+$E79),(Input!$H$143*(1+pretaxreal)^0.5)-SUM($H79:BE79),(Input!$H$143*(1+pretaxreal)^0.5)/A1stdlife)) -> 0 | BG79: =IF(A1stdlife="n/a","n/a",IF(BG$3>(A1stdlife+$E79),(Input!$H$143*(1+pretaxreal)^0.5)-SUM($H79:BF79),(Input!$H$143*(1+pretaxreal)^0.5)/A1stdlife)) -> 0 | BH79: =IF(A1stdlife="n/a","n/a",IF(BH$3>(A1stdlife+$E79),(Input!$H$143*(1+pretaxreal)^0.5)-SUM($H79:BG79),(Input!$H$143*(1+pretaxreal)^0.5)/A1stdlife)) -> 0 | BI79: =IF(A1stdlife="n/a","n/a",IF(BI$3>(A1stdlife+$E79),(Input!$H$143*(1+pretaxreal)^0.5)-SUM($H79:BH79),(Input!$H$143*(1+pretaxreal)^0.5)/A1stdlife)) -> 0
E80: 3 | J80: =IF(A1stdlife="n/a","n/a",IF(J$3>(A1stdlife+$E80),(Input!$I$143*(1+pretaxreal)^0.5)-SUM($I80:I80),(Input!$I$143*(1+pretaxreal)^0.5)/A1stdlife)) -> 0 | K80: =IF(A1stdlife="n/a","n/a",IF(K$3>(A1stdlife+$E80),(Input!$I$143*(1+pretaxreal)^0.5)-SUM($I80:J80),(Input!$I$143*(1+pretaxreal)^0.5)/A1stdlife)) -> 0 | L80: =IF(A1stdlife="n/a","n/a",IF(L$3>(A1stdlife+$E80),(Input!$I$143*(1+pretaxreal)^0.5)-SUM($I80:K80),(Input!$I$143*(1+pretaxreal)^0.5)/A1stdlife)) -> 0 | M80: =IF(A1stdlife="n/a","n/a",IF(M$3>(A1stdlife+$E80),(Input!$I$143*(1+pretaxreal)^0.5)-SUM($I80:L80),(Input!$I$143*(1+pretaxreal)^0.5)/A1stdlife)) -> 0 | N80: =IF(A1stdlife="n/a","n/a",IF(N$3>(A1stdlife+$E80),(Input!$I$143*(1+pretaxreal)^0.5)-SUM($I80:M80),(Input!$I$143*(1+pretaxreal)^0.5)/A1stdlife)) -> 0 | O80: =IF(A1stdlife="n/a","n/a",IF(O$3>(A1stdlife+$E80),(Input!$I$143*(1+pretaxreal)^0.5)-SUM($I80:N80),(Input!$I$143*(1+pretaxreal)^0.5)/A1stdlife)) -> 0 | P80: =IF(A1stdlife="n/a","n/a",IF(P$3>(A1stdlife+$E80),(Input!$I$143*(1+pretaxreal)^0.5)-SUM($I80:O80),(Input!$I$143*(1+pretaxreal)^0.5)/A1stdlife)) -> 0 | Q80: =IF(A1stdlife="n/a","n/a",IF(Q$3>(A1stdlife+$E80),(Input!$I$143*(1+pretaxreal)^0.5)-SUM($I80:P80),(Input!$I$143*(1+pretaxreal)^0.5)/A1stdlife)) -> 0 | R80: =IF(A1stdlife="n/a","n/a",IF(R$3>(A1stdlife+$E80),(Input!$I$143*(1+pretaxreal)^0.5)-SUM($I80:Q80),(Input!$I$143*(1+pretaxreal)^0.5)/A1stdlife)) -> 0 | S80: =IF(A1stdlife="n/a","n/a",IF(S$3>(A1stdlife+$E80),(Input!$I$143*(1+pretaxreal)^0.5)-SUM($I80:R80),(Input!$I$143*(1+pretaxreal)^0.5)/A1stdlife)) -> 0 | T80: =IF(A1stdlife="n/a","n/a",IF(T$3>(A1stdlife+$E80),(Input!$I$143*(1+pretaxreal)^0.5)-SUM($I80:S80),(Input!$I$143*(1+pretaxreal)^0.5)/A1stdlife)) -> 0 | U80: =IF(A1stdlife="n/a","n/a",IF(U$3>(A1stdlife+$E80),(Input!$I$143*(1+pretaxreal)^0.5)-SUM($I80:T80),(Input!$I$143*(1+pretaxreal)^0.5)/A1stdlife)) -> 0 | V80: =IF(A1stdlife="n/a","n/a",IF(V$3>(A1stdlife+$E80),(Input!$I$143*(1+pretaxreal)^0.5)-SUM($I80:U80),(Input!$I$143*(1+pretaxreal)^0.5)/A1stdlife)) -> 0 | W80: =IF(A1stdlife="n/a","n/a",IF(W$3>(A1stdlife+$E80),(Input!$I$143*(1+pretaxreal)^0.5)-SUM($I80:V80),(Input!$I$143*(1+pretaxreal)^0.5)/A1stdlife)) -> 0 | X80: =IF(A1stdlife="n/a","n/a",IF(X$3>(A1stdlife+$E80),(Input!$I$143*(1+pretaxreal)^0.5)-SUM($I80:W80),(Input!$I$143*(1+pretaxreal)^0.5)/A1stdlife)) -> 0 | Y80: =IF(A1stdlife="n/a","n/a",IF(Y$3>(A1stdlife+$E80),(Input!$I$143*(1+pretaxreal)^0.5)-SUM($I80:X80),(Input!$I$143*(1+pretaxreal)^0.5)/A1stdlife)) -> 0 | Z80: =IF(A1stdlife="n/a","n/a",IF(Z$3>(A1stdlife+$E80),(Input!$I$143*(1+pretaxreal)^0.5)-SUM($I80:Y80),(Input!$I$143*(1+pretaxreal)^0.5)/A1stdlife)) -> 0 | AA80: =IF(A1stdlife="n/a","n/a",IF(AA$3>(A1stdlife+$E80),(Input!$I$143*(1+pretaxreal)^0.5)-SUM($I80:Z80),(Input!$I$143*(1+pretaxreal)^0.5)/A1stdlife)) -> 0 | AB80: =IF(A1stdlife="n/a","n/a",IF(AB$3>(A1stdlife+$E80),(Input!$I$143*(1+pretaxreal)^0.5)-SUM($I80:AA80),(Input!$I$143*(1+pretaxreal)^0.5)/A1stdlife)) -> 0 | AC80: =IF(A1stdlife="n/a","n/a",IF(AC$3>(A1stdlife+$E80),(Input!$I$143*(1+pretaxreal)^0.5)-SUM($I80:AB80),(Input!$I$143*(1+pretaxreal)^0.5)/A1stdlife)) -> 0 | AD80: =IF(A1stdlife="n/a","n/a",IF(AD$3>(A1stdlife+$E80),(Input!$I$143*(1+pretaxreal)^0.5)-SUM($I80:AC80),(Input!$I$143*(1+pretaxreal)^0.5)/A1stdlife)) -> 0 | AE80: =IF(A1stdlife="n/a","n/a",IF(AE$3>(A1stdlife+$E80),(Input!$I$143*(1+pretaxreal)^0.5)-SUM($I80:AD80),(Input!$I$143*(1+pretaxreal)^0.5)/A1stdlife)) -> 0 | AF80: =IF(A1stdlife="n/a","n/a",IF(AF$3>(A1stdlife+$E80),(Input!$I$143*(1+pretaxreal)^0.5)-SUM($I80:AE80),(Input!$I$143*(1+pretaxreal)^0.5)/A1stdlife)) -> 0 | AG80: =IF(A1stdlife="n/a","n/a",IF(AG$3>(A1stdlife+$E80),(Input!$I$143*(1+pretaxreal)^0.5)-SUM($I80:AF80),(Input!$I$143*(1+pretaxreal)^0.5)/A1stdlife)) -> 0 | AH80: =IF(A1stdlife="n/a","n/a",IF(AH$3>(A1stdlife+$E80),(Input!$I$143*(1+pretaxreal)^0.5)-SUM($I80:AG80),(Input!$I$143*(1+pretaxreal)^0.5)/A1stdlife)) -> 0 | AI80: =IF(A1stdlife="n/a","n/a",IF(AI$3>(A1stdlife+$E80),(Input!$I$143*(1+pretaxreal)^0.5)-SUM($I80:AH80),(Input!$I$143*(1+pretaxreal)^0.5)/A1stdlife)) -> 0 | AJ80: =IF(A1stdlife="n/a","n/a",IF(AJ$3>(A1stdlife+$E80),(Input!$I$143*(1+pretaxreal)^0.5)-SUM($I80:AI80),(Input!$I$143*(1+pretaxreal)^0.5)/A1stdlife)) -> 0 | AK80: =IF(A1stdlife="n/a","n/a",IF(AK$3>(A1stdlife+$E80),(Input!$I$143*(1+pretaxreal)^0.5)-SUM($I80:AJ80),(Input!$I$143*(1+pretaxreal)^0.5)/A1stdlife)) -> 0 | AL80: =IF(A1stdlife="n/a","n/a",IF(AL$3>(A1stdlife+$E80),(Input!$I$143*(1+pretaxreal)^0.5)-SUM($I80:AK80),(Input!$I$143*(1+pretaxreal)^0.5)/A1stdlife)) -> 0 | AM80: =IF(A1stdlife="n/a","n/a",IF(AM$3>(A1stdlife+$E80),(Input!$I$143*(1+pretaxreal)^0.5)-SUM($I80:AL80),(Input!$I$143*(1+pretaxreal)^0.5)/A1stdlife)) -> 0 | AN80: =IF(A1stdlife="n/a","n/a",IF(AN$3>(A1stdlife+$E80),(Input!$I$143*(1+pretaxreal)^0.5)-SUM($I80:AM80),(Input!$I$143*(1+pretaxreal)^0.5)/A1stdlife)) -> 0 | AO80: =IF(A1stdlife="n/a","n/a",IF(AO$3>(A1stdlife+$E80),(Input!$I$143*(1+pretaxreal)^0.5)-SUM($I80:AN80),(Input!$I$143*(1+pretaxreal)^0.5)/A1stdlife)) -> 0 | AP80: =IF(A1stdlife="n/a","n/a",IF(AP$3>(A1stdlife+$E80),(Input!$I$143*(1+pretaxreal)^0.5)-SUM($I80:AO80),(Input!$I$143*(1+pretaxreal)^0.5)/A1stdlife)) -> 0 | AQ80: =IF(A1stdlife="n/a","n/a",IF(AQ$3>(A1stdlife+$E80),(Input!$I$143*(1+pretaxreal)^0.5)-SUM($I80:AP80),(Input!$I$143*(1+pretaxreal)^0.5)/A1stdlife)) -> 0 | AR80: =IF(A1stdlife="n/a","n/a",IF(AR$3>(A1stdlife+$E80),(Input!$I$143*(1+pretaxreal)^0.5)-SUM($I80:AQ80),(Input!$I$143*(1+pretaxreal)^0.5)/A1stdlife)) -> 0 | AS80: =IF(A1stdlife="n/a","n/a",IF(AS$3>(A1stdlife+$E80),(Input!$I$143*(1+pretaxreal)^0.5)-SUM($I80:AR80),(Input!$I$143*(1+pretaxreal)^0.5)/A1stdlife)) -> 0 | AT80: =IF(A1stdlife="n/a","n/a",IF(AT$3>(A1stdlife+$E80),(Input!$I$143*(1+pretaxreal)^0.5)-SUM($I80:AS80),(Input!$I$143*(1+pretaxreal)^0.5)/A1stdlife)) -> 0 | AU80: =IF(A1stdlife="n/a","n/a",IF(AU$3>(A1stdlife+$E80),(Input!$I$143*(1+pretaxreal)^0.5)-SUM($I80:AT80),(Input!$I$143*(1+pretaxreal)^0.5)/A1stdlife)) -> 0 | AV80: =IF(A1stdlife="n/a","n/a",IF(AV$3>(A1stdlife+$E80),(Input!$I$143*(1+pretaxreal)^0.5)-SUM($I80:AU80),(Input!$I$143*(1+pretaxreal)^0.5)/A1stdlife)) -> 0 | AW80: =IF(A1stdlife="n/a","n/a",IF(AW$3>(A1stdlife+$E80),(Input!$I$143*(1+pretaxreal)^0.5)-SUM($I80:AV80),(Input!$I$143*(1+pretaxreal)^0.5)/A1stdlife)) -> 0 | AX80: =IF(A1stdlife="n/a","n/a",IF(AX$3>(A1stdlife+$E80),(Input!$I$143*(1+pretaxreal)^0.5)-SUM($I80:AW80),(Input!$I$143*(1+pretaxreal)^0.5)/A1stdlife)) -> 0 | AY80: =IF(A1stdlife="n/a","n/a",IF(AY$3>(A1stdlife+$E80),(Input!$I$143*(1+pretaxreal)^0.5)-SUM($I80:AX80),(Input!$I$143*(1+pretaxreal)^0.5)/A1stdlife)) -> 0 | AZ80: =IF(A1stdlife="n/a","n/a",IF(AZ$3>(A1stdlife+$E80),(Input!$I$143*(1+pretaxreal)^0.5)-SUM($I80:AY80),(Input!$I$143*(1+pretaxreal)^0.5)/A1stdlife)) -> 0 | BA80: =IF(A1stdlife="n/a","n/a",IF(BA$3>(A1stdlife+$E80),(Input!$I$143*(1+pretaxreal)^0.5)-SUM($I80:AZ80),(Input!$I$143*(1+pretaxreal)^0.5)/A1stdlife)) -> 0 | BB80: =IF(A1stdlife="n/a","n/a",IF(BB$3>(A1stdlife+$E80),(Input!$I$143*(1+pretaxreal)^0.5)-SUM($I80:BA80),(Input!$I$143*(1+pretaxreal)^0.5)/A1stdlife)) -> 0 | BC80: =IF(A1stdlife="n/a","n/a",IF(BC$3>(A1stdlife+$E80),(Input!$I$143*(1+pretaxreal)^0.5)-SUM($I80:BB80),(Input!$I$143*(1+pretaxreal)^0.5)/A1stdlife)) -> 0 | BD80: =IF(A1stdlife="n/a","n/a",IF(BD$3>(A1stdlife+$E80),(Input!$I$143*(1+pretaxreal)^0.5)-SUM($I80:BC80),(Input!$I$143*(1+pretaxreal)^0.5)/A1stdlife)) -> 0 | BE80: =IF(A1stdlife="n/a","n/a",IF(BE$3>(A1stdlife+$E80),(Input!$I$143*(1+pretaxreal)^0.5)-SUM($I80:BD80),(Input!$I$143*(1+pretaxreal)^0.5)/A1stdlife)) -> 0 | BF80: =IF(A1stdlife="n/a","n/a",IF(BF$3>(A1stdlife+$E80),(Input!$I$143*(1+pretaxreal)^0.5)-SUM($I80:BE80),(Input!$I$143*(1+pretaxreal)^0.5)/A1stdlife)) -> 0 | BG80: =IF(A1stdlife="n/a","n/a",IF(BG$3>(A1stdlife+$E80),(Input!$I$143*(1+pretaxreal)^0.5)-SUM($I80:BF80),(Input!$I$143*(1+pretaxreal)^0.5)/A1stdlife)) -> 0 | BH80: =IF(A1stdlife="n/a","n/a",IF(BH$3>(A1stdlife+$E80),(Input!$I$143*(1+pretaxreal)^0.5)-SUM($I80:BG80),(Input!$I$143*(1+pretaxreal)^0.5)/A1stdlife)) -> 0 | BI80: =IF(A1stdlife="n/a","n/a",IF(BI$3>(A1stdlife+$E80),(Input!$I$143*(1+pretaxreal)^0.5)-SUM($I80:BH80),(Input!$I$143*(1+pretaxreal)^0.5)/A1stdlife)) -> 0
E81: 4 | K81: =IF(A1stdlife="n/a","n/a",IF(K$3>(A1stdlife+$E81),(Input!$J$143*(1+pretaxreal)^0.5)-SUM($J81:J81),(Input!$J$143*(1+pretaxreal)^0.5)/A1stdlife)) -> 0 | L81: =IF(A1stdlife="n/a","n/a",IF(L$3>(A1stdlife+$E81),(Input!$J$143*(1+pretaxreal)^0.5)-SUM($J81:K81),(Input!$J$143*(1+pretaxreal)^0.5)/A1stdlife)) -> 0 | M81: =IF(A1stdlife="n/a","n/a",IF(M$3>(A1stdlife+$E81),(Input!$J$143*(1+pretaxreal)^0.5)-SUM($J81:L81),(Input!$J$143*(1+pretaxreal)^0.5)/A1stdlife)) -> 0 | N81: =IF(A1stdlife="n/a","n/a",IF(N$3>(A1stdlife+$E81),(Input!$J$143*(1+pretaxreal)^0.5)-SUM($J81:M81),(Input!$J$143*(1+pretaxreal)^0.5)/A1stdlife)) -> 0 | O81: =IF(A1stdlife="n/a","n/a",IF(O$3>(A1stdlife+$E81),(Input!$J$143*(1+pretaxreal)^0.5)-SUM($J81:N81),(Input!$J$143*(1+pretaxreal)^0.5)/A1stdlife)) -> 0 | P81: =IF(A1stdlife="n/a","n/a",IF(P$3>(A1stdlife+$E81),(Input!$J$143*(1+pretaxreal)^0.5)-SUM($J81:O81),(Input!$J$143*(1+pretaxreal)^0.5)/A1stdlife)) -> 0 | Q81: =IF(A1stdlife="n/a","n/a",IF(Q$3>(A1stdlife+$E81),(Input!$J$143*(1+pretaxreal)^0.5)-SUM($J81:P81),(Input!$J$143*(1+pretaxreal)^0.5)/A1stdlife)) -> 0 | R81: =IF(A1stdlife="n/a","n/a",IF(R$3>(A1stdlife+$E81),(Input!$J$143*(1+pretaxreal)^0.5)-SUM($J81:Q81),(Input!$J$143*(1+pretaxreal)^0.5)/A1stdlife)) -> 0 | S81: =IF(A1stdlife="n/a","n/a",IF(S$3>(A1stdlife+$E81),(Input!$J$143*(1+pretaxreal)^0.5)-SUM($J81:R81),(Input!$J$143*(1+pretaxreal)^0.5)/A1stdlife)) -> 0 | T81: =IF(A1stdlife="n/a","n/a",IF(T$3>(A1stdlife+$E81),(Input!$J$143*(1+pretaxreal)^0.5)-SUM($J81:S81),(Input!$J$143*(1+pretaxreal)^0.5)/A1stdlife)) -> 0 | U81: =IF(A1stdlife="n/a","n/a",IF(U$3>(A1stdlife+$E81),(Input!$J$143*(1+pretaxreal)^0.5)-SUM($J81:T81),(Input!$J$143*(1+pretaxreal)^0.5)/A1stdlife)) -> 0 | V81: =IF(A1stdlife="n/a","n/a",IF(V$3>(A1stdlife+$E81),(Input!$J$143*(1+pretaxreal)^0.5)-SUM($J81:U81),(Input!$J$143*(1+pretaxreal)^0.5)/A1stdlife)) -> 0 | W81: =IF(A1stdlife="n/a","n/a",IF(W$3>(A1stdlife+$E81),(Input!$J$143*(1+pretaxreal)^0.5)-SUM($J81:V81),(Input!$J$143*(1+pretaxreal)^0.5)/A1stdlife)) -> 0 | X81: =IF(A1stdlife="n/a","n/a",IF(X$3>(A1stdlife+$E81),(Input!$J$143*(1+pretaxreal)^0.5)-SUM($J81:W81),(Input!$J$143*(1+pretaxreal)^0.5)/A1stdlife)) -> 0 | Y81: =IF(A1stdlife="n/a","n/a",IF(Y$3>(A1stdlife+$E81),(Input!$J$143*(1+pretaxreal)^0.5)-SUM($J81:X81),(Input!$J$143*(1+pretaxreal)^0.5)/A1stdlife)) -> 0 | Z81: =IF(A1stdlife="n/a","n/a",IF(Z$3>(A1stdlife+$E81),(Input!$J$143*(1+pretaxreal)^0.5)-SUM($J81:Y81),(Input!$J$143*(1+pretaxreal)^0.5)/A1stdlife)) -> 0 | AA81: =IF(A1stdlife="n/a","n/a",IF(AA$3>(A1stdlife+$E81),(Input!$J$143*(1+pretaxreal)^0.5)-SUM($J81:Z81),(Input!$J$143*(1+pretaxreal)^0.5)/A1stdlife)) -> 0 | AB81: =IF(A1stdlife="n/a","n/a",IF(AB$3>(A1stdlife+$E81),(Input!$J$143*(1+pretaxreal)^0.5)-SUM($J81:AA81),(Input!$J$143*(1+pretaxreal)^0.5)/A1stdlife)) -> 0 | AC81: =IF(A1stdlife="n/a","n/a",IF(AC$3>(A1stdlife+$E81),(Input!$J$143*(1+pretaxreal)^0.5)-SUM($J81:AB81),(Input!$J$143*(1+pretaxreal)^0.5)/A1stdlife)) -> 0 | AD81: =IF(A1stdlife="n/a","n/a",IF(AD$3>(A1stdlife+$E81),(Input!$J$143*(1+pretaxreal)^0.5)-SUM($J81:AC81),(Input!$J$143*(1+pretaxreal)^0.5)/A1stdlife)) -> 0 | AE81: =IF(A1stdlife="n/a","n/a",IF(AE$3>(A1stdlife+$E81),(Input!$J$143*(1+pretaxreal)^0.5)-SUM($J81:AD81),(Input!$J$143*(1+pretaxreal)^0.5)/A1stdlife)) -> 0 | AF81: =IF(A1stdlife="n/a","n/a",IF(AF$3>(A1stdlife+$E81),(Input!$J$143*(1+pretaxreal)^0.5)-SUM($J81:AE81),(Input!$J$143*(1+pretaxreal)^0.5)/A1stdlife)) -> 0 | AG81: =IF(A1stdlife="n/a","n/a",IF(AG$3>(A1stdlife+$E81),(Input!$J$143*(1+pretaxreal)^0.5)-SUM($J81:AF81),(Input!$J$143*(1+pretaxreal)^0.5)/A1stdlife)) -> 0 | AH81: =IF(A1stdlife="n/a","n/a",IF(AH$3>(A1stdlife+$E81),(Input!$J$143*(1+pretaxreal)^0.5)-SUM($J81:AG81),(Input!$J$143*(1+pretaxreal)^0.5)/A1stdlife)) -> 0 | AI81: =IF(A1stdlife="n/a","n/a",IF(AI$3>(A1stdlife+$E81),(Input!$J$143*(1+pretaxreal)^0.5)-SUM($J81:AH81),(Input!$J$143*(1+pretaxreal)^0.5)/A1stdlife)) -> 0 | AJ81: =IF(A1stdlife="n/a","n/a",IF(AJ$3>(A1stdlife+$E81),(Input!$J$143*(1+pretaxreal)^0.5)-SUM($J81:AI81),(Input!$J$143*(1+pretaxreal)^0.5)/A1stdlife)) -> 0 | AK81: =IF(A1stdlife="n/a","n/a",IF(AK$3>(A1stdlife+$E81),(Input!$J$143*(1+pretaxreal)^0.5)-SUM($J81:AJ81),(Input!$J$143*(1+pretaxreal)^0.5)/A1stdlife)) -> 0 | AL81: =IF(A1stdlife="n/a","n/a",IF(AL$3>(A1stdlife+$E81),(Input!$J$143*(1+pretaxreal)^0.5)-SUM($J81:AK81),(Input!$J$143*(1+pretaxreal)^0.5)/A1stdlife)) -> 0 | AM81: =IF(A1stdlife="n/a","n/a",IF(AM$3>(A1stdlife+$E81),(Input!$J$143*(1+pretaxreal)^0.5)-SUM($J81:AL81),(Input!$J$143*(1+pretaxreal)^0.5)/A1stdlife)) -> 0 | AN81: =IF(A1stdlife="n/a","n/a",IF(AN$3>(A1stdlife+$E81),(Input!$J$143*(1+pretaxreal)^0.5)-SUM($J81:AM81),(Input!$J$143*(1+pretaxreal)^0.5)/A1stdlife)) -> 0 | AO81: =IF(A1stdlife="n/a","n/a",IF(AO$3>(A1stdlife+$E81),(Input!$J$143*(1+pretaxreal)^0.5)-SUM($J81:AN81),(Input!$J$143*(1+pretaxreal)^0.5)/A1stdlife)) -> 0 | AP81: =IF(A1stdlife="n/a","n/a",IF(AP$3>(A1stdlife+$E81),(Input!$J$143*(1+pretaxreal)^0.5)-SUM($J81:AO81),(Input!$J$143*(1+pretaxreal)^0.5)/A1stdlife)) -> 0 | AQ81: =IF(A1stdlife="n/a","n/a",IF(AQ$3>(A1stdlife+$E81),(Input!$J$143*(1+pretaxreal)^0.5)-SUM($J81:AP81),(Input!$J$143*(1+pretaxreal)^0.5)/A1stdlife)) -> 0 | AR81: =IF(A1stdlife="n/a","n/a",IF(AR$3>(A1stdlife+$E81),(Input!$J$143*(1+pretaxreal)^0.5)-SUM($J81:AQ81),(Input!$J$143*(1+pretaxreal)^0.5)/A1stdlife)) -> 0 | AS81: =IF(A1stdlife="n/a","n/a",IF(AS$3>(A1stdlife+$E81),(Input!$J$143*(1+pretaxreal)^0.5)-SUM($J81:AR81),(Input!$J$143*(1+pretaxreal)^0.5)/A1stdlife)) -> 0 | AT81: =IF(A1stdlife="n/a","n/a",IF(AT$3>(A1stdlife+$E81),(Input!$J$143*(1+pretaxreal)^0.5)-SUM($J81:AS81),(Input!$J$143*(1+pretaxreal)^0.5)/A1stdlife)) -> 0 | AU81: =IF(A1stdlife="n/a","n/a",IF(AU$3>(A1stdlife+$E81),(Input!$J$143*(1+pretaxreal)^0.5)-SUM($J81:AT81),(Input!$J$143*(1+pretaxreal)^0.5)/A1stdlife)) -> 0 | AV81: =IF(A1stdlife="n/a","n/a",IF(AV$3>(A1stdlife+$E81),(Input!$J$143*(1+pretaxreal)^0.5)-SUM($J81:AU81),(Input!$J$143*(1+pretaxreal)^0.5)/A1stdlife)) -> 0 | AW81: =IF(A1stdlife="n/a","n/a",IF(AW$3>(A1stdlife+$E81),(Input!$J$143*(1+pretaxreal)^0.5)-SUM($J81:AV81),(Input!$J$143*(1+pretaxreal)^0.5)/A1stdlife)) -> 0 | AX81: =IF(A1stdlife="n/a","n/a",IF(AX$3>(A1stdlife+$E81),(Input!$J$143*(1+pretaxreal)^0.5)-SUM($J81:AW81),(Input!$J$143*(1+pretaxreal)^0.5)/A1stdlife)) -> 0 | AY81: =IF(A1stdlife="n/a","n/a",IF(AY$3>(A1stdlife+$E81),(Input!$J$143*(1+pretaxreal)^0.5)-SUM($J81:AX81),(Input!$J$143*(1+pretaxreal)^0.5)/A1stdlife)) -> 0 | AZ81: =IF(A1stdlife="n/a","n/a",IF(AZ$3>(A1stdlife+$E81),(Input!$J$143*(1+pretaxreal)^0.5)-SUM($J81:AY81),(Input!$J$143*(1+pretaxreal)^0.5)/A1stdlife)) -> 0 | BA81: =IF(A1stdlife="n/a","n/a",IF(BA$3>(A1stdlife+$E81),(Input!$J$143*(1+pretaxreal)^0.5)-SUM($J81:AZ81),(Input!$J$143*(1+pretaxreal)^0.5)/A1stdlife)) -> 0 | BB81: =IF(A1stdlife="n/a","n/a",IF(BB$3>(A1stdlife+$E81),(Input!$J$143*(1+pretaxreal)^0.5)-SUM($J81:BA81),(Input!$J$143*(1+pretaxreal)^0.5)/A1stdlife)) -> 0 | BC81: =IF(A1stdlife="n/a","n/a",IF(BC$3>(A1stdlife+$E81),(Input!$J$143*(1+pretaxreal)^0.5)-SUM($J81:BB81),(Input!$J$143*(1+pretaxreal)^0.5)/A1stdlife)) -> 0 | BD81: =IF(A1stdlife="n/a","n/a",IF(BD$3>(A1stdlife+$E81),(Input!$J$143*(1+pretaxreal)^0.5)-SUM($J81:BC81),(Input!$J$143*(1+pretaxreal)^0.5)/A1stdlife)) -> 0 | BE81: =IF(A1stdlife="n/a","n/a",IF(BE$3>(A1stdlife+$E81),(Input!$J$143*(1+pretaxreal)^0.5)-SUM($J81:BD81),(Input!$J$143*(1+pretaxreal)^0.5)/A1stdlife)) -> 0 | BF81: =IF(A1stdlife="n/a","n/a",IF(BF$3>(A1stdlife+$E81),(Input!$J$143*(1+pretaxreal)^0.5)-SUM($J81:BE81),(Input!$J$143*(1+pretaxreal)^0.5)/A1stdlife)) -> 0 | BG81: =IF(A1stdlife="n/a","n/a",IF(BG$3>(A1stdlife+$E81),(Input!$J$143*(1+pretaxreal)^0.5)-SUM($J81:BF81),(Input!$J$143*(1+pretaxreal)^0.5)/A1stdlife)) -> 0 | BH81: =IF(A1stdlife="n/a","n/a",IF(BH$3>(A1stdlife+$E81),(Input!$J$143*(1+pretaxreal)^0.5)-SUM($J81:BG81),(Input!$J$143*(1+pretaxreal)^0.5)/A1stdlife)) -> 0 | BI81: =IF(A1stdlife="n/a","n/a",IF(BI$3>(A1stdlife+$E81),(Input!$J$143*(1+pretaxreal)^0.5)-SUM($J81:BH81),(Input!$J$143*(1+pretaxreal)^0.5)/A1stdlife)) -> 0
E82: 5 | L82: =IF(A1stdlife="n/a","n/a",IF(L$3>(A1stdlife+$E82),(Input!$K$143*(1+pretaxreal)^0.5)-SUM($K82:K82),(Input!$K$143*(1+pretaxreal)^0.5)/A1stdlife)) -> 0 | M82: =IF(A1stdlife="n/a","n/a",IF(M$3>(A1stdlife+$E82),(Input!$K$143*(1+pretaxreal)^0.5)-SUM($K82:L82),(Input!$K$143*(1+pretaxreal)^0.5)/A1stdlife)) -> 0 | N82: =IF(A1stdlife="n/a","n/a",IF(N$3>(A1stdlife+$E82),(Input!$K$143*(1+pretaxreal)^0.5)-SUM($K82:M82),(Input!$K$143*(1+pretaxreal)^0.5)/A1stdlife)) -> 0 | O82: =IF(A1stdlife="n/a","n/a",IF(O$3>(A1stdlife+$E82),(Input!$K$143*(1+pretaxreal)^0.5)-SUM($K82:N82),(Input!$K$143*(1+pretaxreal)^0.5)/A1stdlife)) -> 0 | P82: =IF(A1stdlife="n/a","n/a",IF(P$3>(A1stdlife+$E82),(Input!$K$143*(1+pretaxreal)^0.5)-SUM($K82:O82),(Input!$K$143*(1+pretaxreal)^0.5)/A1stdlife)) -> 0 | Q82: =IF(A1stdlife="n/a","n/a",IF(Q$3>(A1stdlife+$E82),(Input!$K$143*(1+pretaxreal)^0.5)-SUM($K82:P82),(Input!$K$143*(1+pretaxreal)^0.5)/A1stdlife)) -> 0 | R82: =IF(A1stdlife="n/a","n/a",IF(R$3>(A1stdlife+$E82),(Input!$K$143*(1+pretaxreal)^0.5)-SUM($K82:Q82),(Input!$K$143*(1+pretaxreal)^0.5)/A1stdlife)) -> 0 | S82: =IF(A1stdlife="n/a","n/a",IF(S$3>(A1stdlife+$E82),(Input!$K$143*(1+pretaxreal)^0.5)-SUM($K82:R82),(Input!$K$143*(1+pretaxreal)^0.5)/A1stdlife)) -> 0 | T82: =IF(A1stdlife="n/a","n/a",IF(T$3>(A1stdlife+$E82),(Input!$K$143*(1+pretaxreal)^0.5)-SUM($K82:S82),(Input!$K$143*(1+pretaxreal)^0.5)/A1stdlife)) -> 0 | U82: =IF(A1stdlife="n/a","n/a",IF(U$3>(A1stdlife+$E82),(Input!$K$143*(1+pretaxreal)^0.5)-SUM($K82:T82),(Input!$K$143*(1+pretaxreal)^0.5)/A1stdlife)) -> 0 | V82: =IF(A1stdlife="n/a","n/a",IF(V$3>(A1stdlife+$E82),(Input!$K$143*(1+pretaxreal)^0.5)-SUM($K82:U82),(Input!$K$143*(1+pretaxreal)^0.5)/A1stdlife)) -> 0 | W82: =IF(A1stdlife="n/a","n/a",IF(W$3>(A1stdlife+$E82),(Input!$K$143*(1+pretaxreal)^0.5)-SUM($K82:V82),(Input!$K$143*(1+pretaxreal)^0.5)/A1stdlife)) -> 0 | X82: =IF(A1stdlife="n/a","n/a",IF(X$3>(A1stdlife+$E82),(Input!$K$143*(1+pretaxreal)^0.5)-SUM($K82:W82),(Input!$K$143*(1+pretaxreal)^0.5)/A1stdlife)) -> 0 | Y82: =IF(A1stdlife="n/a","n/a",IF(Y$3>(A1stdlife+$E82),(Input!$K$143*(1+pretaxreal)^0.5)-SUM($K82:X82),(Input!$K$143*(1+pretaxreal)^0.5)/A1stdlife)) -> 0 | Z82: =IF(A1stdlife="n/a","n/a",IF(Z$3>(A1stdlife+$E82),(Input!$K$143*(1+pretaxreal)^0.5)-SUM($K82:Y82),(Input!$K$143*(1+pretaxreal)^0.5)/A1stdlife)) -> 0 | AA82: =IF(A1stdlife="n/a","n/a",IF(AA$3>(A1stdlife+$E82),(Input!$K$143*(1+pretaxreal)^0.5)-SUM($K82:Z82),(Input!$K$143*(1+pretaxreal)^0.5)/A1stdlife)) -> 0 | AB82: =IF(A1stdlife="n/a","n/a",IF(AB$3>(A1stdlife+$E82),(Input!$K$143*(1+pretaxreal)^0.5)-SUM($K82:AA82),(Input!$K$143*(1+pretaxreal)^0.5)/A1stdlife)) -> 0 | AC82: =IF(A1stdlife="n/a","n/a",IF(AC$3>(A1stdlife+$E82),(Input!$K$143*(1+pretaxreal)^0.5)-SUM($K82:AB82),(Input!$K$143*(1+pretaxreal)^0.5)/A1stdlife)) -> 0 | AD82: =IF(A1stdlife="n/a","n/a",IF(AD$3>(A1stdlife+$E82),(Input!$K$143*(1+pretaxreal)^0.5)-SUM($K82:AC82),(Input!$K$143*(1+pretaxreal)^0.5)/A1stdlife)) -> 0 | AE82: =IF(A1stdlife="n/a","n/a",IF(AE$3>(A1stdlife+$E82),(Input!$K$143*(1+pretaxreal)^0.5)-SUM($K82:AD82),(Input!$K$143*(1+pretaxreal)^0.5)/A1stdlife)) -> 0 | AF82: =IF(A1stdlife="n/a","n/a",IF(AF$3>(A1stdlife+$E82),(Input!$K$143*(1+pretaxreal)^0.5)-SUM($K82:AE82),(Input!$K$143*(1+pretaxreal)^0.5)/A1stdlife)) -> 0 | AG82: =IF(A1stdlife="n/a","n/a",IF(AG$3>(A1stdlife+$E82),(Input!$K$143*(1+pretaxreal)^0.5)-SUM($K82:AF82),(Input!$K$143*(1+pretaxreal)^0.5)/A1stdlife)) -> 0 | AH82: =IF(A1stdlife="n/a","n/a",IF(AH$3>(A1stdlife+$E82),(Input!$K$143*(1+pretaxreal)^0.5)-SUM($K82:AG82),(Input!$K$143*(1+pretaxreal)^0.5)/A1stdlife)) -> 0 | AI82: =IF(A1stdlife="n/a","n/a",IF(AI$3>(A1stdlife+$E82),(Input!$K$143*(1+pretaxreal)^0.5)-SUM($K82:AH82),(Input!$K$143*(1+pretaxreal)^0.5)/A1stdlife)) -> 0 | AJ82: =IF(A1stdlife="n/a","n/a",IF(AJ$3>(A1stdlife+$E82),(Input!$K$143*(1+pretaxreal)^0.5)-SUM($K82:AI82),(Input!$K$143*(1+pretaxreal)^0.5)/A1stdlife)) -> 0 | AK82: =IF(A1stdlife="n/a","n/a",IF(AK$3>(A1stdlife+$E82),(Input!$K$143*(1+pretaxreal)^0.5)-SUM($K82:AJ82),(Input!$K$143*(1+pretaxreal)^0.5)/A1stdlife)) -> 0 | AL82: =IF(A1stdlife="n/a","n/a",IF(AL$3>(A1stdlife+$E82),(Input!$K$143*(1+pretaxreal)^0.5)-SUM($K82:AK82),(Input!$K$143*(1+pretaxreal)^0.5)/A1stdlife)) -> 0 | AM82: =IF(A1stdlife="n/a","n/a",IF(AM$3>(A1stdlife+$E82),(Input!$K$143*(1+pretaxreal)^0.5)-SUM($K82:AL82),(Input!$K$143*(1+pretaxreal)^0.5)/A1stdlife)) -> 0 | AN82: =IF(A1stdlife="n/a","n/a",IF(AN$3>(A1stdlife+$E82),(Input!$K$143*(1+pretaxreal)^0.5)-SUM($K82:AM82),(Input!$K$143*(1+pretaxreal)^0.5)/A1stdlife)) -> 0 | AO82: =IF(A1stdlife="n/a","n/a",IF(AO$3>(A1stdlife+$E82),(Input!$K$143*(1+pretaxreal)^0.5)-SUM($K82:AN82),(Input!$K$143*(1+pretaxreal)^0.5)/A1stdlife)) -> 0 | AP82: =IF(A1stdlife="n/a","n/a",IF(AP$3>(A1stdlife+$E82),(Input!$K$143*(1+pretaxreal)^0.5)-SUM($K82:AO82),(Input!$K$143*(1+pretaxreal)^0.5)/A1stdlife)) -> 0 | AQ82: =IF(A1stdlife="n/a","n/a",IF(AQ$3>(A1stdlife+$E82),(Input!$K$143*(1+pretaxreal)^0.5)-SUM($K82:AP82),(Input!$K$143*(1+pretaxreal)^0.5)/A1stdlife)) -> 0 | AR82: =IF(A1stdlife="n/a","n/a",IF(AR$3>(A1stdlife+$E82),(Input!$K$143*(1+pretaxreal)^0.5)-SUM($K82:AQ82),(Input!$K$143*(1+pretaxreal)^0.5)/A1stdlife)) -> 0 | AS82: =IF(A1stdlife="n/a","n/a",IF(AS$3>(A1stdlife+$E82),(Input!$K$143*(1+pretaxreal)^0.5)-SUM($K82:AR82),(Input!$K$143*(1+pretaxreal)^0.5)/A1stdlife)) -> 0 | AT82: =IF(A1stdlife="n/a","n/a",IF(AT$3>(A1stdlife+$E82),(Input!$K$143*(1+pretaxreal)^0.5)-SUM($K82:AS82),(Input!$K$143*(1+pretaxreal)^0.5)/A1stdlife)) -> 0 | AU82: =IF(A1stdlife="n/a","n/a",IF(AU$3>(A1stdlife+$E82),(Input!$K$143*(1+pretaxreal)^0.5)-SUM($K82:AT82),(Input!$K$143*(1+pretaxreal)^0.5)/A1stdlife)) -> 0 | AV82: =IF(A1stdlife="n/a","n/a",IF(AV$3>(A1stdlife+$E82),(Input!$K$143*(1+pretaxreal)^0.5)-SUM($K82:AU82),(Input!$K$143*(1+pretaxreal)^0.5)/A1stdlife)) -> 0 | AW82: =IF(A1stdlife="n/a","n/a",IF(AW$3>(A1stdlife+$E82),(Input!$K$143*(1+pretaxreal)^0.5)-SUM($K82:AV82),(Input!$K$143*(1+pretaxreal)^0.5)/A1stdlife)) -> 0 | AX82: =IF(A1stdlife="n/a","n/a",IF(AX$3>(A1stdlife+$E82),(Input!$K$143*(1+pretaxreal)^0.5)-SUM($K82:AW82),(Input!$K$143*(1+pretaxreal)^0.5)/A1stdlife)) -> 0 | AY82: =IF(A1stdlife="n/a","n/a",IF(AY$3>(A1stdlife+$E82),(Input!$K$143*(1+pretaxreal)^0.5)-SUM($K82:AX82),(Input!$K$143*(1+pretaxreal)^0.5)/A1stdlife)) -> 0 | AZ82: =IF(A1stdlife="n/a","n/a",IF(AZ$3>(A1stdlife+$E82),(Input!$K$143*(1+pretaxreal)^0.5)-SUM($K82:AY82),(Input!$K$143*(1+pretaxreal)^0.5)/A1stdlife)) -> 0 | BA82: =IF(A1stdlife="n/a","n/a",IF(BA$3>(A1stdlife+$E82),(Input!$K$143*(1+pretaxreal)^0.5)-SUM($K82:AZ82),(Input!$K$143*(1+pretaxreal)^0.5)/A1stdlife)) -> 0 | BB82: =IF(A1stdlife="n/a","n/a",IF(BB$3>(A1stdlife+$E82),(Input!$K$143*(1+pretaxreal)^0.5)-SUM($K82:BA82),(Input!$K$143*(1+pretaxreal)^0.5)/A1stdlife)) -> 0 | BC82: =IF(A1stdlife="n/a","n/a",IF(BC$3>(A1stdlife+$E82),(Input!$K$143*(1+pretaxreal)^0.5)-SUM($K82:BB82),(Input!$K$143*(1+pretaxreal)^0.5)/A1stdlife)) -> 0 | BD82: =IF(A1stdlife="n/a","n/a",IF(BD$3>(A1stdlife+$E82),(Input!$K$143*(1+pretaxreal)^0.5)-SUM($K82:BC82),(Input!$K$143*(1+pretaxreal)^0.5)/A1stdlife)) -> 0 | BE82: =IF(A1stdlife="n/a","n/a",IF(BE$3>(A1stdlife+$E82),(Input!$K$143*(1+pretaxreal)^0.5)-SUM($K82:BD82),(Input!$K$143*(1+pretaxreal)^0.5)/A1stdlife)) -> 0 | BF82: =IF(A1stdlife="n/a","n/a",IF(BF$3>(A1stdlife+$E82),(Input!$K$143*(1+pretaxreal)^0.5)-SUM($K82:BE82),(Input!$K$143*(1+pretaxreal)^0.5)/A1stdlife)) -> 0 | BG82: =IF(A1stdlife="n/a","n/a",IF(BG$3>(A1stdlife+$E82),(Input!$K$143*(1+pretaxreal)^0.5)-SUM($K82:BF82),(Input!$K$143*(1+pretaxreal)^0.5)/A1stdlife)) -> 0 | BH82: =IF(A1stdlife="n/a","n/a",IF(BH$3>(A1stdlife+$E82),(Input!$K$143*(1+pretaxreal)^0.5)-SUM($K82:BG82),(Input!$K$143*(1+pretaxreal)^0.5)/A1stdlife)) -> 0 | BI82: =IF(A1stdlife="n/a","n/a",IF(BI$3>(A1stdlife+$E82),(Input!$K$143*(1+pretaxreal)^0.5)-SUM($K82:BH82),(Input!$K$143*(1+pretaxreal)^0.5)/A1stdlife)) -> 0
E83: 6 | M83: =IF(A1stdlife="n/a","n/a",IF(M$3>(A1stdlife+$E83),(Input!$L$143*(1+pretaxreal)^0.5)-SUM($L83:L83),(Input!$L$143*(1+pretaxreal)^0.5)/A1stdlife)) -> 0 | N83: =IF(A1stdlife="n/a","n/a",IF(N$3>(A1stdlife+$E83),(Input!$L$143*(1+pretaxreal)^0.5)-SUM($L83:M83),(Input!$L$143*(1+pretaxreal)^0.5)/A1stdlife)) -> 0 | O83: =IF(A1stdlife="n/a","n/a",IF(O$3>(A1stdlife+$E83),(Input!$L$143*(1+pretaxreal)^0.5)-SUM($L83:N83),(Input!$L$143*(1+pretaxreal)^0.5)/A1stdlife)) -> 0 | P83: =IF(A1stdlife="n/a","n/a",IF(P$3>(A1stdlife+$E83),(Input!$L$143*(1+pretaxreal)^0.5)-SUM($L83:O83),(Input!$L$143*(1+pretaxreal)^0.5)/A1stdlife)) -> 0 | Q83: =IF(A1stdlife="n/a","n/a",IF(Q$3>(A1stdlife+$E83),(Input!$L$143*(1+pretaxreal)^0.5)-SUM($L83:P83),(Input!$L$143*(1+pretaxreal)^0.5)/A1stdlife)) -> 0 | R83: =IF(A1stdlife="n/a","n/a",IF(R$3>(A1stdlife+$E83),(Input!$L$143*(1+pretaxreal)^0.5)-SUM($L83:Q83),(Input!$L$143*(1+pretaxreal)^0.5)/A1stdlife)) -> 0 | S83: =IF(A1stdlife="n/a","n/a",IF(S$3>(A1stdlife+$E83),(Input!$L$143*(1+pretaxreal)^0.5)-SUM($L83:R83),(Input!$L$143*(1+pretaxreal)^0.5)/A1stdlife)) -> 0 | T83: =IF(A1stdlife="n/a","n/a",IF(T$3>(A1stdlife+$E83),(Input!$L$143*(1+pretaxreal)^0.5)-SUM($L83:S83),(Input!$L$143*(1+pretaxreal)^0.5)/A1stdlife)) -> 0 | U83: =IF(A1stdlife="n/a","n/a",IF(U$3>(A1stdlife+$E83),(Input!$L$143*(1+pretaxreal)^0.5)-SUM($L83:T83),(Input!$L$143*(1+pretaxreal)^0.5)/A1stdlife)) -> 0 | V83: =IF(A1stdlife="n/a","n/a",IF(V$3>(A1stdlife+$E83),(Input!$L$143*(1+pretaxreal)^0.5)-SUM($L83:U83),(Input!$L$143*(1+pretaxreal)^0.5)/A1stdlife)) -> 0 | W83: =IF(A1stdlife="n/a","n/a",IF(W$3>(A1stdlife+$E83),(Input!$L$143*(1+pretaxreal)^0.5)-SUM($L83:V83),(Input!$L$143*(1+pretaxreal)^0.5)/A1stdlife)) -> 0 | X83: =IF(A1stdlife="n/a","n/a",IF(X$3>(A1stdlife+$E83),(Input!$L$143*(1+pretaxreal)^0.5)-SUM($L83:W83),(Input!$L$143*(1+pretaxreal)^0.5)/A1stdlife)) -> 0 | Y83: =IF(A1stdlife="n/a","n/a",IF(Y$3>(A1stdlife+$E83),(Input!$L$143*(1+pretaxreal)^0.5)-SUM($L83:X83),(Input!$L$143*(1+pretaxreal)^0.5)/A1stdlife)) -> 0 | Z83: =IF(A1stdlife="n/a","n/a",IF(Z$3>(A1stdlife+$E83),(Input!$L$143*(1+pretaxreal)^0.5)-SUM($L83:Y83),(Input!$L$143*(1+pretaxreal)^0.5)/A1stdlife)) -> 0 | AA83: =IF(A1stdlife="n/a","n/a",IF(AA$3>(A1stdlife+$E83),(Input!$L$143*(1+pretaxreal)^0.5)-SUM($L83:Z83),(Input!$L$143*(1+pretaxreal)^0.5)/A1stdlife)) -> 0 | AB83: =IF(A1stdlife="n/a","n/a",IF(AB$3>(A1stdlife+$E83),(Input!$L$143*(1+pretaxreal)^0.5)-SUM($L83:AA83),(Input!$L$143*(1+pretaxreal)^0.5)/A1stdlife)) -> 0 | AC83: =IF(A1stdlife="n/a","n/a",IF(AC$3>(A1stdlife+$E83),(Input!$L$143*(1+pretaxreal)^0.5)-SUM($L83:AB83),(Input!$L$143*(1+pretaxreal)^0.5)/A1stdlife)) -> 0 | AD83: =IF(A1stdlife="n/a","n/a",IF(AD$3>(A1stdlife+$E83),(Input!$L$143*(1+pretaxreal)^0.5)-SUM($L83:AC83),(Input!$L$143*(1+pretaxreal)^0.5)/A1stdlife)) -> 0 | AE83: =IF(A1stdlife="n/a","n/a",IF(AE$3>(A1stdlife+$E83),(Input!$L$143*(1+pretaxreal)^0.5)-SUM($L83:AD83),(Input!$L$143*(1+pretaxreal)^0.5)/A1stdlife)) -> 0 | AF83: =IF(A1stdlife="n/a","n/a",IF(AF$3>(A1stdlife+$E83),(Input!$L$143*(1+pretaxreal)^0.5)-SUM($L83:AE83),(Input!$L$143*(1+pretaxreal)^0.5)/A1stdlife)) -> 0 | AG83: =IF(A1stdlife="n/a","n/a",IF(AG$3>(A1stdlife+$E83),(Input!$L$143*(1+pretaxreal)^0.5)-SUM($L83:AF83),(Input!$L$143*(1+pretaxreal)^0.5)/A1stdlife)) -> 0 | AH83: =IF(A1stdlife="n/a","n/a",IF(AH$3>(A1stdlife+$E83),(Input!$L$143*(1+pretaxreal)^0.5)-SUM($L83:AG83),(Input!$L$143*(1+pretaxreal)^0.5)/A1stdlife)) -> 0 | AI83: =IF(A1stdlife="n/a","n/a",IF(AI$3>(A1stdlife+$E83),(Input!$L$143*(1+pretaxreal)^0.5)-SUM($L83:AH83),(Input!$L$143*(1+pretaxreal)^0.5)/A1stdlife)) -> 0 | AJ83: =IF(A1stdlife="n/a","n/a",IF(AJ$3>(A1stdlife+$E83),(Input!$L$143*(1+pretaxreal)^0.5)-SUM($L83:AI83),(Input!$L$143*(1+pretaxreal)^0.5)/A1stdlife)) -> 0 | AK83: =IF(A1stdlife="n/a","n/a",IF(AK$3>(A1stdlife+$E83),(Input!$L$143*(1+pretaxreal)^0.5)-SUM($L83:AJ83),(Input!$L$143*(1+pretaxreal)^0.5)/A1stdlife)) -> 0 | AL83: =IF(A1stdlife="n/a","n/a",IF(AL$3>(A1stdlife+$E83),(Input!$L$143*(1+pretaxreal)^0.5)-SUM($L83:AK83),(Input!$L$143*(1+pretaxreal)^0.5)/A1stdlife)) -> 0 | AM83: =IF(A1stdlife="n/a","n/a",IF(AM$3>(A1stdlife+$E83),(Input!$L$143*(1+pretaxreal)^0.5)-SUM($L83:AL83),(Input!$L$143*(1+pretaxreal)^0.5)/A1stdlife)) -> 0 | AN83: =IF(A1stdlife="n/a","n/a",IF(AN$3>(A1stdlife+$E83),(Input!$L$143*(1+pretaxreal)^0.5)-SUM($L83:AM83),(Input!$L$143*(1+pretaxreal)^0.5)/A1stdlife)) -> 0 | AO83: =IF(A1stdlife="n/a","n/a",IF(AO$3>(A1stdlife+$E83),(Input!$L$143*(1+pretaxreal)^0.5)-SUM($L83:AN83),(Input!$L$143*(1+pretaxreal)^0.5)/A1stdlife)) -> 0 | AP83: =IF(A1stdlife="n/a","n/a",IF(AP$3>(A1stdlife+$E83),(Input!$L$143*(1+pretaxreal)^0.5)-SUM($L83:AO83),(Input!$L$143*(1+pretaxreal)^0.5)/A1stdlife)) -> 0 | AQ83: =IF(A1stdlife="n/a","n/a",IF(AQ$3>(A1stdlife+$E83),(Input!$L$143*(1+pretaxreal)^0.5)-SUM($L83:AP83),(Input!$L$143*(1+pretaxreal)^0.5)/A1stdlife)) -> 0 | AR83: =IF(A1stdlife="n/a","n/a",IF(AR$3>(A1stdlife+$E83),(Input!$L$143*(1+pretaxreal)^0.5)-SUM($L83:AQ83),(Input!$L$143*(1+pretaxreal)^0.5)/A1stdlife)) -> 0 | AS83: =IF(A1stdlife="n/a","n/a",IF(AS$3>(A1stdlife+$E83),(Input!$L$143*(1+pretaxreal)^0.5)-SUM($L83:AR83),(Input!$L$143*(1+pretaxreal)^0.5)/A1stdlife)) -> 0 | AT83: =IF(A1stdlife="n/a","n/a",IF(AT$3>(A1stdlife+$E83),(Input!$L$143*(1+pretaxreal)^0.5)-SUM($L83:AS83),(Input!$L$143*(1+pretaxreal)^0.5)/A1stdlife)) -> 0 | AU83: =IF(A1stdlife="n/a","n/a",IF(AU$3>(A1stdlife+$E83),(Input!$L$143*(1+pretaxreal)^0.5)-SUM($L83:AT83),(Input!$L$143*(1+pretaxreal)^0.5)/A1stdlife)) -> 0 | AV83: =IF(A1stdlife="n/a","n/a",IF(AV$3>(A1stdlife+$E83),(Input!$L$143*(1+pretaxreal)^0.5)-SUM($L83:AU83),(Input!$L$143*(1+pretaxreal)^0.5)/A1stdlife)) -> 0 | AW83: =IF(A1stdlife="n/a","n/a",IF(AW$3>(A1stdlife+$E83),(Input!$L$143*(1+pretaxreal)^0.5)-SUM($L83:AV83),(Input!$L$143*(1+pretaxreal)^0.5)/A1stdlife)) -> 0 | AX83: =IF(A1stdlife="n/a","n/a",IF(AX$3>(A1stdlife+$E83),(Input!$L$143*(1+pretaxreal)^0.5)-SUM($L83:AW83),(Input!$L$143*(1+pretaxreal)^0.5)/A1stdlife)) -> 0 | AY83: =IF(A1stdlife="n/a","n/a",IF(AY$3>(A1stdlife+$E83),(Input!$L$143*(1+pretaxreal)^0.5)-SUM($L83:AX83),(Input!$L$143*(1+pretaxreal)^0.5)/A1stdlife)) -> 0 | AZ83: =IF(A1stdlife="n/a","n/a",IF(AZ$3>(A1stdlife+$E83),(Input!$L$143*(1+pretaxreal)^0.5)-SUM($L83:AY83),(Input!$L$143*(1+pretaxreal)^0.5)/A1stdlife)) -> 0 | BA83: =IF(A1stdlife="n/a","n/a",IF(BA$3>(A1stdlife+$E83),(Input!$L$143*(1+pretaxreal)^0.5)-SUM($L83:AZ83),(Input!$L$143*(1+pretaxreal)^0.5)/A1stdlife)) -> 0 | BB83: =IF(A1stdlife="n/a","n/a",IF(BB$3>(A1stdlife+$E83),(Input!$L$143*(1+pretaxreal)^0.5)-SUM($L83:BA83),(Input!$L$143*(1+pretaxreal)^0.5)/A1stdlife)) -> 0 | BC83: =IF(A1stdlife="n/a","n/a",IF(BC$3>(A1stdlife+$E83),(Input!$L$143*(1+pretaxreal)^0.5)-SUM($L83:BB83),(Input!$L$143*(1+pretaxreal)^0.5)/A1stdlife)) -> 0 | BD83: =IF(A1stdlife="n/a","n/a",IF(BD$3>(A1stdlife+$E83),(Input!$L$143*(1+pretaxreal)^0.5)-SUM($L83:BC83),(Input!$L$143*(1+pretaxreal)^0.5)/A1stdlife)) -> 0 | BE83: =IF(A1stdlife="n/a","n/a",IF(BE$3>(A1stdlife+$E83),(Input!$L$143*(1+pretaxreal)^0.5)-SUM($L83:BD83),(Input!$L$143*(1+pretaxreal)^0.5)/A1stdlife)) -> 0 | BF83: =IF(A1stdlife="n/a","n/a",IF(BF$3>(A1stdlife+$E83),(Input!$L$143*(1+pretaxreal)^0.5)-SUM($L83:BE83),(Input!$L$143*(1+pretaxreal)^0.5)/A1stdlife)) -> 0 | BG83: =IF(A1stdlife="n/a","n/a",IF(BG$3>(A1stdlife+$E83),(Input!$L$143*(1+pretaxreal)^0.5)-SUM($L83:BF83),(Input!$L$143*(1+pretaxreal)^0.5)/A1stdlife)) -> 0 | BH83: =IF(A1stdlife="n/a","n/a",IF(BH$3>(A1stdlife+$E83),(Input!$L$143*(1+pretaxreal)^0.5)-SUM($L83:BG83),(Input!$L$143*(1+pretaxreal)^0.5)/A1stdlife)) -> 0 | BI83: =IF(A1stdlife="n/a","n/a",IF(BI$3>(A1stdlife+$E83),(Input!$L$143*(1+pretaxreal)^0.5)-SUM($L83:BH83),(Input!$L$143*(1+pretaxreal)^0.5)/A1stdlife)) -> 0
E84: 7 | N84: =IF(A1stdlife="n/a","n/a",IF(N$3>(A1stdlife+$E84),(Input!$M$143*(1+pretaxreal)^0.5)-SUM($M84:M84),(Input!$M$143*(1+pretaxreal)^0.5)/A1stdlife)) -> 0 | O84: =IF(A1stdlife="n/a","n/a",IF(O$3>(A1stdlife+$E84),(Input!$M$143*(1+pretaxreal)^0.5)-SUM($M84:N84),(Input!$M$143*(1+pretaxreal)^0.5)/A1stdlife)) -> 0 | P84: =IF(A1stdlife="n/a","n/a",IF(P$3>(A1stdlife+$E84),(Input!$M$143*(1+pretaxreal)^0.5)-SUM($M84:O84),(Input!$M$143*(1+pretaxreal)^0.5)/A1stdlife)) -> 0 | Q84: =IF(A1stdlife="n/a","n/a",IF(Q$3>(A1stdlife+$E84),(Input!$M$143*(1+pretaxreal)^0.5)-SUM($M84:P84),(Input!$M$143*(1+pretaxreal)^0.5)/A1stdlife)) -> 0 | R84: =IF(A1stdlife="n/a","n/a",IF(R$3>(A1stdlife+$E84),(Input!$M$143*(1+pretaxreal)^0.5)-SUM($M84:Q84),(Input!$M$143*(1+pretaxreal)^0.5)/A1stdlife)) -> 0 | S84: =IF(A1stdlife="n/a","n/a",IF(S$3>(A1stdlife+$E84),(Input!$M$143*(1+pretaxreal)^0.5)-SUM($M84:R84),(Input!$M$143*(1+pretaxreal)^0.5)/A1stdlife)) -> 0 | T84: =IF(A1stdlife="n/a","n/a",IF(T$3>(A1stdlife+$E84),(Input!$M$143*(1+pretaxreal)^0.5)-SUM($M84:S84),(Input!$M$143*(1+pretaxreal)^0.5)/A1stdlife)) -> 0 | U84: =IF(A1stdlife="n/a","n/a",IF(U$3>(A1stdlife+$E84),(Input!$M$143*(1+pretaxreal)^0.5)-SUM($M84:T84),(Input!$M$143*(1+pretaxreal)^0.5)/A1stdlife)) -> 0 | V84: =IF(A1stdlife="n/a","n/a",IF(V$3>(A1stdlife+$E84),(Input!$M$143*(1+pretaxreal)^0.5)-SUM($M84:U84),(Input!$M$143*(1+pretaxreal)^0.5)/A1stdlife)) -> 0 | W84: =IF(A1stdlife="n/a","n/a",IF(W$3>(A1stdlife+$E84),(Input!$M$143*(1+pretaxreal)^0.5)-SUM($M84:V84),(Input!$M$143*(1+pretaxreal)^0.5)/A1stdlife)) -> 0 | X84: =IF(A1stdlife="n/a","n/a",IF(X$3>(A1stdlife+$E84),(Input!$M$143*(1+pretaxreal)^0.5)-SUM($M84:W84),(Input!$M$143*(1+pretaxreal)^0.5)/A1stdlife)) -> 0 | Y84: =IF(A1stdlife="n/a","n/a",IF(Y$3>(A1stdlife+$E84),(Input!$M$143*(1+pretaxreal)^0.5)-SUM($M84:X84),(Input!$M$143*(1+pretaxreal)^0.5)/A1stdlife)) -> 0 | Z84: =IF(A1stdlife="n/a","n/a",IF(Z$3>(A1stdlife+$E84),(Input!$M$143*(1+pretaxreal)^0.5)-SUM($M84:Y84),(Input!$M$143*(1+pretaxreal)^0.5)/A1stdlife)) -> 0 | AA84: =IF(A1stdlife="n/a","n/a",IF(AA$3>(A1stdlife+$E84),(Input!$M$143*(1+pretaxreal)^0.5)-SUM($M84:Z84),(Input!$M$143*(1+pretaxreal)^0.5)/A1stdlife)) -> 0 | AB84: =IF(A1stdlife="n/a","n/a",IF(AB$3>(A1stdlife+$E84),(Input!$M$143*(1+pretaxreal)^0.5)-SUM($M84:AA84),(Input!$M$143*(1+pretaxreal)^0.5)/A1stdlife)) -> 0 | AC84: =IF(A1stdlife="n/a","n/a",IF(AC$3>(A1stdlife+$E84),(Input!$M$143*(1+pretaxreal)^0.5)-SUM($M84:AB84),(Input!$M$143*(1+pretaxreal)^0.5)/A1stdlife)) -> 0 | AD84: =IF(A1stdlife="n/a","n/a",IF(AD$3>(A1stdlife+$E84),(Input!$M$143*(1+pretaxreal)^0.5)-SUM($M84:AC84),(Input!$M$143*(1+pretaxreal)^0.5)/A1stdlife)) -> 0 | AE84: =IF(A1stdlife="n/a","n/a",IF(AE$3>(A1stdlife+$E84),(Input!$M$143*(1+pretaxreal)^0.5)-SUM($M84:AD84),(Input!$M$143*(1+pretaxreal)^0.5)/A1stdlife)) -> 0 | AF84: =IF(A1stdlife="n/a","n/a",IF(AF$3>(A1stdlife+$E84),(Input!$M$143*(1+pretaxreal)^0.5)-SUM($M84:AE84),(Input!$M$143*(1+pretaxreal)^0.5)/A1stdlife)) -> 0 | AG84: =IF(A1stdlife="n/a","n/a",IF(AG$3>(A1stdlife+$E84),(Input!$M$143*(1+pretaxreal)^0.5)-SUM($M84:AF84),(Input!$M$143*(1+pretaxreal)^0.5)/A1stdlife)) -> 0 | AH84: =IF(A1stdlife="n/a","n/a",IF(AH$3>(A1stdlife+$E84),(Input!$M$143*(1+pretaxreal)^0.5)-SUM($M84:AG84),(Input!$M$143*(1+pretaxreal)^0.5)/A1stdlife)) -> 0 | AI84: =IF(A1stdlife="n/a","n/a",IF(AI$3>(A1stdlife+$E84),(Input!$M$143*(1+pretaxreal)^0.5)-SUM($M84:AH84),(Input!$M$143*(1+pretaxreal)^0.5)/A1stdlife)) -> 0 | AJ84: =IF(A1stdlife="n/a","n/a",IF(AJ$3>(A1stdlife+$E84),(Input!$M$143*(1+pretaxreal)^0.5)-SUM($M84:AI84),(Input!$M$143*(1+pretaxreal)^0.5)/A1stdlife)) -> 0 | AK84: =IF(A1stdlife="n/a","n/a",IF(AK$3>(A1stdlife+$E84),(Input!$M$143*(1+pretaxreal)^0.5)-SUM($M84:AJ84),(Input!$M$143*(1+pretaxreal)^0.5)/A1stdlife)) -> 0 | AL84: =IF(A1stdlife="n/a","n/a",IF(AL$3>(A1stdlife+$E84),(Input!$M$143*(1+pretaxreal)^0.5)-SUM($M84:AK84),(Input!$M$143*(1+pretaxreal)^0.5)/A1stdlife)) -> 0 | AM84: =IF(A1stdlife="n/a","n/a",IF(AM$3>(A1stdlife+$E84),(Input!$M$143*(1+pretaxreal)^0.5)-SUM($M84:AL84),(Input!$M$143*(1+pretaxreal)^0.5)/A1stdlife)) -> 0 | AN84: =IF(A1stdlife="n/a","n/a",IF(AN$3>(A1stdlife+$E84),(Input!$M$143*(1+pretaxreal)^0.5)-SUM($M84:AM84),(Input!$M$143*(1+pretaxreal)^0.5)/A1stdlife)) -> 0 | AO84: =IF(A1stdlife="n/a","n/a",IF(AO$3>(A1stdlife+$E84),(Input!$M$143*(1+pretaxreal)^0.5)-SUM($M84:AN84),(Input!$M$143*(1+pretaxreal)^0.5)/A1stdlife)) -> 0 | AP84: =IF(A1stdlife="n/a","n/a",IF(AP$3>(A1stdlife+$E84),(Input!$M$143*(1+pretaxreal)^0.5)-SUM($M84:AO84),(Input!$M$143*(1+pretaxreal)^0.5)/A1stdlife)) -> 0 | AQ84: =IF(A1stdlife="n/a","n/a",IF(AQ$3>(A1stdlife+$E84),(Input!$M$143*(1+pretaxreal)^0.5)-SUM($M84:AP84),(Input!$M$143*(1+pretaxreal)^0.5)/A1stdlife)) -> 0 | AR84: =IF(A1stdlife="n/a","n/a",IF(AR$3>(A1stdlife+$E84),(Input!$M$143*(1+pretaxreal)^0.5)-SUM($M84:AQ84),(Input!$M$143*(1+pretaxreal)^0.5)/A1stdlife)) -> 0 | AS84: =IF(A1stdlife="n/a","n/a",IF(AS$3>(A1stdlife+$E84),(Input!$M$143*(1+pretaxreal)^0.5)-SUM($M84:AR84),(Input!$M$143*(1+pretaxreal)^0.5)/A1stdlife)) -> 0 | AT84: =IF(A1stdlife="n/a","n/a",IF(AT$3>(A1stdlife+$E84),(Input!$M$143*(1+pretaxreal)^0.5)-SUM($M84:AS84),(Input!$M$143*(1+pretaxreal)^0.5)/A1stdlife)) -> 0 | AU84: =IF(A1stdlife="n/a","n/a",IF(AU$3>(A1stdlife+$E84),(Input!$M$143*(1+pretaxreal)^0.5)-SUM($M84:AT84),(Input!$M$143*(1+pretaxreal)^0.5)/A1stdlife)) -> 0 | AV84: =IF(A1stdlife="n/a","n/a",IF(AV$3>(A1stdlife+$E84),(Input!$M$143*(1+pretaxreal)^0.5)-SUM($M84:AU84),(Input!$M$143*(1+pretaxreal)^0.5)/A1stdlife)) -> 0 | AW84: =IF(A1stdlife="n/a","n/a",IF(AW$3>(A1stdlife+$E84),(Input!$M$143*(1+pretaxreal)^0.5)-SUM($M84:AV84),(Input!$M$143*(1+pretaxreal)^0.5)/A1stdlife)) -> 0 | AX84: =IF(A1stdlife="n/a","n/a",IF(AX$3>(A1stdlife+$E84),(Input!$M$143*(1+pretaxreal)^0.5)-SUM($M84:AW84),(Input!$M$143*(1+pretaxreal)^0.5)/A1stdlife)) -> 0 | AY84: =IF(A1stdlife="n/a","n/a",IF(AY$3>(A1stdlife+$E84),(Input!$M$143*(1+pretaxreal)^0.5)-SUM($M84:AX84),(Input!$M$143*(1+pretaxreal)^0.5)/A1stdlife)) -> 0 | AZ84: =IF(A1stdlife="n/a","n/a",IF(AZ$3>(A1stdlife+$E84),(Input!$M$143*(1+pretaxreal)^0.5)-SUM($M84:AY84),(Input!$M$143*(1+pretaxreal)^0.5)/A1stdlife)) -> 0 | BA84: =IF(A1stdlife="n/a","n/a",IF(BA$3>(A1stdlife+$E84),(Input!$M$143*(1+pretaxreal)^0.5)-SUM($M84:AZ84),(Input!$M$143*(1+pretaxreal)^0.5)/A1stdlife)) -> 0 | BB84: =IF(A1stdlife="n/a","n/a",IF(BB$3>(A1stdlife+$E84),(Input!$M$143*(1+pretaxreal)^0.5)-SUM($M84:BA84),(Input!$M$143*(1+pretaxreal)^0.5)/A1stdlife)) -> 0 | BC84: =IF(A1stdlife="n/a","n/a",IF(BC$3>(A1stdlife+$E84),(Input!$M$143*(1+pretaxreal)^0.5)-SUM($M84:BB84),(Input!$M$143*(1+pretaxreal)^0.5)/A1stdlife)) -> 0 | BD84: =IF(A1stdlife="n/a","n/a",IF(BD$3>(A1stdlife+$E84),(Input!$M$143*(1+pretaxreal)^0.5)-SUM($M84:BC84),(Input!$M$143*(1+pretaxreal)^0.5)/A1stdlife)) -> 0 | BE84: =IF(A1stdlife="n/a","n/a",IF(BE$3>(A1stdlife+$E84),(Input!$M$143*(1+pretaxreal)^0.5)-SUM($M84:BD84),(Input!$M$143*(1+pretaxreal)^0.5)/A1stdlife)) -> 0 | BF84: =IF(A1stdlife="n/a","n/a",IF(BF$3>(A1stdlife+$E84),(Input!$M$143*(1+pretaxreal)^0.5)-SUM($M84:BE84),(Input!$M$143*(1+pretaxreal)^0.5)/A1stdlife)) -> 0 | BG84: =IF(A1stdlife="n/a","n/a",IF(BG$3>(A1stdlife+$E84),(Input!$M$143*(1+pretaxreal)^0.5)-SUM($M84:BF84),(Input!$M$143*(1+pretaxreal)^0.5)/A1stdlife)) -> 0 | BH84: =IF(A1stdlife="n/a","n/a",IF(BH$3>(A1stdlife+$E84),(Input!$M$143*(1+pretaxreal)^0.5)-SUM($M84:BG84),(Input!$M$143*(1+pretaxreal)^0.5)/A1stdlife)) -> 0 | BI84: =IF(A1stdlife="n/a","n/a",IF(BI$3>(A1stdlife+$E84),(Input!$M$143*(1+pretaxreal)^0.5)-SUM($M84:BH84),(Input!$M$143*(1+pretaxreal)^0.5)/A1stdlife)) -> 0
E85: 8 | O85: =IF(A1stdlife="n/a","n/a",IF(O$3>(A1stdlife+$E85),(Input!$N$143*(1+pretaxreal)^0.5)-SUM($N85:N85),(Input!$N$143*(1+pretaxreal)^0.5)/A1stdlife)) -> 0 | P85: =IF(A1stdlife="n/a","n/a",IF(P$3>(A1stdlife+$E85),(Input!$N$143*(1+pretaxreal)^0.5)-SUM($N85:O85),(Input!$N$143*(1+pretaxreal)^0.5)/A1stdlife)) -> 0 | Q85: =IF(A1stdlife="n/a","n/a",IF(Q$3>(A1stdlife+$E85),(Input!$N$143*(1+pretaxreal)^0.5)-SUM($N85:P85),(Input!$N$143*(1+pretaxreal)^0.5)/A1stdlife)) -> 0 | R85: =IF(A1stdlife="n/a","n/a",IF(R$3>(A1stdlife+$E85),(Input!$N$143*(1+pretaxreal)^0.5)-SUM($N85:Q85),(Input!$N$143*(1+pretaxreal)^0.5)/A1stdlife)) -> 0 | S85: =IF(A1stdlife="n/a","n/a",IF(S$3>(A1stdlife+$E85),(Input!$N$143*(1+pretaxreal)^0.5)-SUM($N85:R85),(Input!$N$143*(1+pretaxreal)^0.5)/A1stdlife)) -> 0 | T85: =IF(A1stdlife="n/a","n/a",IF(T$3>(A1stdlife+$E85),(Input!$N$143*(1+pretaxreal)^0.5)-SUM($N85:S85),(Input!$N$143*(1+pretaxreal)^0.5)/A1stdlife)) -> 0 | U85: =IF(A1stdlife="n/a","n/a",IF(U$3>(A1stdlife+$E85),(Input!$N$143*(1+pretaxreal)^0.5)-SUM($N85:T85),(Input!$N$143*(1+pretaxreal)^0.5)/A1stdlife)) -> 0 | V85: =IF(A1stdlife="n/a","n/a",IF(V$3>(A1stdlife+$E85),(Input!$N$143*(1+pretaxreal)^0.5)-SUM($N85:U85),(Input!$N$143*(1+pretaxreal)^0.5)/A1stdlife)) -> 0 | W85: =IF(A1stdlife="n/a","n/a",IF(W$3>(A1stdlife+$E85),(Input!$N$143*(1+pretaxreal)^0.5)-SUM($N85:V85),(Input!$N$143*(1+pretaxreal)^0.5)/A1stdlife)) -> 0 | X85: =IF(A1stdlife="n/a","n/a",IF(X$3>(A1stdlife+$E85),(Input!$N$143*(1+pretaxreal)^0.5)-SUM($N85:W85),(Input!$N$143*(1+pretaxreal)^0.5)/A1stdlife)) -> 0 | Y85: =IF(A1stdlife="n/a","n/a",IF(Y$3>(A1stdlife+$E85),(Input!$N$143*(1+pretaxreal)^0.5)-SUM($N85:X85),(Input!$N$143*(1+pretaxreal)^0.5)/A1stdlife)) -> 0 | Z85: =IF(A1stdlife="n/a","n/a",IF(Z$3>(A1stdlife+$E85),(Input!$N$143*(1+pretaxreal)^0.5)-SUM($N85:Y85),(Input!$N$143*(1+pretaxreal)^0.5)/A1stdlife)) -> 0 | AA85: =IF(A1stdlife="n/a","n/a",IF(AA$3>(A1stdlife+$E85),(Input!$N$143*(1+pretaxreal)^0.5)-SUM($N85:Z85),(Input!$N$143*(1+pretaxreal)^0.5)/A1stdlife)) -> 0 | AB85: =IF(A1stdlife="n/a","n/a",IF(AB$3>(A1stdlife+$E85),(Input!$N$143*(1+pretaxreal)^0.5)-SUM($N85:AA85),(Input!$N$143*(1+pretaxreal)^0.5)/A1stdlife)) -> 0 | AC85: =IF(A1stdlife="n/a","n/a",IF(AC$3>(A1stdlife+$E85),(Input!$N$143*(1+pretaxreal)^0.5)-SUM($N85:AB85),(Input!$N$143*(1+pretaxreal)^0.5)/A1stdlife)) -> 0 | AD85: =IF(A1stdlife="n/a","n/a",IF(AD$3>(A1stdlife+$E85),(Input!$N$143*(1+pretaxreal)^0.5)-SUM($N85:AC85),(Input!$N$143*(1+pretaxreal)^0.5)/A1stdlife)) -> 0 | AE85: =IF(A1stdlife="n/a","n/a",IF(AE$3>(A1stdlife+$E85),(Input!$N$143*(1+pretaxreal)^0.5)-SUM($N85:AD85),(Input!$N$143*(1+pretaxreal)^0.5)/A1stdlife)) -> 0 | AF85: =IF(A1stdlife="n/a","n/a",IF(AF$3>(A1stdlife+$E85),(Input!$N$143*(1+pretaxreal)^0.5)-SUM($N85:AE85),(Input!$N$143*(1+pretaxreal)^0.5)/A1stdlife)) -> 0 | AG85: =IF(A1stdlife="n/a","n/a",IF(AG$3>(A1stdlife+$E85),(Input!$N$143*(1+pretaxreal)^0.5)-SUM($N85:AF85),(Input!$N$143*(1+pretaxreal)^0.5)/A1stdlife)) -> 0 | AH85: =IF(A1stdlife="n/a","n/a",IF(AH$3>(A1stdlife+$E85),(Input!$N$143*(1+pretaxreal)^0.5)-SUM($N85:AG85),(Input!$N$143*(1+pretaxreal)^0.5)/A1stdlife)) -> 0 | AI85: =IF(A1stdlife="n/a","n/a",IF(AI$3>(A1stdlife+$E85),(Input!$N$143*(1+pretaxreal)^0.5)-SUM($N85:AH85),(Input!$N$143*(1+pretaxreal)^0.5)/A1stdlife)) -> 0 | AJ85: =IF(A1stdlife="n/a","n/a",IF(AJ$3>(A1stdlife+$E85),(Input!$N$143*(1+pretaxreal)^0.5)-SUM($N85:AI85),(Input!$N$143*(1+pretaxreal)^0.5)/A1stdlife)) -> 0 | AK85: =IF(A1stdlife="n/a","n/a",IF(AK$3>(A1stdlife+$E85),(Input!$N$143*(1+pretaxreal)^0.5)-SUM($N85:AJ85),(Input!$N$143*(1+pretaxreal)^0.5)/A1stdlife)) -> 0 | AL85: =IF(A1stdlife="n/a","n/a",IF(AL$3>(A1stdlife+$E85),(Input!$N$143*(1+pretaxreal)^0.5)-SUM($N85:AK85),(Input!$N$143*(1+pretaxreal)^0.5)/A1stdlife)) -> 0 | AM85: =IF(A1stdlife="n/a","n/a",IF(AM$3>(A1stdlife+$E85),(Input!$N$143*(1+pretaxreal)^0.5)-SUM($N85:AL85),(Input!$N$143*(1+pretaxreal)^0.5)/A1stdlife)) -> 0 | AN85: =IF(A1stdlife="n/a","n/a",IF(AN$3>(A1stdlife+$E85),(Input!$N$143*(1+pretaxreal)^0.5)-SUM($N85:AM85),(Input!$N$143*(1+pretaxreal)^0.5)/A1stdlife)) -> 0 | AO85: =IF(A1stdlife="n/a","n/a",IF(AO$3>(A1stdlife+$E85),(Input!$N$143*(1+pretaxreal)^0.5)-SUM($N85:AN85),(Input!$N$143*(1+pretaxreal)^0.5)/A1stdlife)) -> 0 | AP85: =IF(A1stdlife="n/a","n/a",IF(AP$3>(A1stdlife+$E85),(Input!$N$143*(1+pretaxreal)^0.5)-SUM($N85:AO85),(Input!$N$143*(1+pretaxreal)^0.5)/A1stdlife)) -> 0 | AQ85: =IF(A1stdlife="n/a","n/a",IF(AQ$3>(A1stdlife+$E85),(Input!$N$143*(1+pretaxreal)^0.5)-SUM($N85:AP85),(Input!$N$143*(1+pretaxreal)^0.5)/A1stdlife)) -> 0 | AR85: =IF(A1stdlife="n/a","n/a",IF(AR$3>(A1stdlife+$E85),(Input!$N$143*(1+pretaxreal)^0.5)-SUM($N85:AQ85),(Input!$N$143*(1+pretaxreal)^0.5)/A1stdlife)) -> 0 | AS85: =IF(A1stdlife="n/a","n/a",IF(AS$3>(A1stdlife+$E85),(Input!$N$143*(1+pretaxreal)^0.5)-SUM($N85:AR85),(Input!$N$143*(1+pretaxreal)^0.5)/A1stdlife)) -> 0 | AT85: =IF(A1stdlife="n/a","n/a",IF(AT$3>(A1stdlife+$E85),(Input!$N$143*(1+pretaxreal)^0.5)-SUM($N85:AS85),(Input!$N$143*(1+pretaxreal)^0.5)/A1stdlife)) -> 0 | AU85: =IF(A1stdlife="n/a","n/a",IF(AU$3>(A1stdlife+$E85),(Input!$N$143*(1+pretaxreal)^0.5)-SUM($N85:AT85),(Input!$N$143*(1+pretaxreal)^0.5)/A1stdlife)) -> 0 | AV85: =IF(A1stdlife="n/a","n/a",IF(AV$3>(A1stdlife+$E85),(Input!$N$143*(1+pretaxreal)^0.5)-SUM($N85:AU85),(Input!$N$143*(1+pretaxreal)^0.5)/A1stdlife)) -> 0 | AW85: =IF(A1stdlife="n/a","n/a",IF(AW$3>(A1stdlife+$E85),(Input!$N$143*(1+pretaxreal)^0.5)-SUM($N85:AV85),(Input!$N$143*(1+pretaxreal)^0.5)/A1stdlife)) -> 0 | AX85: =IF(A1stdlife="n/a","n/a",IF(AX$3>(A1stdlife+$E85),(Input!$N$143*(1+pretaxreal)^0.5)-SUM($N85:AW85),(Input!$N$143*(1+pretaxreal)^0.5)/A1stdlife)) -> 0 | AY85: =IF(A1stdlife="n/a","n/a",IF(AY$3>(A1stdlife+$E85),(Input!$N$143*(1+pretaxreal)^0.5)-SUM($N85:AX85),(Input!$N$143*(1+pretaxreal)^0.5)/A1stdlife)) -> 0 | AZ85: =IF(A1stdlife="n/a","n/a",IF(AZ$3>(A1stdlife+$E85),(Input!$N$143*(1+pretaxreal)^0.5)-SUM($N85:AY85),(Input!$N$143*(1+pretaxreal)^0.5)/A1stdlife)) -> 0 | BA85: =IF(A1stdlife="n/a","n/a",IF(BA$3>(A1stdlife+$E85),(Input!$N$143*(1+pretaxreal)^0.5)-SUM($N85:AZ85),(Input!$N$143*(1+pretaxreal)^0.5)/A1stdlife)) -> 0 | BB85: =IF(A1stdlife="n/a","n/a",IF(BB$3>(A1stdlife+$E85),(Input!$N$143*(1+pretaxreal)^0.5)-SUM($N85:BA85),(Input!$N$143*(1+pretaxreal)^0.5)/A1stdlife)) -> 0 | BC85: =IF(A1stdlife="n/a","n/a",IF(BC$3>(A1stdlife+$E85),(Input!$N$143*(1+pretaxreal)^0.5)-SUM($N85:BB85),(Input!$N$143*(1+pretaxreal)^0.5)/A1stdlife)) -> 0 | BD85: =IF(A1stdlife="n/a","n/a",IF(BD$3>(A1stdlife+$E85),(Input!$N$143*(1+pretaxreal)^0.5)-SUM($N85:BC85),(Input!$N$143*(1+pretaxreal)^0.5)/A1stdlife)) -> 0 | BE85: =IF(A1stdlife="n/a","n/a",IF(BE$3>(A1stdlife+$E85),(Input!$N$143*(1+pretaxreal)^0.5)-SUM($N85:BD85),(Input!$N$143*(1+pretaxreal)^0.5)/A1stdlife)) -> 0 | BF85: =IF(A1stdlife="n/a","n/a",IF(BF$3>(A1stdlife+$E85),(Input!$N$143*(1+pretaxreal)^0.5)-SUM($N85:BE85),(Input!$N$143*(1+pretaxreal)^0.5)/A1stdlife)) -> 0 | BG85: =IF(A1stdlife="n/a","n/a",IF(BG$3>(A1stdlife+$E85),(Input!$N$143*(1+pretaxreal)^0.5)-SUM($N85:BF85),(Input!$N$143*(1+pretaxreal)^0.5)/A1stdlife)) -> 0 | BH85: =IF(A1stdlife="n/a","n/a",IF(BH$3>(A1stdlife+$E85),(Input!$N$143*(1+pretaxreal)^0.5)-SUM($N85:BG85),(Input!$N$143*(1+pretaxreal)^0.5)/A1stdlife)) -> 0 | BI85: =IF(A1stdlife="n/a","n/a",IF(BI$3>(A1stdlife+$E85),(Input!$N$143*(1+pretaxreal)^0.5)-SUM($N85:BH85),(Input!$N$143*(1+pretaxreal)^0.5)/A1stdlife)) -> 0
E86: 9 | P86: =IF(A1stdlife="n/a","n/a",IF(P$3>(A1stdlife+$E86),(Input!$O$143*(1+pretaxreal)^0.5)-SUM($O86:O86),(Input!$O$143*(1+pretaxreal)^0.5)/A1stdlife)) -> 0 | Q86: =IF(A1stdlife="n/a","n/a",IF(Q$3>(A1stdlife+$E86),(Input!$O$143*(1+pretaxreal)^0.5)-SUM($O86:P86),(Input!$O$143*(1+pretaxreal)^0.5)/A1stdlife)) -> 0 | R86: =IF(A1stdlife="n/a","n/a",IF(R$3>(A1stdlife+$E86),(Input!$O$143*(1+pretaxreal)^0.5)-SUM($O86:Q86),(Input!$O$143*(1+pretaxreal)^0.5)/A1stdlife)) -> 0 | S86: =IF(A1stdlife="n/a","n/a",IF(S$3>(A1stdlife+$E86),(Input!$O$143*(1+pretaxreal)^0.5)-SUM($O86:R86),(Input!$O$143*(1+pretaxreal)^0.5)/A1stdlife)) -> 0 | T86: =IF(A1stdlife="n/a","n/a",IF(T$3>(A1stdlife+$E86),(Input!$O$143*(1+pretaxreal)^0.5)-SUM($O86:S86),(Input!$O$143*(1+pretaxreal)^0.5)/A1stdlife)) -> 0 | U86: =IF(A1stdlife="n/a","n/a",IF(U$3>(A1stdlife+$E86),(Input!$O$143*(1+pretaxreal)^0.5)-SUM($O86:T86),(Input!$O$143*(1+pretaxreal)^0.5)/A1stdlife)) -> 0 | V86: =IF(A1stdlife="n/a","n/a",IF(V$3>(A1stdlife+$E86),(Input!$O$143*(1+pretaxreal)^0.5)-SUM($O86:U86),(Input!$O$143*(1+pretaxreal)^0.5)/A1stdlife)) -> 0 | W86: =IF(A1stdlife="n/a","n/a",IF(W$3>(A1stdlife+$E86),(Input!$O$143*(1+pretaxreal)^0.5)-SUM($O86:V86),(Input!$O$143*(1+pretaxreal)^0.5)/A1stdlife)) -> 0 | X86: =IF(A1stdlife="n/a","n/a",IF(X$3>(A1stdlife+$E86),(Input!$O$143*(1+pretaxreal)^0.5)-SUM($O86:W86),(Input!$O$143*(1+pretaxreal)^0.5)/A1stdlife)) -> 0 | Y86: =IF(A1stdlife="n/a","n/a",IF(Y$3>(A1stdlife+$E86),(Input!$O$143*(1+pretaxreal)^0.5)-SUM($O86:X86),(Input!$O$143*(1+pretaxreal)^0.5)/A1stdlife)) -> 0 | Z86: =IF(A1stdlife="n/a","n/a",IF(Z$3>(A1stdlife+$E86),(Input!$O$143*(1+pretaxreal)^0.5)-SUM($O86:Y86),(Input!$O$143*(1+pretaxreal)^0.5)/A1stdlife)) -> 0 | AA86: =IF(A1stdlife="n/a","n/a",IF(AA$3>(A1stdlife+$E86),(Input!$O$143*(1+pretaxreal)^0.5)-SUM($O86:Z86),(Input!$O$143*(1+pretaxreal)^0.5)/A1stdlife)) -> 0 | AB86: =IF(A1stdlife="n/a","n/a",IF(AB$3>(A1stdlife+$E86),(Input!$O$143*(1+pretaxreal)^0.5)-SUM($O86:AA86),(Input!$O$143*(1+pretaxreal)^0.5)/A1stdlife)) -> 0 | AC86: =IF(A1stdlife="n/a","n/a",IF(AC$3>(A1stdlife+$E86),(Input!$O$143*(1+pretaxreal)^0.5)-SUM($O86:AB86),(Input!$O$143*(1+pretaxreal)^0.5)/A1stdlife)) -> 0 | AD86: =IF(A1stdlife="n/a","n/a",IF(AD$3>(A1stdlife+$E86),(Input!$O$143*(1+pretaxreal)^0.5)-SUM($O86:AC86),(Input!$O$143*(1+pretaxreal)^0.5)/A1stdlife)) -> 0 | AE86: =IF(A1stdlife="n/a","n/a",IF(AE$3>(A1stdlife+$E86),(Input!$O$143*(1+pretaxreal)^0.5)-SUM($O86:AD86),(Input!$O$143*(1+pretaxreal)^0.5)/A1stdlife)) -> 0 | AF86: =IF(A1stdlife="n/a","n/a",IF(AF$3>(A1stdlife+$E86),(Input!$O$143*(1+pretaxreal)^0.5)-SUM($O86:AE86),(Input!$O$143*(1+pretaxreal)^0.5)/A1stdlife)) -> 0 | AG86: =IF(A1stdlife="n/a","n/a",IF(AG$3>(A1stdlife+$E86),(Input!$O$143*(1+pretaxreal)^0.5)-SUM($O86:AF86),(Input!$O$143*(1+pretaxreal)^0.5)/A1stdlife)) -> 0 | AH86: =IF(A1stdlife="n/a","n/a",IF(AH$3>(A1stdlife+$E86),(Input!$O$143*(1+pretaxreal)^0.5)-SUM($O86:AG86),(Input!$O$143*(1+pretaxreal)^0.5)/A1stdlife)) -> 0 | AI86: =IF(A1stdlife="n/a","n/a",IF(AI$3>(A1stdlife+$E86),(Input!$O$143*(1+pretaxreal)^0.5)-SUM($O86:AH86),(Input!$O$143*(1+pretaxreal)^0.5)/A1stdlife)) -> 0 | AJ86: =IF(A1stdlife="n/a","n/a",IF(AJ$3>(A1stdlife+$E86),(Input!$O$143*(1+pretaxreal)^0.5)-SUM($O86:AI86),(Input!$O$143*(1+pretaxreal)^0.5)/A1stdlife)) -> 0 | AK86: =IF(A1stdlife="n/a","n/a",IF(AK$3>(A1stdlife+$E86),(Input!$O$143*(1+pretaxreal)^0.5)-SUM($O86:AJ86),(Input!$O$143*(1+pretaxreal)^0.5)/A1stdlife)) -> 0 | AL86: =IF(A1stdlife="n/a","n/a",IF(AL$3>(A1stdlife+$E86),(Input!$O$143*(1+pretaxreal)^0.5)-SUM($O86:AK86),(Input!$O$143*(1+pretaxreal)^0.5)/A1stdlife)) -> 0 | AM86: =IF(A1stdlife="n/a","n/a",IF(AM$3>(A1stdlife+$E86),(Input!$O$143*(1+pretaxreal)^0.5)-SUM($O86:AL86),(Input!$O$143*(1+pretaxreal)^0.5)/A1stdlife)) -> 0 | AN86: =IF(A1stdlife="n/a","n/a",IF(AN$3>(A1stdlife+$E86),(Input!$O$143*(1+pretaxreal)^0.5)-SUM($O86:AM86),(Input!$O$143*(1+pretaxreal)^0.5)/A1stdlife)) -> 0 | AO86: =IF(A1stdlife="n/a","n/a",IF(AO$3>(A1stdlife+$E86),(Input!$O$143*(1+pretaxreal)^0.5)-SUM($O86:AN86),(Input!$O$143*(1+pretaxreal)^0.5)/A1stdlife)) -> 0 | AP86: =IF(A1stdlife="n/a","n/a",IF(AP$3>(A1stdlife+$E86),(Input!$O$143*(1+pretaxreal)^0.5)-SUM($O86:AO86),(Input!$O$143*(1+pretaxreal)^0.5)/A1stdlife)) -> 0 | AQ86: =IF(A1stdlife="n/a","n/a",IF(AQ$3>(A1stdlife+$E86),(Input!$O$143*(1+pretaxreal)^0.5)-SUM($O86:AP86),(Input!$O$143*(1+pretaxreal)^0.5)/A1stdlife)) -> 0 | AR86: =IF(A1stdlife="n/a","n/a",IF(AR$3>(A1stdlife+$E86),(Input!$O$143*(1+pretaxreal)^0.5)-SUM($O86:AQ86),(Input!$O$143*(1+pretaxreal)^0.5)/A1stdlife)) -> 0 | AS86: =IF(A1stdlife="n/a","n/a",IF(AS$3>(A1stdlife+$E86),(Input!$O$143*(1+pretaxreal)^0.5)-SUM($O86:AR86),(Input!$O$143*(1+pretaxreal)^0.5)/A1stdlife)) -> 0 | AT86: =IF(A1stdlife="n/a","n/a",IF(AT$3>(A1stdlife+$E86),(Input!$O$143*(1+pretaxreal)^0.5)-SUM($O86:AS86),(Input!$O$143*(1+pretaxreal)^0.5)/A1stdlife)) -> 0 | AU86: =IF(A1stdlife="n/a","n/a",IF(AU$3>(A1stdlife+$E86),(Input!$O$143*(1+pretaxreal)^0.5)-SUM($O86:AT86),(Input!$O$143*(1+pretaxreal)^0.5)/A1stdlife)) -> 0 | AV86: =IF(A1stdlife="n/a","n/a",IF(AV$3>(A1stdlife+$E86),(Input!$O$143*(1+pretaxreal)^0.5)-SUM($O86:AU86),(Input!$O$143*(1+pretaxreal)^0.5)/A1stdlife)) -> 0 | AW86: =IF(A1stdlife="n/a","n/a",IF(AW$3>(A1stdlife+$E86),(Input!$O$143*(1+pretaxreal)^0.5)-SUM($O86:AV86),(Input!$O$143*(1+pretaxreal)^0.5)/A1stdlife)) -> 0 | AX86: =IF(A1stdlife="n/a","n/a",IF(AX$3>(A1stdlife+$E86),(Input!$O$143*(1+pretaxreal)^0.5)-SUM($O86:AW86),(Input!$O$143*(1+pretaxreal)^0.5)/A1stdlife)) -> 0 | AY86: =IF(A1stdlife="n/a","n/a",IF(AY$3>(A1stdlife+$E86),(Input!$O$143*(1+pretaxreal)^0.5)-SUM($O86:AX86),(Input!$O$143*(1+pretaxreal)^0.5)/A1stdlife)) -> 0 | AZ86: =IF(A1stdlife="n/a","n/a",IF(AZ$3>(A1stdlife+$E86),(Input!$O$143*(1+pretaxreal)^0.5)-SUM($O86:AY86),(Input!$O$143*(1+pretaxreal)^0.5)/A1stdlife)) -> 0 | BA86: =IF(A1stdlife="n/a","n/a",IF(BA$3>(A1stdlife+$E86),(Input!$O$143*(1+pretaxreal)^0.5)-SUM($O86:AZ86),(Input!$O$143*(1+pretaxreal)^0.5)/A1stdlife)) -> 0 | BB86: =IF(A1stdlife="n/a","n/a",IF(BB$3>(A1stdlife+$E86),(Input!$O$143*(1+pretaxreal)^0.5)-SUM($O86:BA86),(Input!$O$143*(1+pretaxreal)^0.5)/A1stdlife)) -> 0 | BC86: =IF(A1stdlife="n/a","n/a",IF(BC$3>(A1stdlife+$E86),(Input!$O$143*(1+pretaxreal)^0.5)-SUM($O86:BB86),(Input!$O$143*(1+pretaxreal)^0.5)/A1stdlife)) -> 0 | BD86: =IF(A1stdlife="n/a","n/a",IF(BD$3>(A1stdlife+$E86),(Input!$O$143*(1+pretaxreal)^0.5)-SUM($O86:BC86),(Input!$O$143*(1+pretaxreal)^0.5)/A1stdlife)) -> 0 | BE86: =IF(A1stdlife="n/a","n/a",IF(BE$3>(A1stdlife+$E86),(Input!$O$143*(1+pretaxreal)^0.5)-SUM($O86:BD86),(Input!$O$143*(1+pretaxreal)^0.5)/A1stdlife)) -> 0 | BF86: =IF(A1stdlife="n/a","n/a",IF(BF$3>(A1stdlife+$E86),(Input!$O$143*(1+pretaxreal)^0.5)-SUM($O86:BE86),(Input!$O$143*(1+pretaxreal)^0.5)/A1stdlife)) -> 0 | BG86: =IF(A1stdlife="n/a","n/a",IF(BG$3>(A1stdlife+$E86),(Input!$O$143*(1+pretaxreal)^0.5)-SUM($O86:BF86),(Input!$O$143*(1+pretaxreal)^0.5)/A1stdlife)) -> 0 | BH86: =IF(A1stdlife="n/a","n/a",IF(BH$3>(A1stdlife+$E86),(Input!$O$143*(1+pretaxreal)^0.5)-SUM($O86:BG86),(Input!$O$143*(1+pretaxreal)^0.5)/A1stdlife)) -> 0 | BI86: =IF(A1stdlife="n/a","n/a",IF(BI$3>(A1stdlife+$E86),(Input!$O$143*(1+pretaxreal)^0.5)-SUM($O86:BH86),(Input!$O$143*(1+pretaxreal)^0.5)/A1stdlife)) -> 0
E87: 10 | Q87: =IF(A1stdlife="n/a","n/a",IF(Q$3>(A1stdlife+$E87),(Input!$P$143*(1+pretaxreal)^0.5)-SUM($P87:P87),(Input!$P$143*(1+pretaxreal)^0.5)/A1stdlife)) -> 0 | R87: =IF(A1stdlife="n/a","n/a",IF(R$3>(A1stdlife+$E87),(Input!$P$143*(1+pretaxreal)^0.5)-SUM($P87:Q87),(Input!$P$143*(1+pretaxreal)^0.5)/A1stdlife)) -> 0 | S87: =IF(A1stdlife="n/a","n/a",IF(S$3>(A1stdlife+$E87),(Input!$P$143*(1+pretaxreal)^0.5)-SUM($P87:R87),(Input!$P$143*(1+pretaxreal)^0.5)/A1stdlife)) -> 0 | T87: =IF(A1stdlife="n/a","n/a",IF(T$3>(A1stdlife+$E87),(Input!$P$143*(1+pretaxreal)^0.5)-SUM($P87:S87),(Input!$P$143*(1+pretaxreal)^0.5)/A1stdlife)) -> 0 | U87: =IF(A1stdlife="n/a","n/a",IF(U$3>(A1stdlife+$E87),(Input!$P$143*(1+pretaxreal)^0.5)-SUM($P87:T87),(Input!$P$143*(1+pretaxreal)^0.5)/A1stdlife)) -> 0 | V87: =IF(A1stdlife="n/a","n/a",IF(V$3>(A1stdlife+$E87),(Input!$P$143*(1+pretaxreal)^0.5)-SUM($P87:U87),(Input!$P$143*(1+pretaxreal)^0.5)/A1stdlife)) -> 0 | W87: =IF(A1stdlife="n/a","n/a",IF(W$3>(A1stdlife+$E87),(Input!$P$143*(1+pretaxreal)^0.5)-SUM($P87:V87),(Input!$P$143*(1+pretaxreal)^0.5)/A1stdlife)) -> 0 | X87: =IF(A1stdlife="n/a","n/a",IF(X$3>(A1stdlife+$E87),(Input!$P$143*(1+pretaxreal)^0.5)-SUM($P87:W87),(Input!$P$143*(1+pretaxreal)^0.5)/A1stdlife)) -> 0 | Y87: =IF(A1stdlife="n/a","n/a",IF(Y$3>(A1stdlife+$E87),(Input!$P$143*(1+pretaxreal)^0.5)-SUM($P87:X87),(Input!$P$143*(1+pretaxreal)^0.5)/A1stdlife)) -> 0 | Z87: =IF(A1stdlife="n/a","n/a",IF(Z$3>(A1stdlife+$E87),(Input!$P$143*(1+pretaxreal)^0.5)-SUM($P87:Y87),(Input!$P$143*(1+pretaxreal)^0.5)/A1stdlife)) -> 0 | AA87: =IF(A1stdlife="n/a","n/a",IF(AA$3>(A1stdlife+$E87),(Input!$P$143*(1+pretaxreal)^0.5)-SUM($P87:Z87),(Input!$P$143*(1+pretaxreal)^0.5)/A1stdlife)) -> 0 | AB87: =IF(A1stdlife="n/a","n/a",IF(AB$3>(A1stdlife+$E87),(Input!$P$143*(1+pretaxreal)^0.5)-SUM($P87:AA87),(Input!$P$143*(1+pretaxreal)^0.5)/A1stdlife)) -> 0 | AC87: =IF(A1stdlife="n/a","n/a",IF(AC$3>(A1stdlife+$E87),(Input!$P$143*(1+pretaxreal)^0.5)-SUM($P87:AB87),(Input!$P$143*(1+pretaxreal)^0.5)/A1stdlife)) -> 0 | AD87: =IF(A1stdlife="n/a","n/a",IF(AD$3>(A1stdlife+$E87),(Input!$P$143*(1+pretaxreal)^0.5)-SUM($P87:AC87),(Input!$P$143*(1+pretaxreal)^0.5)/A1stdlife)) -> 0 | AE87: =IF(A1stdlife="n/a","n/a",IF(AE$3>(A1stdlife+$E87),(Input!$P$143*(1+pretaxreal)^0.5)-SUM($P87:AD87),(Input!$P$143*(1+pretaxreal)^0.5)/A1stdlife)) -> 0 | AF87: =IF(A1stdlife="n/a","n/a",IF(AF$3>(A1stdlife+$E87),(Input!$P$143*(1+pretaxreal)^0.5)-SUM($P87:AE87),(Input!$P$143*(1+pretaxreal)^0.5)/A1stdlife)) -> 0 | AG87: =IF(A1stdlife="n/a","n/a",IF(AG$3>(A1stdlife+$E87),(Input!$P$143*(1+pretaxreal)^0.5)-SUM($P87:AF87),(Input!$P$143*(1+pretaxreal)^0.5)/A1stdlife)) -> 0 | AH87: =IF(A1stdlife="n/a","n/a",IF(AH$3>(A1stdlife+$E87),(Input!$P$143*(1+pretaxreal)^0.5)-SUM($P87:AG87),(Input!$P$143*(1+pretaxreal)^0.5)/A1stdlife)) -> 0 | AI87: =IF(A1stdlife="n/a","n/a",IF(AI$3>(A1stdlife+$E87),(Input!$P$143*(1+pretaxreal)^0.5)-SUM($P87:AH87),(Input!$P$143*(1+pretaxreal)^0.5)/A1stdlife)) -> 0 | AJ87: =IF(A1stdlife="n/a","n/a",IF(AJ$3>(A1stdlife+$E87),(Input!$P$143*(1+pretaxreal)^0.5)-SUM($P87:AI87),(Input!$P$143*(1+pretaxreal)^0.5)/A1stdlife)) -> 0 | AK87: =IF(A1stdlife="n/a","n/a",IF(AK$3>(A1stdlife+$E87),(Input!$P$143*(1+pretaxreal)^0.5)-SUM($P87:AJ87),(Input!$P$143*(1+pretaxreal)^0.5)/A1stdlife)) -> 0 | AL87: =IF(A1stdlife="n/a","n/a",IF(AL$3>(A1stdlife+$E87),(Input!$P$143*(1+pretaxreal)^0.5)-SUM($P87:AK87),(Input!$P$143*(1+pretaxreal)^0.5)/A1stdlife)) -> 0 | AM87: =IF(A1stdlife="n/a","n/a",IF(AM$3>(A1stdlife+$E87),(Input!$P$143*(1+pretaxreal)^0.5)-SUM($P87:AL87),(Input!$P$143*(1+pretaxreal)^0.5)/A1stdlife)) -> 0 | AN87: =IF(A1stdlife="n/a","n/a",IF(AN$3>(A1stdlife+$E87),(Input!$P$143*(1+pretaxreal)^0.5)-SUM($P87:AM87),(Input!$P$143*(1+pretaxreal)^0.5)/A1stdlife)) -> 0 | AO87: =IF(A1stdlife="n/a","n/a",IF(AO$3>(A1stdlife+$E87),(Input!$P$143*(1+pretaxreal)^0.5)-SUM($P87:AN87),(Input!$P$143*(1+pretaxreal)^0.5)/A1stdlife)) -> 0 | AP87: =IF(A1stdlife="n/a","n/a",IF(AP$3>(A1stdlife+$E87),(Input!$P$143*(1+pretaxreal)^0.5)-SUM($P87:AO87),(Input!$P$143*(1+pretaxreal)^0.5)/A1stdlife)) -> 0 | AQ87: =IF(A1stdlife="n/a","n/a",IF(AQ$3>(A1stdlife+$E87),(Input!$P$143*(1+pretaxreal)^0.5)-SUM($P87:AP87),(Input!$P$143*(1+pretaxreal)^0.5)/A1stdlife)) -> 0 | AR87: =IF(A1stdlife="n/a","n/a",IF(AR$3>(A1stdlife+$E87),(Input!$P$143*(1+pretaxreal)^0.5)-SUM($P87:AQ87),(Input!$P$143*(1+pretaxreal)^0.5)/A1stdlife)) -> 0 | AS87: =IF(A1stdlife="n/a","n/a",IF(AS$3>(A1stdlife+$E87),(Input!$P$143*(1+pretaxreal)^0.5)-SUM($P87:AR87),(Input!$P$143*(1+pretaxreal)^0.5)/A1stdlife)) -> 0 | AT87: =IF(A1stdlife="n/a","n/a",IF(AT$3>(A1stdlife+$E87),(Input!$P$143*(1+pretaxreal)^0.5)-SUM($P87:AS87),(Input!$P$143*(1+pretaxreal)^0.5)/A1stdlife)) -> 0 | AU87: =IF(A1stdlife="n/a","n/a",IF(AU$3>(A1stdlife+$E87),(Input!$P$143*(1+pretaxreal)^0.5)-SUM($P87:AT87),(Input!$P$143*(1+pretaxreal)^0.5)/A1stdlife)) -> 0 | AV87: =IF(A1stdlife="n/a","n/a",IF(AV$3>(A1stdlife+$E87),(Input!$P$143*(1+pretaxreal)^0.5)-SUM($P87:AU87),(Input!$P$143*(1+pretaxreal)^0.5)/A1stdlife)) -> 0 | AW87: =IF(A1stdlife="n/a","n/a",IF(AW$3>(A1stdlife+$E87),(Input!$P$143*(1+pretaxreal)^0.5)-SUM($P87:AV87),(Input!$P$143*(1+pretaxreal)^0.5)/A1stdlife)) -> 0 | AX87: =IF(A1stdlife="n/a","n/a",IF(AX$3>(A1stdlife+$E87),(Input!$P$143*(1+pretaxreal)^0.5)-SUM($P87:AW87),(Input!$P$143*(1+pretaxreal)^0.5)/A1stdlife)) -> 0 | AY87: =IF(A1stdlife="n/a","n/a",IF(AY$3>(A1stdlife+$E87),(Input!$P$143*(1+pretaxreal)^0.5)-SUM($P87:AX87),(Input!$P$143*(1+pretaxreal)^0.5)/A1stdlife)) -> 0 | AZ87: =IF(A1stdlife="n/a","n/a",IF(AZ$3>(A1stdlife+$E87),(Input!$P$143*(1+pretaxreal)^0.5)-SUM($P87:AY87),(Input!$P$143*(1+pretaxreal)^0.5)/A1stdlife)) -> 0 | BA87: =IF(A1stdlife="n/a","n/a",IF(BA$3>(A1stdlife+$E87),(Input!$P$143*(1+pretaxreal)^0.5)-SUM($P87:AZ87),(Input!$P$143*(1+pretaxreal)^0.5)/A1stdlife)) -> 0 | BB87: =IF(A1stdlife="n/a","n/a",IF(BB$3>(A1stdlife+$E87),(Input!$P$143*(1+pretaxreal)^0.5)-SUM($P87:BA87),(Input!$P$143*(1+pretaxreal)^0.5)/A1stdlife)) -> 0 | BC87: =IF(A1stdlife="n/a","n/a",IF(BC$3>(A1stdlife+$E87),(Input!$P$143*(1+pretaxreal)^0.5)-SUM($P87:BB87),(Input!$P$143*(1+pretaxreal)^0.5)/A1stdlife)) -> 0 | BD87: =IF(A1stdlife="n/a","n/a",IF(BD$3>(A1stdlife+$E87),(Input!$P$143*(1+pretaxreal)^0.5)-SUM($P87:BC87),(Input!$P$143*(1+pretaxreal)^0.5)/A1stdlife)) -> 0 | BE87: =IF(A1stdlife="n/a","n/a",IF(BE$3>(A1stdlife+$E87),(Input!$P$143*(1+pretaxreal)^0.5)-SUM($P87:BD87),(Input!$P$143*(1+pretaxreal)^0.5)/A1stdlife)) -> 0 | BF87: =IF(A1stdlife="n/a","n/a",IF(BF$3>(A1stdlife+$E87),(Input!$P$143*(1+pretaxreal)^0.5)-SUM($P87:BE87),(Input!$P$143*(1+pretaxreal)^0.5)/A1stdlife)) -> 0 | BG87: =IF(A1stdlife="n/a","n/a",IF(BG$3>(A1stdlife+$E87),(Input!$P$143*(1+pretaxreal)^0.5)-SUM($P87:BF87),(Input!$P$143*(1+pretaxreal)^0.5)/A1stdlife)) -> 0 | BH87: =IF(A1stdlife="n/a","n/a",IF(BH$3>(A1stdlife+$E87),(Input!$P$143*(1+pretaxreal)^0.5)-SUM($P87:BG87),(Input!$P$143*(1+pretaxreal)^0.5)/A1stdlife)) -> 0 | BI87: =IF(A1stdlife="n/a","n/a",IF(BI$3>(A1stdlife+$E87),(Input!$P$143*(1+pretaxreal)^0.5)-SUM($P87:BH87),(Input!$P$143*(1+pretaxreal)^0.5)/A1stdlife)) -> 0
C88: =Asset1 -> System Capex | G88: =SUM(G76:G87) -> 0 | H88: =SUM(H76:H87) -> 0 | I88: =SUM(I76:I87) -> 0 | J88: 0 | K88: 0 | L88: 0 | M88: 0 | N88: 0 | O88: 0 | P88: 0 | Q88: 0 | R88: 0 | S88: 0 | T88: 0 | U88: 0 | V88: 0 | W88: 0 | X88: 0 | Y88: 0 | Z88: 0 | AA88: 0 | AB88: 0 | AC88: 0 | AD88: 0 | AE88: 0 | AF88: 0 | AG88: 0 | AH88: 0 | AI88: 0 | AJ88: 0 | AK88: 0 | AL88: 0 | AM88: 0 | AN88: 0 | AO88: 0 | AP88: 0 | AQ88: 0 | AR88: 0 | AS88: 0 | AT88: 0 | AU88: 0 | AV88: 0 | AW88: 0 | AX88: 0 | AY88: 0 | AZ88: 0 | BA88: 0 | BB88: 0 | BC88: 0 | BD88: 0 | BE88: 0 | BF88: 0 | BG88: 0 | BH88: 0 | BI88: 0
B89: =C101 -> Transmission terminal station | D89: Initial Asset Base | G89: =IF(G$3>A2remlife,A2value-SUM($F89:F89),IF(A2remlife="N/A","n/a",A2value/A2remlife)) -> 2.213955396 | H89: =IF(H$3>A2remlife,A2value-SUM($F89:G89),IF(A2remlife="N/A","n/a",A2value/A2remlife)) -> 2.213955396 | I89: =IF(I$3>A2remlife,A2value-SUM($F89:H89),IF(A2remlife="N/A","n/a",A2value/A2remlife)) -> 2.213955396 | J89: =IF(J$3>A2remlife,A2value-SUM($F89:I89),IF(A2remlife="N/A","n/a",A2value/A2remlife)) -> 2.213955396 | K89: =IF(K$3>A2remlife,A2value-SUM($F89:J89),IF(A2remlife="N/A","n/a",A2value/A2remlife)) -> 2.213955396 | L89: =IF(L$3>A2remlife,A2value-SUM($F89:K89),IF(A2remlife="N/A","n/a",A2value/A2remlife)) -> 2.213955396 | M89: =IF(M$3>A2remlife,A2value-SUM($F89:L89),IF(A2remlife="N/A","n/a",A2value/A2remlife)) -> 2.213955396 | N89: =IF(N$3>A2remlife,A2value-SUM($F89:M89),IF(A2remlife="N/A","n/a",A2value/A2remlife)) -> 2.213955396 | O89: =IF(O$3>A2remlife,A2value-SUM($F89:N89),IF(A2remlife="N/A","n/a",A2value/A2remlife)) -> 2.213955396 | P89: =IF(P$3>A2remlife,A2value-SUM($F89:O89),IF(A2remlife="N/A","n/a",A2value/A2remlife)) -> 2.213955396 | Q89: =IF(Q$3>A2remlife,A2value-SUM($F89:P89),IF(A2remlife="N/A","n/a",A2value/A2remlife)) -> 2.213955396 | R89: =IF(R$3>A2remlife,A2value-SUM($F89:Q89),IF(A2remlife="N/A","n/a",A2value/A2remlife)) -> 2.213955396 | S89: =IF(S$3>A2remlife,A2value-SUM($F89:R89),IF(A2remlife="N/A","n/a",A2value/A2remlife)) -> 2.213955396 | T89: =IF(T$3>A2remlife,A2value-SUM($F89:S89),IF(A2remlife="N/A","n/a",A2value/A2remlife)) -> 2.213955396 | U89: =IF(U$3>A2remlife,A2value-SUM($F89:T89),IF(A2remlife="N/A","n/a",A2value/A2remlife)) -> 2.213955396 | V89: =IF(V$3>A2remlife,A2value-SUM($F89:U89),IF(A2remlife="N/A","n/a",A2value/A2remlife)) -> 2.213955396 | W89: =IF(W$3>A2remlife,A2value-SUM($F89:V89),IF(A2remlife="N/A","n/a",A2value/A2remlife)) -> 2.155525532 | X89: =IF(X$3>A2remlife,A2value-SUM($F89:W89),IF(A2remlife="N/A","n/a",A2value/A2remlife)) -> 0 | Y89: =IF(Y$3>A2remlife,A2value-SUM($F89:X89),IF(A2remlife="N/A","n/a",A2value/A2remlife)) -> 0 | Z89: =IF(Z$3>A2remlife,A2value-SUM($F89:Y89),IF(A2remlife="N/A","n/a",A2value/A2remlife)) -> 0 | AA89: =IF(AA$3>A2remlife,A2value-SUM($F89:Z89),IF(A2remlife="N/A","n/a",A2value/A2remlife)) -> 0 | AB89: =IF(AB$3>A2remlife,A2value-SUM($F89:AA89),IF(A2remlife="N/A","n/a",A2value/A2remlife)) -> 0 | AC89: =IF(AC$3>A2remlife,A2value-SUM($F89:AB89),IF(A2remlife="N/A","n/a",A2value/A2remlife)) -> 0 | AD89: =IF(AD$3>A2remlife,A2value-SUM($F89:AC89),IF(A2remlife="N/A","n/a",A2value/A2remlife)) -> 0 | AE89: =IF(AE$3>A2remlife,A2value-SUM($F89:AD89),IF(A2remlife="N/A","n/a",A2value/A2remlife)) -> 0 | AF89: =IF(AF$3>A2remlife,A2value-SUM($F89:AE89),IF(A2remlife="N/A","n/a",A2value/A2remlife)) -> 0 | AG89: =IF(AG$3>A2remlife,A2value-SUM($F89:AF89),IF(A2remlife="N/A","n/a",A2value/A2remlife)) -> 0 | AH89: =IF(AH$3>A2remlife,A2value-SUM($F89:AG89),IF(A2remlife="N/A","n/a",A2value/A2remlife)) -> 0 | AI89: =IF(AI$3>A2remlife,A2value-SUM($F89:AH89),IF(A2remlife="N/A","n/a",A2value/A2remlife)) -> 0 | AJ89: =IF(AJ$3>A2remlife,A2value-SUM($F89:AI89),IF(A2remlife="N/A","n/a",A2value/A2remlife)) -> 0 | AK89: =IF(AK$3>A2remlife,A2value-SUM($F89:AJ89),IF(A2remlife="N/A","n/a",A2value/A2remlife)) -> 0 | AL89: =IF(AL$3>A2remlife,A2value-SUM($F89:AK89),IF(A2remlife="N/A","n/a",A2value/A2remlife)) -> 0 | AM89: =IF(AM$3>A2remlife,A2value-SUM($F89:AL89),IF(A2remlife="N/A","n/a",A2value/A2remlife)) -> 0 | AN89: =IF(AN$3>A2remlife,A2value-SUM($F89:AM89),IF(A2remlife="N/A","n/a",A2value/A2remlife)) -> 0 | AO89: =IF(AO$3>A2remlife,A2value-SUM($F89:AN89),IF(A2remlife="N/A","n/a",A2value/A2remlife)) -> 0 | AP89: =IF(AP$3>A2remlife,A2value-SUM($F89:AO89),IF(A2remlife="N/A","n/a",A2value/A2remlife)) -> 0 | AQ89: =IF(AQ$3>A2remlife,A2value-SUM($F89:AP89),IF(A2remlife="N/A","n/a",A2value/A2remlife)) -> 0 | AR89: =IF(AR$3>A2remlife,A2value-SUM($F89:AQ89),IF(A2remlife="N/A","n/a",A2value/A2remlife)) -> 0 | AS89: =IF(AS$3>A2remlife,A2value-SUM($F89:AR89),IF(A2remlife="N/A","n/a",A2value/A2remlife)) -> 0 | AT89: =IF(AT$3>A2remlife,A2value-SUM($F89:AS89),IF(A2remlife="N/A","n/a",A2value/A2remlife)) -> 0 | AU89: =IF(AU$3>A2remlife,A2value-SUM($F89:AT89),IF(A2remlife="N/A","n/a",A2value/A2remlife)) -> 0 | AV89: =IF(AV$3>A2remlife,A2value-SUM($F89:AU89),IF(A2remlife="N/A","n/a",A2value/A2remlife)) -> 0 | AW89: =IF(AW$3>A2remlife,A2value-SUM($F89:AV89),IF(A2remlife="N/A","n/a",A2value/A2remlife)) -> 0 | AX89: =IF(AX$3>A2remlife,A2value-SUM($F89:AW89),IF(A2remlife="N/A","n/a",A2value/A2remlife)) -> 0 | AY89: =IF(AY$3>A2remlife,A2value-SUM($F89:AX89),IF(A2remlife="N/A","n/a",A2value/A2remlife)) -> 0 | AZ89: =IF(AZ$3>A2remlife,A2value-SUM($F89:AY89),IF(A2remlife="N/A","n/a",A2value/A2remlife)) -> 0 | BA89: =IF(BA$3>A2remlife,A2value-SUM($F89:AZ89),IF(A2remlife="N/A","n/a",A2value/A2remlife)) -> 0 | BB89: =IF(BB$3>A2remlife,A2value-SUM($F89:BA89),IF(A2remlife="N/A","n/a",A2value/A2remlife)) -> 0 | BC89: =IF(BC$3>A2remlife,A2value-SUM($F89:BB89),IF(A2remlife="N/A","n/a",A2value/A2remlife)) -> 0 | BD89: =IF(BD$3>A2remlife,A2value-SUM($F89:BC89),IF(A2remlife="N/A","n/a",A2value/A2remlife)) -> 0 | BE89: =IF(BE$3>A2remlife,A2value-SUM($F89:BD89),IF(A2remlife="N/A","n/a",A2value/A2remlife)) -> 0 | BF89: =IF(BF$3>A2remlife,A2value-SUM($F89:BE89),IF(A2remlife="N/A","n/a",A2value/A2remlife)) -> 0 | BG89: =IF(BG$3>A2remlife,A2value-SUM($F89:BF89),IF(A2remlife="N/A","n/a",A2value/A2remlife)) -> 0 | BH89: =IF(BH$3>A2remlife,A2value-SUM($F89:BG89),IF(A2remlife="N/A","n/a",A2value/A2remlife)) -> 0 | BI89: =IF(BI$3>A2remlife,A2value-SUM($F89:BH89),IF(A2remlife="N/A","n/a",A2value/A2remlife)) -> 0
D90: Capex | E90: 0
E91: 1 | H91: =IF(A2stdlife="n/a","n/a",IF(H$3>(A2stdlife+$E91),(Input!$G$144*(1+pretaxreal)^0.5)-SUM($G91:G91),(Input!$G$144*(1+pretaxreal)^0.5)/A2stdlife)) -> 0 | I91: =IF(A2stdlife="n/a","n/a",IF(I$3>(A2stdlife+$E91),(Input!$G$144*(1+pretaxreal)^0.5)-SUM($G91:H91),(Input!$G$144*(1+pretaxreal)^0.5)/A2stdlife)) -> 0 | J91: =IF(A2stdlife="n/a","n/a",IF(J$3>(A2stdlife+$E91),(Input!$G$144*(1+pretaxreal)^0.5)-SUM($G91:I91),(Input!$G$144*(1+pretaxreal)^0.5)/A2stdlife)) -> 0 | K91: =IF(A2stdlife="n/a","n/a",IF(K$3>(A2stdlife+$E91),(Input!$G$144*(1+pretaxreal)^0.5)-SUM($G91:J91),(Input!$G$144*(1+pretaxreal)^0.5)/A2stdlife)) -> 0 | L91: =IF(A2stdlife="n/a","n/a",IF(L$3>(A2stdlife+$E91),(Input!$G$144*(1+pretaxreal)^0.5)-SUM($G91:K91),(Input!$G$144*(1+pretaxreal)^0.5)/A2stdlife)) -> 0 | M91: =IF(A2stdlife="n/a","n/a",IF(M$3>(A2stdlife+$E91),(Input!$G$144*(1+pretaxreal)^0.5)-SUM($G91:L91),(Input!$G$144*(1+pretaxreal)^0.5)/A2stdlife)) -> 0 | N91: =IF(A2stdlife="n/a","n/a",IF(N$3>(A2stdlife+$E91),(Input!$G$144*(1+pretaxreal)^0.5)-SUM($G91:M91),(Input!$G$144*(1+pretaxreal)^0.5)/A2stdlife)) -> 0 | O91: =IF(A2stdlife="n/a","n/a",IF(O$3>(A2stdlife+$E91),(Input!$G$144*(1+pretaxreal)^0.5)-SUM($G91:N91),(Input!$G$144*(1+pretaxreal)^0.5)/A2stdlife)) -> 0 | P91: =IF(A2stdlife="n/a","n/a",IF(P$3>(A2stdlife+$E91),(Input!$G$144*(1+pretaxreal)^0.5)-SUM($G91:O91),(Input!$G$144*(1+pretaxreal)^0.5)/A2stdlife)) -> 0 | Q91: =IF(A2stdlife="n/a","n/a",IF(Q$3>(A2stdlife+$E91),(Input!$G$144*(1+pretaxreal)^0.5)-SUM($G91:P91),(Input!$G$144*(1+pretaxreal)^0.5)/A2stdlife)) -> 0 | R91: =IF(A2stdlife="n/a","n/a",IF(R$3>(A2stdlife+$E91),(Input!$G$144*(1+pretaxreal)^0.5)-SUM($G91:Q91),(Input!$G$144*(1+pretaxreal)^0.5)/A2stdlife)) -> 0 | S91: =IF(A2stdlife="n/a","n/a",IF(S$3>(A2stdlife+$E91),(Input!$G$144*(1+pretaxreal)^0.5)-SUM($G91:R91),(Input!$G$144*(1+pretaxreal)^0.5)/A2stdlife)) -> 0 | T91: =IF(A2stdlife="n/a","n/a",IF(T$3>(A2stdlife+$E91),(Input!$G$144*(1+pretaxreal)^0.5)-SUM($G91:S91),(Input!$G$144*(1+pretaxreal)^0.5)/A2stdlife)) -> 0 | U91: =IF(A2stdlife="n/a","n/a",IF(U$3>(A2stdlife+$E91),(Input!$G$144*(1+pretaxreal)^0.5)-SUM($G91:T91),(Input!$G$144*(1+pretaxreal)^0.5)/A2stdlife)) -> 0 | V91: =IF(A2stdlife="n/a","n/a",IF(V$3>(A2stdlife+$E91),(Input!$G$144*(1+pretaxreal)^0.5)-SUM($G91:U91),(Input!$G$144*(1+pretaxreal)^0.5)/A2stdlife)) -> 0 | W91: =IF(A2stdlife="n/a","n/a",IF(W$3>(A2stdlife+$E91),(Input!$G$144*(1+pretaxreal)^0.5)-SUM($G91:V91),(Input!$G$144*(1+pretaxreal)^0.5)/A2stdlife)) -> 0 | X91: =IF(A2stdlife="n/a","n/a",IF(X$3>(A2stdlife+$E91),(Input!$G$144*(1+pretaxreal)^0.5)-SUM($G91:W91),(Input!$G$144*(1+pretaxreal)^0.5)/A2stdlife)) -> 0 | Y91: =IF(A2stdlife="n/a","n/a",IF(Y$3>(A2stdlife+$E91),(Input!$G$144*(1+pretaxreal)^0.5)-SUM($G91:X91),(Input!$G$144*(1+pretaxreal)^0.5)/A2stdlife)) -> 0 | Z91: =IF(A2stdlife="n/a","n/a",IF(Z$3>(A2stdlife+$E91),(Input!$G$144*(1+pretaxreal)^0.5)-SUM($G91:Y91),(Input!$G$144*(1+pretaxreal)^0.5)/A2stdlife)) -> 0 | AA91: =IF(A2stdlife="n/a","n/a",IF(AA$3>(A2stdlife+$E91),(Input!$G$144*(1+pretaxreal)^0.5)-SUM($G91:Z91),(Input!$G$144*(1+pretaxreal)^0.5)/A2stdlife)) -> 0 | AB91: =IF(A2stdlife="n/a","n/a",IF(AB$3>(A2stdlife+$E91),(Input!$G$144*(1+pretaxreal)^0.5)-SUM($G91:AA91),(Input!$G$144*(1+pretaxreal)^0.5)/A2stdlife)) -> 0 | AC91: =IF(A2stdlife="n/a","n/a",IF(AC$3>(A2stdlife+$E91),(Input!$G$144*(1+pretaxreal)^0.5)-SUM($G91:AB91),(Input!$G$144*(1+pretaxreal)^0.5)/A2stdlife)) -> 0 | AD91: =IF(A2stdlife="n/a","n/a",IF(AD$3>(A2stdlife+$E91),(Input!$G$144*(1+pretaxreal)^0.5)-SUM($G91:AC91),(Input!$G$144*(1+pretaxreal)^0.5)/A2stdlife)) -> 0 | AE91: =IF(A2stdlife="n/a","n/a",IF(AE$3>(A2stdlife+$E91),(Input!$G$144*(1+pretaxreal)^0.5)-SUM($G91:AD91),(Input!$G$144*(1+pretaxreal)^0.5)/A2stdlife)) -> 0 | AF91: =IF(A2stdlife="n/a","n/a",IF(AF$3>(A2stdlife+$E91),(Input!$G$144*(1+pretaxreal)^0.5)-SUM($G91:AE91),(Input!$G$144*(1+pretaxreal)^0.5)/A2stdlife)) -> 0 | AG91: =IF(A2stdlife="n/a","n/a",IF(AG$3>(A2stdlife+$E91),(Input!$G$144*(1+pretaxreal)^0.5)-SUM($G91:AF91),(Input!$G$144*(1+pretaxreal)^0.5)/A2stdlife)) -> 0 | AH91: =IF(A2stdlife="n/a","n/a",IF(AH$3>(A2stdlife+$E91),(Input!$G$144*(1+pretaxreal)^0.5)-SUM($G91:AG91),(Input!$G$144*(1+pretaxreal)^0.5)/A2stdlife)) -> 0 | AI91: =IF(A2stdlife="n/a","n/a",IF(AI$3>(A2stdlife+$E91),(Input!$G$144*(1+pretaxreal)^0.5)-SUM($G91:AH91),(Input!$G$144*(1+pretaxreal)^0.5)/A2stdlife)) -> 0 | AJ91: =IF(A2stdlife="n/a","n/a",IF(AJ$3>(A2stdlife+$E91),(Input!$G$144*(1+pretaxreal)^0.5)-SUM($G91:AI91),(Input!$G$144*(1+pretaxreal)^0.5)/A2stdlife)) -> 0 | AK91: =IF(A2stdlife="n/a","n/a",IF(AK$3>(A2stdlife+$E91),(Input!$G$144*(1+pretaxreal)^0.5)-SUM($G91:AJ91),(Input!$G$144*(1+pretaxreal)^0.5)/A2stdlife)) -> 0 | AL91: =IF(A2stdlife="n/a","n/a",IF(AL$3>(A2stdlife+$E91),(Input!$G$144*(1+pretaxreal)^0.5)-SUM($G91:AK91),(Input!$G$144*(1+pretaxreal)^0.5)/A2stdlife)) -> 0 | AM91: =IF(A2stdlife="n/a","n/a",IF(AM$3>(A2stdlife+$E91),(Input!$G$144*(1+pretaxreal)^0.5)-SUM($G91:AL91),(Input!$G$144*(1+pretaxreal)^0.5)/A2stdlife)) -> 0 | AN91: =IF(A2stdlife="n/a","n/a",IF(AN$3>(A2stdlife+$E91),(Input!$G$144*(1+pretaxreal)^0.5)-SUM($G91:AM91),(Input!$G$144*(1+pretaxreal)^0.5)/A2stdlife)) -> 0 | AO91: =IF(A2stdlife="n/a","n/a",IF(AO$3>(A2stdlife+$E91),(Input!$G$144*(1+pretaxreal)^0.5)-SUM($G91:AN91),(Input!$G$144*(1+pretaxreal)^0.5)/A2stdlife)) -> 0 | AP91: =IF(A2stdlife="n/a","n/a",IF(AP$3>(A2stdlife+$E91),(Input!$G$144*(1+pretaxreal)^0.5)-SUM($G91:AO91),(Input!$G$144*(1+pretaxreal)^0.5)/A2stdlife)) -> 0 | AQ91: =IF(A2stdlife="n/a","n/a",IF(AQ$3>(A2stdlife+$E91),(Input!$G$144*(1+pretaxreal)^0.5)-SUM($G91:AP91),(Input!$G$144*(1+pretaxreal)^0.5)/A2stdlife)) -> 0 | AR91: =IF(A2stdlife="n/a","n/a",IF(AR$3>(A2stdlife+$E91),(Input!$G$144*(1+pretaxreal)^0.5)-SUM($G91:AQ91),(Input!$G$144*(1+pretaxreal)^0.5)/A2stdlife)) -> 0 | AS91: =IF(A2stdlife="n/a","n/a",IF(AS$3>(A2stdlife+$E91),(Input!$G$144*(1+pretaxreal)^0.5)-SUM($G91:AR91),(Input!$G$144*(1+pretaxreal)^0.5)/A2stdlife)) -> 0 | AT91: =IF(A2stdlife="n/a","n/a",IF(AT$3>(A2stdlife+$E91),(Input!$G$144*(1+pretaxreal)^0.5)-SUM($G91:AS91),(Input!$G$144*(1+pretaxreal)^0.5)/A2stdlife)) -> 0 | AU91: =IF(A2stdlife="n/a","n/a",IF(AU$3>(A2stdlife+$E91),(Input!$G$144*(1+pretaxreal)^0.5)-SUM($G91:AT91),(Input!$G$144*(1+pretaxreal)^0.5)/A2stdlife)) -> 0 | AV91: =IF(A2stdlife="n/a","n/a",IF(AV$3>(A2stdlife+$E91),(Input!$G$144*(1+pretaxreal)^0.5)-SUM($G91:AU91),(Input!$G$144*(1+pretaxreal)^0.5)/A2stdlife)) -> 0 | AW91: =IF(A2stdlife="n/a","n/a",IF(AW$3>(A2stdlife+$E91),(Input!$G$144*(1+pretaxreal)^0.5)-SUM($G91:AV91),(Input!$G$144*(1+pretaxreal)^0.5)/A2stdlife)) -> 0 | AX91: =IF(A2stdlife="n/a","n/a",IF(AX$3>(A2stdlife+$E91),(Input!$G$144*(1+pretaxreal)^0.5)-SUM($G91:AW91),(Input!$G$144*(1+pretaxreal)^0.5)/A2stdlife)) -> 0 | AY91: =IF(A2stdlife="n/a","n/a",IF(AY$3>(A2stdlife+$E91),(Input!$G$144*(1+pretaxreal)^0.5)-SUM($G91:AX91),(Input!$G$144*(1+pretaxreal)^0.5)/A2stdlife)) -> 0 | AZ91: =IF(A2stdlife="n/a","n/a",IF(AZ$3>(A2stdlife+$E91),(Input!$G$144*(1+pretaxreal)^0.5)-SUM($G91:AY91),(Input!$G$144*(1+pretaxreal)^0.5)/A2stdlife)) -> 0 | BA91: =IF(A2stdlife="n/a","n/a",IF(BA$3>(A2stdlife+$E91),(Input!$G$144*(1+pretaxreal)^0.5)-SUM($G91:AZ91),(Input!$G$144*(1+pretaxreal)^0.5)/A2stdlife)) -> 0 | BB91: =IF(A2stdlife="n/a","n/a",IF(BB$3>(A2stdlife+$E91),(Input!$G$144*(1+pretaxreal)^0.5)-SUM($G91:BA91),(Input!$G$144*(1+pretaxreal)^0.5)/A2stdlife)) -> 0 | BC91: =IF(A2stdlife="n/a","n/a",IF(BC$3>(A2stdlife+$E91),(Input!$G$144*(1+pretaxreal)^0.5)-SUM($G91:BB91),(Input!$G$144*(1+pretaxreal)^0.5)/A2stdlife)) -> 0 | BD91: =IF(A2stdlife="n/a","n/a",IF(BD$3>(A2stdlife+$E91),(Input!$G$144*(1+pretaxreal)^0.5)-SUM($G91:BC91),(Input!$G$144*(1+pretaxreal)^0.5)/A2stdlife)) -> 0 | BE91: =IF(A2stdlife="n/a","n/a",IF(BE$3>(A2stdlife+$E91),(Input!$G$144*(1+pretaxreal)^0.5)-SUM($G91:BD91),(Input!$G$144*(1+pretaxreal)^0.5)/A2stdlife)) -> 0 | BF91: =IF(A2stdlife="n/a","n/a",IF(BF$3>(A2stdlife+$E91),(Input!$G$144*(1+pretaxreal)^0.5)-SUM($G91:BE91),(Input!$G$144*(1+pretaxreal)^0.5)/A2stdlife)) -> 0 | BG91: =IF(A2stdlife="n/a","n/a",IF(BG$3>(A2stdlife+$E91),(Input!$G$144*(1+pretaxreal)^0.5)-SUM($G91:BF91),(Input!$G$144*(1+pretaxreal)^0.5)/A2stdlife)) -> 0 | BH91: =IF(A2stdlife="n/a","n/a",IF(BH$3>(A2stdlife+$E91),(Input!$G$144*(1+pretaxreal)^0.5)-SUM($G91:BG91),(Input!$G$144*(1+pretaxreal)^0.5)/A2stdlife)) -> 0 | BI91: =IF(A2stdlife="n/a","n/a",IF(BI$3>(A2stdlife+$E91),(Input!$G$144*(1+pretaxreal)^0.5)-SUM($G91:BH91),(Input!$G$144*(1+pretaxreal)^0.5)/A2stdlife)) -> 0
E92: 2 | I92: =IF(A2stdlife="n/a","n/a",IF(I$3>(A2stdlife+$E92),(Input!$H$144*(1+pretaxreal)^0.5)-SUM($H92:H92),(Input!$H$144*(1+pretaxreal)^0.5)/A2stdlife)) -> 0 | J92: =IF(A2stdlife="n/a","n/a",IF(J$3>(A2stdlife+$E92),(Input!$H$144*(1+pretaxreal)^0.5)-SUM($H92:I92),(Input!$H$144*(1+pretaxreal)^0.5)/A2stdlife)) -> 0 | K92: =IF(A2stdlife="n/a","n/a",IF(K$3>(A2stdlife+$E92),(Input!$H$144*(1+pretaxreal)^0.5)-SUM($H92:J92),(Input!$H$144*(1+pretaxreal)^0.5)/A2stdlife)) -> 0 | L92: =IF(A2stdlife="n/a","n/a",IF(L$3>(A2stdlife+$E92),(Input!$H$144*(1+pretaxreal)^0.5)-SUM($H92:K92),(Input!$H$144*(1+pretaxreal)^0.5)/A2stdlife)) -> 0 | M92: =IF(A2stdlife="n/a","n/a",IF(M$3>(A2stdlife+$E92),(Input!$H$144*(1+pretaxreal)^0.5)-SUM($H92:L92),(Input!$H$144*(1+pretaxreal)^0.5)/A2stdlife)) -> 0 | N92: =IF(A2stdlife="n/a","n/a",IF(N$3>(A2stdlife+$E92),(Input!$H$144*(1+pretaxreal)^0.5)-SUM($H92:M92),(Input!$H$144*(1+pretaxreal)^0.5)/A2stdlife)) -> 0 | O92: =IF(A2stdlife="n/a","n/a",IF(O$3>(A2stdlife+$E92),(Input!$H$144*(1+pretaxreal)^0.5)-SUM($H92:N92),(Input!$H$144*(1+pretaxreal)^0.5)/A2stdlife)) -> 0 | P92: =IF(A2stdlife="n/a","n/a",IF(P$3>(A2stdlife+$E92),(Input!$H$144*(1+pretaxreal)^0.5)-SUM($H92:O92),(Input!$H$144*(1+pretaxreal)^0.5)/A2stdlife)) -> 0 | Q92: =IF(A2stdlife="n/a","n/a",IF(Q$3>(A2stdlife+$E92),(Input!$H$144*(1+pretaxreal)^0.5)-SUM($H92:P92),(Input!$H$144*(1+pretaxreal)^0.5)/A2stdlife)) -> 0 | R92: =IF(A2stdlife="n/a","n/a",IF(R$3>(A2stdlife+$E92),(Input!$H$144*(1+pretaxreal)^0.5)-SUM($H92:Q92),(Input!$H$144*(1+pretaxreal)^0.5)/A2stdlife)) -> 0 | S92: =IF(A2stdlife="n/a","n/a",IF(S$3>(A2stdlife+$E92),(Input!$H$144*(1+pretaxreal)^0.5)-SUM($H92:R92),(Input!$H$144*(1+pretaxreal)^0.5)/A2stdlife)) -> 0 | T92: =IF(A2stdlife="n/a","n/a",IF(T$3>(A2stdlife+$E92),(Input!$H$144*(1+pretaxreal)^0.5)-SUM($H92:S92),(Input!$H$144*(1+pretaxreal)^0.5)/A2stdlife)) -> 0 | U92: =IF(A2stdlife="n/a","n/a",IF(U$3>(A2stdlife+$E92),(Input!$H$144*(1+pretaxreal)^0.5)-SUM($H92:T92),(Input!$H$144*(1+pretaxreal)^0.5)/A2stdlife)) -> 0 | V92: =IF(A2stdlife="n/a","n/a",IF(V$3>(A2stdlife+$E92),(Input!$H$144*(1+pretaxreal)^0.5)-SUM($H92:U92),(Input!$H$144*(1+pretaxreal)^0.5)/A2stdlife)) -> 0 | W92: =IF(A2stdlife="n/a","n/a",IF(W$3>(A2stdlife+$E92),(Input!$H$144*(1+pretaxreal)^0.5)-SUM($H92:V92),(Input!$H$144*(1+pretaxreal)^0.5)/A2stdlife)) -> 0 | X92: =IF(A2stdlife="n/a","n/a",IF(X$3>(A2stdlife+$E92),(Input!$H$144*(1+pretaxreal)^0.5)-SUM($H92:W92),(Input!$H$144*(1+pretaxreal)^0.5)/A2stdlife)) -> 0 | Y92: =IF(A2stdlife="n/a","n/a",IF(Y$3>(A2stdlife+$E92),(Input!$H$144*(1+pretaxreal)^0.5)-SUM($H92:X92),(Input!$H$144*(1+pretaxreal)^0.5)/A2stdlife)) -> 0 | Z92: =IF(A2stdlife="n/a","n/a",IF(Z$3>(A2stdlife+$E92),(Input!$H$144*(1+pretaxreal)^0.5)-SUM($H92:Y92),(Input!$H$144*(1+pretaxreal)^0.5)/A2stdlife)) -> 0 | AA92: =IF(A2stdlife="n/a","n/a",IF(AA$3>(A2stdlife+$E92),(Input!$H$144*(1+pretaxreal)^0.5)-SUM($H92:Z92),(Input!$H$144*(1+pretaxreal)^0.5)/A2stdlife)) -> 0 | AB92: =IF(A2stdlife="n/a","n/a",IF(AB$3>(A2stdlife+$E92),(Input!$H$144*(1+pretaxreal)^0.5)-SUM($H92:AA92),(Input!$H$144*(1+pretaxreal)^0.5)/A2stdlife)) -> 0 | AC92: =IF(A2stdlife="n/a","n/a",IF(AC$3>(A2stdlife+$E92),(Input!$H$144*(1+pretaxreal)^0.5)-SUM($H92:AB92),(Input!$H$144*(1+pretaxreal)^0.5)/A2stdlife)) -> 0 | AD92: =IF(A2stdlife="n/a","n/a",IF(AD$3>(A2stdlife+$E92),(Input!$H$144*(1+pretaxreal)^0.5)-SUM($H92:AC92),(Input!$H$144*(1+pretaxreal)^0.5)/A2stdlife)) -> 0 | AE92: =IF(A2stdlife="n/a","n/a",IF(AE$3>(A2stdlife+$E92),(Input!$H$144*(1+pretaxreal)^0.5)-SUM($H92:AD92),(Input!$H$144*(1+pretaxreal)^0.5)/A2stdlife)) -> 0 | AF92: =IF(A2stdlife="n/a","n/a",IF(AF$3>(A2stdlife+$E92),(Input!$H$144*(1+pretaxreal)^0.5)-SUM($H92:AE92),(Input!$H$144*(1+pretaxreal)^0.5)/A2stdlife)) -> 0 | AG92: =IF(A2stdlife="n/a","n/a",IF(AG$3>(A2stdlife+$E92),(Input!$H$144*(1+pretaxreal)^0.5)-SUM($H92:AF92),(Input!$H$144*(1+pretaxreal)^0.5)/A2stdlife)) -> 0 | AH92: =IF(A2stdlife="n/a","n/a",IF(AH$3>(A2stdlife+$E92),(Input!$H$144*(1+pretaxreal)^0.5)-SUM($H92:AG92),(Input!$H$144*(1+pretaxreal)^0.5)/A2stdlife)) -> 0 | AI92: =IF(A2stdlife="n/a","n/a",IF(AI$3>(A2stdlife+$E92),(Input!$H$144*(1+pretaxreal)^0.5)-SUM($H92:AH92),(Input!$H$144*(1+pretaxreal)^0.5)/A2stdlife)) -> 0 | AJ92: =IF(A2stdlife="n/a","n/a",IF(AJ$3>(A2stdlife+$E92),(Input!$H$144*(1+pretaxreal)^0.5)-SUM($H92:AI92),(Input!$H$144*(1+pretaxreal)^0.5)/A2stdlife)) -> 0 | AK92: =IF(A2stdlife="n/a","n/a",IF(AK$3>(A2stdlife+$E92),(Input!$H$144*(1+pretaxreal)^0.5)-SUM($H92:AJ92),(Input!$H$144*(1+pretaxreal)^0.5)/A2stdlife)) -> 0 | AL92: =IF(A2stdlife="n/a","n/a",IF(AL$3>(A2stdlife+$E92),(Input!$H$144*(1+pretaxreal)^0.5)-SUM($H92:AK92),(Input!$H$144*(1+pretaxreal)^0.5)/A2stdlife)) -> 0 | AM92: =IF(A2stdlife="n/a","n/a",IF(AM$3>(A2stdlife+$E92),(Input!$H$144*(1+pretaxreal)^0.5)-SUM($H92:AL92),(Input!$H$144*(1+pretaxreal)^0.5)/A2stdlife)) -> 0 | AN92: =IF(A2stdlife="n/a","n/a",IF(AN$3>(A2stdlife+$E92),(Input!$H$144*(1+pretaxreal)^0.5)-SUM($H92:AM92),(Input!$H$144*(1+pretaxreal)^0.5)/A2stdlife)) -> 0 | AO92: =IF(A2stdlife="n/a","n/a",IF(AO$3>(A2stdlife+$E92),(Input!$H$144*(1+pretaxreal)^0.5)-SUM($H92:AN92),(Input!$H$144*(1+pretaxreal)^0.5)/A2stdlife)) -> 0 | AP92: =IF(A2stdlife="n/a","n/a",IF(AP$3>(A2stdlife+$E92),(Input!$H$144*(1+pretaxreal)^0.5)-SUM($H92:AO92),(Input!$H$144*(1+pretaxreal)^0.5)/A2stdlife)) -> 0 | AQ92: =IF(A2stdlife="n/a","n/a",IF(AQ$3>(A2stdlife+$E92),(Input!$H$144*(1+pretaxreal)^0.5)-SUM($H92:AP92),(Input!$H$144*(1+pretaxreal)^0.5)/A2stdlife)) -> 0 | AR92: =IF(A2stdlife="n/a","n/a",IF(AR$3>(A2stdlife+$E92),(Input!$H$144*(1+pretaxreal)^0.5)-SUM($H92:AQ92),(Input!$H$144*(1+pretaxreal)^0.5)/A2stdlife)) -> 0 | AS92: =IF(A2stdlife="n/a","n/a",IF(AS$3>(A2stdlife+$E92),(Input!$H$144*(1+pretaxreal)^0.5)-SUM($H92:AR92),(Input!$H$144*(1+pretaxreal)^0.5)/A2stdlife)) -> 0 | AT92: =IF(A2stdlife="n/a","n/a",IF(AT$3>(A2stdlife+$E92),(Input!$H$144*(1+pretaxreal)^0.5)-SUM($H92:AS92),(Input!$H$144*(1+pretaxreal)^0.5)/A2stdlife)) -> 0 | AU92: =IF(A2stdlife="n/a","n/a",IF(AU$3>(A2stdlife+$E92),(Input!$H$144*(1+pretaxreal)^0.5)-SUM($H92:AT92),(Input!$H$144*(1+pretaxreal)^0.5)/A2stdlife)) -> 0 | AV92: =IF(A2stdlife="n/a","n/a",IF(AV$3>(A2stdlife+$E92),(Input!$H$144*(1+pretaxreal)^0.5)-SUM($H92:AU92),(Input!$H$144*(1+pretaxreal)^0.5)/A2stdlife)) -> 0 | AW92: =IF(A2stdlife="n/a","n/a",IF(AW$3>(A2stdlife+$E92),(Input!$H$144*(1+pretaxreal)^0.5)-SUM($H92:AV92),(Input!$H$144*(1+pretaxreal)^0.5)/A2stdlife)) -> 0 | AX92: =IF(A2stdlife="n/a","n/a",IF(AX$3>(A2stdlife+$E92),(Input!$H$144*(1+pretaxreal)^0.5)-SUM($H92:AW92),(Input!$H$144*(1+pretaxreal)^0.5)/A2stdlife)) -> 0 | AY92: =IF(A2stdlife="n/a","n/a",IF(AY$3>(A2stdlife+$E92),(Input!$H$144*(1+pretaxreal)^0.5)-SUM($H92:AX92),(Input!$H$144*(1+pretaxreal)^0.5)/A2stdlife)) -> 0 | AZ92: =IF(A2stdlife="n/a","n/a",IF(AZ$3>(A2stdlife+$E92),(Input!$H$144*(1+pretaxreal)^0.5)-SUM($H92:AY92),(Input!$H$144*(1+pretaxreal)^0.5)/A2stdlife)) -> 0 | BA92: =IF(A2stdlife="n/a","n/a",IF(BA$3>(A2stdlife+$E92),(Input!$H$144*(1+pretaxreal)^0.5)-SUM($H92:AZ92),(Input!$H$144*(1+pretaxreal)^0.5)/A2stdlife)) -> 0 | BB92: =IF(A2stdlife="n/a","n/a",IF(BB$3>(A2stdlife+$E92),(Input!$H$144*(1+pretaxreal)^0.5)-SUM($H92:BA92),(Input!$H$144*(1+pretaxreal)^0.5)/A2stdlife)) -> 0 | BC92: =IF(A2stdlife="n/a","n/a",IF(BC$3>(A2stdlife+$E92),(Input!$H$144*(1+pretaxreal)^0.5)-SUM($H92:BB92),(Input!$H$144*(1+pretaxreal)^0.5)/A2stdlife)) -> 0 | BD92: =IF(A2stdlife="n/a","n/a",IF(BD$3>(A2stdlife+$E92),(Input!$H$144*(1+pretaxreal)^0.5)-SUM($H92:BC92),(Input!$H$144*(1+pretaxreal)^0.5)/A2stdlife)) -> 0 | BE92: =IF(A2stdlife="n/a","n/a",IF(BE$3>(A2stdlife+$E92),(Input!$H$144*(1+pretaxreal)^0.5)-SUM($H92:BD92),(Input!$H$144*(1+pretaxreal)^0.5)/A2stdlife)) -> 0 | BF92: =IF(A2stdlife="n/a","n/a",IF(BF$3>(A2stdlife+$E92),(Input!$H$144*(1+pretaxreal)^0.5)-SUM($H92:BE92),(Input!$H$144*(1+pretaxreal)^0.5)/A2stdlife)) -> 0 | BG92: =IF(A2stdlife="n/a","n/a",IF(BG$3>(A2stdlife+$E92),(Input!$H$144*(1+pretaxreal)^0.5)-SUM($H92:BF92),(Input!$H$144*(1+pretaxreal)^0.5)/A2stdlife)) -> 0 | BH92: =IF(A2stdlife="n/a","n/a",IF(BH$3>(A2stdlife+$E92),(Input!$H$144*(1+pretaxreal)^0.5)-SUM($H92:BG92),(Input!$H$144*(1+pretaxreal)^0.5)/A2stdlife)) -> 0 | BI92: =IF(A2stdlife="n/a","n/a",IF(BI$3>(A2stdlife+$E92),(Input!$H$144*(1+pretaxreal)^0.5)-SUM($H92:BH92),(Input!$H$144*(1+pretaxreal)^0.5)/A2stdlife)) -> 0
E93: 3 | J93: =IF(A2stdlife="n/a","n/a",IF(J$3>(A2stdlife+$E93),(Input!$I$144*(1+pretaxreal)^0.5)-SUM($I93:I93),(Input!$I$144*(1+pretaxreal)^0.5)/A2stdlife)) -> 0 | K93: =IF(A2stdlife="n/a","n/a",IF(K$3>(A2stdlife+$E93),(Input!$I$144*(1+pretaxreal)^0.5)-SUM($I93:J93),(Input!$I$144*(1+pretaxreal)^0.5)/A2stdlife)) -> 0 | L93: =IF(A2stdlife="n/a","n/a",IF(L$3>(A2stdlife+$E93),(Input!$I$144*(1+pretaxreal)^0.5)-SUM($I93:K93),(Input!$I$144*(1+pretaxreal)^0.5)/A2stdlife)) -> 0 | M93: =IF(A2stdlife="n/a","n/a",IF(M$3>(A2stdlife+$E93),(Input!$I$144*(1+pretaxreal)^0.5)-SUM($I93:L93),(Input!$I$144*(1+pretaxreal)^0.5)/A2stdlife)) -> 0 | N93: =IF(A2stdlife="n/a","n/a",IF(N$3>(A2stdlife+$E93),(Input!$I$144*(1+pretaxreal)^0.5)-SUM($I93:M93),(Input!$I$144*(1+pretaxreal)^0.5)/A2stdlife)) -> 0 | O93: =IF(A2stdlife="n/a","n/a",IF(O$3>(A2stdlife+$E93),(Input!$I$144*(1+pretaxreal)^0.5)-SUM($I93:N93),(Input!$I$144*(1+pretaxreal)^0.5)/A2stdlife)) -> 0 | P93: =IF(A2stdlife="n/a","n/a",IF(P$3>(A2stdlife+$E93),(Input!$I$144*(1+pretaxreal)^0.5)-SUM($I93:O93),(Input!$I$144*(1+pretaxreal)^0.5)/A2stdlife)) -> 0 | Q93: =IF(A2stdlife="n/a","n/a",IF(Q$3>(A2stdlife+$E93),(Input!$I$144*(1+pretaxreal)^0.5)-SUM($I93:P93),(Input!$I$144*(1+pretaxreal)^0.5)/A2stdlife)) -> 0 | R93: =IF(A2stdlife="n/a","n/a",IF(R$3>(A2stdlife+$E93),(Input!$I$144*(1+pretaxreal)^0.5)-SUM($I93:Q93),(Input!$I$144*(1+pretaxreal)^0.5)/A2stdlife)) -> 0 | S93: =IF(A2stdlife="n/a","n/a",IF(S$3>(A2stdlife+$E93),(Input!$I$144*(1+pretaxreal)^0.5)-SUM($I93:R93),(Input!$I$144*(1+pretaxreal)^0.5)/A2stdlife)) -> 0 | T93: =IF(A2stdlife="n/a","n/a",IF(T$3>(A2stdlife+$E93),(Input!$I$144*(1+pretaxreal)^0.5)-SUM($I93:S93),(Input!$I$144*(1+pretaxreal)^0.5)/A2stdlife)) -> 0 | U93: =IF(A2stdlife="n/a","n/a",IF(U$3>(A2stdlife+$E93),(Input!$I$144*(1+pretaxreal)^0.5)-SUM($I93:T93),(Input!$I$144*(1+pretaxreal)^0.5)/A2stdlife)) -> 0 | V93: =IF(A2stdlife="n/a","n/a",IF(V$3>(A2stdlife+$E93),(Input!$I$144*(1+pretaxreal)^0.5)-SUM($I93:U93),(Input!$I$144*(1+pretaxreal)^0.5)/A2stdlife)) -> 0 | W93: =IF(A2stdlife="n/a","n/a",IF(W$3>(A2stdlife+$E93),(Input!$I$144*(1+pretaxreal)^0.5)-SUM($I93:V93),(Input!$I$144*(1+pretaxreal)^0.5)/A2stdlife)) -> 0 | X93: =IF(A2stdlife="n/a","n/a",IF(X$3>(A2stdlife+$E93),(Input!$I$144*(1+pretaxreal)^0.5)-SUM($I93:W93),(Input!$I$144*(1+pretaxreal)^0.5)/A2stdlife)) -> 0 | Y93: =IF(A2stdlife="n/a","n/a",IF(Y$3>(A2stdlife+$E93),(Input!$I$144*(1+pretaxreal)^0.5)-SUM($I93:X93),(Input!$I$144*(1+pretaxreal)^0.5)/A2stdlife)) -> 0 | Z93: =IF(A2stdlife="n/a","n/a",IF(Z$3>(A2stdlife+$E93),(Input!$I$144*(1+pretaxreal)^0.5)-SUM($I93:Y93),(Input!$I$144*(1+pretaxreal)^0.5)/A2stdlife)) -> 0 | AA93: =IF(A2stdlife="n/a","n/a",IF(AA$3>(A2stdlife+$E93),(Input!$I$144*(1+pretaxreal)^0.5)-SUM($I93:Z93),(Input!$I$144*(1+pretaxreal)^0.5)/A2stdlife)) -> 0 | AB93: =IF(A2stdlife="n/a","n/a",IF(AB$3>(A2stdlife+$E93),(Input!$I$144*(1+pretaxreal)^0.5)-SUM($I93:AA93),(Input!$I$144*(1+pretaxreal)^0.5)/A2stdlife)) -> 0 | AC93: =IF(A2stdlife="n/a","n/a",IF(AC$3>(A2stdlife+$E93),(Input!$I$144*(1+pretaxreal)^0.5)-SUM($I93:AB93),(Input!$I$144*(1+pretaxreal)^0.5)/A2stdlife)) -> 0 | AD93: =IF(A2stdlife="n/a","n/a",IF(AD$3>(A2stdlife+$E93),(Input!$I$144*(1+pretaxreal)^0.5)-SUM($I93:AC93),(Input!$I$144*(1+pretaxreal)^0.5)/A2stdlife)) -> 0 | AE93: =IF(A2stdlife="n/a","n/a",IF(AE$3>(A2stdlife+$E93),(Input!$I$144*(1+pretaxreal)^0.5)-SUM($I93:AD93),(Input!$I$144*(1+pretaxreal)^0.5)/A2stdlife)) -> 0 | AF93: =IF(A2stdlife="n/a","n/a",IF(AF$3>(A2stdlife+$E93),(Input!$I$144*(1+pretaxreal)^0.5)-SUM($I93:AE93),(Input!$I$144*(1+pretaxreal)^0.5)/A2stdlife)) -> 0 | AG93: =IF(A2stdlife="n/a","n/a",IF(AG$3>(A2stdlife+$E93),(Input!$I$144*(1+pretaxreal)^0.5)-SUM($I93:AF93),(Input!$I$144*(1+pretaxreal)^0.5)/A2stdlife)) -> 0 | AH93: =IF(A2stdlife="n/a","n/a",IF(AH$3>(A2stdlife+$E93),(Input!$I$144*(1+pretaxreal)^0.5)-SUM($I93:AG93),(Input!$I$144*(1+pretaxreal)^0.5)/A2stdlife)) -> 0 | AI93: =IF(A2stdlife="n/a","n/a",IF(AI$3>(A2stdlife+$E93),(Input!$I$144*(1+pretaxreal)^0.5)-SUM($I93:AH93),(Input!$I$144*(1+pretaxreal)^0.5)/A2stdlife)) -> 0 | AJ93: =IF(A2stdlife="n/a","n/a",IF(AJ$3>(A2stdlife+$E93),(Input!$I$144*(1+pretaxreal)^0.5)-SUM($I93:AI93),(Input!$I$144*(1+pretaxreal)^0.5)/A2stdlife)) -> 0 | AK93: =IF(A2stdlife="n/a","n/a",IF(AK$3>(A2stdlife+$E93),(Input!$I$144*(1+pretaxreal)^0.5)-SUM($I93:AJ93),(Input!$I$144*(1+pretaxreal)^0.5)/A2stdlife)) -> 0 | AL93: =IF(A2stdlife="n/a","n/a",IF(AL$3>(A2stdlife+$E93),(Input!$I$144*(1+pretaxreal)^0.5)-SUM($I93:AK93),(Input!$I$144*(1+pretaxreal)^0.5)/A2stdlife)) -> 0 | AM93: =IF(A2stdlife="n/a","n/a",IF(AM$3>(A2stdlife+$E93),(Input!$I$144*(1+pretaxreal)^0.5)-SUM($I93:AL93),(Input!$I$144*(1+pretaxreal)^0.5)/A2stdlife)) -> 0 | AN93: =IF(A2stdlife="n/a","n/a",IF(AN$3>(A2stdlife+$E93),(Input!$I$144*(1+pretaxreal)^0.5)-SUM($I93:AM93),(Input!$I$144*(1+pretaxreal)^0.5)/A2stdlife)) -> 0 | AO93: =IF(A2stdlife="n/a","n/a",IF(AO$3>(A2stdlife+$E93),(Input!$I$144*(1+pretaxreal)^0.5)-SUM($I93:AN93),(Input!$I$144*(1+pretaxreal)^0.5)/A2stdlife)) -> 0 | AP93: =IF(A2stdlife="n/a","n/a",IF(AP$3>(A2stdlife+$E93),(Input!$I$144*(1+pretaxreal)^0.5)-SUM($I93:AO93),(Input!$I$144*(1+pretaxreal)^0.5)/A2stdlife)) -> 0 | AQ93: =IF(A2stdlife="n/a","n/a",IF(AQ$3>(A2stdlife+$E93),(Input!$I$144*(1+pretaxreal)^0.5)-SUM($I93:AP93),(Input!$I$144*(1+pretaxreal)^0.5)/A2stdlife)) -> 0 | AR93: =IF(A2stdlife="n/a","n/a",IF(AR$3>(A2stdlife+$E93),(Input!$I$144*(1+pretaxreal)^0.5)-SUM($I93:AQ93),(Input!$I$144*(1+pretaxreal)^0.5)/A2stdlife)) -> 0 | AS93: =IF(A2stdlife="n/a","n/a",IF(AS$3>(A2stdlife+$E93),(Input!$I$144*(1+pretaxreal)^0.5)-SUM($I93:AR93),(Input!$I$144*(1+pretaxreal)^0.5)/A2stdlife)) -> 0 | AT93: =IF(A2stdlife="n/a","n/a",IF(AT$3>(A2stdlife+$E93),(Input!$I$144*(1+pretaxreal)^0.5)-SUM($I93:AS93),(Input!$I$144*(1+pretaxreal)^0.5)/A2stdlife)) -> 0 | AU93: =IF(A2stdlife="n/a","n/a",IF(AU$3>(A2stdlife+$E93),(Input!$I$144*(1+pretaxreal)^0.5)-SUM($I93:AT93),(Input!$I$144*(1+pretaxreal)^0.5)/A2stdlife)) -> 0 | AV93: =IF(A2stdlife="n/a","n/a",IF(AV$3>(A2stdlife+$E93),(Input!$I$144*(1+pretaxreal)^0.5)-SUM($I93:AU93),(Input!$I$144*(1+pretaxreal)^0.5)/A2stdlife)) -> 0 | AW93: =IF(A2stdlife="n/a","n/a",IF(AW$3>(A2stdlife+$E93),(Input!$I$144*(1+pretaxreal)^0.5)-SUM($I93:AV93),(Input!$I$144*(1+pretaxreal)^0.5)/A2stdlife)) -> 0 | AX93: =IF(A2stdlife="n/a","n/a",IF(AX$3>(A2stdlife+$E93),(Input!$I$144*(1+pretaxreal)^0.5)-SUM($I93:AW93),(Input!$I$144*(1+pretaxreal)^0.5)/A2stdlife)) -> 0 | AY93: =IF(A2stdlife="n/a","n/a",IF(AY$3>(A2stdlife+$E93),(Input!$I$144*(1+pretaxreal)^0.5)-SUM($I93:AX93),(Input!$I$144*(1+pretaxreal)^0.5)/A2stdlife)) -> 0 | AZ93: =IF(A2stdlife="n/a","n/a",IF(AZ$3>(A2stdlife+$E93),(Input!$I$144*(1+pretaxreal)^0.5)-SUM($I93:AY93),(Input!$I$144*(1+pretaxreal)^0.5)/A2stdlife)) -> 0 | BA93: =IF(A2stdlife="n/a","n/a",IF(BA$3>(A2stdlife+$E93),(Input!$I$144*(1+pretaxreal)^0.5)-SUM($I93:AZ93),(Input!$I$144*(1+pretaxreal)^0.5)/A2stdlife)) -> 0 | BB93: =IF(A2stdlife="n/a","n/a",IF(BB$3>(A2stdlife+$E93),(Input!$I$144*(1+pretaxreal)^0.5)-SUM($I93:BA93),(Input!$I$144*(1+pretaxreal)^0.5)/A2stdlife)) -> 0 | BC93: =IF(A2stdlife="n/a","n/a",IF(BC$3>(A2stdlife+$E93),(Input!$I$144*(1+pretaxreal)^0.5)-SUM($I93:BB93),(Input!$I$144*(1+pretaxreal)^0.5)/A2stdlife)) -> 0 | BD93: =IF(A2stdlife="n/a","n/a",IF(BD$3>(A2stdlife+$E93),(Input!$I$144*(1+pretaxreal)^0.5)-SUM($I93:BC93),(Input!$I$144*(1+pretaxreal)^0.5)/A2stdlife)) -> 0 | BE93: =IF(A2stdlife="n/a","n/a",IF(BE$3>(A2stdlife+$E93),(Input!$I$144*(1+pretaxreal)^0.5)-SUM($I93:BD93),(Input!$I$144*(1+pretaxreal)^0.5)/A2stdlife)) -> 0 | BF93: =IF(A2stdlife="n/a","n/a",IF(BF$3>(A2stdlife+$E93),(Input!$I$144*(1+pretaxreal)^0.5)-SUM($I93:BE93),(Input!$I$144*(1+pretaxreal)^0.5)/A2stdlife)) -> 0 | BG93: =IF(A2stdlife="n/a","n/a",IF(BG$3>(A2stdlife+$E93),(Input!$I$144*(1+pretaxreal)^0.5)-SUM($I93:BF93),(Input!$I$144*(1+pretaxreal)^0.5)/A2stdlife)) -> 0 | BH93: =IF(A2stdlife="n/a","n/a",IF(BH$3>(A2stdlife+$E93),(Input!$I$144*(1+pretaxreal)^0.5)-SUM($I93:BG93),(Input!$I$144*(1+pretaxreal)^0.5)/A2stdlife)) -> 0 | BI93: =IF(A2stdlife="n/a","n/a",IF(BI$3>(A2stdlife+$E93),(Input!$I$144*(1+pretaxreal)^0.5)-SUM($I93:BH93),(Input!$I$144*(1+pretaxreal)^0.5)/A2stdlife)) -> 0
E94: 4 | K94: =IF(A2stdlife="n/a","n/a",IF(K$3>(A2stdlife+$E94),(Input!$J$144*(1+pretaxreal)^0.5)-SUM($J94:J94),(Input!$J$144*(1+pretaxreal)^0.5)/A2stdlife)) -> 0 | L94: =IF(A2stdlife="n/a","n/a",IF(L$3>(A2stdlife+$E94),(Input!$J$144*(1+pretaxreal)^0.5)-SUM($J94:K94),(Input!$J$144*(1+pretaxreal)^0.5)/A2stdlife)) -> 0 | M94: =IF(A2stdlife="n/a","n/a",IF(M$3>(A2stdlife+$E94),(Input!$J$144*(1+pretaxreal)^0.5)-SUM($J94:L94),(Input!$J$144*(1+pretaxreal)^0.5)/A2stdlife)) -> 0 | N94: =IF(A2stdlife="n/a","n/a",IF(N$3>(A2stdlife+$E94),(Input!$J$144*(1+pretaxreal)^0.5)-SUM($J94:M94),(Input!$J$144*(1+pretaxreal)^0.5)/A2stdlife)) -> 0 | O94: =IF(A2stdlife="n/a","n/a",IF(O$3>(A2stdlife+$E94),(Input!$J$144*(1+pretaxreal)^0.5)-SUM($J94:N94),(Input!$J$144*(1+pretaxreal)^0.5)/A2stdlife)) -> 0 | P94: =IF(A2stdlife="n/a","n/a",IF(P$3>(A2stdlife+$E94),(Input!$J$144*(1+pretaxreal)^0.5)-SUM($J94:O94),(Input!$J$144*(1+pretaxreal)^0.5)/A2stdlife)) -> 0 | Q94: =IF(A2stdlife="n/a","n/a",IF(Q$3>(A2stdlife+$E94),(Input!$J$144*(1+pretaxreal)^0.5)-SUM($J94:P94),(Input!$J$144*(1+pretaxreal)^0.5)/A2stdlife)) -> 0 | R94: =IF(A2stdlife="n/a","n/a",IF(R$3>(A2stdlife+$E94),(Input!$J$144*(1+pretaxreal)^0.5)-SUM($J94:Q94),(Input!$J$144*(1+pretaxreal)^0.5)/A2stdlife)) -> 0 | S94: =IF(A2stdlife="n/a","n/a",IF(S$3>(A2stdlife+$E94),(Input!$J$144*(1+pretaxreal)^0.5)-SUM($J94:R94),(Input!$J$144*(1+pretaxreal)^0.5)/A2stdlife)) -> 0 | T94: =IF(A2stdlife="n/a","n/a",IF(T$3>(A2stdlife+$E94),(Input!$J$144*(1+pretaxreal)^0.5)-SUM($J94:S94),(Input!$J$144*(1+pretaxreal)^0.5)/A2stdlife)) -> 0 | U94: =IF(A2stdlife="n/a","n/a",IF(U$3>(A2stdlife+$E94),(Input!$J$144*(1+pretaxreal)^0.5)-SUM($J94:T94),(Input!$J$144*(1+pretaxreal)^0.5)/A2stdlife)) -> 0 | V94: =IF(A2stdlife="n/a","n/a",IF(V$3>(A2stdlife+$E94),(Input!$J$144*(1+pretaxreal)^0.5)-SUM($J94:U94),(Input!$J$144*(1+pretaxreal)^0.5)/A2stdlife)) -> 0 | W94: =IF(A2stdlife="n/a","n/a",IF(W$3>(A2stdlife+$E94),(Input!$J$144*(1+pretaxreal)^0.5)-SUM($J94:V94),(Input!$J$144*(1+pretaxreal)^0.5)/A2stdlife)) -> 0 | X94: =IF(A2stdlife="n/a","n/a",IF(X$3>(A2stdlife+$E94),(Input!$J$144*(1+pretaxreal)^0.5)-SUM($J94:W94),(Input!$J$144*(1+pretaxreal)^0.5)/A2stdlife)) -> 0 | Y94: =IF(A2stdlife="n/a","n/a",IF(Y$3>(A2stdlife+$E94),(Input!$J$144*(1+pretaxreal)^0.5)-SUM($J94:X94),(Input!$J$144*(1+pretaxreal)^0.5)/A2stdlife)) -> 0 | Z94: =IF(A2stdlife="n/a","n/a",IF(Z$3>(A2stdlife+$E94),(Input!$J$144*(1+pretaxreal)^0.5)-SUM($J94:Y94),(Input!$J$144*(1+pretaxreal)^0.5)/A2stdlife)) -> 0 | AA94: =IF(A2stdlife="n/a","n/a",IF(AA$3>(A2stdlife+$E94),(Input!$J$144*(1+pretaxreal)^0.5)-SUM($J94:Z94),(Input!$J$144*(1+pretaxreal)^0.5)/A2stdlife)) -> 0 | AB94: =IF(A2stdlife="n/a","n/a",IF(AB$3>(A2stdlife+$E94),(Input!$J$144*(1+pretaxreal)^0.5)-SUM($J94:AA94),(Input!$J$144*(1+pretaxreal)^0.5)/A2stdlife)) -> 0 | AC94: =IF(A2stdlife="n/a","n/a",IF(AC$3>(A2stdlife+$E94),(Input!$J$144*(1+pretaxreal)^0.5)-SUM($J94:AB94),(Input!$J$144*(1+pretaxreal)^0.5)/A2stdlife)) -> 0 | AD94: =IF(A2stdlife="n/a","n/a",IF(AD$3>(A2stdlife+$E94),(Input!$J$144*(1+pretaxreal)^0.5)-SUM($J94:AC94),(Input!$J$144*(1+pretaxreal)^0.5)/A2stdlife)) -> 0 | AE94: =IF(A2stdlife="n/a","n/a",IF(AE$3>(A2stdlife+$E94),(Input!$J$144*(1+pretaxreal)^0.5)-SUM($J94:AD94),(Input!$J$144*(1+pretaxreal)^0.5)/A2stdlife)) -> 0 | AF94: =IF(A2stdlife="n/a","n/a",IF(AF$3>(A2stdlife+$E94),(Input!$J$144*(1+pretaxreal)^0.5)-SUM($J94:AE94),(Input!$J$144*(1+pretaxreal)^0.5)/A2stdlife)) -> 0 | AG94: =IF(A2stdlife="n/a","n/a",IF(AG$3>(A2stdlife+$E94),(Input!$J$144*(1+pretaxreal)^0.5)-SUM($J94:AF94),(Input!$J$144*(1+pretaxreal)^0.5)/A2stdlife)) -> 0 | AH94: =IF(A2stdlife="n/a","n/a",IF(AH$3>(A2stdlife+$E94),(Input!$J$144*(1+pretaxreal)^0.5)-SUM($J94:AG94),(Input!$J$144*(1+pretaxreal)^0.5)/A2stdlife)) -> 0 | AI94: =IF(A2stdlife="n/a","n/a",IF(AI$3>(A2stdlife+$E94),(Input!$J$144*(1+pretaxreal)^0.5)-SUM($J94:AH94),(Input!$J$144*(1+pretaxreal)^0.5)/A2stdlife)) -> 0 | AJ94: =IF(A2stdlife="n/a","n/a",IF(AJ$3>(A2stdlife+$E94),(Input!$J$144*(1+pretaxreal)^0.5)-SUM($J94:AI94),(Input!$J$144*(1+pretaxreal)^0.5)/A2stdlife)) -> 0 | AK94: =IF(A2stdlife="n/a","n/a",IF(AK$3>(A2stdlife+$E94),(Input!$J$144*(1+pretaxreal)^0.5)-SUM($J94:AJ94),(Input!$J$144*(1+pretaxreal)^0.5)/A2stdlife)) -> 0 | AL94: =IF(A2stdlife="n/a","n/a",IF(AL$3>(A2stdlife+$E94),(Input!$J$144*(1+pretaxreal)^0.5)-SUM($J94:AK94),(Input!$J$144*(1+pretaxreal)^0.5)/A2stdlife)) -> 0 | AM94: =IF(A2stdlife="n/a","n/a",IF(AM$3>(A2stdlife+$E94),(Input!$J$144*(1+pretaxreal)^0.5)-SUM($J94:AL94),(Input!$J$144*(1+pretaxreal)^0.5)/A2stdlife)) -> 0 | AN94: =IF(A2stdlife="n/a","n/a",IF(AN$3>(A2stdlife+$E94),(Input!$J$144*(1+pretaxreal)^0.5)-SUM($J94:AM94),(Input!$J$144*(1+pretaxreal)^0.5)/A2stdlife)) -> 0 | AO94: =IF(A2stdlife="n/a","n/a",IF(AO$3>(A2stdlife+$E94),(Input!$J$144*(1+pretaxreal)^0.5)-SUM($J94:AN94),(Input!$J$144*(1+pretaxreal)^0.5)/A2stdlife)) -> 0 | AP94: =IF(A2stdlife="n/a","n/a",IF(AP$3>(A2stdlife+$E94),(Input!$J$144*(1+pretaxreal)^0.5)-SUM($J94:AO94),(Input!$J$144*(1+pretaxreal)^0.5)/A2stdlife)) -> 0 | AQ94: =IF(A2stdlife="n/a","n/a",IF(AQ$3>(A2stdlife+$E94),(Input!$J$144*(1+pretaxreal)^0.5)-SUM($J94:AP94),(Input!$J$144*(1+pretaxreal)^0.5)/A2stdlife)) -> 0 | AR94: =IF(A2stdlife="n/a","n/a",IF(AR$3>(A2stdlife+$E94),(Input!$J$144*(1+pretaxreal)^0.5)-SUM($J94:AQ94),(Input!$J$144*(1+pretaxreal)^0.5)/A2stdlife)) -> 0 | AS94: =IF(A2stdlife="n/a","n/a",IF(AS$3>(A2stdlife+$E94),(Input!$J$144*(1+pretaxreal)^0.5)-SUM($J94:AR94),(Input!$J$144*(1+pretaxreal)^0.5)/A2stdlife)) -> 0 | AT94: =IF(A2stdlife="n/a","n/a",IF(AT$3>(A2stdlife+$E94),(Input!$J$144*(1+pretaxreal)^0.5)-SUM($J94:AS94),(Input!$J$144*(1+pretaxreal)^0.5)/A2stdlife)) -> 0 | AU94: =IF(A2stdlife="n/a","n/a",IF(AU$3>(A2stdlife+$E94),(Input!$J$144*(1+pretaxreal)^0.5)-SUM($J94:AT94),(Input!$J$144*(1+pretaxreal)^0.5)/A2stdlife)) -> 0 | AV94: =IF(A2stdlife="n/a","n/a",IF(AV$3>(A2stdlife+$E94),(Input!$J$144*(1+pretaxreal)^0.5)-SUM($J94:AU94),(Input!$J$144*(1+pretaxreal)^0.5)/A2stdlife)) -> 0 | AW94: =IF(A2stdlife="n/a","n/a",IF(AW$3>(A2stdlife+$E94),(Input!$J$144*(1+pretaxreal)^0.5)-SUM($J94:AV94),(Input!$J$144*(1+pretaxreal)^0.5)/A2stdlife)) -> 0 | AX94: =IF(A2stdlife="n/a","n/a",IF(AX$3>(A2stdlife+$E94),(Input!$J$144*(1+pretaxreal)^0.5)-SUM($J94:AW94),(Input!$J$144*(1+pretaxreal)^0.5)/A2stdlife)) -> 0 | AY94: =IF(A2stdlife="n/a","n/a",IF(AY$3>(A2stdlife+$E94),(Input!$J$144*(1+pretaxreal)^0.5)-SUM($J94:AX94),(Input!$J$144*(1+pretaxreal)^0.5)/A2stdlife)) -> 0 | AZ94: =IF(A2stdlife="n/a","n/a",IF(AZ$3>(A2stdlife+$E94),(Input!$J$144*(1+pretaxreal)^0.5)-SUM($J94:AY94),(Input!$J$144*(1+pretaxreal)^0.5)/A2stdlife)) -> 0 | BA94: =IF(A2stdlife="n/a","n/a",IF(BA$3>(A2stdlife+$E94),(Input!$J$144*(1+pretaxreal)^0.5)-SUM($J94:AZ94),(Input!$J$144*(1+pretaxreal)^0.5)/A2stdlife)) -> 0 | BB94: =IF(A2stdlife="n/a","n/a",IF(BB$3>(A2stdlife+$E94),(Input!$J$144*(1+pretaxreal)^0.5)-SUM($J94:BA94),(Input!$J$144*(1+pretaxreal)^0.5)/A2stdlife)) -> 0 | BC94: =IF(A2stdlife="n/a","n/a",IF(BC$3>(A2stdlife+$E94),(Input!$J$144*(1+pretaxreal)^0.5)-SUM($J94:BB94),(Input!$J$144*(1+pretaxreal)^0.5)/A2stdlife)) -> 0 | BD94: =IF(A2stdlife="n/a","n/a",IF(BD$3>(A2stdlife+$E94),(Input!$J$144*(1+pretaxreal)^0.5)-SUM($J94:BC94),(Input!$J$144*(1+pretaxreal)^0.5)/A2stdlife)) -> 0 | BE94: =IF(A2stdlife="n/a","n/a",IF(BE$3>(A2stdlife+$E94),(Input!$J$144*(1+pretaxreal)^0.5)-SUM($J94:BD94),(Input!$J$144*(1+pretaxreal)^0.5)/A2stdlife)) -> 0 | BF94: =IF(A2stdlife="n/a","n/a",IF(BF$3>(A2stdlife+$E94),(Input!$J$144*(1+pretaxreal)^0.5)-SUM($J94:BE94),(Input!$J$144*(1+pretaxreal)^0.5)/A2stdlife)) -> 0 | BG94: =IF(A2stdlife="n/a","n/a",IF(BG$3>(A2stdlife+$E94),(Input!$J$144*(1+pretaxreal)^0.5)-SUM($J94:BF94),(Input!$J$144*(1+pretaxreal)^0.5)/A2stdlife)) -> 0 | BH94: =IF(A2stdlife="n/a","n/a",IF(BH$3>(A2stdlife+$E94),(Input!$J$144*(1+pretaxreal)^0.5)-SUM($J94:BG94),(Input!$J$144*(1+pretaxreal)^0.5)/A2stdlife)) -> 0 | BI94: =IF(A2stdlife="n/a","n/a",IF(BI$3>(A2stdlife+$E94),(Input!$J$144*(1+pretaxreal)^0.5)-SUM($J94:BH94),(Input!$J$144*(1+pretaxreal)^0.5)/A2stdlife)) -> 0
E95: 5 | L95: =IF(A2stdlife="n/a","n/a",IF(L$3>(A2stdlife+$E95),(Input!$K$144*(1+pretaxreal)^0.5)-SUM($K95:K95),(Input!$K$144*(1+pretaxreal)^0.5)/A2stdlife)) -> 0 | M95: =IF(A2stdlife="n/a","n/a",IF(M$3>(A2stdlife+$E95),(Input!$K$144*(1+pretaxreal)^0.5)-SUM($K95:L95),(Input!$K$144*(1+pretaxreal)^0.5)/A2stdlife)) -> 0 | N95: =IF(A2stdlife="n/a","n/a",IF(N$3>(A2stdlife+$E95),(Input!$K$144*(1+pretaxreal)^0.5)-SUM($K95:M95),(Input!$K$144*(1+pretaxreal)^0.5)/A2stdlife)) -> 0 | O95: =IF(A2stdlife="n/a","n/a",IF(O$3>(A2stdlife+$E95),(Input!$K$144*(1+pretaxreal)^0.5)-SUM($K95:N95),(Input!$K$144*(1+pretaxreal)^0.5)/A2stdlife)) -> 0 | P95: =IF(A2stdlife="n/a","n/a",IF(P$3>(A2stdlife+$E95),(Input!$K$144*(1+pretaxreal)^0.5)-SUM($K95:O95),(Input!$K$144*(1+pretaxreal)^0.5)/A2stdlife)) -> 0 | Q95: =IF(A2stdlife="n/a","n/a",IF(Q$3>(A2stdlife+$E95),(Input!$K$144*(1+pretaxreal)^0.5)-SUM($K95:P95),(Input!$K$144*(1+pretaxreal)^0.5)/A2stdlife)) -> 0 | R95: =IF(A2stdlife="n/a","n/a",IF(R$3>(A2stdlife+$E95),(Input!$K$144*(1+pretaxreal)^0.5)-SUM($K95:Q95),(Input!$K$144*(1+pretaxreal)^0.5)/A2stdlife)) -> 0 | S95: =IF(A2stdlife="n/a","n/a",IF(S$3>(A2stdlife+$E95),(Input!$K$144*(1+pretaxreal)^0.5)-SUM($K95:R95),(Input!$K$144*(1+pretaxreal)^0.5)/A2stdlife)) -> 0 | T95: =IF(A2stdlife="n/a","n/a",IF(T$3>(A2stdlife+$E95),(Input!$K$144*(1+pretaxreal)^0.5)-SUM($K95:S95),(Input!$K$144*(1+pretaxreal)^0.5)/A2stdlife)) -> 0 | U95: =IF(A2stdlife="n/a","n/a",IF(U$3>(A2stdlife+$E95),(Input!$K$144*(1+pretaxreal)^0.5)-SUM($K95:T95),(Input!$K$144*(1+pretaxreal)^0.5)/A2stdlife)) -> 0 | V95: =IF(A2stdlife="n/a","n/a",IF(V$3>(A2stdlife+$E95),(Input!$K$144*(1+pretaxreal)^0.5)-SUM($K95:U95),(Input!$K$144*(1+pretaxreal)^0.5)/A2stdlife)) -> 0 | W95: =IF(A2stdlife="n/a","n/a",IF(W$3>(A2stdlife+$E95),(Input!$K$144*(1+pretaxreal)^0.5)-SUM($K95:V95),(Input!$K$144*(1+pretaxreal)^0.5)/A2stdlife)) -> 0 | X95: =IF(A2stdlife="n/a","n/a",IF(X$3>(A2stdlife+$E95),(Input!$K$144*(1+pretaxreal)^0.5)-SUM($K95:W95),(Input!$K$144*(1+pretaxreal)^0.5)/A2stdlife)) -> 0 | Y95: =IF(A2stdlife="n/a","n/a",IF(Y$3>(A2stdlife+$E95),(Input!$K$144*(1+pretaxreal)^0.5)-SUM($K95:X95),(Input!$K$144*(1+pretaxreal)^0.5)/A2stdlife)) -> 0 | Z95: =IF(A2stdlife="n/a","n/a",IF(Z$3>(A2stdlife+$E95),(Input!$K$144*(1+pretaxreal)^0.5)-SUM($K95:Y95),(Input!$K$144*(1+pretaxreal)^0.5)/A2stdlife)) -> 0 | AA95: =IF(A2stdlife="n/a","n/a",IF(AA$3>(A2stdlife+$E95),(Input!$K$144*(1+pretaxreal)^0.5)-SUM($K95:Z95),(Input!$K$144*(1+pretaxreal)^0.5)/A2stdlife)) -> 0 | AB95: =IF(A2stdlife="n/a","n/a",IF(AB$3>(A2stdlife+$E95),(Input!$K$144*(1+pretaxreal)^0.5)-SUM($K95:AA95),(Input!$K$144*(1+pretaxreal)^0.5)/A2stdlife)) -> 0 | AC95: =IF(A2stdlife="n/a","n/a",IF(AC$3>(A2stdlife+$E95),(Input!$K$144*(1+pretaxreal)^0.5)-SUM($K95:AB95),(Input!$K$144*(1+pretaxreal)^0.5)/A2stdlife)) -> 0 | AD95: =IF(A2stdlife="n/a","n/a",IF(AD$3>(A2stdlife+$E95),(Input!$K$144*(1+pretaxreal)^0.5)-SUM($K95:AC95),(Input!$K$144*(1+pretaxreal)^0.5)/A2stdlife)) -> 0 | AE95: =IF(A2stdlife="n/a","n/a",IF(AE$3>(A2stdlife+$E95),(Input!$K$144*(1+pretaxreal)^0.5)-SUM($K95:AD95),(Input!$K$144*(1+pretaxreal)^0.5)/A2stdlife)) -> 0 | AF95: =IF(A2stdlife="n/a","n/a",IF(AF$3>(A2stdlife+$E95),(Input!$K$144*(1+pretaxreal)^0.5)-SUM($K95:AE95),(Input!$K$144*(1+pretaxreal)^0.5)/A2stdlife)) -> 0 | AG95: =IF(A2stdlife="n/a","n/a",IF(AG$3>(A2stdlife+$E95),(Input!$K$144*(1+pretaxreal)^0.5)-SUM($K95:AF95),(Input!$K$144*(1+pretaxreal)^0.5)/A2stdlife)) -> 0 | AH95: =IF(A2stdlife="n/a","n/a",IF(AH$3>(A2stdlife+$E95),(Input!$K$144*(1+pretaxreal)^0.5)-SUM($K95:AG95),(Input!$K$144*(1+pretaxreal)^0.5)/A2stdlife)) -> 0 | AI95: =IF(A2stdlife="n/a","n/a",IF(AI$3>(A2stdlife+$E95),(Input!$K$144*(1+pretaxreal)^0.5)-SUM($K95:AH95),(Input!$K$144*(1+pretaxreal)^0.5)/A2stdlife)) -> 0 | AJ95: =IF(A2stdlife="n/a","n/a",IF(AJ$3>(A2stdlife+$E95),(Input!$K$144*(1+pretaxreal)^0.5)-SUM($K95:AI95),(Input!$K$144*(1+pretaxreal)^0.5)/A2stdlife)) -> 0 | AK95: =IF(A2stdlife="n/a","n/a",IF(AK$3>(A2stdlife+$E95),(Input!$K$144*(1+pretaxreal)^0.5)-SUM($K95:AJ95),(Input!$K$144*(1+pretaxreal)^0.5)/A2stdlife)) -> 0 | AL95: =IF(A2stdlife="n/a","n/a",IF(AL$3>(A2stdlife+$E95),(Input!$K$144*(1+pretaxreal)^0.5)-SUM($K95:AK95),(Input!$K$144*(1+pretaxreal)^0.5)/A2stdlife)) -> 0 | AM95: =IF(A2stdlife="n/a","n/a",IF(AM$3>(A2stdlife+$E95),(Input!$K$144*(1+pretaxreal)^0.5)-SUM($K95:AL95),(Input!$K$144*(1+pretaxreal)^0.5)/A2stdlife)) -> 0 | AN95: =IF(A2stdlife="n/a","n/a",IF(AN$3>(A2stdlife+$E95),(Input!$K$144*(1+pretaxreal)^0.5)-SUM($K95:AM95),(Input!$K$144*(1+pretaxreal)^0.5)/A2stdlife)) -> 0 | AO95: =IF(A2stdlife="n/a","n/a",IF(AO$3>(A2stdlife+$E95),(Input!$K$144*(1+pretaxreal)^0.5)-SUM($K95:AN95),(Input!$K$144*(1+pretaxreal)^0.5)/A2stdlife)) -> 0 | AP95: =IF(A2stdlife="n/a","n/a",IF(AP$3>(A2stdlife+$E95),(Input!$K$144*(1+pretaxreal)^0.5)-SUM($K95:AO95),(Input!$K$144*(1+pretaxreal)^0.5)/A2stdlife)) -> 0 | AQ95: =IF(A2stdlife="n/a","n/a",IF(AQ$3>(A2stdlife+$E95),(Input!$K$144*(1+pretaxreal)^0.5)-SUM($K95:AP95),(Input!$K$144*(1+pretaxreal)^0.5)/A2stdlife)) -> 0 | AR95: =IF(A2stdlife="n/a","n/a",IF(AR$3>(A2stdlife+$E95),(Input!$K$144*(1+pretaxreal)^0.5)-SUM($K95:AQ95),(Input!$K$144*(1+pretaxreal)^0.5)/A2stdlife)) -> 0 | AS95: =IF(A2stdlife="n/a","n/a",IF(AS$3>(A2stdlife+$E95),(Input!$K$144*(1+pretaxreal)^0.5)-SUM($K95:AR95),(Input!$K$144*(1+pretaxreal)^0.5)/A2stdlife)) -> 0 | AT95: =IF(A2stdlife="n/a","n/a",IF(AT$3>(A2stdlife+$E95),(Input!$K$144*(1+pretaxreal)^0.5)-SUM($K95:AS95),(Input!$K$144*(1+pretaxreal)^0.5)/A2stdlife)) -> 0 | AU95: =IF(A2stdlife="n/a","n/a",IF(AU$3>(A2stdlife+$E95),(Input!$K$144*(1+pretaxreal)^0.5)-SUM($K95:AT95),(Input!$K$144*(1+pretaxreal)^0.5)/A2stdlife)) -> 0 | AV95: =IF(A2stdlife="n/a","n/a",IF(AV$3>(A2stdlife+$E95),(Input!$K$144*(1+pretaxreal)^0.5)-SUM($K95:AU95),(Input!$K$144*(1+pretaxreal)^0.5)/A2stdlife)) -> 0 | AW95: =IF(A2stdlife="n/a","n/a",IF(AW$3>(A2stdlife+$E95),(Input!$K$144*(1+pretaxreal)^0.5)-SUM($K95:AV95),(Input!$K$144*(1+pretaxreal)^0.5)/A2stdlife)) -> 0 | AX95: =IF(A2stdlife="n/a","n/a",IF(AX$3>(A2stdlife+$E95),(Input!$K$144*(1+pretaxreal)^0.5)-SUM($K95:AW95),(Input!$K$144*(1+pretaxreal)^0.5)/A2stdlife)) -> 0 | AY95: =IF(A2stdlife="n/a","n/a",IF(AY$3>(A2stdlife+$E95),(Input!$K$144*(1+pretaxreal)^0.5)-SUM($K95:AX95),(Input!$K$144*(1+pretaxreal)^0.5)/A2stdlife)) -> 0 | AZ95: =IF(A2stdlife="n/a","n/a",IF(AZ$3>(A2stdlife+$E95),(Input!$K$144*(1+pretaxreal)^0.5)-SUM($K95:AY95),(Input!$K$144*(1+pretaxreal)^0.5)/A2stdlife)) -> 0 | BA95: =IF(A2stdlife="n/a","n/a",IF(BA$3>(A2stdlife+$E95),(Input!$K$144*(1+pretaxreal)^0.5)-SUM($K95:AZ95),(Input!$K$144*(1+pretaxreal)^0.5)/A2stdlife)) -> 0 | BB95: =IF(A2stdlife="n/a","n/a",IF(BB$3>(A2stdlife+$E95),(Input!$K$144*(1+pretaxreal)^0.5)-SUM($K95:BA95),(Input!$K$144*(1+pretaxreal)^0.5)/A2stdlife)) -> 0 | BC95: =IF(A2stdlife="n/a","n/a",IF(BC$3>(A2stdlife+$E95),(Input!$K$144*(1+pretaxreal)^0.5)-SUM($K95:BB95),(Input!$K$144*(1+pretaxreal)^0.5)/A2stdlife)) -> 0 | BD95: =IF(A2stdlife="n/a","n/a",IF(BD$3>(A2stdlife+$E95),(Input!$K$144*(1+pretaxreal)^0.5)-SUM($K95:BC95),(Input!$K$144*(1+pretaxreal)^0.5)/A2stdlife)) -> 0 | BE95: =IF(A2stdlife="n/a","n/a",IF(BE$3>(A2stdlife+$E95),(Input!$K$144*(1+pretaxreal)^0.5)-SUM($K95:BD95),(Input!$K$144*(1+pretaxreal)^0.5)/A2stdlife)) -> 0 | BF95: =IF(A2stdlife="n/a","n/a",IF(BF$3>(A2stdlife+$E95),(Input!$K$144*(1+pretaxreal)^0.5)-SUM($K95:BE95),(Input!$K$144*(1+pretaxreal)^0.5)/A2stdlife)) -> 0 | BG95: =IF(A2stdlife="n/a","n/a",IF(BG$3>(A2stdlife+$E95),(Input!$K$144*(1+pretaxreal)^0.5)-SUM($K95:BF95),(Input!$K$144*(1+pretaxreal)^0.5)/A2stdlife)) -> 0 | BH95: =IF(A2stdlife="n/a","n/a",IF(BH$3>(A2stdlife+$E95),(Input!$K$144*(1+pretaxreal)^0.5)-SUM($K95:BG95),(Input!$K$144*(1+pretaxreal)^0.5)/A2stdlife)) -> 0 | BI95: =IF(A2stdlife="n/a","n/a",IF(BI$3>(A2stdlife+$E95),(Input!$K$144*(1+pretaxreal)^0.5)-SUM($K95:BH95),(Input!$K$144*(1+pretaxreal)^0.5)/A2stdlife)) -> 0
E96: 6 | M96: =IF(A2stdlife="n/a","n/a",IF(M$3>(A2stdlife+$E96),(Input!$L$144*(1+pretaxreal)^0.5)-SUM($L96:L96),(Input!$L$144*(1+pretaxreal)^0.5)/A2stdlife)) -> 0 | N96: =IF(A2stdlife="n/a","n/a",IF(N$3>(A2stdlife+$E96),(Input!$L$144*(1+pretaxreal)^0.5)-SUM($L96:M96),(Input!$L$144*(1+pretaxreal)^0.5)/A2stdlife)) -> 0 | O96: =IF(A2stdlife="n/a","n/a",IF(O$3>(A2stdlife+$E96),(Input!$L$144*(1+pretaxreal)^0.5)-SUM($L96:N96),(Input!$L$144*(1+pretaxreal)^0.5)/A2stdlife)) -> 0 | P96: =IF(A2stdlife="n/a","n/a",IF(P$3>(A2stdlife+$E96),(Input!$L$144*(1+pretaxreal)^0.5)-SUM($L96:O96),(Input!$L$144*(1+pretaxreal)^0.5)/A2stdlife)) -> 0 | Q96: =IF(A2stdlife="n/a","n/a",IF(Q$3>(A2stdlife+$E96),(Input!$L$144*(1+pretaxreal)^0.5)-SUM($L96:P96),(Input!$L$144*(1+pretaxreal)^0.5)/A2stdlife)) -> 0 | R96: =IF(A2stdlife="n/a","n/a",IF(R$3>(A2stdlife+$E96),(Input!$L$144*(1+pretaxreal)^0.5)-SUM($L96:Q96),(Input!$L$144*(1+pretaxreal)^0.5)/A2stdlife)) -> 0 | S96: =IF(A2stdlife="n/a","n/a",IF(S$3>(A2stdlife+$E96),(Input!$L$144*(1+pretaxreal)^0.5)-SUM($L96:R96),(Input!$L$144*(1+pretaxreal)^0.5)/A2stdlife)) -> 0 | T96: =IF(A2stdlife="n/a","n/a",IF(T$3>(A2stdlife+$E96),(Input!$L$144*(1+pretaxreal)^0.5)-SUM($L96:S96),(Input!$L$144*(1+pretaxreal)^0.5)/A2stdlife)) -> 0 | U96: =IF(A2stdlife="n/a","n/a",IF(U$3>(A2stdlife+$E96),(Input!$L$144*(1+pretaxreal)^0.5)-SUM($L96:T96),(Input!$L$144*(1+pretaxreal)^0.5)/A2stdlife)) -> 0 | V96: =IF(A2stdlife="n/a","n/a",IF(V$3>(A2stdlife+$E96),(Input!$L$144*(1+pretaxreal)^0.5)-SUM($L96:U96),(Input!$L$144*(1+pretaxreal)^0.5)/A2stdlife)) -> 0 | W96: =IF(A2stdlife="n/a","n/a",IF(W$3>(A2stdlife+$E96),(Input!$L$144*(1+pretaxreal)^0.5)-SUM($L96:V96),(Input!$L$144*(1+pretaxreal)^0.5)/A2stdlife)) -> 0 | X96: =IF(A2stdlife="n/a","n/a",IF(X$3>(A2stdlife+$E96),(Input!$L$144*(1+pretaxreal)^0.5)-SUM($L96:W96),(Input!$L$144*(1+pretaxreal)^0.5)/A2stdlife)) -> 0 | Y96: =IF(A2stdlife="n/a","n/a",IF(Y$3>(A2stdlife+$E96),(Input!$L$144*(1+pretaxreal)^0.5)-SUM($L96:X96),(Input!$L$144*(1+pretaxreal)^0.5)/A2stdlife)) -> 0 | Z96: =IF(A2stdlife="n/a","n/a",IF(Z$3>(A2stdlife+$E96),(Input!$L$144*(1+pretaxreal)^0.5)-SUM($L96:Y96),(Input!$L$144*(1+pretaxreal)^0.5)/A2stdlife)) -> 0 | AA96: =IF(A2stdlife="n/a","n/a",IF(AA$3>(A2stdlife+$E96),(Input!$L$144*(1+pretaxreal)^0.5)-SUM($L96:Z96),(Input!$L$144*(1+pretaxreal)^0.5)/A2stdlife)) -> 0 | AB96: =IF(A2stdlife="n/a","n/a",IF(AB$3>(A2stdlife+$E96),(Input!$L$144*(1+pretaxreal)^0.5)-SUM($L96:AA96),(Input!$L$144*(1+pretaxreal)^0.5)/A2stdlife)) -> 0 | AC96: =IF(A2stdlife="n/a","n/a",IF(AC$3>(A2stdlife+$E96),(Input!$L$144*(1+pretaxreal)^0.5)-SUM($L96:AB96),(Input!$L$144*(1+pretaxreal)^0.5)/A2stdlife)) -> 0 | AD96: =IF(A2stdlife="n/a","n/a",IF(AD$3>(A2stdlife+$E96),(Input!$L$144*(1+pretaxreal)^0.5)-SUM($L96:AC96),(Input!$L$144*(1+pretaxreal)^0.5)/A2stdlife)) -> 0 | AE96: =IF(A2stdlife="n/a","n/a",IF(AE$3>(A2stdlife+$E96),(Input!$L$144*(1+pretaxreal)^0.5)-SUM($L96:AD96),(Input!$L$144*(1+pretaxreal)^0.5)/A2stdlife)) -> 0 | AF96: =IF(A2stdlife="n/a","n/a",IF(AF$3>(A2stdlife+$E96),(Input!$L$144*(1+pretaxreal)^0.5)-SUM($L96:AE96),(Input!$L$144*(1+pretaxreal)^0.5)/A2stdlife)) -> 0 | AG96: =IF(A2stdlife="n/a","n/a",IF(AG$3>(A2stdlife+$E96),(Input!$L$144*(1+pretaxreal)^0.5)-SUM($L96:AF96),(Input!$L$144*(1+pretaxreal)^0.5)/A2stdlife)) -> 0 | AH96: =IF(A2stdlife="n/a","n/a",IF(AH$3>(A2stdlife+$E96),(Input!$L$144*(1+pretaxreal)^0.5)-SUM($L96:AG96),(Input!$L$144*(1+pretaxreal)^0.5)/A2stdlife)) -> 0 | AI96: =IF(A2stdlife="n/a","n/a",IF(AI$3>(A2stdlife+$E96),(Input!$L$144*(1+pretaxreal)^0.5)-SUM($L96:AH96),(Input!$L$144*(1+pretaxreal)^0.5)/A2stdlife)) -> 0 | AJ96: =IF(A2stdlife="n/a","n/a",IF(AJ$3>(A2stdlife+$E96),(Input!$L$144*(1+pretaxreal)^0.5)-SUM($L96:AI96),(Input!$L$144*(1+pretaxreal)^0.5)/A2stdlife)) -> 0 | AK96: =IF(A2stdlife="n/a","n/a",IF(AK$3>(A2stdlife+$E96),(Input!$L$144*(1+pretaxreal)^0.5)-SUM($L96:AJ96),(Input!$L$144*(1+pretaxreal)^0.5)/A2stdlife)) -> 0 | AL96: =IF(A2stdlife="n/a","n/a",IF(AL$3>(A2stdlife+$E96),(Input!$L$144*(1+pretaxreal)^0.5)-SUM($L96:AK96),(Input!$L$144*(1+pretaxreal)^0.5)/A2stdlife)) -> 0 | AM96: =IF(A2stdlife="n/a","n/a",IF(AM$3>(A2stdlife+$E96),(Input!$L$144*(1+pretaxreal)^0.5)-SUM($L96:AL96),(Input!$L$144*(1+pretaxreal)^0.5)/A2stdlife)) -> 0 | AN96: =IF(A2stdlife="n/a","n/a",IF(AN$3>(A2stdlife+$E96),(Input!$L$144*(1+pretaxreal)^0.5)-SUM($L96:AM96),(Input!$L$144*(1+pretaxreal)^0.5)/A2stdlife)) -> 0 | AO96: =IF(A2stdlife="n/a","n/a",IF(AO$3>(A2stdlife+$E96),(Input!$L$144*(1+pretaxreal)^0.5)-SUM($L96:AN96),(Input!$L$144*(1+pretaxreal)^0.5)/A2stdlife)) -> 0 | AP96: =IF(A2stdlife="n/a","n/a",IF(AP$3>(A2stdlife+$E96),(Input!$L$144*(1+pretaxreal)^0.5)-SUM($L96:AO96),(Input!$L$144*(1+pretaxreal)^0.5)/A2stdlife)) -> 0 | AQ96: =IF(A2stdlife="n/a","n/a",IF(AQ$3>(A2stdlife+$E96),(Input!$L$144*(1+pretaxreal)^0.5)-SUM($L96:AP96),(Input!$L$144*(1+pretaxreal)^0.5)/A2stdlife)) -> 0 | AR96: =IF(A2stdlife="n/a","n/a",IF(AR$3>(A2stdlife+$E96),(Input!$L$144*(1+pretaxreal)^0.5)-SUM($L96:AQ96),(Input!$L$144*(1+pretaxreal)^0.5)/A2stdlife)) -> 0 | AS96: =IF(A2stdlife="n/a","n/a",IF(AS$3>(A2stdlife+$E96),(Input!$L$144*(1+pretaxreal)^0.5)-SUM($L96:AR96),(Input!$L$144*(1+pretaxreal)^0.5)/A2stdlife)) -> 0 | AT96: =IF(A2stdlife="n/a","n/a",IF(AT$3>(A2stdlife+$E96),(Input!$L$144*(1+pretaxreal)^0.5)-SUM($L96:AS96),(Input!$L$144*(1+pretaxreal)^0.5)/A2stdlife)) -> 0 | AU96: =IF(A2stdlife="n/a","n/a",IF(AU$3>(A2stdlife+$E96),(Input!$L$144*(1+pretaxreal)^0.5)-SUM($L96:AT96),(Input!$L$144*(1+pretaxreal)^0.5)/A2stdlife)) -> 0 | AV96: =IF(A2stdlife="n/a","n/a",IF(AV$3>(A2stdlife+$E96),(Input!$L$144*(1+pretaxreal)^0.5)-SUM($L96:AU96),(Input!$L$144*(1+pretaxreal)^0.5)/A2stdlife)) -> 0 | AW96: =IF(A2stdlife="n/a","n/a",IF(AW$3>(A2stdlife+$E96),(Input!$L$144*(1+pretaxreal)^0.5)-SUM($L96:AV96),(Input!$L$144*(1+pretaxreal)^0.5)/A2stdlife)) -> 0 | AX96: =IF(A2stdlife="n/a","n/a",IF(AX$3>(A2stdlife+$E96),(Input!$L$144*(1+pretaxreal)^0.5)-SUM($L96:AW96),(Input!$L$144*(1+pretaxreal)^0.5)/A2stdlife)) -> 0 | AY96: =IF(A2stdlife="n/a","n/a",IF(AY$3>(A2stdlife+$E96),(Input!$L$144*(1+pretaxreal)^0.5)-SUM($L96:AX96),(Input!$L$144*(1+pretaxreal)^0.5)/A2stdlife)) -> 0 | AZ96: =IF(A2stdlife="n/a","n/a",IF(AZ$3>(A2stdlife+$E96),(Input!$L$144*(1+pretaxreal)^0.5)-SUM($L96:AY96),(Input!$L$144*(1+pretaxreal)^0.5)/A2stdlife)) -> 0 | BA96: =IF(A2stdlife="n/a","n/a",IF(BA$3>(A2stdlife+$E96),(Input!$L$144*(1+pretaxreal)^0.5)-SUM($L96:AZ96),(Input!$L$144*(1+pretaxreal)^0.5)/A2stdlife)) -> 0 | BB96: =IF(A2stdlife="n/a","n/a",IF(BB$3>(A2stdlife+$E96),(Input!$L$144*(1+pretaxreal)^0.5)-SUM($L96:BA96),(Input!$L$144*(1+pretaxreal)^0.5)/A2stdlife)) -> 0 | BC96: =IF(A2stdlife="n/a","n/a",IF(BC$3>(A2stdlife+$E96),(Input!$L$144*(1+pretaxreal)^0.5)-SUM($L96:BB96),(Input!$L$144*(1+pretaxreal)^0.5)/A2stdlife)) -> 0 | BD96: =IF(A2stdlife="n/a","n/a",IF(BD$3>(A2stdlife+$E96),(Input!$L$144*(1+pretaxreal)^0.5)-SUM($L96:BC96),(Input!$L$144*(1+pretaxreal)^0.5)/A2stdlife)) -> 0 | BE96: =IF(A2stdlife="n/a","n/a",IF(BE$3>(A2stdlife+$E96),(Input!$L$144*(1+pretaxreal)^0.5)-SUM($L96:BD96),(Input!$L$144*(1+pretaxreal)^0.5)/A2stdlife)) -> 0 | BF96: =IF(A2stdlife="n/a","n/a",IF(BF$3>(A2stdlife+$E96),(Input!$L$144*(1+pretaxreal)^0.5)-SUM($L96:BE96),(Input!$L$144*(1+pretaxreal)^0.5)/A2stdlife)) -> 0 | BG96: =IF(A2stdlife="n/a","n/a",IF(BG$3>(A2stdlife+$E96),(Input!$L$144*(1+pretaxreal)^0.5)-SUM($L96:BF96),(Input!$L$144*(1+pretaxreal)^0.5)/A2stdlife)) -> 0 | BH96: =IF(A2stdlife="n/a","n/a",IF(BH$3>(A2stdlife+$E96),(Input!$L$144*(1+pretaxreal)^0.5)-SUM($L96:BG96),(Input!$L$144*(1+pretaxreal)^0.5)/A2stdlife)) -> 0 | BI96: =IF(A2stdlife="n/a","n/a",IF(BI$3>(A2stdlife+$E96),(Input!$L$144*(1+pretaxreal)^0.5)-SUM($L96:BH96),(Input!$L$144*(1+pretaxreal)^0.5)/A2stdlife)) -> 0
E97: 7 | N97: =IF(A2stdlife="n/a","n/a",IF(N$3>(A2stdlife+$E97),(Input!$M$144*(1+pretaxreal)^0.5)-SUM($M97:M97),(Input!$M$144*(1+pretaxreal)^0.5)/A2stdlife)) -> 0 | O97: =IF(A2stdlife="n/a","n/a",IF(O$3>(A2stdlife+$E97),(Input!$M$144*(1+pretaxreal)^0.5)-SUM($M97:N97),(Input!$M$144*(1+pretaxreal)^0.5)/A2stdlife)) -> 0 | P97: =IF(A2stdlife="n/a","n/a",IF(P$3>(A2stdlife+$E97),(Input!$M$144*(1+pretaxreal)^0.5)-SUM($M97:O97),(Input!$M$144*(1+pretaxreal)^0.5)/A2stdlife)) -> 0 | Q97: =IF(A2stdlife="n/a","n/a",IF(Q$3>(A2stdlife+$E97),(Input!$M$144*(1+pretaxreal)^0.5)-SUM($M97:P97),(Input!$M$144*(1+pretaxreal)^0.5)/A2stdlife)) -> 0 | R97: =IF(A2stdlife="n/a","n/a",IF(R$3>(A2stdlife+$E97),(Input!$M$144*(1+pretaxreal)^0.5)-SUM($M97:Q97),(Input!$M$144*(1+pretaxreal)^0.5)/A2stdlife)) -> 0 | S97: =IF(A2stdlife="n/a","n/a",IF(S$3>(A2stdlife+$E97),(Input!$M$144*(1+pretaxreal)^0.5)-SUM($M97:R97),(Input!$M$144*(1+pretaxreal)^0.5)/A2stdlife)) -> 0 | T97: =IF(A2stdlife="n/a","n/a",IF(T$3>(A2stdlife+$E97),(Input!$M$144*(1+pretaxreal)^0.5)-SUM($M97:S97),(Input!$M$144*(1+pretaxreal)^0.5)/A2stdlife)) -> 0 | U97: =IF(A2stdlife="n/a","n/a",IF(U$3>(A2stdlife+$E97),(Input!$M$144*(1+pretaxreal)^0.5)-SUM($M97:T97),(Input!$M$144*(1+pretaxreal)^0.5)/A2stdlife)) -> 0 | V97: =IF(A2stdlife="n/a","n/a",IF(V$3>(A2stdlife+$E97),(Input!$M$144*(1+pretaxreal)^0.5)-SUM($M97:U97),(Input!$M$144*(1+pretaxreal)^0.5)/A2stdlife)) -> 0 | W97: =IF(A2stdlife="n/a","n/a",IF(W$3>(A2stdlife+$E97),(Input!$M$144*(1+pretaxreal)^0.5)-SUM($M97:V97),(Input!$M$144*(1+pretaxreal)^0.5)/A2stdlife)) -> 0 | X97: =IF(A2stdlife="n/a","n/a",IF(X$3>(A2stdlife+$E97),(Input!$M$144*(1+pretaxreal)^0.5)-SUM($M97:W97),(Input!$M$144*(1+pretaxreal)^0.5)/A2stdlife)) -> 0 | Y97: =IF(A2stdlife="n/a","n/a",IF(Y$3>(A2stdlife+$E97),(Input!$M$144*(1+pretaxreal)^0.5)-SUM($M97:X97),(Input!$M$144*(1+pretaxreal)^0.5)/A2stdlife)) -> 0 | Z97: =IF(A2stdlife="n/a","n/a",IF(Z$3>(A2stdlife+$E97),(Input!$M$144*(1+pretaxreal)^0.5)-SUM($M97:Y97),(Input!$M$144*(1+pretaxreal)^0.5)/A2stdlife)) -> 0 | AA97: =IF(A2stdlife="n/a","n/a",IF(AA$3>(A2stdlife+$E97),(Input!$M$144*(1+pretaxreal)^0.5)-SUM($M97:Z97),(Input!$M$144*(1+pretaxreal)^0.5)/A2stdlife)) -> 0 | AB97: =IF(A2stdlife="n/a","n/a",IF(AB$3>(A2stdlife+$E97),(Input!$M$144*(1+pretaxreal)^0.5)-SUM($M97:AA97),(Input!$M$144*(1+pretaxreal)^0.5)/A2stdlife)) -> 0 | AC97: =IF(A2stdlife="n/a","n/a",IF(AC$3>(A2stdlife+$E97),(Input!$M$144*(1+pretaxreal)^0.5)-SUM($M97:AB97),(Input!$M$144*(1+pretaxreal)^0.5)/A2stdlife)) -> 0 | AD97: =IF(A2stdlife="n/a","n/a",IF(AD$3>(A2stdlife+$E97),(Input!$M$144*(1+pretaxreal)^0.5)-SUM($M97:AC97),(Input!$M$144*(1+pretaxreal)^0.5)/A2stdlife)) -> 0 | AE97: =IF(A2stdlife="n/a","n/a",IF(AE$3>(A2stdlife+$E97),(Input!$M$144*(1+pretaxreal)^0.5)-SUM($M97:AD97),(Input!$M$144*(1+pretaxreal)^0.5)/A2stdlife)) -> 0 | AF97: =IF(A2stdlife="n/a","n/a",IF(AF$3>(A2stdlife+$E97),(Input!$M$144*(1+pretaxreal)^0.5)-SUM($M97:AE97),(Input!$M$144*(1+pretaxreal)^0.5)/A2stdlife)) -> 0 | AG97: =IF(A2stdlife="n/a","n/a",IF(AG$3>(A2stdlife+$E97),(Input!$M$144*(1+pretaxreal)^0.5)-SUM($M97:AF97),(Input!$M$144*(1+pretaxreal)^0.5)/A2stdlife)) -> 0 | AH97: =IF(A2stdlife="n/a","n/a",IF(AH$3>(A2stdlife+$E97),(Input!$M$144*(1+pretaxreal)^0.5)-SUM($M97:AG97),(Input!$M$144*(1+pretaxreal)^0.5)/A2stdlife)) -> 0 | AI97: =IF(A2stdlife="n/a","n/a",IF(AI$3>(A2stdlife+$E97),(Input!$M$144*(1+pretaxreal)^0.5)-SUM($M97:AH97),(Input!$M$144*(1+pretaxreal)^0.5)/A2stdlife)) -> 0 | AJ97: =IF(A2stdlife="n/a","n/a",IF(AJ$3>(A2stdlife+$E97),(Input!$M$144*(1+pretaxreal)^0.5)-SUM($M97:AI97),(Input!$M$144*(1+pretaxreal)^0.5)/A2stdlife)) -> 0 | AK97: =IF(A2stdlife="n/a","n/a",IF(AK$3>(A2stdlife+$E97),(Input!$M$144*(1+pretaxreal)^0.5)-SUM($M97:AJ97),(Input!$M$144*(1+pretaxreal)^0.5)/A2stdlife)) -> 0 | AL97: =IF(A2stdlife="n/a","n/a",IF(AL$3>(A2stdlife+$E97),(Input!$M$144*(1+pretaxreal)^0.5)-SUM($M97:AK97),(Input!$M$144*(1+pretaxreal)^0.5)/A2stdlife)) -> 0 | AM97: =IF(A2stdlife="n/a","n/a",IF(AM$3>(A2stdlife+$E97),(Input!$M$144*(1+pretaxreal)^0.5)-SUM($M97:AL97),(Input!$M$144*(1+pretaxreal)^0.5)/A2stdlife)) -> 0 | AN97: =IF(A2stdlife="n/a","n/a",IF(AN$3>(A2stdlife+$E97),(Input!$M$144*(1+pretaxreal)^0.5)-SUM($M97:AM97),(Input!$M$144*(1+pretaxreal)^0.5)/A2stdlife)) -> 0 | AO97: =IF(A2stdlife="n/a","n/a",IF(AO$3>(A2stdlife+$E97),(Input!$M$144*(1+pretaxreal)^0.5)-SUM($M97:AN97),(Input!$M$144*(1+pretaxreal)^0.5)/A2stdlife)) -> 0 | AP97: =IF(A2stdlife="n/a","n/a",IF(AP$3>(A2stdlife+$E97),(Input!$M$144*(1+pretaxreal)^0.5)-SUM($M97:AO97),(Input!$M$144*(1+pretaxreal)^0.5)/A2stdlife)) -> 0 | AQ97: =IF(A2stdlife="n/a","n/a",IF(AQ$3>(A2stdlife+$E97),(Input!$M$144*(1+pretaxreal)^0.5)-SUM($M97:AP97),(Input!$M$144*(1+pretaxreal)^0.5)/A2stdlife)) -> 0 | AR97: =IF(A2stdlife="n/a","n/a",IF(AR$3>(A2stdlife+$E97),(Input!$M$144*(1+pretaxreal)^0.5)-SUM($M97:AQ97),(Input!$M$144*(1+pretaxreal)^0.5)/A2stdlife)) -> 0 | AS97: =IF(A2stdlife="n/a","n/a",IF(AS$3>(A2stdlife+$E97),(Input!$M$144*(1+pretaxreal)^0.5)-SUM($M97:AR97),(Input!$M$144*(1+pretaxreal)^0.5)/A2stdlife)) -> 0 | AT97: =IF(A2stdlife="n/a","n/a",IF(AT$3>(A2stdlife+$E97),(Input!$M$144*(1+pretaxreal)^0.5)-SUM($M97:AS97),(Input!$M$144*(1+pretaxreal)^0.5)/A2stdlife)) -> 0 | AU97: =IF(A2stdlife="n/a","n/a",IF(AU$3>(A2stdlife+$E97),(Input!$M$144*(1+pretaxreal)^0.5)-SUM($M97:AT97),(Input!$M$144*(1+pretaxreal)^0.5)/A2stdlife)) -> 0 | AV97: =IF(A2stdlife="n/a","n/a",IF(AV$3>(A2stdlife+$E97),(Input!$M$144*(1+pretaxreal)^0.5)-SUM($M97:AU97),(Input!$M$144*(1+pretaxreal)^0.5)/A2stdlife)) -> 0 | AW97: =IF(A2stdlife="n/a","n/a",IF(AW$3>(A2stdlife+$E97),(Input!$M$144*(1+pretaxreal)^0.5)-SUM($M97:AV97),(Input!$M$144*(1+pretaxreal)^0.5)/A2stdlife)) -> 0 | AX97: =IF(A2stdlife="n/a","n/a",IF(AX$3>(A2stdlife+$E97),(Input!$M$144*(1+pretaxreal)^0.5)-SUM($M97:AW97),(Input!$M$144*(1+pretaxreal)^0.5)/A2stdlife)) -> 0 | AY97: =IF(A2stdlife="n/a","n/a",IF(AY$3>(A2stdlife+$E97),(Input!$M$144*(1+pretaxreal)^0.5)-SUM($M97:AX97),(Input!$M$144*(1+pretaxreal)^0.5)/A2stdlife)) -> 0 | AZ97: =IF(A2stdlife="n/a","n/a",IF(AZ$3>(A2stdlife+$E97),(Input!$M$144*(1+pretaxreal)^0.5)-SUM($M97:AY97),(Input!$M$144*(1+pretaxreal)^0.5)/A2stdlife)) -> 0 | BA97: =IF(A2stdlife="n/a","n/a",IF(BA$3>(A2stdlife+$E97),(Input!$M$144*(1+pretaxreal)^0.5)-SUM($M97:AZ97),(Input!$M$144*(1+pretaxreal)^0.5)/A2stdlife)) -> 0 | BB97: =IF(A2stdlife="n/a","n/a",IF(BB$3>(A2stdlife+$E97),(Input!$M$144*(1+pretaxreal)^0.5)-SUM($M97:BA97),(Input!$M$144*(1+pretaxreal)^0.5)/A2stdlife)) -> 0 | BC97: =IF(A2stdlife="n/a","n/a",IF(BC$3>(A2stdlife+$E97),(Input!$M$144*(1+pretaxreal)^0.5)-SUM($M97:BB97),(Input!$M$144*(1+pretaxreal)^0.5)/A2stdlife)) -> 0 | BD97: =IF(A2stdlife="n/a","n/a",IF(BD$3>(A2stdlife+$E97),(Input!$M$144*(1+pretaxreal)^0.5)-SUM($M97:BC97),(Input!$M$144*(1+pretaxreal)^0.5)/A2stdlife)) -> 0 | BE97: =IF(A2stdlife="n/a","n/a",IF(BE$3>(A2stdlife+$E97),(Input!$M$144*(1+pretaxreal)^0.5)-SUM($M97:BD97),(Input!$M$144*(1+pretaxreal)^0.5)/A2stdlife)) -> 0 | BF97: =IF(A2stdlife="n/a","n/a",IF(BF$3>(A2stdlife+$E97),(Input!$M$144*(1+pretaxreal)^0.5)-SUM($M97:BE97),(Input!$M$144*(1+pretaxreal)^0.5)/A2stdlife)) -> 0 | BG97: =IF(A2stdlife="n/a","n/a",IF(BG$3>(A2stdlife+$E97),(Input!$M$144*(1+pretaxreal)^0.5)-SUM($M97:BF97),(Input!$M$144*(1+pretaxreal)^0.5)/A2stdlife)) -> 0 | BH97: =IF(A2stdlife="n/a","n/a",IF(BH$3>(A2stdlife+$E97),(Input!$M$144*(1+pretaxreal)^0.5)-SUM($M97:BG97),(Input!$M$144*(1+pretaxreal)^0.5)/A2stdlife)) -> 0 | BI97: =IF(A2stdlife="n/a","n/a",IF(BI$3>(A2stdlife+$E97),(Input!$M$144*(1+pretaxreal)^0.5)-SUM($M97:BH97),(Input!$M$144*(1+pretaxreal)^0.5)/A2stdlife)) -> 0
E98: 8 | O98: =IF(A2stdlife="n/a","n/a",IF(O$3>(A2stdlife+$E98),(Input!$N$144*(1+pretaxreal)^0.5)-SUM($N98:N98),(Input!$N$144*(1+pretaxreal)^0.5)/A2stdlife)) -> 0 | P98: =IF(A2stdlife="n/a","n/a",IF(P$3>(A2stdlife+$E98),(Input!$N$144*(1+pretaxreal)^0.5)-SUM($N98:O98),(Input!$N$144*(1+pretaxreal)^0.5)/A2stdlife)) -> 0 | Q98: =IF(A2stdlife="n/a","n/a",IF(Q$3>(A2stdlife+$E98),(Input!$N$144*(1+pretaxreal)^0.5)-SUM($N98:P98),(Input!$N$144*(1+pretaxreal)^0.5)/A2stdlife)) -> 0 | R98: =IF(A2stdlife="n/a","n/a",IF(R$3>(A2stdlife+$E98),(Input!$N$144*(1+pretaxreal)^0.5)-SUM($N98:Q98),(Input!$N$144*(1+pretaxreal)^0.5)/A2stdlife)) -> 0 | S98: =IF(A2stdlife="n/a","n/a",IF(S$3>(A2stdlife+$E98),(Input!$N$144*(1+pretaxreal)^0.5)-SUM($N98:R98),(Input!$N$144*(1+pretaxreal)^0.5)/A2stdlife)) -> 0 | T98: =IF(A2stdlife="n/a","n/a",IF(T$3>(A2stdlife+$E98),(Input!$N$144*(1+pretaxreal)^0.5)-SUM($N98:S98),(Input!$N$144*(1+pretaxreal)^0.5)/A2stdlife)) -> 0 | U98: =IF(A2stdlife="n/a","n/a",IF(U$3>(A2stdlife+$E98),(Input!$N$144*(1+pretaxreal)^0.5)-SUM($N98:T98),(Input!$N$144*(1+pretaxreal)^0.5)/A2stdlife)) -> 0 | V98: =IF(A2stdlife="n/a","n/a",IF(V$3>(A2stdlife+$E98),(Input!$N$144*(1+pretaxreal)^0.5)-SUM($N98:U98),(Input!$N$144*(1+pretaxreal)^0.5)/A2stdlife)) -> 0 | W98: =IF(A2stdlife="n/a","n/a",IF(W$3>(A2stdlife+$E98),(Input!$N$144*(1+pretaxreal)^0.5)-SUM($N98:V98),(Input!$N$144*(1+pretaxreal)^0.5)/A2stdlife)) -> 0 | X98: =IF(A2stdlife="n/a","n/a",IF(X$3>(A2stdlife+$E98),(Input!$N$144*(1+pretaxreal)^0.5)-SUM($N98:W98),(Input!$N$144*(1+pretaxreal)^0.5)/A2stdlife)) -> 0 | Y98: =IF(A2stdlife="n/a","n/a",IF(Y$3>(A2stdlife+$E98),(Input!$N$144*(1+pretaxreal)^0.5)-SUM($N98:X98),(Input!$N$144*(1+pretaxreal)^0.5)/A2stdlife)) -> 0 | Z98: =IF(A2stdlife="n/a","n/a",IF(Z$3>(A2stdlife+$E98),(Input!$N$144*(1+pretaxreal)^0.5)-SUM($N98:Y98),(Input!$N$144*(1+pretaxreal)^0.5)/A2stdlife)) -> 0 | AA98: =IF(A2stdlife="n/a","n/a",IF(AA$3>(A2stdlife+$E98),(Input!$N$144*(1+pretaxreal)^0.5)-SUM($N98:Z98),(Input!$N$144*(1+pretaxreal)^0.5)/A2stdlife)) -> 0 | AB98: =IF(A2stdlife="n/a","n/a",IF(AB$3>(A2stdlife+$E98),(Input!$N$144*(1+pretaxreal)^0.5)-SUM($N98:AA98),(Input!$N$144*(1+pretaxreal)^0.5)/A2stdlife)) -> 0 | AC98: =IF(A2stdlife="n/a","n/a",IF(AC$3>(A2stdlife+$E98),(Input!$N$144*(1+pretaxreal)^0.5)-SUM($N98:AB98),(Input!$N$144*(1+pretaxreal)^0.5)/A2stdlife)) -> 0 | AD98: =IF(A2stdlife="n/a","n/a",IF(AD$3>(A2stdlife+$E98),(Input!$N$144*(1+pretaxreal)^0.5)-SUM($N98:AC98),(Input!$N$144*(1+pretaxreal)^0.5)/A2stdlife)) -> 0 | AE98: =IF(A2stdlife="n/a","n/a",IF(AE$3>(A2stdlife+$E98),(Input!$N$144*(1+pretaxreal)^0.5)-SUM($N98:AD98),(Input!$N$144*(1+pretaxreal)^0.5)/A2stdlife)) -> 0 | AF98: =IF(A2stdlife="n/a","n/a",IF(AF$3>(A2stdlife+$E98),(Input!$N$144*(1+pretaxreal)^0.5)-SUM($N98:AE98),(Input!$N$144*(1+pretaxreal)^0.5)/A2stdlife)) -> 0 | AG98: =IF(A2stdlife="n/a","n/a",IF(AG$3>(A2stdlife+$E98),(Input!$N$144*(1+pretaxreal)^0.5)-SUM($N98:AF98),(Input!$N$144*(1+pretaxreal)^0.5)/A2stdlife)) -> 0 | AH98: =IF(A2stdlife="n/a","n/a",IF(AH$3>(A2stdlife+$E98),(Input!$N$144*(1+pretaxreal)^0.5)-SUM($N98:AG98),(Input!$N$144*(1+pretaxreal)^0.5)/A2stdlife)) -> 0 | AI98: =IF(A2stdlife="n/a","n/a",IF(AI$3>(A2stdlife+$E98),(Input!$N$144*(1+pretaxreal)^0.5)-SUM($N98:AH98),(Input!$N$144*(1+pretaxreal)^0.5)/A2stdlife)) -> 0 | AJ98: =IF(A2stdlife="n/a","n/a",IF(AJ$3>(A2stdlife+$E98),(Input!$N$144*(1+pretaxreal)^0.5)-SUM($N98:AI98),(Input!$N$144*(1+pretaxreal)^0.5)/A2stdlife)) -> 0 | AK98: =IF(A2stdlife="n/a","n/a",IF(AK$3>(A2stdlife+$E98),(Input!$N$144*(1+pretaxreal)^0.5)-SUM($N98:AJ98),(Input!$N$144*(1+pretaxreal)^0.5)/A2stdlife)) -> 0 | AL98: =IF(A2stdlife="n/a","n/a",IF(AL$3>(A2stdlife+$E98),(Input!$N$144*(1+pretaxreal)^0.5)-SUM($N98:AK98),(Input!$N$144*(1+pretaxreal)^0.5)/A2stdlife)) -> 0 | AM98: =IF(A2stdlife="n/a","n/a",IF(AM$3>(A2stdlife+$E98),(Input!$N$144*(1+pretaxreal)^0.5)-SUM($N98:AL98),(Input!$N$144*(1+pretaxreal)^0.5)/A2stdlife)) -> 0 | AN98: =IF(A2stdlife="n/a","n/a",IF(AN$3>(A2stdlife+$E98),(Input!$N$144*(1+pretaxreal)^0.5)-SUM($N98:AM98),(Input!$N$144*(1+pretaxreal)^0.5)/A2stdlife)) -> 0 | AO98: =IF(A2stdlife="n/a","n/a",IF(AO$3>(A2stdlife+$E98),(Input!$N$144*(1+pretaxreal)^0.5)-SUM($N98:AN98),(Input!$N$144*(1+pretaxreal)^0.5)/A2stdlife)) -> 0 | AP98: =IF(A2stdlife="n/a","n/a",IF(AP$3>(A2stdlife+$E98),(Input!$N$144*(1+pretaxreal)^0.5)-SUM($N98:AO98),(Input!$N$144*(1+pretaxreal)^0.5)/A2stdlife)) -> 0 | AQ98: =IF(A2stdlife="n/a","n/a",IF(AQ$3>(A2stdlife+$E98),(Input!$N$144*(1+pretaxreal)^0.5)-SUM($N98:AP98),(Input!$N$144*(1+pretaxreal)^0.5)/A2stdlife)) -> 0 | AR98: =IF(A2stdlife="n/a","n/a",IF(AR$3>(A2stdlife+$E98),(Input!$N$144*(1+pretaxreal)^0.5)-SUM($N98:AQ98),(Input!$N$144*(1+pretaxreal)^0.5)/A2stdlife)) -> 0 | AS98: =IF(A2stdlife="n/a","n/a",IF(AS$3>(A2stdlife+$E98),(Input!$N$144*(1+pretaxreal)^0.5)-SUM($N98:AR98),(Input!$N$144*(1+pretaxreal)^0.5)/A2stdlife)) -> 0 | AT98: =IF(A2stdlife="n/a","n/a",IF(AT$3>(A2stdlife+$E98),(Input!$N$144*(1+pretaxreal)^0.5)-SUM($N98:AS98),(Input!$N$144*(1+pretaxreal)^0.5)/A2stdlife)) -> 0 | AU98: =IF(A2stdlife="n/a","n/a",IF(AU$3>(A2stdlife+$E98),(Input!$N$144*(1+pretaxreal)^0.5)-SUM($N98:AT98),(Input!$N$144*(1+pretaxreal)^0.5)/A2stdlife)) -> 0 | AV98: =IF(A2stdlife="n/a","n/a",IF(AV$3>(A2stdlife+$E98),(Input!$N$144*(1+pretaxreal)^0.5)-SUM($N98:AU98),(Input!$N$144*(1+pretaxreal)^0.5)/A2stdlife)) -> 0 | AW98: =IF(A2stdlife="n/a","n/a",IF(AW$3>(A2stdlife+$E98),(Input!$N$144*(1+pretaxreal)^0.5)-SUM($N98:AV98),(Input!$N$144*(1+pretaxreal)^0.5)/A2stdlife)) -> 0 | AX98: =IF(A2stdlife="n/a","n/a",IF(AX$3>(A2stdlife+$E98),(Input!$N$144*(1+pretaxreal)^0.5)-SUM($N98:AW98),(Input!$N$144*(1+pretaxreal)^0.5)/A2stdlife)) -> 0 | AY98: =IF(A2stdlife="n/a","n/a",IF(AY$3>(A2stdlife+$E98),(Input!$N$144*(1+pretaxreal)^0.5)-SUM($N98:AX98),(Input!$N$144*(1+pretaxreal)^0.5)/A2stdlife)) -> 0 | AZ98: =IF(A2stdlife="n/a","n/a",IF(AZ$3>(A2stdlife+$E98),(Input!$N$144*(1+pretaxreal)^0.5)-SUM($N98:AY98),(Input!$N$144*(1+pretaxreal)^0.5)/A2stdlife)) -> 0 | BA98: =IF(A2stdlife="n/a","n/a",IF(BA$3>(A2stdlife+$E98),(Input!$N$144*(1+pretaxreal)^0.5)-SUM($N98:AZ98),(Input!$N$144*(1+pretaxreal)^0.5)/A2stdlife)) -> 0 | BB98: =IF(A2stdlife="n/a","n/a",IF(BB$3>(A2stdlife+$E98),(Input!$N$144*(1+pretaxreal)^0.5)-SUM($N98:BA98),(Input!$N$144*(1+pretaxreal)^0.5)/A2stdlife)) -> 0 | BC98: =IF(A2stdlife="n/a","n/a",IF(BC$3>(A2stdlife+$E98),(Input!$N$144*(1+pretaxreal)^0.5)-SUM($N98:BB98),(Input!$N$144*(1+pretaxreal)^0.5)/A2stdlife)) -> 0 | BD98: =IF(A2stdlife="n/a","n/a",IF(BD$3>(A2stdlife+$E98),(Input!$N$144*(1+pretaxreal)^0.5)-SUM($N98:BC98),(Input!$N$144*(1+pretaxreal)^0.5)/A2stdlife)) -> 0 | BE98: =IF(A2stdlife="n/a","n/a",IF(BE$3>(A2stdlife+$E98),(Input!$N$144*(1+pretaxreal)^0.5)-SUM($N98:BD98),(Input!$N$144*(1+pretaxreal)^0.5)/A2stdlife)) -> 0 | BF98: =IF(A2stdlife="n/a","n/a",IF(BF$3>(A2stdlife+$E98),(Input!$N$144*(1+pretaxreal)^0.5)-SUM($N98:BE98),(Input!$N$144*(1+pretaxreal)^0.5)/A2stdlife)) -> 0 | BG98: =IF(A2stdlife="n/a","n/a",IF(BG$3>(A2stdlife+$E98),(Input!$N$144*(1+pretaxreal)^0.5)-SUM($N98:BF98),(Input!$N$144*(1+pretaxreal)^0.5)/A2stdlife)) -> 0 | BH98: =IF(A2stdlife="n/a","n/a",IF(BH$3>(A2stdlife+$E98),(Input!$N$144*(1+pretaxreal)^0.5)-SUM($N98:BG98),(Input!$N$144*(1+pretaxreal)^0.5)/A2stdlife)) -> 0 | BI98: =IF(A2stdlife="n/a","n/a",IF(BI$3>(A2stdlife+$E98),(Input!$N$144*(1+pretaxreal)^0.5)-SUM($N98:BH98),(Input!$N$144*(1+pretaxreal)^0.5)/A2stdlife)) -> 0
E99: 9 | P99: =IF(A2stdlife="n/a","n/a",IF(P$3>(A2stdlife+$E99),(Input!$O$144*(1+pretaxreal)^0.5)-SUM($O99:O99),(Input!$O$144*(1+pretaxreal)^0.5)/A2stdlife)) -> 0 | Q99: =IF(A2stdlife="n/a","n/a",IF(Q$3>(A2stdlife+$E99),(Input!$O$144*(1+pretaxreal)^0.5)-SUM($O99:P99),(Input!$O$144*(1+pretaxreal)^0.5)/A2stdlife)) -> 0 | R99: =IF(A2stdlife="n/a","n/a",IF(R$3>(A2stdlife+$E99),(Input!$O$144*(1+pretaxreal)^0.5)-SUM($O99:Q99),(Input!$O$144*(1+pretaxreal)^0.5)/A2stdlife)) -> 0 | S99: =IF(A2stdlife="n/a","n/a",IF(S$3>(A2stdlife+$E99),(Input!$O$144*(1+pretaxreal)^0.5)-SUM($O99:R99),(Input!$O$144*(1+pretaxreal)^0.5)/A2stdlife)) -> 0 | T99: =IF(A2stdlife="n/a","n/a",IF(T$3>(A2stdlife+$E99),(Input!$O$144*(1+pretaxreal)^0.5)-SUM($O99:S99),(Input!$O$144*(1+pretaxreal)^0.5)/A2stdlife)) -> 0 | U99: =IF(A2stdlife="n/a","n/a",IF(U$3>(A2stdlife+$E99),(Input!$O$144*(1+pretaxreal)^0.5)-SUM($O99:T99),(Input!$O$144*(1+pretaxreal)^0.5)/A2stdlife)) -> 0 | V99: =IF(A2stdlife="n/a","n/a",IF(V$3>(A2stdlife+$E99),(Input!$O$144*(1+pretaxreal)^0.5)-SUM($O99:U99),(Input!$O$144*(1+pretaxreal)^0.5)/A2stdlife)) -> 0 | W99: =IF(A2stdlife="n/a","n/a",IF(W$3>(A2stdlife+$E99),(Input!$O$144*(1+pretaxreal)^0.5)-SUM($O99:V99),(Input!$O$144*(1+pretaxreal)^0.5)/A2stdlife)) -> 0 | X99: =IF(A2stdlife="n/a","n/a",IF(X$3>(A2stdlife+$E99),(Input!$O$144*(1+pretaxreal)^0.5)-SUM($O99:W99),(Input!$O$144*(1+pretaxreal)^0.5)/A2stdlife)) -> 0 | Y99: =IF(A2stdlife="n/a","n/a",IF(Y$3>(A2stdlife+$E99),(Input!$O$144*(1+pretaxreal)^0.5)-SUM($O99:X99),(Input!$O$144*(1+pretaxreal)^0.5)/A2stdlife)) -> 0 | Z99: =IF(A2stdlife="n/a","n/a",IF(Z$3>(A2stdlife+$E99),(Input!$O$144*(1+pretaxreal)^0.5)-SUM($O99:Y99),(Input!$O$144*(1+pretaxreal)^0.5)/A2stdlife)) -> 0 | AA99: =IF(A2stdlife="n/a","n/a",IF(AA$3>(A2stdlife+$E99),(Input!$O$144*(1+pretaxreal)^0.5)-SUM($O99:Z99),(Input!$O$144*(1+pretaxreal)^0.5)/A2stdlife)) -> 0 | AB99: =IF(A2stdlife="n/a","n/a",IF(AB$3>(A2stdlife+$E99),(Input!$O$144*(1+pretaxreal)^0.5)-SUM($O99:AA99),(Input!$O$144*(1+pretaxreal)^0.5)/A2stdlife)) -> 0 | AC99: =IF(A2stdlife="n/a","n/a",IF(AC$3>(A2stdlife+$E99),(Input!$O$144*(1+pretaxreal)^0.5)-SUM($O99:AB99),(Input!$O$144*(1+pretaxreal)^0.5)/A2stdlife)) -> 0 | AD99: =IF(A2stdlife="n/a","n/a",IF(AD$3>(A2stdlife+$E99),(Input!$O$144*(1+pretaxreal)^0.5)-SUM($O99:AC99),(Input!$O$144*(1+pretaxreal)^0.5)/A2stdlife)) -> 0 | AE99: =IF(A2stdlife="n/a","n/a",IF(AE$3>(A2stdlife+$E99),(Input!$O$144*(1+pretaxreal)^0.5)-SUM($O99:AD99),(Input!$O$144*(1+pretaxreal)^0.5)/A2stdlife)) -> 0 | AF99: =IF(A2stdlife="n/a","n/a",IF(AF$3>(A2stdlife+$E99),(Input!$O$144*(1+pretaxreal)^0.5)-SUM($O99:AE99),(Input!$O$144*(1+pretaxreal)^0.5)/A2stdlife)) -> 0 | AG99: =IF(A2stdlife="n/a","n/a",IF(AG$3>(A2stdlife+$E99),(Input!$O$144*(1+pretaxreal)^0.5)-SUM($O99:AF99),(Input!$O$144*(1+pretaxreal)^0.5)/A2stdlife)) -> 0 | AH99: =IF(A2stdlife="n/a","n/a",IF(AH$3>(A2stdlife+$E99),(Input!$O$144*(1+pretaxreal)^0.5)-SUM($O99:AG99),(Input!$O$144*(1+pretaxreal)^0.5)/A2stdlife)) -> 0 | AI99: =IF(A2stdlife="n/a","n/a",IF(AI$3>(A2stdlife+$E99),(Input!$O$144*(1+pretaxreal)^0.5)-SUM($O99:AH99),(Input!$O$144*(1+pretaxreal)^0.5)/A2stdlife)) -> 0 | AJ99: =IF(A2stdlife="n/a","n/a",IF(AJ$3>(A2stdlife+$E99),(Input!$O$144*(1+pretaxreal)^0.5)-SUM($O99:AI99),(Input!$O$144*(1+pretaxreal)^0.5)/A2stdlife)) -> 0 | AK99: =IF(A2stdlife="n/a","n/a",IF(AK$3>(A2stdlife+$E99),(Input!$O$144*(1+pretaxreal)^0.5)-SUM($O99:AJ99),(Input!$O$144*(1+pretaxreal)^0.5)/A2stdlife)) -> 0 | AL99: =IF(A2stdlife="n/a","n/a",IF(AL$3>(A2stdlife+$E99),(Input!$O$144*(1+pretaxreal)^0.5)-SUM($O99:AK99),(Input!$O$144*(1+pretaxreal)^0.5)/A2stdlife)) -> 0 | AM99: =IF(A2stdlife="n/a","n/a",IF(AM$3>(A2stdlife+$E99),(Input!$O$144*(1+pretaxreal)^0.5)-SUM($O99:AL99),(Input!$O$144*(1+pretaxreal)^0.5)/A2stdlife)) -> 0 | AN99: =IF(A2stdlife="n/a","n/a",IF(AN$3>(A2stdlife+$E99),(Input!$O$144*(1+pretaxreal)^0.5)-SUM($O99:AM99),(Input!$O$144*(1+pretaxreal)^0.5)/A2stdlife)) -> 0 | AO99: =IF(A2stdlife="n/a","n/a",IF(AO$3>(A2stdlife+$E99),(Input!$O$144*(1+pretaxreal)^0.5)-SUM($O99:AN99),(Input!$O$144*(1+pretaxreal)^0.5)/A2stdlife)) -> 0 | AP99: =IF(A2stdlife="n/a","n/a",IF(AP$3>(A2stdlife+$E99),(Input!$O$144*(1+pretaxreal)^0.5)-SUM($O99:AO99),(Input!$O$144*(1+pretaxreal)^0.5)/A2stdlife)) -> 0 | AQ99: =IF(A2stdlife="n/a","n/a",IF(AQ$3>(A2stdlife+$E99),(Input!$O$144*(1+pretaxreal)^0.5)-SUM($O99:AP99),(Input!$O$144*(1+pretaxreal)^0.5)/A2stdlife)) -> 0 | AR99: =IF(A2stdlife="n/a","n/a",IF(AR$3>(A2stdlife+$E99),(Input!$O$144*(1+pretaxreal)^0.5)-SUM($O99:AQ99),(Input!$O$144*(1+pretaxreal)^0.5)/A2stdlife)) -> 0 | AS99: =IF(A2stdlife="n/a","n/a",IF(AS$3>(A2stdlife+$E99),(Input!$O$144*(1+pretaxreal)^0.5)-SUM($O99:AR99),(Input!$O$144*(1+pretaxreal)^0.5)/A2stdlife)) -> 0 | AT99: =IF(A2stdlife="n/a","n/a",IF(AT$3>(A2stdlife+$E99),(Input!$O$144*(1+pretaxreal)^0.5)-SUM($O99:AS99),(Input!$O$144*(1+pretaxreal)^0.5)/A2stdlife)) -> 0 | AU99: =IF(A2stdlife="n/a","n/a",IF(AU$3>(A2stdlife+$E99),(Input!$O$144*(1+pretaxreal)^0.5)-SUM($O99:AT99),(Input!$O$144*(1+pretaxreal)^0.5)/A2stdlife)) -> 0 | AV99: =IF(A2stdlife="n/a","n/a",IF(AV$3>(A2stdlife+$E99),(Input!$O$144*(1+pretaxreal)^0.5)-SUM($O99:AU99),(Input!$O$144*(1+pretaxreal)^0.5)/A2stdlife)) -> 0 | AW99: =IF(A2stdlife="n/a","n/a",IF(AW$3>(A2stdlife+$E99),(Input!$O$144*(1+pretaxreal)^0.5)-SUM($O99:AV99),(Input!$O$144*(1+pretaxreal)^0.5)/A2stdlife)) -> 0 | AX99: =IF(A2stdlife="n/a","n/a",IF(AX$3>(A2stdlife+$E99),(Input!$O$144*(1+pretaxreal)^0.5)-SUM($O99:AW99),(Input!$O$144*(1+pretaxreal)^0.5)/A2stdlife)) -> 0 | AY99: =IF(A2stdlife="n/a","n/a",IF(AY$3>(A2stdlife+$E99),(Input!$O$144*(1+pretaxreal)^0.5)-SUM($O99:AX99),(Input!$O$144*(1+pretaxreal)^0.5)/A2stdlife)) -> 0 | AZ99: =IF(A2stdlife="n/a","n/a",IF(AZ$3>(A2stdlife+$E99),(Input!$O$144*(1+pretaxreal)^0.5)-SUM($O99:AY99),(Input!$O$144*(1+pretaxreal)^0.5)/A2stdlife)) -> 0 | BA99: =IF(A2stdlife="n/a","n/a",IF(BA$3>(A2stdlife+$E99),(Input!$O$144*(1+pretaxreal)^0.5)-SUM($O99:AZ99),(Input!$O$144*(1+pretaxreal)^0.5)/A2stdlife)) -> 0 | BB99: =IF(A2stdlife="n/a","n/a",IF(BB$3>(A2stdlife+$E99),(Input!$O$144*(1+pretaxreal)^0.5)-SUM($O99:BA99),(Input!$O$144*(1+pretaxreal)^0.5)/A2stdlife)) -> 0 | BC99: =IF(A2stdlife="n/a","n/a",IF(BC$3>(A2stdlife+$E99),(Input!$O$144*(1+pretaxreal)^0.5)-SUM($O99:BB99),(Input!$O$144*(1+pretaxreal)^0.5)/A2stdlife)) -> 0 | BD99: =IF(A2stdlife="n/a","n/a",IF(BD$3>(A2stdlife+$E99),(Input!$O$144*(1+pretaxreal)^0.5)-SUM($O99:BC99),(Input!$O$144*(1+pretaxreal)^0.5)/A2stdlife)) -> 0 | BE99: =IF(A2stdlife="n/a","n/a",IF(BE$3>(A2stdlife+$E99),(Input!$O$144*(1+pretaxreal)^0.5)-SUM($O99:BD99),(Input!$O$144*(1+pretaxreal)^0.5)/A2stdlife)) -> 0 | BF99: =IF(A2stdlife="n/a","n/a",IF(BF$3>(A2stdlife+$E99),(Input!$O$144*(1+pretaxreal)^0.5)-SUM($O99:BE99),(Input!$O$144*(1+pretaxreal)^0.5)/A2stdlife)) -> 0 | BG99: =IF(A2stdlife="n/a","n/a",IF(BG$3>(A2stdlife+$E99),(Input!$O$144*(1+pretaxreal)^0.5)-SUM($O99:BF99),(Input!$O$144*(1+pretaxreal)^0.5)/A2stdlife)) -> 0 | BH99: =IF(A2stdlife="n/a","n/a",IF(BH$3>(A2stdlife+$E99),(Input!$O$144*(1+pretaxreal)^0.5)-SUM($O99:BG99),(Input!$O$144*(1+pretaxreal)^0.5)/A2stdlife)) -> 0 | BI99: =IF(A2stdlife="n/a","n/a",IF(BI$3>(A2stdlife+$E99),(Input!$O$144*(1+pretaxreal)^0.5)-SUM($O99:BH99),(Input!$O$144*(1+pretaxreal)^0.5)/A2stdlife)) -> 0
E100: 10 | Q100: =IF(A2stdlife="n/a","n/a",IF(Q$3>(A2stdlife+$E100),(Input!$P$144*(1+pretaxreal)^0.5)-SUM($P100:P100),(Input!$P$144*(1+pretaxreal)^0.5)/A2stdlife)) -> 0 | R100: =IF(A2stdlife="n/a","n/a",IF(R$3>(A2stdlife+$E100),(Input!$P$144*(1+pretaxreal)^0.5)-SUM($P100:Q100),(Input!$P$144*(1+pretaxreal)^0.5)/A2stdlife)) -> 0 | S100: =IF(A2stdlife="n/a","n/a",IF(S$3>(A2stdlife+$E100),(Input!$P$144*(1+pretaxreal)^0.5)-SUM($P100:R100),(Input!$P$144*(1+pretaxreal)^0.5)/A2stdlife)) -> 0 | T100: =IF(A2stdlife="n/a","n/a",IF(T$3>(A2stdlife+$E100),(Input!$P$144*(1+pretaxreal)^0.5)-SUM($P100:S100),(Input!$P$144*(1+pretaxreal)^0.5)/A2stdlife)) -> 0 | U100: =IF(A2stdlife="n/a","n/a",IF(U$3>(A2stdlife+$E100),(Input!$P$144*(1+pretaxreal)^0.5)-SUM($P100:T100),(Input!$P$144*(1+pretaxreal)^0.5)/A2stdlife)) -> 0 | V100: =IF(A2stdlife="n/a","n/a",IF(V$3>(A2stdlife+$E100),(Input!$P$144*(1+pretaxreal)^0.5)-SUM($P100:U100),(Input!$P$144*(1+pretaxreal)^0.5)/A2stdlife)) -> 0 | W100: =IF(A2stdlife="n/a","n/a",IF(W$3>(A2stdlife+$E100),(Input!$P$144*(1+pretaxreal)^0.5)-SUM($P100:V100),(Input!$P$144*(1+pretaxreal)^0.5)/A2stdlife)) -> 0 | X100: =IF(A2stdlife="n/a","n/a",IF(X$3>(A2stdlife+$E100),(Input!$P$144*(1+pretaxreal)^0.5)-SUM($P100:W100),(Input!$P$144*(1+pretaxreal)^0.5)/A2stdlife)) -> 0 | Y100: =IF(A2stdlife="n/a","n/a",IF(Y$3>(A2stdlife+$E100),(Input!$P$144*(1+pretaxreal)^0.5)-SUM($P100:X100),(Input!$P$144*(1+pretaxreal)^0.5)/A2stdlife)) -> 0 | Z100: =IF(A2stdlife="n/a","n/a",IF(Z$3>(A2stdlife+$E100),(Input!$P$144*(1+pretaxreal)^0.5)-SUM($P100:Y100),(Input!$P$144*(1+pretaxreal)^0.5)/A2stdlife)) -> 0 | AA100: =IF(A2stdlife="n/a","n/a",IF(AA$3>(A2stdlife+$E100),(Input!$P$144*(1+pretaxreal)^0.5)-SUM($P100:Z100),(Input!$P$144*(1+pretaxreal)^0.5)/A2stdlife)) -> 0 | AB100: =IF(A2stdlife="n/a","n/a",IF(AB$3>(A2stdlife+$E100),(Input!$P$144*(1+pretaxreal)^0.5)-SUM($P100:AA100),(Input!$P$144*(1+pretaxreal)^0.5)/A2stdlife)) -> 0 | AC100: =IF(A2stdlife="n/a","n/a",IF(AC$3>(A2stdlife+$E100),(Input!$P$144*(1+pretaxreal)^0.5)-SUM($P100:AB100),(Input!$P$144*(1+pretaxreal)^0.5)/A2stdlife)) -> 0 | AD100: =IF(A2stdlife="n/a","n/a",IF(AD$3>(A2stdlife+$E100),(Input!$P$144*(1+pretaxreal)^0.5)-SUM($P100:AC100),(Input!$P$144*(1+pretaxreal)^0.5)/A2stdlife)) -> 0 | AE100: =IF(A2stdlife="n/a","n/a",IF(AE$3>(A2stdlife+$E100),(Input!$P$144*(1+pretaxreal)^0.5)-SUM($P100:AD100),(Input!$P$144*(1+pretaxreal)^0.5)/A2stdlife)) -> 0 | AF100: =IF(A2stdlife="n/a","n/a",IF(AF$3>(A2stdlife+$E100),(Input!$P$144*(1+pretaxreal)^0.5)-SUM($P100:AE100),(Input!$P$144*(1+pretaxreal)^0.5)/A2stdlife)) -> 0 | AG100: =IF(A2stdlife="n/a","n/a",IF(AG$3>(A2stdlife+$E100),(Input!$P$144*(1+pretaxreal)^0.5)-SUM($P100:AF100),(Input!$P$144*(1+pretaxreal)^0.5)/A2stdlife)) -> 0 | AH100: =IF(A2stdlife="n/a","n/a",IF(AH$3>(A2stdlife+$E100),(Input!$P$144*(1+pretaxreal)^0.5)-SUM($P100:AG100),(Input!$P$144*(1+pretaxreal)^0.5)/A2stdlife)) -> 0 | AI100: =IF(A2stdlife="n/a","n/a",IF(AI$3>(A2stdlife+$E100),(Input!$P$144*(1+pretaxreal)^0.5)-SUM($P100:AH100),(Input!$P$144*(1+pretaxreal)^0.5)/A2stdlife)) -> 0 | AJ100: =IF(A2stdlife="n/a","n/a",IF(AJ$3>(A2stdlife+$E100),(Input!$P$144*(1+pretaxreal)^0.5)-SUM($P100:AI100),(Input!$P$144*(1+pretaxreal)^0.5)/A2stdlife)) -> 0 | AK100: =IF(A2stdlife="n/a","n/a",IF(AK$3>(A2stdlife+$E100),(Input!$P$144*(1+pretaxreal)^0.5)-SUM($P100:AJ100),(Input!$P$144*(1+pretaxreal)^0.5)/A2stdlife)) -> 0 | AL100: =IF(A2stdlife="n/a","n/a",IF(AL$3>(A2stdlife+$E100),(Input!$P$144*(1+pretaxreal)^0.5)-SUM($P100:AK100),(Input!$P$144*(1+pretaxreal)^0.5)/A2stdlife)) -> 0 | AM100: =IF(A2stdlife="n/a","n/a",IF(AM$3>(A2stdlife+$E100),(Input!$P$144*(1+pretaxreal)^0.5)-SUM($P100:AL100),(Input!$P$144*(1+pretaxreal)^0.5)/A2stdlife)) -> 0 | AN100: =IF(A2stdlife="n/a","n/a",IF(AN$3>(A2stdlife+$E100),(Input!$P$144*(1+pretaxreal)^0.5)-SUM($P100:AM100),(Input!$P$144*(1+pretaxreal)^0.5)/A2stdlife)) -> 0 | AO100: =IF(A2stdlife="n/a","n/a",IF(AO$3>(A2stdlife+$E100),(Input!$P$144*(1+pretaxreal)^0.5)-SUM($P100:AN100),(Input!$P$144*(1+pretaxreal)^0.5)/A2stdlife)) -> 0 | AP100: =IF(A2stdlife="n/a","n/a",IF(AP$3>(A2stdlife+$E100),(Input!$P$144*(1+pretaxreal)^0.5)-SUM($P100:AO100),(Input!$P$144*(1+pretaxreal)^0.5)/A2stdlife)) -> 0 | AQ100: =IF(A2stdlife="n/a","n/a",IF(AQ$3>(A2stdlife+$E100),(Input!$P$144*(1+pretaxreal)^0.5)-SUM($P100:AP100),(Input!$P$144*(1+pretaxreal)^0.5)/A2stdlife)) -> 0 | AR100: =IF(A2stdlife="n/a","n/a",IF(AR$3>(A2stdlife+$E100),(Input!$P$144*(1+pretaxreal)^0.5)-SUM($P100:AQ100),(Input!$P$144*(1+pretaxreal)^0.5)/A2stdlife)) -> 0 | AS100: =IF(A2stdlife="n/a","n/a",IF(AS$3>(A2stdlife+$E100),(Input!$P$144*(1+pretaxreal)^0.5)-SUM($P100:AR100),(Input!$P$144*(1+pretaxreal)^0.5)/A2stdlife)) -> 0 | AT100: =IF(A2stdlife="n/a","n/a",IF(AT$3>(A2stdlife+$E100),(Input!$P$144*(1+pretaxreal)^0.5)-SUM($P100:AS100),(Input!$P$144*(1+pretaxreal)^0.5)/A2stdlife)) -> 0 | AU100: =IF(A2stdlife="n/a","n/a",IF(AU$3>(A2stdlife+$E100),(Input!$P$144*(1+pretaxreal)^0.5)-SUM($P100:AT100),(Input!$P$144*(1+pretaxreal)^0.5)/A2stdlife)) -> 0 | AV100: =IF(A2stdlife="n/a","n/a",IF(AV$3>(A2stdlife+$E100),(Input!$P$144*(1+pretaxreal)^0.5)-SUM($P100:AU100),(Input!$P$144*(1+pretaxreal)^0.5)/A2stdlife)) -> 0 | AW100: =IF(A2stdlife="n/a","n/a",IF(AW$3>(A2stdlife+$E100),(Input!$P$144*(1+pretaxreal)^0.5)-SUM($P100:AV100),(Input!$P$144*(1+pretaxreal)^0.5)/A2stdlife)) -> 0 | AX100: =IF(A2stdlife="n/a","n/a",IF(AX$3>(A2stdlife+$E100),(Input!$P$144*(1+pretaxreal)^0.5)-SUM($P100:AW100),(Input!$P$144*(1+pretaxreal)^0.5)/A2stdlife)) -> 0 | AY100: =IF(A2stdlife="n/a","n/a",IF(AY$3>(A2stdlife+$E100),(Input!$P$144*(1+pretaxreal)^0.5)-SUM($P100:AX100),(Input!$P$144*(1+pretaxreal)^0.5)/A2stdlife)) -> 0 | AZ100: =IF(A2stdlife="n/a","n/a",IF(AZ$3>(A2stdlife+$E100),(Input!$P$144*(1+pretaxreal)^0.5)-SUM($P100:AY100),(Input!$P$144*(1+pretaxreal)^0.5)/A2stdlife)) -> 0 | BA100: =IF(A2stdlife="n/a","n/a",IF(BA$3>(A2stdlife+$E100),(Input!$P$144*(1+pretaxreal)^0.5)-SUM($P100:AZ100),(Input!$P$144*(1+pretaxreal)^0.5)/A2stdlife)) -> 0 | BB100: =IF(A2stdlife="n/a","n/a",IF(BB$3>(A2stdlife+$E100),(Input!$P$144*(1+pretaxreal)^0.5)-SUM($P100:BA100),(Input!$P$144*(1+pretaxreal)^0.5)/A2stdlife)) -> 0 | BC100: =IF(A2stdlife="n/a","n/a",IF(BC$3>(A2stdlife+$E100),(Input!$P$144*(1+pretaxreal)^0.5)-SUM($P100:BB100),(Input!$P$144*(1+pretaxreal)^0.5)/A2stdlife)) -> 0 | BD100: =IF(A2stdlife="n/a","n/a",IF(BD$3>(A2stdlife+$E100),(Input!$P$144*(1+pretaxreal)^0.5)-SUM($P100:BC100),(Input!$P$144*(1+pretaxreal)^0.5)/A2stdlife)) -> 0 | BE100: =IF(A2stdlife="n/a","n/a",IF(BE$3>(A2stdlife+$E100),(Input!$P$144*(1+pretaxreal)^0.5)-SUM($P100:BD100),(Input!$P$144*(1+pretaxreal)^0.5)/A2stdlife)) -> 0 | BF100: =IF(A2stdlife="n/a","n/a",IF(BF$3>(A2stdlife+$E100),(Input!$P$144*(1+pretaxreal)^0.5)-SUM($P100:BE100),(Input!$P$144*(1+pretaxreal)^0.5)/A2stdlife)) -> 0 | BG100: =IF(A2stdlife="n/a","n/a",IF(BG$3>(A2stdlife+$E100),(Input!$P$144*(1+pretaxreal)^0.5)-SUM($P100:BF100),(Input!$P$144*(1+pretaxreal)^0.5)/A2stdlife)) -> 0 | BH100: =IF(A2stdlife="n/a","n/a",IF(BH$3>(A2stdlife+$E100),(Input!$P$144*(1+pretaxreal)^0.5)-SUM($P100:BG100),(Input!$P$144*(1+pretaxreal)^0.5)/A2stdlife)) -> 0 | BI100: =IF(A2stdlife="n/a","n/a",IF(BI$3>(A2stdlife+$E100),(Input!$P$144*(1+pretaxreal)^0.5)-SUM($P100:BH100),(Input!$P$144*(1+pretaxreal)^0.5)/A2stdlife)) -> 0
C101: =Asset2 -> Transmission terminal station | G101: =SUM(G89:G100) -> 2.213955396 | H101: =SUM(H89:H100) -> 2.213955396 | I101: 2.213955396 | J101: 2.213955396 | K101: 2.213955396 | L101: 2.213955396 | M101: 2.213955396 | N101: 2.213955396 | O101: 2.213955396 | P101: 2.213955396 | Q101: 2.213955396 | R101: 2.213955396 | S101: 2.213955396 | T101: 2.213955396 | U101: 2.213955396 | V101: 2.213955396 | W101: 2.155525532 | X101: 0 | Y101: 0 | Z101: 0 | AA101: 0 | AB101: 0 | AC101: 0 | AD101: 0 | AE101: 0 | AF101: 0 | AG101: 0 | AH101: 0 | AI101: 0 | AJ101: 0 | AK101: 0 | AL101: 0 | AM101: 0 | AN101: 0 | AO101: 0 | AP101: 0 | AQ101: 0 | AR101: 0 | AS101: 0 | AT101: 0 | AU101: 0 | AV101: 0 | AW101: 0 | AX101: 0 | AY101: 0 | AZ101: 0 | BA101: 0 | BB101: 0 | BC101: 0 | BD101: 0 | BE101: 0 | BF101: 0 | BG101: 0 | BH101: 0 | BI101: 0
B102: =C114 -> Zone substations | D102: Initial Asset Base | G102: =IF(G$3>A3remlife,A3value-SUM($F102:F102),IF(A3remlife="N/A","n/a",A3value/A3remlife)) -> 20.00722344 | H102: =IF(H$3>A3remlife,A3value-SUM($F102:G102),IF(A3remlife="N/A","n/a",A3value/A3remlife)) -> 20.00722344 | I102: =IF(I$3>A3remlife,A3value-SUM($F102:H102),IF(A3remlife="N/A","n/a",A3value/A3remlife)) -> 20.00722344 | J102: =IF(J$3>A3remlife,A3value-SUM($F102:I102),IF(A3remlife="N/A","n/a",A3value/A3remlife)) -> 20.00722344 | K102: =IF(K$3>A3remlife,A3value-SUM($F102:J102),IF(A3remlife="N/A","n/a",A3value/A3remlife)) -> 20.00722344 | L102: =IF(L$3>A3remlife,A3value-SUM($F102:K102),IF(A3remlife="N/A","n/a",A3value/A3remlife)) -> 20.00722344 | M102: =IF(M$3>A3remlife,A3value-SUM($F102:L102),IF(A3remlife="N/A","n/a",A3value/A3remlife)) -> 20.00722344 | N102: =IF(N$3>A3remlife,A3value-SUM($F102:M102),IF(A3remlife="N/A","n/a",A3value/A3remlife)) -> 20.00722344 | O102: =IF(O$3>A3remlife,A3value-SUM($F102:N102),IF(A3remlife="N/A","n/a",A3value/A3remlife)) -> 20.00722344 | P102: =IF(P$3>A3remlife,A3value-SUM($F102:O102),IF(A3remlife="N/A","n/a",A3value/A3remlife)) -> 20.00722344 | Q102: =IF(Q$3>A3remlife,A3value-SUM($F102:P102),IF(A3remlife="N/A","n/a",A3value/A3remlife)) -> 20.00722344 | R102: =IF(R$3>A3remlife,A3value-SUM($F102:Q102),IF(A3remlife="N/A","n/a",A3value/A3remlife)) -> 20.00722344 | S102: =IF(S$3>A3remlife,A3value-SUM($F102:R102),IF(A3remlife="N/A","n/a",A3value/A3remlife)) -> 20.00722344 | T102: =IF(T$3>A3remlife,A3value-SUM($F102:S102),IF(A3remlife="N/A","n/a",A3value/A3remlife)) -> 2.671368102 | U102: =IF(U$3>A3remlife,A3value-SUM($F102:T102),IF(A3remlife="N/A","n/a",A3value/A3remlife)) -> 0 | V102: =IF(V$3>A3remlife,A3value-SUM($F102:U102),IF(A3remlife="N/A","n/a",A3value/A3remlife)) -> 0 | W102: =IF(W$3>A3remlife,A3value-SUM($F102:V102),IF(A3remlife="N/A","n/a",A3value/A3remlife)) -> 0 | X102: =IF(X$3>A3remlife,A3value-SUM($F102:W102),IF(A3remlife="N/A","n/a",A3value/A3remlife)) -> 0 | Y102: =IF(Y$3>A3remlife,A3value-SUM($F102:X102),IF(A3remlife="N/A","n/a",A3value/A3remlife)) -> 0 | Z102: =IF(Z$3>A3remlife,A3value-SUM($F102:Y102),IF(A3remlife="N/A","n/a",A3value/A3remlife)) -> 0 | AA102: =IF(AA$3>A3remlife,A3value-SUM($F102:Z102),IF(A3remlife="N/A","n/a",A3value/A3remlife)) -> 0 | AB102: =IF(AB$3>A3remlife,A3value-SUM($F102:AA102),IF(A3remlife="N/A","n/a",A3value/A3remlife)) -> 0 | AC102: =IF(AC$3>A3remlife,A3value-SUM($F102:AB102),IF(A3remlife="N/A","n/a",A3value/A3remlife)) -> 0 | AD102: =IF(AD$3>A3remlife,A3value-SUM($F102:AC102),IF(A3remlife="N/A","n/a",A3value/A3remlife)) -> 0 | AE102: =IF(AE$3>A3remlife,A3value-SUM($F102:AD102),IF(A3remlife="N/A","n/a",A3value/A3remlife)) -> 0 | AF102: =IF(AF$3>A3remlife,A3value-SUM($F102:AE102),IF(A3remlife="N/A","n/a",A3value/A3remlife)) -> 0 | AG102: =IF(AG$3>A3remlife,A3value-SUM($F102:AF102),IF(A3remlife="N/A","n/a",A3value/A3remlife)) -> 0 | AH102: =IF(AH$3>A3remlife,A3value-SUM($F102:AG102),IF(A3remlife="N/A","n/a",A3value/A3remlife)) -> 0 | AI102: =IF(AI$3>A3remlife,A3value-SUM($F102:AH102),IF(A3remlife="N/A","n/a",A3value/A3remlife)) -> 0 | AJ102: =IF(AJ$3>A3remlife,A3value-SUM($F102:AI102),IF(A3remlife="N/A","n/a",A3value/A3remlife)) -> 0 | AK102: =IF(AK$3>A3remlife,A3value-SUM($F102:AJ102),IF(A3remlife="N/A","n/a",A3value/A3remlife)) -> 0 | AL102: =IF(AL$3>A3remlife,A3value-SUM($F102:AK102),IF(A3remlife="N/A","n/a",A3value/A3remlife)) -> 0 | AM102: =IF(AM$3>A3remlife,A3value-SUM($F102:AL102),IF(A3remlife="N/A","n/a",A3value/A3remlife)) -> 0 | AN102: =IF(AN$3>A3remlife,A3value-SUM($F102:AM102),IF(A3remlife="N/A","n/a",A3value/A3remlife)) -> 0 | AO102: =IF(AO$3>A3remlife,A3value-SUM($F102:AN102),IF(A3remlife="N/A","n/a",A3value/A3remlife)) -> 0 | AP102: =IF(AP$3>A3remlife,A3value-SUM($F102:AO102),IF(A3remlife="N/A","n/a",A3value/A3remlife)) -> 0 | AQ102: =IF(AQ$3>A3remlife,A3value-SUM($F102:AP102),IF(A3remlife="N/A","n/a",A3value/A3remlife)) -> 0 | AR102: =IF(AR$3>A3remlife,A3value-SUM($F102:AQ102),IF(A3remlife="N/A","n/a",A3value/A3remlife)) -> 0 | AS102: =IF(AS$3>A3remlife,A3value-SUM($F102:AR102),IF(A3remlife="N/A","n/a",A3value/A3remlife)) -> 0 | AT102: =IF(AT$3>A3remlife,A3value-SUM($F102:AS102),IF(A3remlife="N/A","n/a",A3value/A3remlife)) -> 0 | AU102: =IF(AU$3>A3remlife,A3value-SUM($F102:AT102),IF(A3remlife="N/A","n/a",A3value/A3remlife)) -> 0 | AV102: =IF(AV$3>A3remlife,A3value-SUM($F102:AU102),IF(A3remlife="N/A","n/a",A3value/A3remlife)) -> 0 | AW102: =IF(AW$3>A3remlife,A3value-SUM($F102:AV102),IF(A3remlife="N/A","n/a",A3value/A3remlife)) -> 0 | AX102: =IF(AX$3>A3remlife,A3value-SUM($F102:AW102),IF(A3remlife="N/A","n/a",A3value/A3remlife)) -> 0 | AY102: =IF(AY$3>A3remlife,A3value-SUM($F102:AX102),IF(A3remlife="N/A","n/a",A3value/A3remlife)) -> 0 | AZ102: =IF(AZ$3>A3remlife,A3value-SUM($F102:AY102),IF(A3remlife="N/A","n/a",A3value/A3remlife)) -> 0 | BA102: =IF(BA$3>A3remlife,A3value-SUM($F102:AZ102),IF(A3remlife="N/A","n/a",A3value/A3remlife)) -> 0 | BB102: =IF(BB$3>A3remlife,A3value-SUM($F102:BA102),IF(A3remlife="N/A","n/a",A3value/A3remlife)) -> 0 | BC102: =IF(BC$3>A3remlife,A3value-SUM($F102:BB102),IF(A3remlife="N/A","n/a",A3value/A3remlife)) -> 0 | BD102: =IF(BD$3>A3remlife,A3value-SUM($F102:BC102),IF(A3remlife="N/A","n/a",A3value/A3remlife)) -> 0 | BE102: =IF(BE$3>A3remlife,A3value-SUM($F102:BD102),IF(A3remlife="N/A","n/a",A3value/A3remlife)) -> 0 | BF102: =IF(BF$3>A3remlife,A3value-SUM($F102:BE102),IF(A3remlife="N/A","n/a",A3value/A3remlife)) -> 0 | BG102: =IF(BG$3>A3remlife,A3value-SUM($F102:BF102),IF(A3remlife="N/A","n/a",A3value/A3remlife)) -> 0 | BH102: =IF(BH$3>A3remlife,A3value-SUM($F102:BG102),IF(A3remlife="N/A","n/a",A3value/A3remlife)) -> 0 | BI102: =IF(BI$3>A3remlife,A3value-SUM($F102:BH102),IF(A3remlife="N/A","n/a",A3value/A3remlife)) -> 0
D103: Capex | E103: 0
E104: 1 | H104: =IF(A3stdlife="n/a","n/a",IF(H$3>(A3stdlife+$E104),(Input!$G$145*(1+pretaxreal)^0.5)-SUM($G104:G104),(Input!$G$145*(1+pretaxreal)^0.5)/A3stdlife)) -> 0.8549169942 | I104: =IF(A3stdlife="n/a","n/a",IF(I$3>(A3stdlife+$E104),(Input!$G$145*(1+pretaxreal)^0.5)-SUM($G104:H104),(Input!$G$145*(1+pretaxreal)^0.5)/A3stdlife)) -> 0.8549169942 | J104: =IF(A3stdlife="n/a","n/a",IF(J$3>(A3stdlife+$E104),(Input!$G$145*(1+pretaxreal)^0.5)-SUM($G104:I104),(Input!$G$145*(1+pretaxreal)^0.5)/A3stdlife)) -> 0.8549169942 | K104: =IF(A3stdlife="n/a","n/a",IF(K$3>(A3stdlife+$E104),(Input!$G$145*(1+pretaxreal)^0.5)-SUM($G104:J104),(Input!$G$145*(1+pretaxreal)^0.5)/A3stdlife)) -> 0.8549169942 | L104: =IF(A3stdlife="n/a","n/a",IF(L$3>(A3stdlife+$E104),(Input!$G$145*(1+pretaxreal)^0.5)-SUM($G104:K104),(Input!$G$145*(1+pretaxreal)^0.5)/A3stdlife)) -> 0.8549169942 | M104: =IF(A3stdlife="n/a","n/a",IF(M$3>(A3stdlife+$E104),(Input!$G$145*(1+pretaxreal)^0.5)-SUM($G104:L104),(Input!$G$145*(1+pretaxreal)^0.5)/A3stdlife)) -> 0.8549169942 | N104: =IF(A3stdlife="n/a","n/a",IF(N$3>(A3stdlife+$E104),(Input!$G$145*(1+pretaxreal)^0.5)-SUM($G104:M104),(Input!$G$145*(1+pretaxreal)^0.5)/A3stdlife)) -> 0.8549169942 | O104: =IF(A3stdlife="n/a","n/a",IF(O$3>(A3stdlife+$E104),(Input!$G$145*(1+pretaxreal)^0.5)-SUM($G104:N104),(Input!$G$145*(1+pretaxreal)^0.5)/A3stdlife)) -> 0.8549169942 | P104: =IF(A3stdlife="n/a","n/a",IF(P$3>(A3stdlife+$E104),(Input!$G$145*(1+pretaxreal)^0.5)-SUM($G104:O104),(Input!$G$145*(1+pretaxreal)^0.5)/A3stdlife)) -> 0.8549169942 | Q104: =IF(A3stdlife="n/a","n/a",IF(Q$3>(A3stdlife+$E104),(Input!$G$145*(1+pretaxreal)^0.5)-SUM($G104:P104),(Input!$G$145*(1+pretaxreal)^0.5)/A3stdlife)) -> 0.8549169942 | R104: =IF(A3stdlife="n/a","n/a",IF(R$3>(A3stdlife+$E104),(Input!$G$145*(1+pretaxreal)^0.5)-SUM($G104:Q104),(Input!$G$145*(1+pretaxreal)^0.5)/A3stdlife)) -> 0.8549169942 | S104: =IF(A3stdlife="n/a","n/a",IF(S$3>(A3stdlife+$E104),(Input!$G$145*(1+pretaxreal)^0.5)-SUM($G104:R104),(Input!$G$145*(1+pretaxreal)^0.5)/A3stdlife)) -> 0.8549169942 | T104: =IF(A3stdlife="n/a","n/a",IF(T$3>(A3stdlife+$E104),(Input!$G$145*(1+pretaxreal)^0.5)-SUM($G104:S104),(Input!$G$145*(1+pretaxreal)^0.5)/A3stdlife)) -> 0.8549169942 | U104: =IF(A3stdlife="n/a","n/a",IF(U$3>(A3stdlife+$E104),(Input!$G$145*(1+pretaxreal)^0.5)-SUM($G104:T104),(Input!$G$145*(1+pretaxreal)^0.5)/A3stdlife)) -> 0.8549169942 | V104: =IF(A3stdlife="n/a","n/a",IF(V$3>(A3stdlife+$E104),(Input!$G$145*(1+pretaxreal)^0.5)-SUM($G104:U104),(Input!$G$145*(1+pretaxreal)^0.5)/A3stdlife)) -> 0.8549169942 | W104: =IF(A3stdlife="n/a","n/a",IF(W$3>(A3stdlife+$E104),(Input!$G$145*(1+pretaxreal)^0.5)-SUM($G104:V104),(Input!$G$145*(1+pretaxreal)^0.5)/A3stdlife)) -> 0.8549169942 | X104: =IF(A3stdlife="n/a","n/a",IF(X$3>(A3stdlife+$E104),(Input!$G$145*(1+pretaxreal)^0.5)-SUM($G104:W104),(Input!$G$145*(1+pretaxreal)^0.5)/A3stdlife)) -> 0.8549169942 | Y104: =IF(A3stdlife="n/a","n/a",IF(Y$3>(A3stdlife+$E104),(Input!$G$145*(1+pretaxreal)^0.5)-SUM($G104:X104),(Input!$G$145*(1+pretaxreal)^0.5)/A3stdlife)) -> 0.8549169942 | Z104: =IF(A3stdlife="n/a","n/a",IF(Z$3>(A3stdlife+$E104),(Input!$G$145*(1+pretaxreal)^0.5)-SUM($G104:Y104),(Input!$G$145*(1+pretaxreal)^0.5)/A3stdlife)) -> 0.8549169942 | AA104: =IF(A3stdlife="n/a","n/a",IF(AA$3>(A3stdlife+$E104),(Input!$G$145*(1+pretaxreal)^0.5)-SUM($G104:Z104),(Input!$G$145*(1+pretaxreal)^0.5)/A3stdlife)) -> 0.8549169942 | AB104: =IF(A3stdlife="n/a","n/a",IF(AB$3>(A3stdlife+$E104),(Input!$G$145*(1+pretaxreal)^0.5)-SUM($G104:AA104),(Input!$G$145*(1+pretaxreal)^0.5)/A3stdlife)) -> 0.8549169942 | AC104: =IF(A3stdlife="n/a","n/a",IF(AC$3>(A3stdlife+$E104),(Input!$G$145*(1+pretaxreal)^0.5)-SUM($G104:AB104),(Input!$G$145*(1+pretaxreal)^0.5)/A3stdlife)) -> 0.8549169942 | AD104: =IF(A3stdlife="n/a","n/a",IF(AD$3>(A3stdlife+$E104),(Input!$G$145*(1+pretaxreal)^0.5)-SUM($G104:AC104),(Input!$G$145*(1+pretaxreal)^0.5)/A3stdlife)) -> 0.8549169942 | AE104: =IF(A3stdlife="n/a","n/a",IF(AE$3>(A3stdlife+$E104),(Input!$G$145*(1+pretaxreal)^0.5)-SUM($G104:AD104),(Input!$G$145*(1+pretaxreal)^0.5)/A3stdlife)) -> 0.8549169942 | AF104: =IF(A3stdlife="n/a","n/a",IF(AF$3>(A3stdlife+$E104),(Input!$G$145*(1+pretaxreal)^0.5)-SUM($G104:AE104),(Input!$G$145*(1+pretaxreal)^0.5)/A3stdlife)) -> 0.8549169942 | AG104: =IF(A3stdlife="n/a","n/a",IF(AG$3>(A3stdlife+$E104),(Input!$G$145*(1+pretaxreal)^0.5)-SUM($G104:AF104),(Input!$G$145*(1+pretaxreal)^0.5)/A3stdlife)) -> 0.8549169942 | AH104: =IF(A3stdlife="n/a","n/a",IF(AH$3>(A3stdlife+$E104),(Input!$G$145*(1+pretaxreal)^0.5)-SUM($G104:AG104),(Input!$G$145*(1+pretaxreal)^0.5)/A3stdlife)) -> 0.8549169942 | AI104: =IF(A3stdlife="n/a","n/a",IF(AI$3>(A3stdlife+$E104),(Input!$G$145*(1+pretaxreal)^0.5)-SUM($G104:AH104),(Input!$G$145*(1+pretaxreal)^0.5)/A3stdlife)) -> 0.8549169942 | AJ104: =IF(A3stdlife="n/a","n/a",IF(AJ$3>(A3stdlife+$E104),(Input!$G$145*(1+pretaxreal)^0.5)-SUM($G104:AI104),(Input!$G$145*(1+pretaxreal)^0.5)/A3stdlife)) -> 0.8549169942 | AK104: =IF(A3stdlife="n/a","n/a",IF(AK$3>(A3stdlife+$E104),(Input!$G$145*(1+pretaxreal)^0.5)-SUM($G104:AJ104),(Input!$G$145*(1+pretaxreal)^0.5)/A3stdlife)) -> 0.8549169942 | AL104: =IF(A3stdlife="n/a","n/a",IF(AL$3>(A3stdlife+$E104),(Input!$G$145*(1+pretaxreal)^0.5)-SUM($G104:AK104),(Input!$G$145*(1+pretaxreal)^0.5)/A3stdlife)) -> 0.8549169942 | AM104: =IF(A3stdlife="n/a","n/a",IF(AM$3>(A3stdlife+$E104),(Input!$G$145*(1+pretaxreal)^0.5)-SUM($G104:AL104),(Input!$G$145*(1+pretaxreal)^0.5)/A3stdlife)) -> 0.8549169942 | AN104: =IF(A3stdlife="n/a","n/a",IF(AN$3>(A3stdlife+$E104),(Input!$G$145*(1+pretaxreal)^0.5)-SUM($G104:AM104),(Input!$G$145*(1+pretaxreal)^0.5)/A3stdlife)) -> 0.8549169942 | AO104: =IF(A3stdlife="n/a","n/a",IF(AO$3>(A3stdlife+$E104),(Input!$G$145*(1+pretaxreal)^0.5)-SUM($G104:AN104),(Input!$G$145*(1+pretaxreal)^0.5)/A3stdlife)) -> 0.8549169942 | AP104: =IF(A3stdlife="n/a","n/a",IF(AP$3>(A3stdlife+$E104),(Input!$G$145*(1+pretaxreal)^0.5)-SUM($G104:AO104),(Input!$G$145*(1+pretaxreal)^0.5)/A3stdlife)) -> 0.8549169942 | AQ104: =IF(A3stdlife="n/a","n/a",IF(AQ$3>(A3stdlife+$E104),(Input!$G$145*(1+pretaxreal)^0.5)-SUM($G104:AP104),(Input!$G$145*(1+pretaxreal)^0.5)/A3stdlife)) -> 0.8549169942 | AR104: =IF(A3stdlife="n/a","n/a",IF(AR$3>(A3stdlife+$E104),(Input!$G$145*(1+pretaxreal)^0.5)-SUM($G104:AQ104),(Input!$G$145*(1+pretaxreal)^0.5)/A3stdlife)) -> 0.8549169942 | AS104: =IF(A3stdlife="n/a","n/a",IF(AS$3>(A3stdlife+$E104),(Input!$G$145*(1+pretaxreal)^0.5)-SUM($G104:AR104),(Input!$G$145*(1+pretaxreal)^0.5)/A3stdlife)) -> 0.8549169942 | AT104: =IF(A3stdlife="n/a","n/a",IF(AT$3>(A3stdlife+$E104),(Input!$G$145*(1+pretaxreal)^0.5)-SUM($G104:AS104),(Input!$G$145*(1+pretaxreal)^0.5)/A3stdlife)) -> 0.8549169942 | AU104: =IF(A3stdlife="n/a","n/a",IF(AU$3>(A3stdlife+$E104),(Input!$G$145*(1+pretaxreal)^0.5)-SUM($G104:AT104),(Input!$G$145*(1+pretaxreal)^0.5)/A3stdlife)) -> 0.8549169942 | AV104: =IF(A3stdlife="n/a","n/a",IF(AV$3>(A3stdlife+$E104),(Input!$G$145*(1+pretaxreal)^0.5)-SUM($G104:AU104),(Input!$G$145*(1+pretaxreal)^0.5)/A3stdlife)) -> 0.8549169942 | AW104: =IF(A3stdlife="n/a","n/a",IF(AW$3>(A3stdlife+$E104),(Input!$G$145*(1+pretaxreal)^0.5)-SUM($G104:AV104),(Input!$G$145*(1+pretaxreal)^0.5)/A3stdlife)) -> 0.6346429992 | AX104: =IF(A3stdlife="n/a","n/a",IF(AX$3>(A3stdlife+$E104),(Input!$G$145*(1+pretaxreal)^0.5)-SUM($G104:AW104),(Input!$G$145*(1+pretaxreal)^0.5)/A3stdlife)) -> 0 | AY104: =IF(A3stdlife="n/a","n/a",IF(AY$3>(A3stdlife+$E104),(Input!$G$145*(1+pretaxreal)^0.5)-SUM($G104:AX104),(Input!$G$145*(1+pretaxreal)^0.5)/A3stdlife)) -> 0 | AZ104: =IF(A3stdlife="n/a","n/a",IF(AZ$3>(A3stdlife+$E104),(Input!$G$145*(1+pretaxreal)^0.5)-SUM($G104:AY104),(Input!$G$145*(1+pretaxreal)^0.5)/A3stdlife)) -> 0 | BA104: =IF(A3stdlife="n/a","n/a",IF(BA$3>(A3stdlife+$E104),(Input!$G$145*(1+pretaxreal)^0.5)-SUM($G104:AZ104),(Input!$G$145*(1+pretaxreal)^0.5)/A3stdlife)) -> 0 | BB104: =IF(A3stdlife="n/a","n/a",IF(BB$3>(A3stdlife+$E104),(Input!$G$145*(1+pretaxreal)^0.5)-SUM($G104:BA104),(Input!$G$145*(1+pretaxreal)^0.5)/A3stdlife)) -> 0 | BC104: =IF(A3stdlife="n/a","n/a",IF(BC$3>(A3stdlife+$E104),(Input!$G$145*(1+pretaxreal)^0.5)-SUM($G104:BB104),(Input!$G$145*(1+pretaxreal)^0.5)/A3stdlife)) -> 0 | BD104: =IF(A3stdlife="n/a","n/a",IF(BD$3>(A3stdlife+$E104),(Input!$G$145*(1+pretaxreal)^0.5)-SUM($G104:BC104),(Input!$G$145*(1+pretaxreal)^0.5)/A3stdlife)) -> 0 | BE104: =IF(A3stdlife="n/a","n/a",IF(BE$3>(A3stdlife+$E104),(Input!$G$145*(1+pretaxreal)^0.5)-SUM($G104:BD104),(Input!$G$145*(1+pretaxreal)^0.5)/A3stdlife)) -> 0 | BF104: =IF(A3stdlife="n/a","n/a",IF(BF$3>(A3stdlife+$E104),(Input!$G$145*(1+pretaxreal)^0.5)-SUM($G104:BE104),(Input!$G$145*(1+pretaxreal)^0.5)/A3stdlife)) -> 0 | BG104: =IF(A3stdlife="n/a","n/a",IF(BG$3>(A3stdlife+$E104),(Input!$G$145*(1+pretaxreal)^0.5)-SUM($G104:BF104),(Input!$G$145*(1+pretaxreal)^0.5)/A3stdlife)) -> 0 | BH104: =IF(A3stdlife="n/a","n/a",IF(BH$3>(A3stdlife+$E104),(Input!$G$145*(1+pretaxreal)^0.5)-SUM($G104:BG104),(Input!$G$145*(1+pretaxreal)^0.5)/A3stdlife)) -> 0 | BI104: =IF(A3stdlife="n/a","n/a",IF(BI$3>(A3stdlife+$E104),(Input!$G$145*(1+pretaxreal)^0.5)-SUM($G104:BH104),(Input!$G$145*(1+pretaxreal)^0.5)/A3stdlife)) -> 0
E105: 2 | I105: =IF(A3stdlife="n/a","n/a",IF(I$3>(A3stdlife+$E105),(Input!$H$145*(1+pretaxreal)^0.5)-SUM($H105:H105),(Input!$H$145*(1+pretaxreal)^0.5)/A3stdlife)) -> 0.399739798 | J105: =IF(A3stdlife="n/a","n/a",IF(J$3>(A3stdlife+$E105),(Input!$H$145*(1+pretaxreal)^0.5)-SUM($H105:I105),(Input!$H$145*(1+pretaxreal)^0.5)/A3stdlife)) -> 0.399739798 | K105: =IF(A3stdlife="n/a","n/a",IF(K$3>(A3stdlife+$E105),(Input!$H$145*(1+pretaxreal)^0.5)-SUM($H105:J105),(Input!$H$145*(1+pretaxreal)^0.5)/A3stdlife)) -> 0.399739798 | L105: =IF(A3stdlife="n/a","n/a",IF(L$3>(A3stdlife+$E105),(Input!$H$145*(1+pretaxreal)^0.5)-SUM($H105:K105),(Input!$H$145*(1+pretaxreal)^0.5)/A3stdlife)) -> 0.399739798 | M105: =IF(A3stdlife="n/a","n/a",IF(M$3>(A3stdlife+$E105),(Input!$H$145*(1+pretaxreal)^0.5)-SUM($H105:L105),(Input!$H$145*(1+pretaxreal)^0.5)/A3stdlife)) -> 0.399739798 | N105: =IF(A3stdlife="n/a","n/a",IF(N$3>(A3stdlife+$E105),(Input!$H$145*(1+pretaxreal)^0.5)-SUM($H105:M105),(Input!$H$145*(1+pretaxreal)^0.5)/A3stdlife)) -> 0.399739798 | O105: =IF(A3stdlife="n/a","n/a",IF(O$3>(A3stdlife+$E105),(Input!$H$145*(1+pretaxreal)^0.5)-SUM($H105:N105),(Input!$H$145*(1+pretaxreal)^0.5)/A3stdlife)) -> 0.399739798 | P105: =IF(A3stdlife="n/a","n/a",IF(P$3>(A3stdlife+$E105),(Input!$H$145*(1+pretaxreal)^0.5)-SUM($H105:O105),(Input!$H$145*(1+pretaxreal)^0.5)/A3stdlife)) -> 0.399739798 | Q105: =IF(A3stdlife="n/a","n/a",IF(Q$3>(A3stdlife+$E105),(Input!$H$145*(1+pretaxreal)^0.5)-SUM($H105:P105),(Input!$H$145*(1+pretaxreal)^0.5)/A3stdlife)) -> 0.399739798 | R105: =IF(A3stdlife="n/a","n/a",IF(R$3>(A3stdlife+$E105),(Input!$H$145*(1+pretaxreal)^0.5)-SUM($H105:Q105),(Input!$H$145*(1+pretaxreal)^0.5)/A3stdlife)) -> 0.399739798 | S105: =IF(A3stdlife="n/a","n/a",IF(S$3>(A3stdlife+$E105),(Input!$H$145*(1+pretaxreal)^0.5)-SUM($H105:R105),(Input!$H$145*(1+pretaxreal)^0.5)/A3stdlife)) -> 0.399739798 | T105: =IF(A3stdlife="n/a","n/a",IF(T$3>(A3stdlife+$E105),(Input!$H$145*(1+pretaxreal)^0.5)-SUM($H105:S105),(Input!$H$145*(1+pretaxreal)^0.5)/A3stdlife)) -> 0.399739798 | U105: =IF(A3stdlife="n/a","n/a",IF(U$3>(A3stdlife+$E105),(Input!$H$145*(1+pretaxreal)^0.5)-SUM($H105:T105),(Input!$H$145*(1+pretaxreal)^0.5)/A3stdlife)) -> 0.399739798 | V105: =IF(A3stdlife="n/a","n/a",IF(V$3>(A3stdlife+$E105),(Input!$H$145*(1+pretaxreal)^0.5)-SUM($H105:U105),(Input!$H$145*(1+pretaxreal)^0.5)/A3stdlife)) -> 0.399739798 | W105: =IF(A3stdlife="n/a","n/a",IF(W$3>(A3stdlife+$E105),(Input!$H$145*(1+pretaxreal)^0.5)-SUM($H105:V105),(Input!$H$145*(1+pretaxreal)^0.5)/A3stdlife)) -> 0.399739798 | X105: =IF(A3stdlife="n/a","n/a",IF(X$3>(A3stdlife+$E105),(Input!$H$145*(1+pretaxreal)^0.5)-SUM($H105:W105),(Input!$H$145*(1+pretaxreal)^0.5)/A3stdlife)) -> 0.399739798 | Y105: =IF(A3stdlife="n/a","n/a",IF(Y$3>(A3stdlife+$E105),(Input!$H$145*(1+pretaxreal)^0.5)-SUM($H105:X105),(Input!$H$145*(1+pretaxreal)^0.5)/A3stdlife)) -> 0.399739798 | Z105: =IF(A3stdlife="n/a","n/a",IF(Z$3>(A3stdlife+$E105),(Input!$H$145*(1+pretaxreal)^0.5)-SUM($H105:Y105),(Input!$H$145*(1+pretaxreal)^0.5)/A3stdlife)) -> 0.399739798 | AA105: =IF(A3stdlife="n/a","n/a",IF(AA$3>(A3stdlife+$E105),(Input!$H$145*(1+pretaxreal)^0.5)-SUM($H105:Z105),(Input!$H$145*(1+pretaxreal)^0.5)/A3stdlife)) -> 0.399739798 | AB105: =IF(A3stdlife="n/a","n/a",IF(AB$3>(A3stdlife+$E105),(Input!$H$145*(1+pretaxreal)^0.5)-SUM($H105:AA105),(Input!$H$145*(1+pretaxreal)^0.5)/A3stdlife)) -> 0.399739798 | AC105: =IF(A3stdlife="n/a","n/a",IF(AC$3>(A3stdlife+$E105),(Input!$H$145*(1+pretaxreal)^0.5)-SUM($H105:AB105),(Input!$H$145*(1+pretaxreal)^0.5)/A3stdlife)) -> 0.399739798 | AD105: =IF(A3stdlife="n/a","n/a",IF(AD$3>(A3stdlife+$E105),(Input!$H$145*(1+pretaxreal)^0.5)-SUM($H105:AC105),(Input!$H$145*(1+pretaxreal)^0.5)/A3stdlife)) -> 0.399739798 | AE105: =IF(A3stdlife="n/a","n/a",IF(AE$3>(A3stdlife+$E105),(Input!$H$145*(1+pretaxreal)^0.5)-SUM($H105:AD105),(Input!$H$145*(1+pretaxreal)^0.5)/A3stdlife)) -> 0.399739798 | AF105: =IF(A3stdlife="n/a","n/a",IF(AF$3>(A3stdlife+$E105),(Input!$H$145*(1+pretaxreal)^0.5)-SUM($H105:AE105),(Input!$H$145*(1+pretaxreal)^0.5)/A3stdlife)) -> 0.399739798 | AG105: =IF(A3stdlife="n/a","n/a",IF(AG$3>(A3stdlife+$E105),(Input!$H$145*(1+pretaxreal)^0.5)-SUM($H105:AF105),(Input!$H$145*(1+pretaxreal)^0.5)/A3stdlife)) -> 0.399739798 | AH105: =IF(A3stdlife="n/a","n/a",IF(AH$3>(A3stdlife+$E105),(Input!$H$145*(1+pretaxreal)^0.5)-SUM($H105:AG105),(Input!$H$145*(1+pretaxreal)^0.5)/A3stdlife)) -> 0.399739798 | AI105: =IF(A3stdlife="n/a","n/a",IF(AI$3>(A3stdlife+$E105),(Input!$H$145*(1+pretaxreal)^0.5)-SUM($H105:AH105),(Input!$H$145*(1+pretaxreal)^0.5)/A3stdlife)) -> 0.399739798 | AJ105: =IF(A3stdlife="n/a","n/a",IF(AJ$3>(A3stdlife+$E105),(Input!$H$145*(1+pretaxreal)^0.5)-SUM($H105:AI105),(Input!$H$145*(1+pretaxreal)^0.5)/A3stdlife)) -> 0.399739798 | AK105: =IF(A3stdlife="n/a","n/a",IF(AK$3>(A3stdlife+$E105),(Input!$H$145*(1+pretaxreal)^0.5)-SUM($H105:AJ105),(Input!$H$145*(1+pretaxreal)^0.5)/A3stdlife)) -> 0.399739798 | AL105: =IF(A3stdlife="n/a","n/a",IF(AL$3>(A3stdlife+$E105),(Input!$H$145*(1+pretaxreal)^0.5)-SUM($H105:AK105),(Input!$H$145*(1+pretaxreal)^0.5)/A3stdlife)) -> 0.399739798 | AM105: =IF(A3stdlife="n/a","n/a",IF(AM$3>(A3stdlife+$E105),(Input!$H$145*(1+pretaxreal)^0.5)-SUM($H105:AL105),(Input!$H$145*(1+pretaxreal)^0.5)/A3stdlife)) -> 0.399739798 | AN105: =IF(A3stdlife="n/a","n/a",IF(AN$3>(A3stdlife+$E105),(Input!$H$145*(1+pretaxreal)^0.5)-SUM($H105:AM105),(Input!$H$145*(1+pretaxreal)^0.5)/A3stdlife)) -> 0.399739798 | AO105: =IF(A3stdlife="n/a","n/a",IF(AO$3>(A3stdlife+$E105),(Input!$H$145*(1+pretaxreal)^0.5)-SUM($H105:AN105),(Input!$H$145*(1+pretaxreal)^0.5)/A3stdlife)) -> 0.399739798 | AP105: =IF(A3stdlife="n/a","n/a",IF(AP$3>(A3stdlife+$E105),(Input!$H$145*(1+pretaxreal)^0.5)-SUM($H105:AO105),(Input!$H$145*(1+pretaxreal)^0.5)/A3stdlife)) -> 0.399739798 | AQ105: =IF(A3stdlife="n/a","n/a",IF(AQ$3>(A3stdlife+$E105),(Input!$H$145*(1+pretaxreal)^0.5)-SUM($H105:AP105),(Input!$H$145*(1+pretaxreal)^0.5)/A3stdlife)) -> 0.399739798 | AR105: =IF(A3stdlife="n/a","n/a",IF(AR$3>(A3stdlife+$E105),(Input!$H$145*(1+pretaxreal)^0.5)-SUM($H105:AQ105),(Input!$H$145*(1+pretaxreal)^0.5)/A3stdlife)) -> 0.399739798 | AS105: =IF(A3stdlife="n/a","n/a",IF(AS$3>(A3stdlife+$E105),(Input!$H$145*(1+pretaxreal)^0.5)-SUM($H105:AR105),(Input!$H$145*(1+pretaxreal)^0.5)/A3stdlife)) -> 0.399739798 | AT105: =IF(A3stdlife="n/a","n/a",IF(AT$3>(A3stdlife+$E105),(Input!$H$145*(1+pretaxreal)^0.5)-SUM($H105:AS105),(Input!$H$145*(1+pretaxreal)^0.5)/A3stdlife)) -> 0.399739798 | AU105: =IF(A3stdlife="n/a","n/a",IF(AU$3>(A3stdlife+$E105),(Input!$H$145*(1+pretaxreal)^0.5)-SUM($H105:AT105),(Input!$H$145*(1+pretaxreal)^0.5)/A3stdlife)) -> 0.399739798 | AV105: =IF(A3stdlife="n/a","n/a",IF(AV$3>(A3stdlife+$E105),(Input!$H$145*(1+pretaxreal)^0.5)-SUM($H105:AU105),(Input!$H$145*(1+pretaxreal)^0.5)/A3stdlife)) -> 0.399739798 | AW105: =IF(A3stdlife="n/a","n/a",IF(AW$3>(A3stdlife+$E105),(Input!$H$145*(1+pretaxreal)^0.5)-SUM($H105:AV105),(Input!$H$145*(1+pretaxreal)^0.5)/A3stdlife)) -> 0.399739798 | AX105: =IF(A3stdlife="n/a","n/a",IF(AX$3>(A3stdlife+$E105),(Input!$H$145*(1+pretaxreal)^0.5)-SUM($H105:AW105),(Input!$H$145*(1+pretaxreal)^0.5)/A3stdlife)) -> 0.2967446735 | AY105: =IF(A3stdlife="n/a","n/a",IF(AY$3>(A3stdlife+$E105),(Input!$H$145*(1+pretaxreal)^0.5)-SUM($H105:AX105),(Input!$H$145*(1+pretaxreal)^0.5)/A3stdlife)) -> 0 | AZ105: =IF(A3stdlife="n/a","n/a",IF(AZ$3>(A3stdlife+$E105),(Input!$H$145*(1+pretaxreal)^0.5)-SUM($H105:AY105),(Input!$H$145*(1+pretaxreal)^0.5)/A3stdlife)) -> 0 | BA105: =IF(A3stdlife="n/a","n/a",IF(BA$3>(A3stdlife+$E105),(Input!$H$145*(1+pretaxreal)^0.5)-SUM($H105:AZ105),(Input!$H$145*(1+pretaxreal)^0.5)/A3stdlife)) -> 0 | BB105: =IF(A3stdlife="n/a","n/a",IF(BB$3>(A3stdlife+$E105),(Input!$H$145*(1+pretaxreal)^0.5)-SUM($H105:BA105),(Input!$H$145*(1+pretaxreal)^0.5)/A3stdlife)) -> 0 | BC105: =IF(A3stdlife="n/a","n/a",IF(BC$3>(A3stdlife+$E105),(Input!$H$145*(1+pretaxreal)^0.5)-SUM($H105:BB105),(Input!$H$145*(1+pretaxreal)^0.5)/A3stdlife)) -> 0 | BD105: =IF(A3stdlife="n/a","n/a",IF(BD$3>(A3stdlife+$E105),(Input!$H$145*(1+pretaxreal)^0.5)-SUM($H105:BC105),(Input!$H$145*(1+pretaxreal)^0.5)/A3stdlife)) -> 0 | BE105: =IF(A3stdlife="n/a","n/a",IF(BE$3>(A3stdlife+$E105),(Input!$H$145*(1+pretaxreal)^0.5)-SUM($H105:BD105),(Input!$H$145*(1+pretaxreal)^0.5)/A3stdlife)) -> 0 | BF105: =IF(A3stdlife="n/a","n/a",IF(BF$3>(A3stdlife+$E105),(Input!$H$145*(1+pretaxreal)^0.5)-SUM($H105:BE105),(Input!$H$145*(1+pretaxreal)^0.5)/A3stdlife)) -> 0 | BG105: =IF(A3stdlife="n/a","n/a",IF(BG$3>(A3stdlife+$E105),(Input!$H$145*(1+pretaxreal)^0.5)-SUM($H105:BF105),(Input!$H$145*(1+pretaxreal)^0.5)/A3stdlife)) -> 0 | BH105: =IF(A3stdlife="n/a","n/a",IF(BH$3>(A3stdlife+$E105),(Input!$H$145*(1+pretaxreal)^0.5)-SUM($H105:BG105),(Input!$H$145*(1+pretaxreal)^0.5)/A3stdlife)) -> 0 | BI105: =IF(A3stdlife="n/a","n/a",IF(BI$3>(A3stdlife+$E105),(Input!$H$145*(1+pretaxreal)^0.5)-SUM($H105:BH105),(Input!$H$145*(1+pretaxreal)^0.5)/A3stdlife)) -> 0
E106: 3 | J106: =IF(A3stdlife="n/a","n/a",IF(J$3>(A3stdlife+$E106),(Input!$I$145*(1+pretaxreal)^0.5)-SUM($I106:I106),(Input!$I$145*(1+pretaxreal)^0.5)/A3stdlife)) -> 0.3068856779 | K106: =IF(A3stdlife="n/a","n/a",IF(K$3>(A3stdlife+$E106),(Input!$I$145*(1+pretaxreal)^0.5)-SUM($I106:J106),(Input!$I$145*(1+pretaxreal)^0.5)/A3stdlife)) -> 0.3068856779 | L106: =IF(A3stdlife="n/a","n/a",IF(L$3>(A3stdlife+$E106),(Input!$I$145*(1+pretaxreal)^0.5)-SUM($I106:K106),(Input!$I$145*(1+pretaxreal)^0.5)/A3stdlife)) -> 0.3068856779 | M106: =IF(A3stdlife="n/a","n/a",IF(M$3>(A3stdlife+$E106),(Input!$I$145*(1+pretaxreal)^0.5)-SUM($I106:L106),(Input!$I$145*(1+pretaxreal)^0.5)/A3stdlife)) -> 0.3068856779 | N106: =IF(A3stdlife="n/a","n/a",IF(N$3>(A3stdlife+$E106),(Input!$I$145*(1+pretaxreal)^0.5)-SUM($I106:M106),(Input!$I$145*(1+pretaxreal)^0.5)/A3stdlife)) -> 0.3068856779 | O106: =IF(A3stdlife="n/a","n/a",IF(O$3>(A3stdlife+$E106),(Input!$I$145*(1+pretaxreal)^0.5)-SUM($I106:N106),(Input!$I$145*(1+pretaxreal)^0.5)/A3stdlife)) -> 0.3068856779 | P106: =IF(A3stdlife="n/a","n/a",IF(P$3>(A3stdlife+$E106),(Input!$I$145*(1+pretaxreal)^0.5)-SUM($I106:O106),(Input!$I$145*(1+pretaxreal)^0.5)/A3stdlife)) -> 0.3068856779 | Q106: =IF(A3stdlife="n/a","n/a",IF(Q$3>(A3stdlife+$E106),(Input!$I$145*(1+pretaxreal)^0.5)-SUM($I106:P106),(Input!$I$145*(1+pretaxreal)^0.5)/A3stdlife)) -> 0.3068856779 | R106: =IF(A3stdlife="n/a","n/a",IF(R$3>(A3stdlife+$E106),(Input!$I$145*(1+pretaxreal)^0.5)-SUM($I106:Q106),(Input!$I$145*(1+pretaxreal)^0.5)/A3stdlife)) -> 0.3068856779 | S106: =IF(A3stdlife="n/a","n/a",IF(S$3>(A3stdlife+$E106),(Input!$I$145*(1+pretaxreal)^0.5)-SUM($I106:R106),(Input!$I$145*(1+pretaxreal)^0.5)/A3stdlife)) -> 0.3068856779 | T106: =IF(A3stdlife="n/a","n/a",IF(T$3>(A3stdlife+$E106),(Input!$I$145*(1+pretaxreal)^0.5)-SUM($I106:S106),(Input!$I$145*(1+pretaxreal)^0.5)/A3stdlife)) -> 0.3068856779 | U106: =IF(A3stdlife="n/a","n/a",IF(U$3>(A3stdlife+$E106),(Input!$I$145*(1+pretaxreal)^0.5)-SUM($I106:T106),(Input!$I$145*(1+pretaxreal)^0.5)/A3stdlife)) -> 0.3068856779 | V106: =IF(A3stdlife="n/a","n/a",IF(V$3>(A3stdlife+$E106),(Input!$I$145*(1+pretaxreal)^0.5)-SUM($I106:U106),(Input!$I$145*(1+pretaxreal)^0.5)/A3stdlife)) -> 0.3068856779 | W106: =IF(A3stdlife="n/a","n/a",IF(W$3>(A3stdlife+$E106),(Input!$I$145*(1+pretaxreal)^0.5)-SUM($I106:V106),(Input!$I$145*(1+pretaxreal)^0.5)/A3stdlife)) -> 0.3068856779 | X106: =IF(A3stdlife="n/a","n/a",IF(X$3>(A3stdlife+$E106),(Input!$I$145*(1+pretaxreal)^0.5)-SUM($I106:W106),(Input!$I$145*(1+pretaxreal)^0.5)/A3stdlife)) -> 0.3068856779 | Y106: =IF(A3stdlife="n/a","n/a",IF(Y$3>(A3stdlife+$E106),(Input!$I$145*(1+pretaxreal)^0.5)-SUM($I106:X106),(Input!$I$145*(1+pretaxreal)^0.5)/A3stdlife)) -> 0.3068856779 | Z106: =IF(A3stdlife="n/a","n/a",IF(Z$3>(A3stdlife+$E106),(Input!$I$145*(1+pretaxreal)^0.5)-SUM($I106:Y106),(Input!$I$145*(1+pretaxreal)^0.5)/A3stdlife)) -> 0.3068856779 | AA106: =IF(A3stdlife="n/a","n/a",IF(AA$3>(A3stdlife+$E106),(Input!$I$145*(1+pretaxreal)^0.5)-SUM($I106:Z106),(Input!$I$145*(1+pretaxreal)^0.5)/A3stdlife)) -> 0.3068856779 | AB106: =IF(A3stdlife="n/a","n/a",IF(AB$3>(A3stdlife+$E106),(Input!$I$145*(1+pretaxreal)^0.5)-SUM($I106:AA106),(Input!$I$145*(1+pretaxreal)^0.5)/A3stdlife)) -> 0.3068856779 | AC106: =IF(A3stdlife="n/a","n/a",IF(AC$3>(A3stdlife+$E106),(Input!$I$145*(1+pretaxreal)^0.5)-SUM($I106:AB106),(Input!$I$145*(1+pretaxreal)^0.5)/A3stdlife)) -> 0.3068856779 | AD106: =IF(A3stdlife="n/a","n/a",IF(AD$3>(A3stdlife+$E106),(Input!$I$145*(1+pretaxreal)^0.5)-SUM($I106:AC106),(Input!$I$145*(1+pretaxreal)^0.5)/A3stdlife)) -> 0.3068856779 | AE106: =IF(A3stdlife="n/a","n/a",IF(AE$3>(A3stdlife+$E106),(Input!$I$145*(1+pretaxreal)^0.5)-SUM($I106:AD106),(Input!$I$145*(1+pretaxreal)^0.5)/A3stdlife)) -> 0.3068856779 | AF106: =IF(A3stdlife="n/a","n/a",IF(AF$3>(A3stdlife+$E106),(Input!$I$145*(1+pretaxreal)^0.5)-SUM($I106:AE106),(Input!$I$145*(1+pretaxreal)^0.5)/A3stdlife)) -> 0.3068856779 | AG106: =IF(A3stdlife="n/a","n/a",IF(AG$3>(A3stdlife+$E106),(Input!$I$145*(1+pretaxreal)^0.5)-SUM($I106:AF106),(Input!$I$145*(1+pretaxreal)^0.5)/A3stdlife)) -> 0.3068856779 | AH106: =IF(A3stdlife="n/a","n/a",IF(AH$3>(A3stdlife+$E106),(Input!$I$145*(1+pretaxreal)^0.5)-SUM($I106:AG106),(Input!$I$145*(1+pretaxreal)^0.5)/A3stdlife)) -> 0.3068856779 | AI106: =IF(A3stdlife="n/a","n/a",IF(AI$3>(A3stdlife+$E106),(Input!$I$145*(1+pretaxreal)^0.5)-SUM($I106:AH106),(Input!$I$145*(1+pretaxreal)^0.5)/A3stdlife)) -> 0.3068856779 | AJ106: =IF(A3stdlife="n/a","n/a",IF(AJ$3>(A3stdlife+$E106),(Input!$I$145*(1+pretaxreal)^0.5)-SUM($I106:AI106),(Input!$I$145*(1+pretaxreal)^0.5)/A3stdlife)) -> 0.3068856779 | AK106: =IF(A3stdlife="n/a","n/a",IF(AK$3>(A3stdlife+$E106),(Input!$I$145*(1+pretaxreal)^0.5)-SUM($I106:AJ106),(Input!$I$145*(1+pretaxreal)^0.5)/A3stdlife)) -> 0.3068856779 | AL106: =IF(A3stdlife="n/a","n/a",IF(AL$3>(A3stdlife+$E106),(Input!$I$145*(1+pretaxreal)^0.5)-SUM($I106:AK106),(Input!$I$145*(1+pretaxreal)^0.5)/A3stdlife)) -> 0.3068856779 | AM106: =IF(A3stdlife="n/a","n/a",IF(AM$3>(A3stdlife+$E106),(Input!$I$145*(1+pretaxreal)^0.5)-SUM($I106:AL106),(Input!$I$145*(1+pretaxreal)^0.5)/A3stdlife)) -> 0.3068856779 | AN106: =IF(A3stdlife="n/a","n/a",IF(AN$3>(A3stdlife+$E106),(Input!$I$145*(1+pretaxreal)^0.5)-SUM($I106:AM106),(Input!$I$145*(1+pretaxreal)^0.5)/A3stdlife)) -> 0.3068856779 | AO106: =IF(A3stdlife="n/a","n/a",IF(AO$3>(A3stdlife+$E106),(Input!$I$145*(1+pretaxreal)^0.5)-SUM($I106:AN106),(Input!$I$145*(1+pretaxreal)^0.5)/A3stdlife)) -> 0.3068856779 | AP106: =IF(A3stdlife="n/a","n/a",IF(AP$3>(A3stdlife+$E106),(Input!$I$145*(1+pretaxreal)^0.5)-SUM($I106:AO106),(Input!$I$145*(1+pretaxreal)^0.5)/A3stdlife)) -> 0.3068856779 | AQ106: =IF(A3stdlife="n/a","n/a",IF(AQ$3>(A3stdlife+$E106),(Input!$I$145*(1+pretaxreal)^0.5)-SUM($I106:AP106),(Input!$I$145*(1+pretaxreal)^0.5)/A3stdlife)) -> 0.3068856779 | AR106: =IF(A3stdlife="n/a","n/a",IF(AR$3>(A3stdlife+$E106),(Input!$I$145*(1+pretaxreal)^0.5)-SUM($I106:AQ106),(Input!$I$145*(1+pretaxreal)^0.5)/A3stdlife)) -> 0.3068856779 | AS106: =IF(A3stdlife="n/a","n/a",IF(AS$3>(A3stdlife+$E106),(Input!$I$145*(1+pretaxreal)^0.5)-SUM($I106:AR106),(Input!$I$145*(1+pretaxreal)^0.5)/A3stdlife)) -> 0.3068856779 | AT106: =IF(A3stdlife="n/a","n/a",IF(AT$3>(A3stdlife+$E106),(Input!$I$145*(1+pretaxreal)^0.5)-SUM($I106:AS106),(Input!$I$145*(1+pretaxreal)^0.5)/A3stdlife)) -> 0.3068856779 | AU106: =IF(A3stdlife="n/a","n/a",IF(AU$3>(A3stdlife+$E106),(Input!$I$145*(1+pretaxreal)^0.5)-SUM($I106:AT106),(Input!$I$145*(1+pretaxreal)^0.5)/A3stdlife)) -> 0.3068856779 | AV106: =IF(A3stdlife="n/a","n/a",IF(AV$3>(A3stdlife+$E106),(Input!$I$145*(1+pretaxreal)^0.5)-SUM($I106:AU106),(Input!$I$145*(1+pretaxreal)^0.5)/A3stdlife)) -> 0.3068856779 | AW106: =IF(A3stdlife="n/a","n/a",IF(AW$3>(A3stdlife+$E106),(Input!$I$145*(1+pretaxreal)^0.5)-SUM($I106:AV106),(Input!$I$145*(1+pretaxreal)^0.5)/A3stdlife)) -> 0.3068856779 | AX106: =IF(A3stdlife="n/a","n/a",IF(AX$3>(A3stdlife+$E106),(Input!$I$145*(1+pretaxreal)^0.5)-SUM($I106:AW106),(Input!$I$145*(1+pretaxreal)^0.5)/A3stdlife)) -> 0.3068856779 | AY106: =IF(A3stdlife="n/a","n/a",IF(AY$3>(A3stdlife+$E106),(Input!$I$145*(1+pretaxreal)^0.5)-SUM($I106:AX106),(Input!$I$145*(1+pretaxreal)^0.5)/A3stdlife)) -> 0.2278149205 | AZ106: =IF(A3stdlife="n/a","n/a",IF(AZ$3>(A3stdlife+$E106),(Input!$I$145*(1+pretaxreal)^0.5)-SUM($I106:AY106),(Input!$I$145*(1+pretaxreal)^0.5)/A3stdlife)) -> 0 | BA106: =IF(A3stdlife="n/a","n/a",IF(BA$3>(A3stdlife+$E106),(Input!$I$145*(1+pretaxreal)^0.5)-SUM($I106:AZ106),(Input!$I$145*(1+pretaxreal)^0.5)/A3stdlife)) -> 0 | BB106: =IF(A3stdlife="n/a","n/a",IF(BB$3>(A3stdlife+$E106),(Input!$I$145*(1+pretaxreal)^0.5)-SUM($I106:BA106),(Input!$I$145*(1+pretaxreal)^0.5)/A3stdlife)) -> 0 | BC106: =IF(A3stdlife="n/a","n/a",IF(BC$3>(A3stdlife+$E106),(Input!$I$145*(1+pretaxreal)^0.5)-SUM($I106:BB106),(Input!$I$145*(1+pretaxreal)^0.5)/A3stdlife)) -> 0 | BD106: =IF(A3stdlife="n/a","n/a",IF(BD$3>(A3stdlife+$E106),(Input!$I$145*(1+pretaxreal)^0.5)-SUM($I106:BC106),(Input!$I$145*(1+pretaxreal)^0.5)/A3stdlife)) -> 0 | BE106: =IF(A3stdlife="n/a","n/a",IF(BE$3>(A3stdlife+$E106),(Input!$I$145*(1+pretaxreal)^0.5)-SUM($I106:BD106),(Input!$I$145*(1+pretaxreal)^0.5)/A3stdlife)) -> 0 | BF106: =IF(A3stdlife="n/a","n/a",IF(BF$3>(A3stdlife+$E106),(Input!$I$145*(1+pretaxreal)^0.5)-SUM($I106:BE106),(Input!$I$145*(1+pretaxreal)^0.5)/A3stdlife)) -> 0 | BG106: =IF(A3stdlife="n/a","n/a",IF(BG$3>(A3stdlife+$E106),(Input!$I$145*(1+pretaxreal)^0.5)-SUM($I106:BF106),(Input!$I$145*(1+pretaxreal)^0.5)/A3stdlife)) -> 0 | BH106: =IF(A3stdlife="n/a","n/a",IF(BH$3>(A3stdlife+$E106),(Input!$I$145*(1+pretaxreal)^0.5)-SUM($I106:BG106),(Input!$I$145*(1+pretaxreal)^0.5)/A3stdlife)) -> 0 | BI106: =IF(A3stdlife="n/a","n/a",IF(BI$3>(A3stdlife+$E106),(Input!$I$145*(1+pretaxreal)^0.5)-SUM($I106:BH106),(Input!$I$145*(1+pretaxreal)^0.5)/A3stdlife)) -> 0
E107: 4 | K107: =IF(A3stdlife="n/a","n/a",IF(K$3>(A3stdlife+$E107),(Input!$J$145*(1+pretaxreal)^0.5)-SUM($J107:J107),(Input!$J$145*(1+pretaxreal)^0.5)/A3stdlife)) -> 0.3494344012 | L107: =IF(A3stdlife="n/a","n/a",IF(L$3>(A3stdlife+$E107),(Input!$J$145*(1+pretaxreal)^0.5)-SUM($J107:K107),(Input!$J$145*(1+pretaxreal)^0.5)/A3stdlife)) -> 0.3494344012 | M107: =IF(A3stdlife="n/a","n/a",IF(M$3>(A3stdlife+$E107),(Input!$J$145*(1+pretaxreal)^0.5)-SUM($J107:L107),(Input!$J$145*(1+pretaxreal)^0.5)/A3stdlife)) -> 0.3494344012 | N107: =IF(A3stdlife="n/a","n/a",IF(N$3>(A3stdlife+$E107),(Input!$J$145*(1+pretaxreal)^0.5)-SUM($J107:M107),(Input!$J$145*(1+pretaxreal)^0.5)/A3stdlife)) -> 0.3494344012 | O107: =IF(A3stdlife="n/a","n/a",IF(O$3>(A3stdlife+$E107),(Input!$J$145*(1+pretaxreal)^0.5)-SUM($J107:N107),(Input!$J$145*(1+pretaxreal)^0.5)/A3stdlife)) -> 0.3494344012 | P107: =IF(A3stdlife="n/a","n/a",IF(P$3>(A3stdlife+$E107),(Input!$J$145*(1+pretaxreal)^0.5)-SUM($J107:O107),(Input!$J$145*(1+pretaxreal)^0.5)/A3stdlife)) -> 0.3494344012 | Q107: =IF(A3stdlife="n/a","n/a",IF(Q$3>(A3stdlife+$E107),(Input!$J$145*(1+pretaxreal)^0.5)-SUM($J107:P107),(Input!$J$145*(1+pretaxreal)^0.5)/A3stdlife)) -> 0.3494344012 | R107: =IF(A3stdlife="n/a","n/a",IF(R$3>(A3stdlife+$E107),(Input!$J$145*(1+pretaxreal)^0.5)-SUM($J107:Q107),(Input!$J$145*(1+pretaxreal)^0.5)/A3stdlife)) -> 0.3494344012 | S107: =IF(A3stdlife="n/a","n/a",IF(S$3>(A3stdlife+$E107),(Input!$J$145*(1+pretaxreal)^0.5)-SUM($J107:R107),(Input!$J$145*(1+pretaxreal)^0.5)/A3stdlife)) -> 0.3494344012 | T107: =IF(A3stdlife="n/a","n/a",IF(T$3>(A3stdlife+$E107),(Input!$J$145*(1+pretaxreal)^0.5)-SUM($J107:S107),(Input!$J$145*(1+pretaxreal)^0.5)/A3stdlife)) -> 0.3494344012 | U107: =IF(A3stdlife="n/a","n/a",IF(U$3>(A3stdlife+$E107),(Input!$J$145*(1+pretaxreal)^0.5)-SUM($J107:T107),(Input!$J$145*(1+pretaxreal)^0.5)/A3stdlife)) -> 0.3494344012 | V107: =IF(A3stdlife="n/a","n/a",IF(V$3>(A3stdlife+$E107),(Input!$J$145*(1+pretaxreal)^0.5)-SUM($J107:U107),(Input!$J$145*(1+pretaxreal)^0.5)/A3stdlife)) -> 0.3494344012 | W107: =IF(A3stdlife="n/a","n/a",IF(W$3>(A3stdlife+$E107),(Input!$J$145*(1+pretaxreal)^0.5)-SUM($J107:V107),(Input!$J$145*(1+pretaxreal)^0.5)/A3stdlife)) -> 0.3494344012 | X107: =IF(A3stdlife="n/a","n/a",IF(X$3>(A3stdlife+$E107),(Input!$J$145*(1+pretaxreal)^0.5)-SUM($J107:W107),(Input!$J$145*(1+pretaxreal)^0.5)/A3stdlife)) -> 0.3494344012 | Y107: =IF(A3stdlife="n/a","n/a",IF(Y$3>(A3stdlife+$E107),(Input!$J$145*(1+pretaxreal)^0.5)-SUM($J107:X107),(Input!$J$145*(1+pretaxreal)^0.5)/A3stdlife)) -> 0.3494344012 | Z107: =IF(A3stdlife="n/a","n/a",IF(Z$3>(A3stdlife+$E107),(Input!$J$145*(1+pretaxreal)^0.5)-SUM($J107:Y107),(Input!$J$145*(1+pretaxreal)^0.5)/A3stdlife)) -> 0.3494344012 | AA107: =IF(A3stdlife="n/a","n/a",IF(AA$3>(A3stdlife+$E107),(Input!$J$145*(1+pretaxreal)^0.5)-SUM($J107:Z107),(Input!$J$145*(1+pretaxreal)^0.5)/A3stdlife)) -> 0.3494344012 | AB107: =IF(A3stdlife="n/a","n/a",IF(AB$3>(A3stdlife+$E107),(Input!$J$145*(1+pretaxreal)^0.5)-SUM($J107:AA107),(Input!$J$145*(1+pretaxreal)^0.5)/A3stdlife)) -> 0.3494344012 | AC107: =IF(A3stdlife="n/a","n/a",IF(AC$3>(A3stdlife+$E107),(Input!$J$145*(1+pretaxreal)^0.5)-SUM($J107:AB107),(Input!$J$145*(1+pretaxreal)^0.5)/A3stdlife)) -> 0.3494344012 | AD107: =IF(A3stdlife="n/a","n/a",IF(AD$3>(A3stdlife+$E107),(Input!$J$145*(1+pretaxreal)^0.5)-SUM($J107:AC107),(Input!$J$145*(1+pretaxreal)^0.5)/A3stdlife)) -> 0.3494344012 | AE107: =IF(A3stdlife="n/a","n/a",IF(AE$3>(A3stdlife+$E107),(Input!$J$145*(1+pretaxreal)^0.5)-SUM($J107:AD107),(Input!$J$145*(1+pretaxreal)^0.5)/A3stdlife)) -> 0.3494344012 | AF107: =IF(A3stdlife="n/a","n/a",IF(AF$3>(A3stdlife+$E107),(Input!$J$145*(1+pretaxreal)^0.5)-SUM($J107:AE107),(Input!$J$145*(1+pretaxreal)^0.5)/A3stdlife)) -> 0.3494344012 | AG107: =IF(A3stdlife="n/a","n/a",IF(AG$3>(A3stdlife+$E107),(Input!$J$145*(1+pretaxreal)^0.5)-SUM($J107:AF107),(Input!$J$145*(1+pretaxreal)^0.5)/A3stdlife)) -> 0.3494344012 | AH107: =IF(A3stdlife="n/a","n/a",IF(AH$3>(A3stdlife+$E107),(Input!$J$145*(1+pretaxreal)^0.5)-SUM($J107:AG107),(Input!$J$145*(1+pretaxreal)^0.5)/A3stdlife)) -> 0.3494344012 | AI107: =IF(A3stdlife="n/a","n/a",IF(AI$3>(A3stdlife+$E107),(Input!$J$145*(1+pretaxreal)^0.5)-SUM($J107:AH107),(Input!$J$145*(1+pretaxreal)^0.5)/A3stdlife)) -> 0.3494344012 | AJ107: =IF(A3stdlife="n/a","n/a",IF(AJ$3>(A3stdlife+$E107),(Input!$J$145*(1+pretaxreal)^0.5)-SUM($J107:AI107),(Input!$J$145*(1+pretaxreal)^0.5)/A3stdlife)) -> 0.3494344012 | AK107: =IF(A3stdlife="n/a","n/a",IF(AK$3>(A3stdlife+$E107),(Input!$J$145*(1+pretaxreal)^0.5)-SUM($J107:AJ107),(Input!$J$145*(1+pretaxreal)^0.5)/A3stdlife)) -> 0.3494344012 | AL107: =IF(A3stdlife="n/a","n/a",IF(AL$3>(A3stdlife+$E107),(Input!$J$145*(1+pretaxreal)^0.5)-SUM($J107:AK107),(Input!$J$145*(1+pretaxreal)^0.5)/A3stdlife)) -> 0.3494344012 | AM107: =IF(A3stdlife="n/a","n/a",IF(AM$3>(A3stdlife+$E107),(Input!$J$145*(1+pretaxreal)^0.5)-SUM($J107:AL107),(Input!$J$145*(1+pretaxreal)^0.5)/A3stdlife)) -> 0.3494344012 | AN107: =IF(A3stdlife="n/a","n/a",IF(AN$3>(A3stdlife+$E107),(Input!$J$145*(1+pretaxreal)^0.5)-SUM($J107:AM107),(Input!$J$145*(1+pretaxreal)^0.5)/A3stdlife)) -> 0.3494344012 | AO107: =IF(A3stdlife="n/a","n/a",IF(AO$3>(A3stdlife+$E107),(Input!$J$145*(1+pretaxreal)^0.5)-SUM($J107:AN107),(Input!$J$145*(1+pretaxreal)^0.5)/A3stdlife)) -> 0.3494344012 | AP107: =IF(A3stdlife="n/a","n/a",IF(AP$3>(A3stdlife+$E107),(Input!$J$145*(1+pretaxreal)^0.5)-SUM($J107:AO107),(Input!$J$145*(1+pretaxreal)^0.5)/A3stdlife)) -> 0.3494344012 | AQ107: =IF(A3stdlife="n/a","n/a",IF(AQ$3>(A3stdlife+$E107),(Input!$J$145*(1+pretaxreal)^0.5)-SUM($J107:AP107),(Input!$J$145*(1+pretaxreal)^0.5)/A3stdlife)) -> 0.3494344012 | AR107: =IF(A3stdlife="n/a","n/a",IF(AR$3>(A3stdlife+$E107),(Input!$J$145*(1+pretaxreal)^0.5)-SUM($J107:AQ107),(Input!$J$145*(1+pretaxreal)^0.5)/A3stdlife)) -> 0.3494344012 | AS107: =IF(A3stdlife="n/a","n/a",IF(AS$3>(A3stdlife+$E107),(Input!$J$145*(1+pretaxreal)^0.5)-SUM($J107:AR107),(Input!$J$145*(1+pretaxreal)^0.5)/A3stdlife)) -> 0.3494344012 | AT107: =IF(A3stdlife="n/a","n/a",IF(AT$3>(A3stdlife+$E107),(Input!$J$145*(1+pretaxreal)^0.5)-SUM($J107:AS107),(Input!$J$145*(1+pretaxreal)^0.5)/A3stdlife)) -> 0.3494344012 | AU107: =IF(A3stdlife="n/a","n/a",IF(AU$3>(A3stdlife+$E107),(Input!$J$145*(1+pretaxreal)^0.5)-SUM($J107:AT107),(Input!$J$145*(1+pretaxreal)^0.5)/A3stdlife)) -> 0.3494344012 | AV107: =IF(A3stdlife="n/a","n/a",IF(AV$3>(A3stdlife+$E107),(Input!$J$145*(1+pretaxreal)^0.5)-SUM($J107:AU107),(Input!$J$145*(1+pretaxreal)^0.5)/A3stdlife)) -> 0.3494344012 | AW107: =IF(A3stdlife="n/a","n/a",IF(AW$3>(A3stdlife+$E107),(Input!$J$145*(1+pretaxreal)^0.5)-SUM($J107:AV107),(Input!$J$145*(1+pretaxreal)^0.5)/A3stdlife)) -> 0.3494344012 | AX107: =IF(A3stdlife="n/a","n/a",IF(AX$3>(A3stdlife+$E107),(Input!$J$145*(1+pretaxreal)^0.5)-SUM($J107:AW107),(Input!$J$145*(1+pretaxreal)^0.5)/A3stdlife)) -> 0.3494344012 | AY107: =IF(A3stdlife="n/a","n/a",IF(AY$3>(A3stdlife+$E107),(Input!$J$145*(1+pretaxreal)^0.5)-SUM($J107:AX107),(Input!$J$145*(1+pretaxreal)^0.5)/A3stdlife)) -> 0.3494344012 | AZ107: =IF(A3stdlife="n/a","n/a",IF(AZ$3>(A3stdlife+$E107),(Input!$J$145*(1+pretaxreal)^0.5)-SUM($J107:AY107),(Input!$J$145*(1+pretaxreal)^0.5)/A3stdlife)) -> 0.2594007347 | BA107: =IF(A3stdlife="n/a","n/a",IF(BA$3>(A3stdlife+$E107),(Input!$J$145*(1+pretaxreal)^0.5)-SUM($J107:AZ107),(Input!$J$145*(1+pretaxreal)^0.5)/A3stdlife)) -> 0 | BB107: =IF(A3stdlife="n/a","n/a",IF(BB$3>(A3stdlife+$E107),(Input!$J$145*(1+pretaxreal)^0.5)-SUM($J107:BA107),(Input!$J$145*(1+pretaxreal)^0.5)/A3stdlife)) -> 0 | BC107: =IF(A3stdlife="n/a","n/a",IF(BC$3>(A3stdlife+$E107),(Input!$J$145*(1+pretaxreal)^0.5)-SUM($J107:BB107),(Input!$J$145*(1+pretaxreal)^0.5)/A3stdlife)) -> 0 | BD107: =IF(A3stdlife="n/a","n/a",IF(BD$3>(A3stdlife+$E107),(Input!$J$145*(1+pretaxreal)^0.5)-SUM($J107:BC107),(Input!$J$145*(1+pretaxreal)^0.5)/A3stdlife)) -> 0 | BE107: =IF(A3stdlife="n/a","n/a",IF(BE$3>(A3stdlife+$E107),(Input!$J$145*(1+pretaxreal)^0.5)-SUM($J107:BD107),(Input!$J$145*(1+pretaxreal)^0.5)/A3stdlife)) -> 0 | BF107: =IF(A3stdlife="n/a","n/a",IF(BF$3>(A3stdlife+$E107),(Input!$J$145*(1+pretaxreal)^0.5)-SUM($J107:BE107),(Input!$J$145*(1+pretaxreal)^0.5)/A3stdlife)) -> 0 | BG107: =IF(A3stdlife="n/a","n/a",IF(BG$3>(A3stdlife+$E107),(Input!$J$145*(1+pretaxreal)^0.5)-SUM($J107:BF107),(Input!$J$145*(1+pretaxreal)^0.5)/A3stdlife)) -> 0 | BH107: =IF(A3stdlife="n/a","n/a",IF(BH$3>(A3stdlife+$E107),(Input!$J$145*(1+pretaxreal)^0.5)-SUM($J107:BG107),(Input!$J$145*(1+pretaxreal)^0.5)/A3stdlife)) -> 0 | BI107: =IF(A3stdlife="n/a","n/a",IF(BI$3>(A3stdlife+$E107),(Input!$J$145*(1+pretaxreal)^0.5)-SUM($J107:BH107),(Input!$J$145*(1+pretaxreal)^0.5)/A3stdlife)) -> 0
E108: 5 | L108: =IF(A3stdlife="n/a","n/a",IF(L$3>(A3stdlife+$E108),(Input!$K$145*(1+pretaxreal)^0.5)-SUM($K108:K108),(Input!$K$145*(1+pretaxreal)^0.5)/A3stdlife)) -> 0.5551620684 | M108: =IF(A3stdlife="n/a","n/a",IF(M$3>(A3stdlife+$E108),(Input!$K$145*(1+pretaxreal)^0.5)-SUM($K108:L108),(Input!$K$145*(1+pretaxreal)^0.5)/A3stdlife)) -> 0.5551620684 | N108: =IF(A3stdlife="n/a","n/a",IF(N$3>(A3stdlife+$E108),(Input!$K$145*(1+pretaxreal)^0.5)-SUM($K108:M108),(Input!$K$145*(1+pretaxreal)^0.5)/A3stdlife)) -> 0.5551620684 | O108: =IF(A3stdlife="n/a","n/a",IF(O$3>(A3stdlife+$E108),(Input!$K$145*(1+pretaxreal)^0.5)-SUM($K108:N108),(Input!$K$145*(1+pretaxreal)^0.5)/A3stdlife)) -> 0.5551620684 | P108: =IF(A3stdlife="n/a","n/a",IF(P$3>(A3stdlife+$E108),(Input!$K$145*(1+pretaxreal)^0.5)-SUM($K108:O108),(Input!$K$145*(1+pretaxreal)^0.5)/A3stdlife)) -> 0.5551620684 | Q108: =IF(A3stdlife="n/a","n/a",IF(Q$3>(A3stdlife+$E108),(Input!$K$145*(1+pretaxreal)^0.5)-SUM($K108:P108),(Input!$K$145*(1+pretaxreal)^0.5)/A3stdlife)) -> 0.5551620684 | R108: =IF(A3stdlife="n/a","n/a",IF(R$3>(A3stdlife+$E108),(Input!$K$145*(1+pretaxreal)^0.5)-SUM($K108:Q108),(Input!$K$145*(1+pretaxreal)^0.5)/A3stdlife)) -> 0.5551620684 | S108: =IF(A3stdlife="n/a","n/a",IF(S$3>(A3stdlife+$E108),(Input!$K$145*(1+pretaxreal)^0.5)-SUM($K108:R108),(Input!$K$145*(1+pretaxreal)^0.5)/A3stdlife)) -> 0.5551620684 | T108: =IF(A3stdlife="n/a","n/a",IF(T$3>(A3stdlife+$E108),(Input!$K$145*(1+pretaxreal)^0.5)-SUM($K108:S108),(Input!$K$145*(1+pretaxreal)^0.5)/A3stdlife)) -> 0.5551620684 | U108: =IF(A3stdlife="n/a","n/a",IF(U$3>(A3stdlife+$E108),(Input!$K$145*(1+pretaxreal)^0.5)-SUM($K108:T108),(Input!$K$145*(1+pretaxreal)^0.5)/A3stdlife)) -> 0.5551620684 | V108: =IF(A3stdlife="n/a","n/a",IF(V$3>(A3stdlife+$E108),(Input!$K$145*(1+pretaxreal)^0.5)-SUM($K108:U108),(Input!$K$145*(1+pretaxreal)^0.5)/A3stdlife)) -> 0.5551620684 | W108: =IF(A3stdlife="n/a","n/a",IF(W$3>(A3stdlife+$E108),(Input!$K$145*(1+pretaxreal)^0.5)-SUM($K108:V108),(Input!$K$145*(1+pretaxreal)^0.5)/A3stdlife)) -> 0.5551620684 | X108: =IF(A3stdlife="n/a","n/a",IF(X$3>(A3stdlife+$E108),(Input!$K$145*(1+pretaxreal)^0.5)-SUM($K108:W108),(Input!$K$145*(1+pretaxreal)^0.5)/A3stdlife)) -> 0.5551620684 | Y108: =IF(A3stdlife="n/a","n/a",IF(Y$3>(A3stdlife+$E108),(Input!$K$145*(1+pretaxreal)^0.5)-SUM($K108:X108),(Input!$K$145*(1+pretaxreal)^0.5)/A3stdlife)) -> 0.5551620684 | Z108: =IF(A3stdlife="n/a","n/a",IF(Z$3>(A3stdlife+$E108),(Input!$K$145*(1+pretaxreal)^0.5)-SUM($K108:Y108),(Input!$K$145*(1+pretaxreal)^0.5)/A3stdlife)) -> 0.5551620684 | AA108: =IF(A3stdlife="n/a","n/a",IF(AA$3>(A3stdlife+$E108),(Input!$K$145*(1+pretaxreal)^0.5)-SUM($K108:Z108),(Input!$K$145*(1+pretaxreal)^0.5)/A3stdlife)) -> 0.5551620684 | AB108: =IF(A3stdlife="n/a","n/a",IF(AB$3>(A3stdlife+$E108),(Input!$K$145*(1+pretaxreal)^0.5)-SUM($K108:AA108),(Input!$K$145*(1+pretaxreal)^0.5)/A3stdlife)) -> 0.5551620684 | AC108: =IF(A3stdlife="n/a","n/a",IF(AC$3>(A3stdlife+$E108),(Input!$K$145*(1+pretaxreal)^0.5)-SUM($K108:AB108),(Input!$K$145*(1+pretaxreal)^0.5)/A3stdlife)) -> 0.5551620684 | AD108: =IF(A3stdlife="n/a","n/a",IF(AD$3>(A3stdlife+$E108),(Input!$K$145*(1+pretaxreal)^0.5)-SUM($K108:AC108),(Input!$K$145*(1+pretaxreal)^0.5)/A3stdlife)) -> 0.5551620684 | AE108: =IF(A3stdlife="n/a","n/a",IF(AE$3>(A3stdlife+$E108),(Input!$K$145*(1+pretaxreal)^0.5)-SUM($K108:AD108),(Input!$K$145*(1+pretaxreal)^0.5)/A3stdlife)) -> 0.5551620684 | AF108: =IF(A3stdlife="n/a","n/a",IF(AF$3>(A3stdlife+$E108),(Input!$K$145*(1+pretaxreal)^0.5)-SUM($K108:AE108),(Input!$K$145*(1+pretaxreal)^0.5)/A3stdlife)) -> 0.5551620684 | AG108: =IF(A3stdlife="n/a","n/a",IF(AG$3>(A3stdlife+$E108),(Input!$K$145*(1+pretaxreal)^0.5)-SUM($K108:AF108),(Input!$K$145*(1+pretaxreal)^0.5)/A3stdlife)) -> 0.5551620684 | AH108: =IF(A3stdlife="n/a","n/a",IF(AH$3>(A3stdlife+$E108),(Input!$K$145*(1+pretaxreal)^0.5)-SUM($K108:AG108),(Input!$K$145*(1+pretaxreal)^0.5)/A3stdlife)) -> 0.5551620684 | AI108: =IF(A3stdlife="n/a","n/a",IF(AI$3>(A3stdlife+$E108),(Input!$K$145*(1+pretaxreal)^0.5)-SUM($K108:AH108),(Input!$K$145*(1+pretaxreal)^0.5)/A3stdlife)) -> 0.5551620684 | AJ108: =IF(A3stdlife="n/a","n/a",IF(AJ$3>(A3stdlife+$E108),(Input!$K$145*(1+pretaxreal)^0.5)-SUM($K108:AI108),(Input!$K$145*(1+pretaxreal)^0.5)/A3stdlife)) -> 0.5551620684 | AK108: =IF(A3stdlife="n/a","n/a",IF(AK$3>(A3stdlife+$E108),(Input!$K$145*(1+pretaxreal)^0.5)-SUM($K108:AJ108),(Input!$K$145*(1+pretaxreal)^0.5)/A3stdlife)) -> 0.5551620684 | AL108: =IF(A3stdlife="n/a","n/a",IF(AL$3>(A3stdlife+$E108),(Input!$K$145*(1+pretaxreal)^0.5)-SUM($K108:AK108),(Input!$K$145*(1+pretaxreal)^0.5)/A3stdlife)) -> 0.5551620684 | AM108: =IF(A3stdlife="n/a","n/a",IF(AM$3>(A3stdlife+$E108),(Input!$K$145*(1+pretaxreal)^0.5)-SUM($K108:AL108),(Input!$K$145*(1+pretaxreal)^0.5)/A3stdlife)) -> 0.5551620684 | AN108: =IF(A3stdlife="n/a","n/a",IF(AN$3>(A3stdlife+$E108),(Input!$K$145*(1+pretaxreal)^0.5)-SUM($K108:AM108),(Input!$K$145*(1+pretaxreal)^0.5)/A3stdlife)) -> 0.5551620684 | AO108: =IF(A3stdlife="n/a","n/a",IF(AO$3>(A3stdlife+$E108),(Input!$K$145*(1+pretaxreal)^0.5)-SUM($K108:AN108),(Input!$K$145*(1+pretaxreal)^0.5)/A3stdlife)) -> 0.5551620684 | AP108: =IF(A3stdlife="n/a","n/a",IF(AP$3>(A3stdlife+$E108),(Input!$K$145*(1+pretaxreal)^0.5)-SUM($K108:AO108),(Input!$K$145*(1+pretaxreal)^0.5)/A3stdlife)) -> 0.5551620684 | AQ108: =IF(A3stdlife="n/a","n/a",IF(AQ$3>(A3stdlife+$E108),(Input!$K$145*(1+pretaxreal)^0.5)-SUM($K108:AP108),(Input!$K$145*(1+pretaxreal)^0.5)/A3stdlife)) -> 0.5551620684 | AR108: =IF(A3stdlife="n/a","n/a",IF(AR$3>(A3stdlife+$E108),(Input!$K$145*(1+pretaxreal)^0.5)-SUM($K108:AQ108),(Input!$K$145*(1+pretaxreal)^0.5)/A3stdlife)) -> 0.5551620684 | AS108: =IF(A3stdlife="n/a","n/a",IF(AS$3>(A3stdlife+$E108),(Input!$K$145*(1+pretaxreal)^0.5)-SUM($K108:AR108),(Input!$K$145*(1+pretaxreal)^0.5)/A3stdlife)) -> 0.5551620684 | AT108: =IF(A3stdlife="n/a","n/a",IF(AT$3>(A3stdlife+$E108),(Input!$K$145*(1+pretaxreal)^0.5)-SUM($K108:AS108),(Input!$K$145*(1+pretaxreal)^0.5)/A3stdlife)) -> 0.5551620684 | AU108: =IF(A3stdlife="n/a","n/a",IF(AU$3>(A3stdlife+$E108),(Input!$K$145*(1+pretaxreal)^0.5)-SUM($K108:AT108),(Input!$K$145*(1+pretaxreal)^0.5)/A3stdlife)) -> 0.5551620684 | AV108: =IF(A3stdlife="n/a","n/a",IF(AV$3>(A3stdlife+$E108),(Input!$K$145*(1+pretaxreal)^0.5)-SUM($K108:AU108),(Input!$K$145*(1+pretaxreal)^0.5)/A3stdlife)) -> 0.5551620684 | AW108: =IF(A3stdlife="n/a","n/a",IF(AW$3>(A3stdlife+$E108),(Input!$K$145*(1+pretaxreal)^0.5)-SUM($K108:AV108),(Input!$K$145*(1+pretaxreal)^0.5)/A3stdlife)) -> 0.5551620684 | AX108: =IF(A3stdlife="n/a","n/a",IF(AX$3>(A3stdlife+$E108),(Input!$K$145*(1+pretaxreal)^0.5)-SUM($K108:AW108),(Input!$K$145*(1+pretaxreal)^0.5)/A3stdlife)) -> 0.5551620684 | AY108: =IF(A3stdlife="n/a","n/a",IF(AY$3>(A3stdlife+$E108),(Input!$K$145*(1+pretaxreal)^0.5)-SUM($K108:AX108),(Input!$K$145*(1+pretaxreal)^0.5)/A3stdlife)) -> 0.5551620684 | AZ108: =IF(A3stdlife="n/a","n/a",IF(AZ$3>(A3stdlife+$E108),(Input!$K$145*(1+pretaxreal)^0.5)-SUM($K108:AY108),(Input!$K$145*(1+pretaxreal)^0.5)/A3stdlife)) -> 0.5551620684 | BA108: =IF(A3stdlife="n/a","n/a",IF(BA$3>(A3stdlife+$E108),(Input!$K$145*(1+pretaxreal)^0.5)-SUM($K108:AZ108),(Input!$K$145*(1+pretaxreal)^0.5)/A3stdlife)) -> 0.4121215539 | BB108: =IF(A3stdlife="n/a","n/a",IF(BB$3>(A3stdlife+$E108),(Input!$K$145*(1+pretaxreal)^0.5)-SUM($K108:BA108),(Input!$K$145*(1+pretaxreal)^0.5)/A3stdlife)) -> 0 | BC108: =IF(A3stdlife="n/a","n/a",IF(BC$3>(A3stdlife+$E108),(Input!$K$145*(1+pretaxreal)^0.5)-SUM($K108:BB108),(Input!$K$145*(1+pretaxreal)^0.5)/A3stdlife)) -> 0 | BD108: =IF(A3stdlife="n/a","n/a",IF(BD$3>(A3stdlife+$E108),(Input!$K$145*(1+pretaxreal)^0.5)-SUM($K108:BC108),(Input!$K$145*(1+pretaxreal)^0.5)/A3stdlife)) -> 0 | BE108: =IF(A3stdlife="n/a","n/a",IF(BE$3>(A3stdlife+$E108),(Input!$K$145*(1+pretaxreal)^0.5)-SUM($K108:BD108),(Input!$K$145*(1+pretaxreal)^0.5)/A3stdlife)) -> 0 | BF108: =IF(A3stdlife="n/a","n/a",IF(BF$3>(A3stdlife+$E108),(Input!$K$145*(1+pretaxreal)^0.5)-SUM($K108:BE108),(Input!$K$145*(1+pretaxreal)^0.5)/A3stdlife)) -> 0 | BG108: =IF(A3stdlife="n/a","n/a",IF(BG$3>(A3stdlife+$E108),(Input!$K$145*(1+pretaxreal)^0.5)-SUM($K108:BF108),(Input!$K$145*(1+pretaxreal)^0.5)/A3stdlife)) -> 0 | BH108: =IF(A3stdlife="n/a","n/a",IF(BH$3>(A3stdlife+$E108),(Input!$K$145*(1+pretaxreal)^0.5)-SUM($K108:BG108),(Input!$K$145*(1+pretaxreal)^0.5)/A3stdlife)) -> 0 | BI108: =IF(A3stdlife="n/a","n/a",IF(BI$3>(A3stdlife+$E108),(Input!$K$145*(1+pretaxreal)^0.5)-SUM($K108:BH108),(Input!$K$145*(1+pretaxreal)^0.5)/A3stdlife)) -> 0
E109: 6 | M109: =IF(A3stdlife="n/a","n/a",IF(M$3>(A3stdlife+$E109),(Input!$L$145*(1+pretaxreal)^0.5)-SUM($L109:L109),(Input!$L$145*(1+pretaxreal)^0.5)/A3stdlife)) -> 0 | N109: =IF(A3stdlife="n/a","n/a",IF(N$3>(A3stdlife+$E109),(Input!$L$145*(1+pretaxreal)^0.5)-SUM($L109:M109),(Input!$L$145*(1+pretaxreal)^0.5)/A3stdlife)) -> 0 | O109: =IF(A3stdlife="n/a","n/a",IF(O$3>(A3stdlife+$E109),(Input!$L$145*(1+pretaxreal)^0.5)-SUM($L109:N109),(Input!$L$145*(1+pretaxreal)^0.5)/A3stdlife)) -> 0 | P109: =IF(A3stdlife="n/a","n/a",IF(P$3>(A3stdlife+$E109),(Input!$L$145*(1+pretaxreal)^0.5)-SUM($L109:O109),(Input!$L$145*(1+pretaxreal)^0.5)/A3stdlife)) -> 0 | Q109: =IF(A3stdlife="n/a","n/a",IF(Q$3>(A3stdlife+$E109),(Input!$L$145*(1+pretaxreal)^0.5)-SUM($L109:P109),(Input!$L$145*(1+pretaxreal)^0.5)/A3stdlife)) -> 0 | R109: =IF(A3stdlife="n/a","n/a",IF(R$3>(A3stdlife+$E109),(Input!$L$145*(1+pretaxreal)^0.5)-SUM($L109:Q109),(Input!$L$145*(1+pretaxreal)^0.5)/A3stdlife)) -> 0 | S109: =IF(A3stdlife="n/a","n/a",IF(S$3>(A3stdlife+$E109),(Input!$L$145*(1+pretaxreal)^0.5)-SUM($L109:R109),(Input!$L$145*(1+pretaxreal)^0.5)/A3stdlife)) -> 0 | T109: =IF(A3stdlife="n/a","n/a",IF(T$3>(A3stdlife+$E109),(Input!$L$145*(1+pretaxreal)^0.5)-SUM($L109:S109),(Input!$L$145*(1+pretaxreal)^0.5)/A3stdlife)) -> 0 | U109: =IF(A3stdlife="n/a","n/a",IF(U$3>(A3stdlife+$E109),(Input!$L$145*(1+pretaxreal)^0.5)-SUM($L109:T109),(Input!$L$145*(1+pretaxreal)^0.5)/A3stdlife)) -> 0 | V109: =IF(A3stdlife="n/a","n/a",IF(V$3>(A3stdlife+$E109),(Input!$L$145*(1+pretaxreal)^0.5)-SUM($L109:U109),(Input!$L$145*(1+pretaxreal)^0.5)/A3stdlife)) -> 0 | W109: =IF(A3stdlife="n/a","n/a",IF(W$3>(A3stdlife+$E109),(Input!$L$145*(1+pretaxreal)^0.5)-SUM($L109:V109),(Input!$L$145*(1+pretaxreal)^0.5)/A3stdlife)) -> 0 | X109: =IF(A3stdlife="n/a","n/a",IF(X$3>(A3stdlife+$E109),(Input!$L$145*(1+pretaxreal)^0.5)-SUM($L109:W109),(Input!$L$145*(1+pretaxreal)^0.5)/A3stdlife)) -> 0 | Y109: =IF(A3stdlife="n/a","n/a",IF(Y$3>(A3stdlife+$E109),(Input!$L$145*(1+pretaxreal)^0.5)-SUM($L109:X109),(Input!$L$145*(1+pretaxreal)^0.5)/A3stdlife)) -> 0 | Z109: =IF(A3stdlife="n/a","n/a",IF(Z$3>(A3stdlife+$E109),(Input!$L$145*(1+pretaxreal)^0.5)-SUM($L109:Y109),(Input!$L$145*(1+pretaxreal)^0.5)/A3stdlife)) -> 0 | AA109: =IF(A3stdlife="n/a","n/a",IF(AA$3>(A3stdlife+$E109),(Input!$L$145*(1+pretaxreal)^0.5)-SUM($L109:Z109),(Input!$L$145*(1+pretaxreal)^0.5)/A3stdlife)) -> 0 | AB109: =IF(A3stdlife="n/a","n/a",IF(AB$3>(A3stdlife+$E109),(Input!$L$145*(1+pretaxreal)^0.5)-SUM($L109:AA109),(Input!$L$145*(1+pretaxreal)^0.5)/A3stdlife)) -> 0 | AC109: =IF(A3stdlife="n/a","n/a",IF(AC$3>(A3stdlife+$E109),(Input!$L$145*(1+pretaxreal)^0.5)-SUM($L109:AB109),(Input!$L$145*(1+pretaxreal)^0.5)/A3stdlife)) -> 0 | AD109: =IF(A3stdlife="n/a","n/a",IF(AD$3>(A3stdlife+$E109),(Input!$L$145*(1+pretaxreal)^0.5)-SUM($L109:AC109),(Input!$L$145*(1+pretaxreal)^0.5)/A3stdlife)) -> 0 | AE109: =IF(A3stdlife="n/a","n/a",IF(AE$3>(A3stdlife+$E109),(Input!$L$145*(1+pretaxreal)^0.5)-SUM($L109:AD109),(Input!$L$145*(1+pretaxreal)^0.5)/A3stdlife)) -> 0 | AF109: =IF(A3stdlife="n/a","n/a",IF(AF$3>(A3stdlife+$E109),(Input!$L$145*(1+pretaxreal)^0.5)-SUM($L109:AE109),(Input!$L$145*(1+pretaxreal)^0.5)/A3stdlife)) -> 0 | AG109: =IF(A3stdlife="n/a","n/a",IF(AG$3>(A3stdlife+$E109),(Input!$L$145*(1+pretaxreal)^0.5)-SUM($L109:AF109),(Input!$L$145*(1+pretaxreal)^0.5)/A3stdlife)) -> 0 | AH109: =IF(A3stdlife="n/a","n/a",IF(AH$3>(A3stdlife+$E109),(Input!$L$145*(1+pretaxreal)^0.5)-SUM($L109:AG109),(Input!$L$145*(1+pretaxreal)^0.5)/A3stdlife)) -> 0 | AI109: =IF(A3stdlife="n/a","n/a",IF(AI$3>(A3stdlife+$E109),(Input!$L$145*(1+pretaxreal)^0.5)-SUM($L109:AH109),(Input!$L$145*(1+pretaxreal)^0.5)/A3stdlife)) -> 0 | AJ109: =IF(A3stdlife="n/a","n/a",IF(AJ$3>(A3stdlife+$E109),(Input!$L$145*(1+pretaxreal)^0.5)-SUM($L109:AI109),(Input!$L$145*(1+pretaxreal)^0.5)/A3stdlife)) -> 0 | AK109: =IF(A3stdlife="n/a","n/a",IF(AK$3>(A3stdlife+$E109),(Input!$L$145*(1+pretaxreal)^0.5)-SUM($L109:AJ109),(Input!$L$145*(1+pretaxreal)^0.5)/A3stdlife)) -> 0 | AL109: =IF(A3stdlife="n/a","n/a",IF(AL$3>(A3stdlife+$E109),(Input!$L$145*(1+pretaxreal)^0.5)-SUM($L109:AK109),(Input!$L$145*(1+pretaxreal)^0.5)/A3stdlife)) -> 0 | AM109: =IF(A3stdlife="n/a","n/a",IF(AM$3>(A3stdlife+$E109),(Input!$L$145*(1+pretaxreal)^0.5)-SUM($L109:AL109),(Input!$L$145*(1+pretaxreal)^0.5)/A3stdlife)) -> 0 | AN109: =IF(A3stdlife="n/a","n/a",IF(AN$3>(A3stdlife+$E109),(Input!$L$145*(1+pretaxreal)^0.5)-SUM($L109:AM109),(Input!$L$145*(1+pretaxreal)^0.5)/A3stdlife)) -> 0 | AO109: =IF(A3stdlife="n/a","n/a",IF(AO$3>(A3stdlife+$E109),(Input!$L$145*(1+pretaxreal)^0.5)-SUM($L109:AN109),(Input!$L$145*(1+pretaxreal)^0.5)/A3stdlife)) -> 0 | AP109: =IF(A3stdlife="n/a","n/a",IF(AP$3>(A3stdlife+$E109),(Input!$L$145*(1+pretaxreal)^0.5)-SUM($L109:AO109),(Input!$L$145*(1+pretaxreal)^0.5)/A3stdlife)) -> 0 | AQ109: =IF(A3stdlife="n/a","n/a",IF(AQ$3>(A3stdlife+$E109),(Input!$L$145*(1+pretaxreal)^0.5)-SUM($L109:AP109),(Input!$L$145*(1+pretaxreal)^0.5)/A3stdlife)) -> 0 | AR109: =IF(A3stdlife="n/a","n/a",IF(AR$3>(A3stdlife+$E109),(Input!$L$145*(1+pretaxreal)^0.5)-SUM($L109:AQ109),(Input!$L$145*(1+pretaxreal)^0.5)/A3stdlife)) -> 0 | AS109: =IF(A3stdlife="n/a","n/a",IF(AS$3>(A3stdlife+$E109),(Input!$L$145*(1+pretaxreal)^0.5)-SUM($L109:AR109),(Input!$L$145*(1+pretaxreal)^0.5)/A3stdlife)) -> 0 | AT109: =IF(A3stdlife="n/a","n/a",IF(AT$3>(A3stdlife+$E109),(Input!$L$145*(1+pretaxreal)^0.5)-SUM($L109:AS109),(Input!$L$145*(1+pretaxreal)^0.5)/A3stdlife)) -> 0 | AU109: =IF(A3stdlife="n/a","n/a",IF(AU$3>(A3stdlife+$E109),(Input!$L$145*(1+pretaxreal)^0.5)-SUM($L109:AT109),(Input!$L$145*(1+pretaxreal)^0.5)/A3stdlife)) -> 0 | AV109: =IF(A3stdlife="n/a","n/a",IF(AV$3>(A3stdlife+$E109),(Input!$L$145*(1+pretaxreal)^0.5)-SUM($L109:AU109),(Input!$L$145*(1+pretaxreal)^0.5)/A3stdlife)) -> 0 | AW109: =IF(A3stdlife="n/a","n/a",IF(AW$3>(A3stdlife+$E109),(Input!$L$145*(1+pretaxreal)^0.5)-SUM($L109:AV109),(Input!$L$145*(1+pretaxreal)^0.5)/A3stdlife)) -> 0 | AX109: =IF(A3stdlife="n/a","n/a",IF(AX$3>(A3stdlife+$E109),(Input!$L$145*(1+pretaxreal)^0.5)-SUM($L109:AW109),(Input!$L$145*(1+pretaxreal)^0.5)/A3stdlife)) -> 0 | AY109: =IF(A3stdlife="n/a","n/a",IF(AY$3>(A3stdlife+$E109),(Input!$L$145*(1+pretaxreal)^0.5)-SUM($L109:AX109),(Input!$L$145*(1+pretaxreal)^0.5)/A3stdlife)) -> 0 | AZ109: =IF(A3stdlife="n/a","n/a",IF(AZ$3>(A3stdlife+$E109),(Input!$L$145*(1+pretaxreal)^0.5)-SUM($L109:AY109),(Input!$L$145*(1+pretaxreal)^0.5)/A3stdlife)) -> 0 | BA109: =IF(A3stdlife="n/a","n/a",IF(BA$3>(A3stdlife+$E109),(Input!$L$145*(1+pretaxreal)^0.5)-SUM($L109:AZ109),(Input!$L$145*(1+pretaxreal)^0.5)/A3stdlife)) -> 0 | BB109: =IF(A3stdlife="n/a","n/a",IF(BB$3>(A3stdlife+$E109),(Input!$L$145*(1+pretaxreal)^0.5)-SUM($L109:BA109),(Input!$L$145*(1+pretaxreal)^0.5)/A3stdlife)) -> 0 | BC109: =IF(A3stdlife="n/a","n/a",IF(BC$3>(A3stdlife+$E109),(Input!$L$145*(1+pretaxreal)^0.5)-SUM($L109:BB109),(Input!$L$145*(1+pretaxreal)^0.5)/A3stdlife)) -> 0 | BD109: =IF(A3stdlife="n/a","n/a",IF(BD$3>(A3stdlife+$E109),(Input!$L$145*(1+pretaxreal)^0.5)-SUM($L109:BC109),(Input!$L$145*(1+pretaxreal)^0.5)/A3stdlife)) -> 0 | BE109: =IF(A3stdlife="n/a","n/a",IF(BE$3>(A3stdlife+$E109),(Input!$L$145*(1+pretaxreal)^0.5)-SUM($L109:BD109),(Input!$L$145*(1+pretaxreal)^0.5)/A3stdlife)) -> 0 | BF109: =IF(A3stdlife="n/a","n/a",IF(BF$3>(A3stdlife+$E109),(Input!$L$145*(1+pretaxreal)^0.5)-SUM($L109:BE109),(Input!$L$145*(1+pretaxreal)^0.5)/A3stdlife)) -> 0 | BG109: =IF(A3stdlife="n/a","n/a",IF(BG$3>(A3stdlife+$E109),(Input!$L$145*(1+pretaxreal)^0.5)-SUM($L109:BF109),(Input!$L$145*(1+pretaxreal)^0.5)/A3stdlife)) -> 0 | BH109: =IF(A3stdlife="n/a","n/a",IF(BH$3>(A3stdlife+$E109),(Input!$L$145*(1+pretaxreal)^0.5)-SUM($L109:BG109),(Input!$L$145*(1+pretaxreal)^0.5)/A3stdlife)) -> 0 | BI109: =IF(A3stdlife="n/a","n/a",IF(BI$3>(A3stdlife+$E109),(Input!$L$145*(1+pretaxreal)^0.5)-SUM($L109:BH109),(Input!$L$145*(1+pretaxreal)^0.5)/A3stdlife)) -> 0
E110: 7 | N110: =IF(A3stdlife="n/a","n/a",IF(N$3>(A3stdlife+$E110),(Input!$M$145*(1+pretaxreal)^0.5)-SUM($M110:M110),(Input!$M$145*(1+pretaxreal)^0.5)/A3stdlife)) -> 0 | O110: =IF(A3stdlife="n/a","n/a",IF(O$3>(A3stdlife+$E110),(Input!$M$145*(1+pretaxreal)^0.5)-SUM($M110:N110),(Input!$M$145*(1+pretaxreal)^0.5)/A3stdlife)) -> 0 | P110: =IF(A3stdlife="n/a","n/a",IF(P$3>(A3stdlife+$E110),(Input!$M$145*(1+pretaxreal)^0.5)-SUM($M110:O110),(Input!$M$145*(1+pretaxreal)^0.5)/A3stdlife)) -> 0 | Q110: =IF(A3stdlife="n/a","n/a",IF(Q$3>(A3stdlife+$E110),(Input!$M$145*(1+pretaxreal)^0.5)-SUM($M110:P110),(Input!$M$145*(1+pretaxreal)^0.5)/A3stdlife)) -> 0 | R110: =IF(A3stdlife="n/a","n/a",IF(R$3>(A3stdlife+$E110),(Input!$M$145*(1+pretaxreal)^0.5)-SUM($M110:Q110),(Input!$M$145*(1+pretaxreal)^0.5)/A3stdlife)) -> 0 | S110: =IF(A3stdlife="n/a","n/a",IF(S$3>(A3stdlife+$E110),(Input!$M$145*(1+pretaxreal)^0.5)-SUM($M110:R110),(Input!$M$145*(1+pretaxreal)^0.5)/A3stdlife)) -> 0 | T110: =IF(A3stdlife="n/a","n/a",IF(T$3>(A3stdlife+$E110),(Input!$M$145*(1+pretaxreal)^0.5)-SUM($M110:S110),(Input!$M$145*(1+pretaxreal)^0.5)/A3stdlife)) -> 0 | U110: =IF(A3stdlife="n/a","n/a",IF(U$3>(A3stdlife+$E110),(Input!$M$145*(1+pretaxreal)^0.5)-SUM($M110:T110),(Input!$M$145*(1+pretaxreal)^0.5)/A3stdlife)) -> 0 | V110: =IF(A3stdlife="n/a","n/a",IF(V$3>(A3stdlife+$E110),(Input!$M$145*(1+pretaxreal)^0.5)-SUM($M110:U110),(Input!$M$145*(1+pretaxreal)^0.5)/A3stdlife)) -> 0 | W110: =IF(A3stdlife="n/a","n/a",IF(W$3>(A3stdlife+$E110),(Input!$M$145*(1+pretaxreal)^0.5)-SUM($M110:V110),(Input!$M$145*(1+pretaxreal)^0.5)/A3stdlife)) -> 0 | X110: =IF(A3stdlife="n/a","n/a",IF(X$3>(A3stdlife+$E110),(Input!$M$145*(1+pretaxreal)^0.5)-SUM($M110:W110),(Input!$M$145*(1+pretaxreal)^0.5)/A3stdlife)) -> 0 | Y110: =IF(A3stdlife="n/a","n/a",IF(Y$3>(A3stdlife+$E110),(Input!$M$145*(1+pretaxreal)^0.5)-SUM($M110:X110),(Input!$M$145*(1+pretaxreal)^0.5)/A3stdlife)) -> 0 | Z110: =IF(A3stdlife="n/a","n/a",IF(Z$3>(A3stdlife+$E110),(Input!$M$145*(1+pretaxreal)^0.5)-SUM($M110:Y110),(Input!$M$145*(1+pretaxreal)^0.5)/A3stdlife)) -> 0 | AA110: =IF(A3stdlife="n/a","n/a",IF(AA$3>(A3stdlife+$E110),(Input!$M$145*(1+pretaxreal)^0.5)-SUM($M110:Z110),(Input!$M$145*(1+pretaxreal)^0.5)/A3stdlife)) -> 0 | AB110: =IF(A3stdlife="n/a","n/a",IF(AB$3>(A3stdlife+$E110),(Input!$M$145*(1+pretaxreal)^0.5)-SUM($M110:AA110),(Input!$M$145*(1+pretaxreal)^0.5)/A3stdlife)) -> 0 | AC110: =IF(A3stdlife="n/a","n/a",IF(AC$3>(A3stdlife+$E110),(Input!$M$145*(1+pretaxreal)^0.5)-SUM($M110:AB110),(Input!$M$145*(1+pretaxreal)^0.5)/A3stdlife)) -> 0 | AD110: =IF(A3stdlife="n/a","n/a",IF(AD$3>(A3stdlife+$E110),(Input!$M$145*(1+pretaxreal)^0.5)-SUM($M110:AC110),(Input!$M$145*(1+pretaxreal)^0.5)/A3stdlife)) -> 0 | AE110: =IF(A3stdlife="n/a","n/a",IF(AE$3>(A3stdlife+$E110),(Input!$M$145*(1+pretaxreal)^0.5)-SUM($M110:AD110),(Input!$M$145*(1+pretaxreal)^0.5)/A3stdlife)) -> 0 | AF110: =IF(A3stdlife="n/a","n/a",IF(AF$3>(A3stdlife+$E110),(Input!$M$145*(1+pretaxreal)^0.5)-SUM($M110:AE110),(Input!$M$145*(1+pretaxreal)^0.5)/A3stdlife)) -> 0 | AG110: =IF(A3stdlife="n/a","n/a",IF(AG$3>(A3stdlife+$E110),(Input!$M$145*(1+pretaxreal)^0.5)-SUM($M110:AF110),(Input!$M$145*(1+pretaxreal)^0.5)/A3stdlife)) -> 0 | AH110: =IF(A3stdlife="n/a","n/a",IF(AH$3>(A3stdlife+$E110),(Input!$M$145*(1+pretaxreal)^0.5)-SUM($M110:AG110),(Input!$M$145*(1+pretaxreal)^0.5)/A3stdlife)) -> 0 | AI110: =IF(A3stdlife="n/a","n/a",IF(AI$3>(A3stdlife+$E110),(Input!$M$145*(1+pretaxreal)^0.5)-SUM($M110:AH110),(Input!$M$145*(1+pretaxreal)^0.5)/A3stdlife)) -> 0 | AJ110: =IF(A3stdlife="n/a","n/a",IF(AJ$3>(A3stdlife+$E110),(Input!$M$145*(1+pretaxreal)^0.5)-SUM($M110:AI110),(Input!$M$145*(1+pretaxreal)^0.5)/A3stdlife)) -> 0 | AK110: =IF(A3stdlife="n/a","n/a",IF(AK$3>(A3stdlife+$E110),(Input!$M$145*(1+pretaxreal)^0.5)-SUM($M110:AJ110),(Input!$M$145*(1+pretaxreal)^0.5)/A3stdlife)) -> 0 | AL110: =IF(A3stdlife="n/a","n/a",IF(AL$3>(A3stdlife+$E110),(Input!$M$145*(1+pretaxreal)^0.5)-SUM($M110:AK110),(Input!$M$145*(1+pretaxreal)^0.5)/A3stdlife)) -> 0 | AM110: =IF(A3stdlife="n/a","n/a",IF(AM$3>(A3stdlife+$E110),(Input!$M$145*(1+pretaxreal)^0.5)-SUM($M110:AL110),(Input!$M$145*(1+pretaxreal)^0.5)/A3stdlife)) -> 0 | AN110: =IF(A3stdlife="n/a","n/a",IF(AN$3>(A3stdlife+$E110),(Input!$M$145*(1+pretaxreal)^0.5)-SUM($M110:AM110),(Input!$M$145*(1+pretaxreal)^0.5)/A3stdlife)) -> 0 | AO110: =IF(A3stdlife="n/a","n/a",IF(AO$3>(A3stdlife+$E110),(Input!$M$145*(1+pretaxreal)^0.5)-SUM($M110:AN110),(Input!$M$145*(1+pretaxreal)^0.5)/A3stdlife)) -> 0 | AP110: =IF(A3stdlife="n/a","n/a",IF(AP$3>(A3stdlife+$E110),(Input!$M$145*(1+pretaxreal)^0.5)-SUM($M110:AO110),(Input!$M$145*(1+pretaxreal)^0.5)/A3stdlife)) -> 0 | AQ110: =IF(A3stdlife="n/a","n/a",IF(AQ$3>(A3stdlife+$E110),(Input!$M$145*(1+pretaxreal)^0.5)-SUM($M110:AP110),(Input!$M$145*(1+pretaxreal)^0.5)/A3stdlife)) -> 0 | AR110: =IF(A3stdlife="n/a","n/a",IF(AR$3>(A3stdlife+$E110),(Input!$M$145*(1+pretaxreal)^0.5)-SUM($M110:AQ110),(Input!$M$145*(1+pretaxreal)^0.5)/A3stdlife)) -> 0 | AS110: =IF(A3stdlife="n/a","n/a",IF(AS$3>(A3stdlife+$E110),(Input!$M$145*(1+pretaxreal)^0.5)-SUM($M110:AR110),(Input!$M$145*(1+pretaxreal)^0.5)/A3stdlife)) -> 0 | AT110: =IF(A3stdlife="n/a","n/a",IF(AT$3>(A3stdlife+$E110),(Input!$M$145*(1+pretaxreal)^0.5)-SUM($M110:AS110),(Input!$M$145*(1+pretaxreal)^0.5)/A3stdlife)) -> 0 | AU110: =IF(A3stdlife="n/a","n/a",IF(AU$3>(A3stdlife+$E110),(Input!$M$145*(1+pretaxreal)^0.5)-SUM($M110:AT110),(Input!$M$145*(1+pretaxreal)^0.5)/A3stdlife)) -> 0 | AV110: =IF(A3stdlife="n/a","n/a",IF(AV$3>(A3stdlife+$E110),(Input!$M$145*(1+pretaxreal)^0.5)-SUM($M110:AU110),(Input!$M$145*(1+pretaxreal)^0.5)/A3stdlife)) -> 0 | AW110: =IF(A3stdlife="n/a","n/a",IF(AW$3>(A3stdlife+$E110),(Input!$M$145*(1+pretaxreal)^0.5)-SUM($M110:AV110),(Input!$M$145*(1+pretaxreal)^0.5)/A3stdlife)) -> 0 | AX110: =IF(A3stdlife="n/a","n/a",IF(AX$3>(A3stdlife+$E110),(Input!$M$145*(1+pretaxreal)^0.5)-SUM($M110:AW110),(Input!$M$145*(1+pretaxreal)^0.5)/A3stdlife)) -> 0 | AY110: =IF(A3stdlife="n/a","n/a",IF(AY$3>(A3stdlife+$E110),(Input!$M$145*(1+pretaxreal)^0.5)-SUM($M110:AX110),(Input!$M$145*(1+pretaxreal)^0.5)/A3stdlife)) -> 0 | AZ110: =IF(A3stdlife="n/a","n/a",IF(AZ$3>(A3stdlife+$E110),(Input!$M$145*(1+pretaxreal)^0.5)-SUM($M110:AY110),(Input!$M$145*(1+pretaxreal)^0.5)/A3stdlife)) -> 0 | BA110: =IF(A3stdlife="n/a","n/a",IF(BA$3>(A3stdlife+$E110),(Input!$M$145*(1+pretaxreal)^0.5)-SUM($M110:AZ110),(Input!$M$145*(1+pretaxreal)^0.5)/A3stdlife)) -> 0 | BB110: =IF(A3stdlife="n/a","n/a",IF(BB$3>(A3stdlife+$E110),(Input!$M$145*(1+pretaxreal)^0.5)-SUM($M110:BA110),(Input!$M$145*(1+pretaxreal)^0.5)/A3stdlife)) -> 0 | BC110: =IF(A3stdlife="n/a","n/a",IF(BC$3>(A3stdlife+$E110),(Input!$M$145*(1+pretaxreal)^0.5)-SUM($M110:BB110),(Input!$M$145*(1+pretaxreal)^0.5)/A3stdlife)) -> 0 | BD110: =IF(A3stdlife="n/a","n/a",IF(BD$3>(A3stdlife+$E110),(Input!$M$145*(1+pretaxreal)^0.5)-SUM($M110:BC110),(Input!$M$145*(1+pretaxreal)^0.5)/A3stdlife)) -> 0 | BE110: =IF(A3stdlife="n/a","n/a",IF(BE$3>(A3stdlife+$E110),(Input!$M$145*(1+pretaxreal)^0.5)-SUM($M110:BD110),(Input!$M$145*(1+pretaxreal)^0.5)/A3stdlife)) -> 0 | BF110: =IF(A3stdlife="n/a","n/a",IF(BF$3>(A3stdlife+$E110),(Input!$M$145*(1+pretaxreal)^0.5)-SUM($M110:BE110),(Input!$M$145*(1+pretaxreal)^0.5)/A3stdlife)) -> 0 | BG110: =IF(A3stdlife="n/a","n/a",IF(BG$3>(A3stdlife+$E110),(Input!$M$145*(1+pretaxreal)^0.5)-SUM($M110:BF110),(Input!$M$145*(1+pretaxreal)^0.5)/A3stdlife)) -> 0 | BH110: =IF(A3stdlife="n/a","n/a",IF(BH$3>(A3stdlife+$E110),(Input!$M$145*(1+pretaxreal)^0.5)-SUM($M110:BG110),(Input!$M$145*(1+pretaxreal)^0.5)/A3stdlife)) -> 0 | BI110: =IF(A3stdlife="n/a","n/a",IF(BI$3>(A3stdlife+$E110),(Input!$M$145*(1+pretaxreal)^0.5)-SUM($M110:BH110),(Input!$M$145*(1+pretaxreal)^0.5)/A3stdlife)) -> 0
E111: 8 | O111: =IF(A3stdlife="n/a","n/a",IF(O$3>(A3stdlife+$E111),(Input!$N$145*(1+pretaxreal)^0.5)-SUM($N111:N111),(Input!$N$145*(1+pretaxreal)^0.5)/A3stdlife)) -> 0 | P111: =IF(A3stdlife="n/a","n/a",IF(P$3>(A3stdlife+$E111),(Input!$N$145*(1+pretaxreal)^0.5)-SUM($N111:O111),(Input!$N$145*(1+pretaxreal)^0.5)/A3stdlife)) -> 0 | Q111: =IF(A3stdlife="n/a","n/a",IF(Q$3>(A3stdlife+$E111),(Input!$N$145*(1+pretaxreal)^0.5)-SUM($N111:P111),(Input!$N$145*(1+pretaxreal)^0.5)/A3stdlife)) -> 0 | R111: =IF(A3stdlife="n/a","n/a",IF(R$3>(A3stdlife+$E111),(Input!$N$145*(1+pretaxreal)^0.5)-SUM($N111:Q111),(Input!$N$145*(1+pretaxreal)^0.5)/A3stdlife)) -> 0 | S111: =IF(A3stdlife="n/a","n/a",IF(S$3>(A3stdlife+$E111),(Input!$N$145*(1+pretaxreal)^0.5)-SUM($N111:R111),(Input!$N$145*(1+pretaxreal)^0.5)/A3stdlife)) -> 0 | T111: =IF(A3stdlife="n/a","n/a",IF(T$3>(A3stdlife+$E111),(Input!$N$145*(1+pretaxreal)^0.5)-SUM($N111:S111),(Input!$N$145*(1+pretaxreal)^0.5)/A3stdlife)) -> 0 | U111: =IF(A3stdlife="n/a","n/a",IF(U$3>(A3stdlife+$E111),(Input!$N$145*(1+pretaxreal)^0.5)-SUM($N111:T111),(Input!$N$145*(1+pretaxreal)^0.5)/A3stdlife)) -> 0 | V111: =IF(A3stdlife="n/a","n/a",IF(V$3>(A3stdlife+$E111),(Input!$N$145*(1+pretaxreal)^0.5)-SUM($N111:U111),(Input!$N$145*(1+pretaxreal)^0.5)/A3stdlife)) -> 0 | W111: =IF(A3stdlife="n/a","n/a",IF(W$3>(A3stdlife+$E111),(Input!$N$145*(1+pretaxreal)^0.5)-SUM($N111:V111),(Input!$N$145*(1+pretaxreal)^0.5)/A3stdlife)) -> 0 | X111: =IF(A3stdlife="n/a","n/a",IF(X$3>(A3stdlife+$E111),(Input!$N$145*(1+pretaxreal)^0.5)-SUM($N111:W111),(Input!$N$145*(1+pretaxreal)^0.5)/A3stdlife)) -> 0 | Y111: =IF(A3stdlife="n/a","n/a",IF(Y$3>(A3stdlife+$E111),(Input!$N$145*(1+pretaxreal)^0.5)-SUM($N111:X111),(Input!$N$145*(1+pretaxreal)^0.5)/A3stdlife)) -> 0 | Z111: =IF(A3stdlife="n/a","n/a",IF(Z$3>(A3stdlife+$E111),(Input!$N$145*(1+pretaxreal)^0.5)-SUM($N111:Y111),(Input!$N$145*(1+pretaxreal)^0.5)/A3stdlife)) -> 0 | AA111: =IF(A3stdlife="n/a","n/a",IF(AA$3>(A3stdlife+$E111),(Input!$N$145*(1+pretaxreal)^0.5)-SUM($N111:Z111),(Input!$N$145*(1+pretaxreal)^0.5)/A3stdlife)) -> 0 | AB111: =IF(A3stdlife="n/a","n/a",IF(AB$3>(A3stdlife+$E111),(Input!$N$145*(1+pretaxreal)^0.5)-SUM($N111:AA111),(Input!$N$145*(1+pretaxreal)^0.5)/A3stdlife)) -> 0 | AC111: =IF(A3stdlife="n/a","n/a",IF(AC$3>(A3stdlife+$E111),(Input!$N$145*(1+pretaxreal)^0.5)-SUM($N111:AB111),(Input!$N$145*(1+pretaxreal)^0.5)/A3stdlife)) -> 0 | AD111: =IF(A3stdlife="n/a","n/a",IF(AD$3>(A3stdlife+$E111),(Input!$N$145*(1+pretaxreal)^0.5)-SUM($N111:AC111),(Input!$N$145*(1+pretaxreal)^0.5)/A3stdlife)) -> 0 | AE111: =IF(A3stdlife="n/a","n/a",IF(AE$3>(A3stdlife+$E111),(Input!$N$145*(1+pretaxreal)^0.5)-SUM($N111:AD111),(Input!$N$145*(1+pretaxreal)^0.5)/A3stdlife)) -> 0 | AF111: =IF(A3stdlife="n/a","n/a",IF(AF$3>(A3stdlife+$E111),(Input!$N$145*(1+pretaxreal)^0.5)-SUM($N111:AE111),(Input!$N$145*(1+pretaxreal)^0.5)/A3stdlife)) -> 0 | AG111: =IF(A3stdlife="n/a","n/a",IF(AG$3>(A3stdlife+$E111),(Input!$N$145*(1+pretaxreal)^0.5)-SUM($N111:AF111),(Input!$N$145*(1+pretaxreal)^0.5)/A3stdlife)) -> 0 | AH111: =IF(A3stdlife="n/a","n/a",IF(AH$3>(A3stdlife+$E111),(Input!$N$145*(1+pretaxreal)^0.5)-SUM($N111:AG111),(Input!$N$145*(1+pretaxreal)^0.5)/A3stdlife)) -> 0 | AI111: =IF(A3stdlife="n/a","n/a",IF(AI$3>(A3stdlife+$E111),(Input!$N$145*(1+pretaxreal)^0.5)-SUM($N111:AH111),(Input!$N$145*(1+pretaxreal)^0.5)/A3stdlife)) -> 0 | AJ111: =IF(A3stdlife="n/a","n/a",IF(AJ$3>(A3stdlife+$E111),(Input!$N$145*(1+pretaxreal)^0.5)-SUM($N111:AI111),(Input!$N$145*(1+pretaxreal)^0.5)/A3stdlife)) -> 0 | AK111: =IF(A3stdlife="n/a","n/a",IF(AK$3>(A3stdlife+$E111),(Input!$N$145*(1+pretaxreal)^0.5)-SUM($N111:AJ111),(Input!$N$145*(1+pretaxreal)^0.5)/A3stdlife)) -> 0 | AL111: =IF(A3stdlife="n/a","n/a",IF(AL$3>(A3stdlife+$E111),(Input!$N$145*(1+pretaxreal)^0.5)-SUM($N111:AK111),(Input!$N$145*(1+pretaxreal)^0.5)/A3stdlife)) -> 0 | AM111: =IF(A3stdlife="n/a","n/a",IF(AM$3>(A3stdlife+$E111),(Input!$N$145*(1+pretaxreal)^0.5)-SUM($N111:AL111),(Input!$N$145*(1+pretaxreal)^0.5)/A3stdlife)) -> 0 | AN111: =IF(A3stdlife="n/a","n/a",IF(AN$3>(A3stdlife+$E111),(Input!$N$145*(1+pretaxreal)^0.5)-SUM($N111:AM111),(Input!$N$145*(1+pretaxreal)^0.5)/A3stdlife)) -> 0 | AO111: =IF(A3stdlife="n/a","n/a",IF(AO$3>(A3stdlife+$E111),(Input!$N$145*(1+pretaxreal)^0.5)-SUM($N111:AN111),(Input!$N$145*(1+pretaxreal)^0.5)/A3stdlife)) -> 0 | AP111: =IF(A3stdlife="n/a","n/a",IF(AP$3>(A3stdlife+$E111),(Input!$N$145*(1+pretaxreal)^0.5)-SUM($N111:AO111),(Input!$N$145*(1+pretaxreal)^0.5)/A3stdlife)) -> 0 | AQ111: =IF(A3stdlife="n/a","n/a",IF(AQ$3>(A3stdlife+$E111),(Input!$N$145*(1+pretaxreal)^0.5)-SUM($N111:AP111),(Input!$N$145*(1+pretaxreal)^0.5)/A3stdlife)) -> 0 | AR111: =IF(A3stdlife="n/a","n/a",IF(AR$3>(A3stdlife+$E111),(Input!$N$145*(1+pretaxreal)^0.5)-SUM($N111:AQ111),(Input!$N$145*(1+pretaxreal)^0.5)/A3stdlife)) -> 0 | AS111: =IF(A3stdlife="n/a","n/a",IF(AS$3>(A3stdlife+$E111),(Input!$N$145*(1+pretaxreal)^0.5)-SUM($N111:AR111),(Input!$N$145*(1+pretaxreal)^0.5)/A3stdlife)) -> 0 | AT111: =IF(A3stdlife="n/a","n/a",IF(AT$3>(A3stdlife+$E111),(Input!$N$145*(1+pretaxreal)^0.5)-SUM($N111:AS111),(Input!$N$145*(1+pretaxreal)^0.5)/A3stdlife)) -> 0 | AU111: =IF(A3stdlife="n/a","n/a",IF(AU$3>(A3stdlife+$E111),(Input!$N$145*(1+pretaxreal)^0.5)-SUM($N111:AT111),(Input!$N$145*(1+pretaxreal)^0.5)/A3stdlife)) -> 0 | AV111: =IF(A3stdlife="n/a","n/a",IF(AV$3>(A3stdlife+$E111),(Input!$N$145*(1+pretaxreal)^0.5)-SUM($N111:AU111),(Input!$N$145*(1+pretaxreal)^0.5)/A3stdlife)) -> 0 | AW111: =IF(A3stdlife="n/a","n/a",IF(AW$3>(A3stdlife+$E111),(Input!$N$145*(1+pretaxreal)^0.5)-SUM($N111:AV111),(Input!$N$145*(1+pretaxreal)^0.5)/A3stdlife)) -> 0 | AX111: =IF(A3stdlife="n/a","n/a",IF(AX$3>(A3stdlife+$E111),(Input!$N$145*(1+pretaxreal)^0.5)-SUM($N111:AW111),(Input!$N$145*(1+pretaxreal)^0.5)/A3stdlife)) -> 0 | AY111: =IF(A3stdlife="n/a","n/a",IF(AY$3>(A3stdlife+$E111),(Input!$N$145*(1+pretaxreal)^0.5)-SUM($N111:AX111),(Input!$N$145*(1+pretaxreal)^0.5)/A3stdlife)) -> 0 | AZ111: =IF(A3stdlife="n/a","n/a",IF(AZ$3>(A3stdlife+$E111),(Input!$N$145*(1+pretaxreal)^0.5)-SUM($N111:AY111),(Input!$N$145*(1+pretaxreal)^0.5)/A3stdlife)) -> 0 | BA111: =IF(A3stdlife="n/a","n/a",IF(BA$3>(A3stdlife+$E111),(Input!$N$145*(1+pretaxreal)^0.5)-SUM($N111:AZ111),(Input!$N$145*(1+pretaxreal)^0.5)/A3stdlife)) -> 0 | BB111: =IF(A3stdlife="n/a","n/a",IF(BB$3>(A3stdlife+$E111),(Input!$N$145*(1+pretaxreal)^0.5)-SUM($N111:BA111),(Input!$N$145*(1+pretaxreal)^0.5)/A3stdlife)) -> 0 | BC111: =IF(A3stdlife="n/a","n/a",IF(BC$3>(A3stdlife+$E111),(Input!$N$145*(1+pretaxreal)^0.5)-SUM($N111:BB111),(Input!$N$145*(1+pretaxreal)^0.5)/A3stdlife)) -> 0 | BD111: =IF(A3stdlife="n/a","n/a",IF(BD$3>(A3stdlife+$E111),(Input!$N$145*(1+pretaxreal)^0.5)-SUM($N111:BC111),(Input!$N$145*(1+pretaxreal)^0.5)/A3stdlife)) -> 0 | BE111: =IF(A3stdlife="n/a","n/a",IF(BE$3>(A3stdlife+$E111),(Input!$N$145*(1+pretaxreal)^0.5)-SUM($N111:BD111),(Input!$N$145*(1+pretaxreal)^0.5)/A3stdlife)) -> 0 | BF111: =IF(A3stdlife="n/a","n/a",IF(BF$3>(A3stdlife+$E111),(Input!$N$145*(1+pretaxreal)^0.5)-SUM($N111:BE111),(Input!$N$145*(1+pretaxreal)^0.5)/A3stdlife)) -> 0 | BG111: =IF(A3stdlife="n/a","n/a",IF(BG$3>(A3stdlife+$E111),(Input!$N$145*(1+pretaxreal)^0.5)-SUM($N111:BF111),(Input!$N$145*(1+pretaxreal)^0.5)/A3stdlife)) -> 0 | BH111: =IF(A3stdlife="n/a","n/a",IF(BH$3>(A3stdlife+$E111),(Input!$N$145*(1+pretaxreal)^0.5)-SUM($N111:BG111),(Input!$N$145*(1+pretaxreal)^0.5)/A3stdlife)) -> 0 | BI111: =IF(A3stdlife="n/a","n/a",IF(BI$3>(A3stdlife+$E111),(Input!$N$145*(1+pretaxreal)^0.5)-SUM($N111:BH111),(Input!$N$145*(1+pretaxreal)^0.5)/A3stdlife)) -> 0
